Workbook

Sheet Downloading Data
H1: List all Futures | J1: http://www.cmegroup.com/trading/products/#pageNumber=1&sortAsc=false&sortField=oi&page=1&subGroup=11&cleared=Futures
H2: General website | J2: http://www.cmegroup.com/trading/energy
B3: Step 1: Collect and Interpret the URLS
B5: Step 2: Copy URL's with alternatives
B7: Step 3: Associate URL's with Sheet Names
B9: Step 4: Create Macro with WORKBOOKS.OPEN
B11: Step 5: Copy and Paste into Sheet Name and in this case paste special as values
B13: Step 6: Use MATCH/INDEX/INDIRECT to Put Together Summary Sheets | S13: MMBTU
S32: Gallon
S51: Barrel

Sheet Get Futures
O1: Website for Contract specs etc.
A2: Inputs | O2: http://www.cmegroup.com/trading/energy
C3: Code Number | D3: 22 | F3: Month | G3: 1 | I3: Year | J3: 17
C4: First Code | D4: 7 | O4: Get from settlements page
C5: Last Code | D5: 22 | AC5: http://www.barchart.com/commodityfutures/Crude_Oil_WTI_Futures/options/CLF18?mode=i&view=
AC6: http://www.barchart.com/commodityfutures/Crude_Oil_WTI_Futures/options/CLG18?mode=i&view=
A7: URLS for Forward Prices
C8: Sheet Name | D8: URL | AC8: http://www.barchart.com/commodityfutures/Crude_Oil_WTI_Futures/options/CLH18?mode=i&view=
B9: 1 | C9: NG_Futures | D9: http://www.barchart.com/commodityfutures/Natural_Gas_Futures/NG | AC9: http://www.barchart.com/commodityfutures/Crude_Oil_WTI_Futures/options/CLJ18?mode=i&view=
B10: 2 | C10: Oil_Futures | D10: http://www.barchart.com/commodityfutures/Crude_Oil_WTI_Futures/CL | AC10: http://www.barchart.com/commodityfutures/Crude_Oil_WTI_Futures/options/CLK18?mode=i&view=
B11: 3 | C11: Gas_Futures_EOD | D11: http://www.barchart.com/commodityfutures/Natural_Gas_Futures/NG?mode=D&view= | AC11: http://www.barchart.com/commodityfutures/Crude_Oil_WTI_Futures/options/CLM18?mode=i&view=
B12: 4 | C12: Oil_Futures_EOD | D12: http://www.barchart.com/commodityfutures/Crude_Oil_WTI_Futures/CL?mode=D&view= | AC12: http://www.barchart.com/commodityfutures/Crude_Oil_WTI_Futures/options/CLN18?mode=i&view=
B13: 5 | C13: ="Oil_Option"&$G$3&$J$3 -> Oil_Option117 | D13: =AC35 -> http://www.barchart.com/commodityfutures/Crude_Oil_WTI_Futures/options/CL?mode=i&view= | AC13: http://www.barchart.com/commodityfutures/Crude_Oil_WTI_Futures/options/CLU18?mode=i&view=
B14: 6 | C14: CME_Gas_Options | D14: http://www.cmegroup.com/trading/energy/natural-gas/natural-gas_quotes_openOutcry_options.html?optionExpiration=191-J7#strikeRange=ALL
B15: 7 | C15: CME_WTI_Futures | D15: http://www.cmegroup.com/trading/energy/crude-oil/west-texas-intermediate-wti-crude-oil-calendar-swap-futures.html | AC15: http://www.barchart.com/commodityfutures/Crude_Oil_WTI_Futures/options/CLX18?mode=i&view=
B16: 8 | C16: CME_NEPOOL_OFF_Futures | D16: http://www.cmegroup.com/trading/energy/electricity/nepool-internal-hub-5-mw-off-peak-calendar-month-day-ahead-swap-futures.html | AC16: http://www.barchart.com/commodityfutures/Crude_Oil_WTI_Futures/options/CLZ18?mode=i&view=
B17: 9 | C17: CME_NEPOOL_ON_Futures | D17: http://www.cmegroup.com/trading/energy/electricity/nepool-internal-hub-5-mw-peak-calendar-month-day-ahead-swap-futures_quotes_settlements_futures.html
B18: 10 | C18: CME_BRENT_Futures | D18: http://www.cmegroup.com/trading/energy/crude-oil/brent-crude-oil.html
B19: 11 | C19: CME_BRENTF_Futures | D19: http://www.cmegroup.com/trading/energy/crude-oil/brent-crude-oil-last-day.html
B20: 12 | C20: CME_PJM_OFF_Futures | D20: http://www.cmegroup.com/trading/energy/electricity/pjm-western-hub-off-peak-calendar-month-real-time-lmp-swap-futures.html
B21: 13 | C21: CME_PJM_ON_Futures | D21: http://www.cmegroup.com/trading/energy/electricity/pjm-western-hub-peak-calendar-month-real-time-lmp_quotes_settlements_futures.html
B22: 14 | C22: CME_NIND_Off_Futures | D22: http://www.cmegroup.com/trading/energy/electricity/cinergy-hub-5-mw-off-peak-calendar-month-real-time-swap-futures_quotes_settlements_futures.html
B23: 15 | C23: CME_Gas_Futures | D23: http://www.cmegroup.com/trading/energy/natural-gas/natural-gas.html | AC23: http://www.barchart.com/commodityfutures/Crude_Oil_WTI_Futures/options/CLV18?mode=i&view=
B24: 16 | C24: CME_Algonquin | D24: http://www.cmegroup.com/trading/energy/natural-gas/algonquin-citygates-natural-gas-basis-futures.html
B25: 17 | C25: CME_No2_Oil | D25: http://www.cmegroup.com/trading/energy/refined-products/heating-oil.html
B26: 18 | C26: CME_Gasoline | D26: http://www.cmegroup.com/trading/energy/refined-products/rbob-gasoline_quotes_settlements_futures.html | AC26: http://www.barchart.com/commodityfutures/Crude_Oil_WTI_Futures/options/CLZ18?mode=i&view=
B27: 19 | C27: Coal_Pbasin | D27: http://www.cmegroup.com/trading/energy/coal/western-rail-powder-river-basin-coal-swap-futures_quotes_settlements_futures.html
B28: 20 | C28: Coal_API4 | D28: http://www.cmegroup.com/trading/energy/coal/coal-api-4-fob-richards-bay-argus-mccloskey_quotes_settlements_futures.html
B29: 21 | C29: ULSD_Gulf | D29: http://www.cmegroup.com/trading/energy/refined-products/gulf-coast-no-6-fuel-oil-30pct-sulfur-platts-swap_quotes_settlements_futures.html
B30: 22 | C30: Crack_Spread | D30: http://www.cmegroup.com/trading/energy/refined-products/gasoline-euro-bob-oxy-new-barges-crack-spread-swap-futures_quotes_settlements_futures.html
A32: Selected URL
C33: Sheet Name | D33: URL | AC33: http://www.barchart.com/commodityfutures/Crude_Oil_WTI_Futures/options/CL
C34: =INDEX(C9:C32,$D$3) -> Crack_Spread | D34: =INDEX(D9:D32,$D$3) -> http://www.cmegroup.com/trading/energy/refined-products/gasoline-euro-bob-oxy-new-barges-crack-spread-swap-futures_quotes_settlements_futures.html | AC34: ?mode=i&view=
AC35: =AC33&K3&AC34 -> http://www.barchart.com/commodityfutures/Crude_Oil_WTI_Futures/options/CL?mode=i&view=

Sheet Monthly Analysis
N2: Match | R2: Row Number | AB2: Storage | AC2: 5
J3: Counter | K3: Counter | L3: Match # | M3: Index | N3: Col in data | R3: Col Number | T3: =TRANSPOSE(N5:N20) -> 2 | U3: 17 | V3: 20 | W3: 26 | AB3: Efficiency | AC3: 0.9
P4: Row | Q4: sum | R4: Transpsose | T4: =TRANSPOSE(M5:M20) -> CME_WTI_Futures USD/MMBTU | U4: CME_Gas_Futures USD/MMBTU | V4: CME_No2_Oil USD/MMBTU | W4: Coal_API4 USD/MMBTU | AB4: USD/MWH | AC4: USD/MWH | AD4: USD/MWH | AE4: Days | AF4: USD/MW-m
H5: =TRANSPOSE('Monthly Database'!C7:AF7) -> CME_WTI_Futures USD/BBL | I5: FALSE | J5: =I5*1 -> 0 | K5: 1 | L5: =MATCH(K5,J1:J30,0) -> 6 | M5: =INDEX(H1:H30,L5) -> CME_WTI_Futures USD/MMBTU | N5: =MATCH(M5,'Monthly Database'!$C$7:$AF$7,0) -> 2 | P5: =ROW('Monthly Database'!B8) -> 8 | Q5: =sum_na(T5:Z5) -> 22.90989565 | R5: =INDEX('Monthly Database'!$B$1:$B$143,'Monthly Analysis'!P5) -> 2017-09-01 | S5: =IF(Q5,R5,NA()) -> 2017-09-01 | T5: =IF(INDEX('Monthly Database'!$C$8:$AF$143,'Monthly Analysis'!$P5,'Monthly Analysis'!T$3),INDEX('Monthly Database'!$C$8:$AF$143,'Monthly Analysis'!$P5,'Monthly Analysis'!T$3),NA()) -> 8.326142289 | U5: =IF(INDEX('Monthly Database'!$C$8:$AF$143,'Monthly Analysis'!$P5,'Monthly Analysis'!U$3),INDEX('Monthly Database'!$C$8:$AF$143,'Monthly Analysis'!$P5,'Monthly Analysis'!U$3),NA()) -> 2.911 | V5: =IF(INDEX('Monthly Database'!$C$8:$AF$143,'Monthly Analysis'!$P5,'Monthly Analysis'!V$3),INDEX('Monthly Database'!$C$8:$AF$143,'Monthly Analysis'!$P5,'Monthly Analysis'!V$3),NA()) -> 11.67275336 | W5: =IF(INDEX('Monthly Database'!$C$8:$AF$143,'Monthly Analysis'!$P5,'Monthly Analysis'!W$3),INDEX('Monthly Database'!$C$8:$AF$143,'Monthly Analysis'!$P5,'Monthly Analysis'!W$3),NA()) ->  | X5: =IF(INDEX('Monthly Database'!$C$8:$AF$143,'Monthly Analysis'!$P5,'Monthly Analysis'!X$3),INDEX('Monthly Database'!$C$8:$AF$143,'Monthly Analysis'!$P5,'Monthly Analysis'!X$3),NA()) ->  | Y5: =IF(INDEX('Monthly Database'!$C$8:$AF$143,'Monthly Analysis'!$P5,'Monthly Analysis'!Y$3),INDEX('Monthly Database'!$C$8:$AF$143,'Monthly Analysis'!$P5,'Monthly Analysis'!Y$3),NA()) ->  | Z5: =IF(INDEX('Monthly Database'!$C$8:$AF$143,'Monthly Analysis'!$P5,'Monthly Analysis'!Z$3),INDEX('Monthly Database'!$C$8:$AF$143,'Monthly Analysis'!$P5,'Monthly Analysis'!Z$3),NA()) ->  | AA5: =U5/T5-1 -> -0.6503783026 | AB5: =U5*$AC$2*$AC$3 -> 13.0995 | AC5: =T5*$AC$2 -> 41.63071144 | AD5: =AB5-AC5 -> -28.53121144 | AE5: =365.25/12 -> 30.4375 | AF5: =AD5*AE5 -> -868.4187483
H6: CME_WTI_Futures USD/MMBTU | I6: TRUE | J6: =J5+I6 -> 1 | K6: 2 | L6: 20 | M6: CME_Gas_Futures USD/MMBTU | N6: =MATCH(M6,'Monthly Database'!$C$7:$AF$7,0) -> 17 | P6: =P5+1 -> 9 | Q6: =sum_na(T6:Z6) -> 22.84379293 | R6: =INDEX('Monthly Database'!$B$1:$B$143,'Monthly Analysis'!P6) -> 2017-10-01 | S6: =IF(Q6,R6,NA()) -> 2017-10-01 | T6: =IF(INDEX('Monthly Database'!$C$8:$AF$143,'Monthly Analysis'!$P6,'Monthly Analysis'!T$3),INDEX('Monthly Database'!$C$8:$AF$143,'Monthly Analysis'!$P6,'Monthly Analysis'!T$3),NA()) -> 8.336417248 | U6: =IF(INDEX('Monthly Database'!$C$8:$AF$143,'Monthly Analysis'!$P6,'Monthly Analysis'!U$3),INDEX('Monthly Database'!$C$8:$AF$143,'Monthly Analysis'!$P6,'Monthly Analysis'!U$3),NA()) -> 2.875 | V6: =IF(INDEX('Monthly Database'!$C$8:$AF$143,'Monthly Analysis'!$P6,'Monthly Analysis'!V$3),INDEX('Monthly Database'!$C$8:$AF$143,'Monthly Analysis'!$P6,'Monthly Analysis'!V$3),NA()) -> 11.63237569 | W6: =IF(INDEX('Monthly Database'!$C$8:$AF$143,'Monthly Analysis'!$P6,'Monthly Analysis'!W$3),INDEX('Monthly Database'!$C$8:$AF$143,'Monthly Analysis'!$P6,'Monthly Analysis'!W$3),NA()) ->  | X6: =IF(INDEX('Monthly Database'!$C$8:$AF$143,'Monthly Analysis'!$P6,'Monthly Analysis'!X$3),INDEX('Monthly Database'!$C$8:$AF$143,'Monthly Analysis'!$P6,'Monthly Analysis'!X$3),NA()) ->  | Y6: =IF(INDEX('Monthly Database'!$C$8:$AF$143,'Monthly Analysis'!$P6,'Monthly Analysis'!Y$3),INDEX('Monthly Database'!$C$8:$AF$143,'Monthly Analysis'!$P6,'Monthly Analysis'!Y$3),NA()) ->  | Z6: =IF(INDEX('Monthly Database'!$C$8:$AF$143,'Monthly Analysis'!$P6,'Monthly Analysis'!Z$3),INDEX('Monthly Database'!$C$8:$AF$143,'Monthly Analysis'!$P6,'Monthly Analysis'!Z$3),NA()) ->  | AA6: =U6/T6-1 -> -0.6551276268 | AB6: =U6*$AC$2*$AC$3 -> 12.9375 | AC6: =T6*$AC$2 -> 41.68208624 | AD6: =AB6-AC6 -> -28.74458624 | AE6: =365.25/12 -> 30.4375 | AF6: =AD6*AE6 -> -874.9133437
H7: CME_NEPOOL_OFF_Futures USD/MWH | I7: FALSE | J7: =J6+I7 -> 1 | K7: 3 | L7: 22 | M7: CME_No2_Oil USD/MMBTU | N7: =MATCH(M7,'Monthly Database'!$C$7:$AF$7,0) -> 20 | P7: =P6+1 -> 10 | Q7: 22.85129098 | R7: =INDEX('Monthly Database'!$B$1:$B$143,'Monthly Analysis'!P7) -> 2017-11-01 | S7: 2017-11-01 | T7: =IF(INDEX('Monthly Database'!$C$8:$AF$143,'Monthly Analysis'!$P7,'Monthly Analysis'!T$3),INDEX('Monthly Database'!$C$8:$AF$143,'Monthly Analysis'!$P7,'Monthly Analysis'!T$3),NA()) -> 8.343267221 | U7: =IF(INDEX('Monthly Database'!$C$8:$AF$143,'Monthly Analysis'!$P7,'Monthly Analysis'!U$3),INDEX('Monthly Database'!$C$8:$AF$143,'Monthly Analysis'!$P7,'Monthly Analysis'!U$3),NA()) -> 2.898 | V7: =IF(INDEX('Monthly Database'!$C$8:$AF$143,'Monthly Analysis'!$P7,'Monthly Analysis'!V$3),INDEX('Monthly Database'!$C$8:$AF$143,'Monthly Analysis'!$P7,'Monthly Analysis'!V$3),NA()) -> 11.61002376 | W7: =IF(INDEX('Monthly Database'!$C$8:$AF$143,'Monthly Analysis'!$P7,'Monthly Analysis'!W$3),INDEX('Monthly Database'!$C$8:$AF$143,'Monthly Analysis'!$P7,'Monthly Analysis'!W$3),NA()) ->  | X7: =IF(INDEX('Monthly Database'!$C$8:$AF$143,'Monthly Analysis'!$P7,'Monthly Analysis'!X$3),INDEX('Monthly Database'!$C$8:$AF$143,'Monthly Analysis'!$P7,'Monthly Analysis'!X$3),NA()) ->  | Y7: =IF(INDEX('Monthly Database'!$C$8:$AF$143,'Monthly Analysis'!$P7,'Monthly Analysis'!Y$3),INDEX('Monthly Database'!$C$8:$AF$143,'Monthly Analysis'!$P7,'Monthly Analysis'!Y$3),NA()) ->  | Z7: =IF(INDEX('Monthly Database'!$C$8:$AF$143,'Monthly Analysis'!$P7,'Monthly Analysis'!Z$3),INDEX('Monthly Database'!$C$8:$AF$143,'Monthly Analysis'!$P7,'Monthly Analysis'!Z$3),NA()) ->  | AA7: -0.6526540595 | AB7: 13.041 | AC7: 41.71633611 | AD7: -28.67533611 | AE7: 30.4375 | AF7: -872.8055428
H8: CME_NEPOOL_OFF_Futures USD/MMBTU | I8: FALSE | J8: 1 | K8: 4 | L8: 27 | M8: Coal_API4 USD/MMBTU | N8: =MATCH(M8,'Monthly Database'!$C$7:$AF$7,0) -> 26 | P8: 11 | Q8: 26.06704727 | R8: =INDEX('Monthly Database'!$B$1:$B$143,'Monthly Analysis'!P8) -> 2017-12-01 | S8: 2017-12-01 | T8: =IF(INDEX('Monthly Database'!$C$8:$AF$143,'Monthly Analysis'!$P8,'Monthly Analysis'!T$3),INDEX('Monthly Database'!$C$8:$AF$143,'Monthly Analysis'!$P8,'Monthly Analysis'!T$3),NA()) -> 8.348404701 | U8: =IF(INDEX('Monthly Database'!$C$8:$AF$143,'Monthly Analysis'!$P8,'Monthly Analysis'!U$3),INDEX('Monthly Database'!$C$8:$AF$143,'Monthly Analysis'!$P8,'Monthly Analysis'!U$3),NA()) -> 2.922 | V8: =IF(INDEX('Monthly Database'!$C$8:$AF$143,'Monthly Analysis'!$P8,'Monthly Analysis'!V$3),INDEX('Monthly Database'!$C$8:$AF$143,'Monthly Analysis'!$P8,'Monthly Analysis'!V$3),NA()) -> 11.62804951 | W8: =IF(INDEX('Monthly Database'!$C$8:$AF$143,'Monthly Analysis'!$P8,'Monthly Analysis'!W$3),INDEX('Monthly Database'!$C$8:$AF$143,'Monthly Analysis'!$P8,'Monthly Analysis'!W$3),NA()) -> 3.168593065 | X8: =IF(INDEX('Monthly Database'!$C$8:$AF$143,'Monthly Analysis'!$P8,'Monthly Analysis'!X$3),INDEX('Monthly Database'!$C$8:$AF$143,'Monthly Analysis'!$P8,'Monthly Analysis'!X$3),NA()) ->  | Y8: =IF(INDEX('Monthly Database'!$C$8:$AF$143,'Monthly Analysis'!$P8,'Monthly Analysis'!Y$3),INDEX('Monthly Database'!$C$8:$AF$143,'Monthly Analysis'!$P8,'Monthly Analysis'!Y$3),NA()) ->  | Z8: =IF(INDEX('Monthly Database'!$C$8:$AF$143,'Monthly Analysis'!$P8,'Monthly Analysis'!Z$3),INDEX('Monthly Database'!$C$8:$AF$143,'Monthly Analysis'!$P8,'Monthly Analysis'!Z$3),NA()) ->  | AA8: -0.6499930101 | AB8: 13.149 | AC8: 41.74202351 | AD8: -28.59302351 | AE8: 30.4375 | AF8: -870.300153
H9: CME_NEPOOL_ON_Futures USD/MWH | I9: FALSE | J9: 1 | K9: 5 | N9: =MATCH(M9,'Monthly Database'!$C$7:$AF$7,0) ->  | P9: 12 | Q9: 22.93543288 | R9: =INDEX('Monthly Database'!$B$1:$B$143,'Monthly Analysis'!P9) -> 2018-01-01 | S9: 2018-01-01 | T9: =IF(INDEX('Monthly Database'!$C$8:$AF$143,'Monthly Analysis'!$P9,'Monthly Analysis'!T$3),INDEX('Monthly Database'!$C$8:$AF$143,'Monthly Analysis'!$P9,'Monthly Analysis'!T$3),NA()) -> 8.353542181 | U9: =IF(INDEX('Monthly Database'!$C$8:$AF$143,'Monthly Analysis'!$P9,'Monthly Analysis'!U$3),INDEX('Monthly Database'!$C$8:$AF$143,'Monthly Analysis'!$P9,'Monthly Analysis'!U$3),NA()) -> 2.925 | V9: =IF(INDEX('Monthly Database'!$C$8:$AF$143,'Monthly Analysis'!$P9,'Monthly Analysis'!V$3),INDEX('Monthly Database'!$C$8:$AF$143,'Monthly Analysis'!$P9,'Monthly Analysis'!V$3),NA()) -> 11.6568907 | W9: =IF(INDEX('Monthly Database'!$C$8:$AF$143,'Monthly Analysis'!$P9,'Monthly Analysis'!W$3),INDEX('Monthly Database'!$C$8:$AF$143,'Monthly Analysis'!$P9,'Monthly Analysis'!W$3),NA()) ->  | X9: =IF(INDEX('Monthly Database'!$C$8:$AF$143,'Monthly Analysis'!$P9,'Monthly Analysis'!X$3),INDEX('Monthly Database'!$C$8:$AF$143,'Monthly Analysis'!$P9,'Monthly Analysis'!X$3),NA()) ->  | Y9: =IF(INDEX('Monthly Database'!$C$8:$AF$143,'Monthly Analysis'!$P9,'Monthly Analysis'!Y$3),INDEX('Monthly Database'!$C$8:$AF$143,'Monthly Analysis'!$P9,'Monthly Analysis'!Y$3),NA()) ->  | Z9: =IF(INDEX('Monthly Database'!$C$8:$AF$143,'Monthly Analysis'!$P9,'Monthly Analysis'!Z$3),INDEX('Monthly Database'!$C$8:$AF$143,'Monthly Analysis'!$P9,'Monthly Analysis'!Z$3),NA()) ->  | AA9: -0.6498491375 | AB9: 13.1625 | AC9: 41.76771091 | AD9: -28.60521091 | AE9: 30.4375 | AF9: -870.6711069
H10: CME_NEPOOL_ON_Futures USD/MMBTU | I10: FALSE | J10: 1 | K10: 6 | N10: =MATCH(M10,'Monthly Database'!$C$7:$AF$7,0) ->  | P10: 13 | Q10: 22.95406392 | R10: =INDEX('Monthly Database'!$B$1:$B$143,'Monthly Analysis'!P10) -> 2018-02-01 | S10: 2018-02-01 | T10: =IF(INDEX('Monthly Database'!$C$8:$AF$143,'Monthly Analysis'!$P10,'Monthly Analysis'!T$3),INDEX('Monthly Database'!$C$8:$AF$143,'Monthly Analysis'!$P10,'Monthly Analysis'!T$3),NA()) -> 8.358679661 | U10: =IF(INDEX('Monthly Database'!$C$8:$AF$143,'Monthly Analysis'!$P10,'Monthly Analysis'!U$3),INDEX('Monthly Database'!$C$8:$AF$143,'Monthly Analysis'!$P10,'Monthly Analysis'!U$3),NA()) -> 2.901 | V10: =IF(INDEX('Monthly Database'!$C$8:$AF$143,'Monthly Analysis'!$P10,'Monthly Analysis'!V$3),INDEX('Monthly Database'!$C$8:$AF$143,'Monthly Analysis'!$P10,'Monthly Analysis'!V$3),NA()) -> 11.69438426 | W10: =IF(INDEX('Monthly Database'!$C$8:$AF$143,'Monthly Analysis'!$P10,'Monthly Analysis'!W$3),INDEX('Monthly Database'!$C$8:$AF$143,'Monthly Analysis'!$P10,'Monthly Analysis'!W$3),NA()) ->  | X10: =IF(INDEX('Monthly Database'!$C$8:$AF$143,'Monthly Analysis'!$P10,'Monthly Analysis'!X$3),INDEX('Monthly Database'!$C$8:$AF$143,'Monthly Analysis'!$P10,'Monthly Analysis'!X$3),NA()) ->  | Y10: =IF(INDEX('Monthly Database'!$C$8:$AF$143,'Monthly Analysis'!$P10,'Monthly Analysis'!Y$3),INDEX('Monthly Database'!$C$8:$AF$143,'Monthly Analysis'!$P10,'Monthly Analysis'!Y$3),NA()) ->  | Z10: =IF(INDEX('Monthly Database'!$C$8:$AF$143,'Monthly Analysis'!$P10,'Monthly Analysis'!Z$3),INDEX('Monthly Database'!$C$8:$AF$143,'Monthly Analysis'!$P10,'Monthly Analysis'!Z$3),NA()) ->  | AA10: -0.6529356169 | AB10: 13.0545 | AC10: 41.7933983 | AD10: -28.7388983 | AE10: 30.4375 | AF10: -874.7402171
H11: CME_BRENT_Futures USD/BBL | I11: FALSE | J11: 1 | K11: 7 | N11: =MATCH(M11,'Monthly Database'!$C$7:$AF$7,0) ->  | P11: 14 | Q11: 23.01730864 | R11: =INDEX('Monthly Database'!$B$1:$B$143,'Monthly Analysis'!P11) -> 2018-03-01 | S11: 2018-03-01 | T11: =IF(INDEX('Monthly Database'!$C$8:$AF$143,'Monthly Analysis'!$P11,'Monthly Analysis'!T$3),INDEX('Monthly Database'!$C$8:$AF$143,'Monthly Analysis'!$P11,'Monthly Analysis'!T$3),NA()) -> 8.362104647 | U11: =IF(INDEX('Monthly Database'!$C$8:$AF$143,'Monthly Analysis'!$P11,'Monthly Analysis'!U$3),INDEX('Monthly Database'!$C$8:$AF$143,'Monthly Analysis'!$P11,'Monthly Analysis'!U$3),NA()) -> 2.919 | V11: =IF(INDEX('Monthly Database'!$C$8:$AF$143,'Monthly Analysis'!$P11,'Monthly Analysis'!V$3),INDEX('Monthly Database'!$C$8:$AF$143,'Monthly Analysis'!$P11,'Monthly Analysis'!V$3),NA()) -> 11.73620399 | W11: =IF(INDEX('Monthly Database'!$C$8:$AF$143,'Monthly Analysis'!$P11,'Monthly Analysis'!W$3),INDEX('Monthly Database'!$C$8:$AF$143,'Monthly Analysis'!$P11,'Monthly Analysis'!W$3),NA()) ->  | X11: =IF(INDEX('Monthly Database'!$C$8:$AF$143,'Monthly Analysis'!$P11,'Monthly Analysis'!X$3),INDEX('Monthly Database'!$C$8:$AF$143,'Monthly Analysis'!$P11,'Monthly Analysis'!X$3),NA()) ->  | Y11: =IF(INDEX('Monthly Database'!$C$8:$AF$143,'Monthly Analysis'!$P11,'Monthly Analysis'!Y$3),INDEX('Monthly Database'!$C$8:$AF$143,'Monthly Analysis'!$P11,'Monthly Analysis'!Y$3),NA()) ->  | Z11: =IF(INDEX('Monthly Database'!$C$8:$AF$143,'Monthly Analysis'!$P11,'Monthly Analysis'!Z$3),INDEX('Monthly Database'!$C$8:$AF$143,'Monthly Analysis'!$P11,'Monthly Analysis'!Z$3),NA()) ->  | AA11: -0.6509252009 | AB11: 13.1355 | AC11: 41.81052324 | AD11: -28.67502324 | AE11: 30.4375 | AF11: -872.7960198
H12: CME_BRENT_Futures USD/MMBTU | I12: FALSE | J12: 1 | K12: 8 | N12: =MATCH(M12,'Monthly Database'!$C$7:$AF$7,0) ->  | P12: 15 | Q12: 23.11270792 | R12: =INDEX('Monthly Database'!$B$1:$B$143,'Monthly Analysis'!P12) -> 2018-04-01 | S12: 2018-04-01 | T12: =IF(INDEX('Monthly Database'!$C$8:$AF$143,'Monthly Analysis'!$P12,'Monthly Analysis'!T$3),INDEX('Monthly Database'!$C$8:$AF$143,'Monthly Analysis'!$P12,'Monthly Analysis'!T$3),NA()) -> 8.367242127 | U12: =IF(INDEX('Monthly Database'!$C$8:$AF$143,'Monthly Analysis'!$P12,'Monthly Analysis'!U$3),INDEX('Monthly Database'!$C$8:$AF$143,'Monthly Analysis'!$P12,'Monthly Analysis'!U$3),NA()) -> 2.966 | V12: =IF(INDEX('Monthly Database'!$C$8:$AF$143,'Monthly Analysis'!$P12,'Monthly Analysis'!V$3),INDEX('Monthly Database'!$C$8:$AF$143,'Monthly Analysis'!$P12,'Monthly Analysis'!V$3),NA()) -> 11.77946579 | W12: =IF(INDEX('Monthly Database'!$C$8:$AF$143,'Monthly Analysis'!$P12,'Monthly Analysis'!W$3),INDEX('Monthly Database'!$C$8:$AF$143,'Monthly Analysis'!$P12,'Monthly Analysis'!W$3),NA()) ->  | X12: =IF(INDEX('Monthly Database'!$C$8:$AF$143,'Monthly Analysis'!$P12,'Monthly Analysis'!X$3),INDEX('Monthly Database'!$C$8:$AF$143,'Monthly Analysis'!$P12,'Monthly Analysis'!X$3),NA()) ->  | Y12: =IF(INDEX('Monthly Database'!$C$8:$AF$143,'Monthly Analysis'!$P12,'Monthly Analysis'!Y$3),INDEX('Monthly Database'!$C$8:$AF$143,'Monthly Analysis'!$P12,'Monthly Analysis'!Y$3),NA()) ->  | Z12: =IF(INDEX('Monthly Database'!$C$8:$AF$143,'Monthly Analysis'!$P12,'Monthly Analysis'!Z$3),INDEX('Monthly Database'!$C$8:$AF$143,'Monthly Analysis'!$P12,'Monthly Analysis'!Z$3),NA()) ->  | AA12: -0.645522389 | AB12: 13.347 | AC12: 41.83621064 | AD12: -28.48921064 | AE12: 30.4375 | AF12: -867.1403487
H13: CME_BRENTF_Futures USD/BBL | I13: FALSE | J13: 1 | K13: 9 | N13: =MATCH(M13,'Monthly Database'!$C$7:$AF$7,0) ->  | P13: 16 | Q13: 23.27890543 | R13: =INDEX('Monthly Database'!$B$1:$B$143,'Monthly Analysis'!P13) -> 2018-05-01 | S13: 2018-05-01 | T13: =IF(INDEX('Monthly Database'!$C$8:$AF$143,'Monthly Analysis'!$P13,'Monthly Analysis'!T$3),INDEX('Monthly Database'!$C$8:$AF$143,'Monthly Analysis'!$P13,'Monthly Analysis'!T$3),NA()) -> 8.370667114 | U13: =IF(INDEX('Monthly Database'!$C$8:$AF$143,'Monthly Analysis'!$P13,'Monthly Analysis'!U$3),INDEX('Monthly Database'!$C$8:$AF$143,'Monthly Analysis'!$P13,'Monthly Analysis'!U$3),NA()) -> 3.092 | V13: =IF(INDEX('Monthly Database'!$C$8:$AF$143,'Monthly Analysis'!$P13,'Monthly Analysis'!V$3),INDEX('Monthly Database'!$C$8:$AF$143,'Monthly Analysis'!$P13,'Monthly Analysis'!V$3),NA()) -> 11.81623831 | W13: =IF(INDEX('Monthly Database'!$C$8:$AF$143,'Monthly Analysis'!$P13,'Monthly Analysis'!W$3),INDEX('Monthly Database'!$C$8:$AF$143,'Monthly Analysis'!$P13,'Monthly Analysis'!W$3),NA()) ->  | X13: =IF(INDEX('Monthly Database'!$C$8:$AF$143,'Monthly Analysis'!$P13,'Monthly Analysis'!X$3),INDEX('Monthly Database'!$C$8:$AF$143,'Monthly Analysis'!$P13,'Monthly Analysis'!X$3),NA()) ->  | Y13: =IF(INDEX('Monthly Database'!$C$8:$AF$143,'Monthly Analysis'!$P13,'Monthly Analysis'!Y$3),INDEX('Monthly Database'!$C$8:$AF$143,'Monthly Analysis'!$P13,'Monthly Analysis'!Y$3),NA()) ->  | Z13: =IF(INDEX('Monthly Database'!$C$8:$AF$143,'Monthly Analysis'!$P13,'Monthly Analysis'!Z$3),INDEX('Monthly Database'!$C$8:$AF$143,'Monthly Analysis'!$P13,'Monthly Analysis'!Z$3),NA()) ->  | AA13: -0.6306148652 | AB13: 13.914 | AC13: 41.85333557 | AD13: -27.93933557 | AE13: 30.4375 | AF13: -850.4035264
H14: CME_BRENTF_Futures USD/MMBTU | I14: FALSE | J14: 1 | K14: 10 | N14: =MATCH(M14,'Monthly Database'!$C$7:$AF$7,0) ->  | P14: 17 | Q14: 23.39866942 | R14: =INDEX('Monthly Database'!$B$1:$B$143,'Monthly Analysis'!P14) -> 2018-06-01 | S14: 2018-06-01 | T14: =IF(INDEX('Monthly Database'!$C$8:$AF$143,'Monthly Analysis'!$P14,'Monthly Analysis'!T$3),INDEX('Monthly Database'!$C$8:$AF$143,'Monthly Analysis'!$P14,'Monthly Analysis'!T$3),NA()) -> 8.372379607 | U14: =IF(INDEX('Monthly Database'!$C$8:$AF$143,'Monthly Analysis'!$P14,'Monthly Analysis'!U$3),INDEX('Monthly Database'!$C$8:$AF$143,'Monthly Analysis'!$P14,'Monthly Analysis'!U$3),NA()) -> 3.174 | V14: =IF(INDEX('Monthly Database'!$C$8:$AF$143,'Monthly Analysis'!$P14,'Monthly Analysis'!V$3),INDEX('Monthly Database'!$C$8:$AF$143,'Monthly Analysis'!$P14,'Monthly Analysis'!V$3),NA()) -> 11.85228981 | W14: =IF(INDEX('Monthly Database'!$C$8:$AF$143,'Monthly Analysis'!$P14,'Monthly Analysis'!W$3),INDEX('Monthly Database'!$C$8:$AF$143,'Monthly Analysis'!$P14,'Monthly Analysis'!W$3),NA()) ->  | X14: =IF(INDEX('Monthly Database'!$C$8:$AF$143,'Monthly Analysis'!$P14,'Monthly Analysis'!X$3),INDEX('Monthly Database'!$C$8:$AF$143,'Monthly Analysis'!$P14,'Monthly Analysis'!X$3),NA()) ->  | Y14: =IF(INDEX('Monthly Database'!$C$8:$AF$143,'Monthly Analysis'!$P14,'Monthly Analysis'!Y$3),INDEX('Monthly Database'!$C$8:$AF$143,'Monthly Analysis'!$P14,'Monthly Analysis'!Y$3),NA()) ->  | Z14: =IF(INDEX('Monthly Database'!$C$8:$AF$143,'Monthly Analysis'!$P14,'Monthly Analysis'!Z$3),INDEX('Monthly Database'!$C$8:$AF$143,'Monthly Analysis'!$P14,'Monthly Analysis'!Z$3),NA()) ->  | AA14: -0.6208963104 | AB14: 14.283 | AC14: 41.86189804 | AD14: -27.57889804 | AE14: 30.4375 | AF14: -839.4327089
H15: CME_PJM_OFF_Futures USD/MWH | I15: FALSE | J15: 1 | K15: 11 | N15: =MATCH(M15,'Monthly Database'!$C$7:$AF$7,0) ->  | P15: 18 | Q15: 23.37248925 | R15: =INDEX('Monthly Database'!$B$1:$B$143,'Monthly Analysis'!P15) -> 2018-07-01 | S15: 2018-07-01 | T15: =IF(INDEX('Monthly Database'!$C$8:$AF$143,'Monthly Analysis'!$P15,'Monthly Analysis'!T$3),INDEX('Monthly Database'!$C$8:$AF$143,'Monthly Analysis'!$P15,'Monthly Analysis'!T$3),NA()) -> 8.375804594 | U15: =IF(INDEX('Monthly Database'!$C$8:$AF$143,'Monthly Analysis'!$P15,'Monthly Analysis'!U$3),INDEX('Monthly Database'!$C$8:$AF$143,'Monthly Analysis'!$P15,'Monthly Analysis'!U$3),NA()) -> 3.148 | V15: =IF(INDEX('Monthly Database'!$C$8:$AF$143,'Monthly Analysis'!$P15,'Monthly Analysis'!V$3),INDEX('Monthly Database'!$C$8:$AF$143,'Monthly Analysis'!$P15,'Monthly Analysis'!V$3),NA()) -> 11.84868466 | W15: =IF(INDEX('Monthly Database'!$C$8:$AF$143,'Monthly Analysis'!$P15,'Monthly Analysis'!W$3),INDEX('Monthly Database'!$C$8:$AF$143,'Monthly Analysis'!$P15,'Monthly Analysis'!W$3),NA()) ->  | X15: =IF(INDEX('Monthly Database'!$C$8:$AF$143,'Monthly Analysis'!$P15,'Monthly Analysis'!X$3),INDEX('Monthly Database'!$C$8:$AF$143,'Monthly Analysis'!$P15,'Monthly Analysis'!X$3),NA()) ->  | Y15: =IF(INDEX('Monthly Database'!$C$8:$AF$143,'Monthly Analysis'!$P15,'Monthly Analysis'!Y$3),INDEX('Monthly Database'!$C$8:$AF$143,'Monthly Analysis'!$P15,'Monthly Analysis'!Y$3),NA()) ->  | Z15: =IF(INDEX('Monthly Database'!$C$8:$AF$143,'Monthly Analysis'!$P15,'Monthly Analysis'!Z$3),INDEX('Monthly Database'!$C$8:$AF$143,'Monthly Analysis'!$P15,'Monthly Analysis'!Z$3),NA()) ->  | AA15: -0.6241555107 | AB15: 14.166 | AC15: 41.87902297 | AD15: -27.71302297 | AE15: 30.4375 | AF15: -843.5151366
H16: CME_PJM_OFF_Futures USD/MMBTU | I16: FALSE | J16: 1 | K16: 12 | N16: =MATCH(M16,'Monthly Database'!$C$7:$AF$7,0) ->  | P16: 19 | Q16: 23.27097009 | R16: =INDEX('Monthly Database'!$B$1:$B$143,'Monthly Analysis'!P16) -> 2018-08-01 | S16: 2018-08-01 | T16: =IF(INDEX('Monthly Database'!$C$8:$AF$143,'Monthly Analysis'!$P16,'Monthly Analysis'!T$3),INDEX('Monthly Database'!$C$8:$AF$143,'Monthly Analysis'!$P16,'Monthly Analysis'!T$3),NA()) -> 8.380942073 | U16: =IF(INDEX('Monthly Database'!$C$8:$AF$143,'Monthly Analysis'!$P16,'Monthly Analysis'!U$3),INDEX('Monthly Database'!$C$8:$AF$143,'Monthly Analysis'!$P16,'Monthly Analysis'!U$3),NA()) -> 3.081 | V16: =IF(INDEX('Monthly Database'!$C$8:$AF$143,'Monthly Analysis'!$P16,'Monthly Analysis'!V$3),INDEX('Monthly Database'!$C$8:$AF$143,'Monthly Analysis'!$P16,'Monthly Analysis'!V$3),NA()) -> 11.80902802 | W16: =IF(INDEX('Monthly Database'!$C$8:$AF$143,'Monthly Analysis'!$P16,'Monthly Analysis'!W$3),INDEX('Monthly Database'!$C$8:$AF$143,'Monthly Analysis'!$P16,'Monthly Analysis'!W$3),NA()) ->  | X16: =IF(INDEX('Monthly Database'!$C$8:$AF$143,'Monthly Analysis'!$P16,'Monthly Analysis'!X$3),INDEX('Monthly Database'!$C$8:$AF$143,'Monthly Analysis'!$P16,'Monthly Analysis'!X$3),NA()) ->  | Y16: =IF(INDEX('Monthly Database'!$C$8:$AF$143,'Monthly Analysis'!$P16,'Monthly Analysis'!Y$3),INDEX('Monthly Database'!$C$8:$AF$143,'Monthly Analysis'!$P16,'Monthly Analysis'!Y$3),NA()) ->  | Z16: =IF(INDEX('Monthly Database'!$C$8:$AF$143,'Monthly Analysis'!$P16,'Monthly Analysis'!Z$3),INDEX('Monthly Database'!$C$8:$AF$143,'Monthly Analysis'!$P16,'Monthly Analysis'!Z$3),NA()) ->  | AA16: -0.6323802297 | AB16: 13.8645 | AC16: 41.90471037 | AD16: -28.04021037 | AE16: 30.4375 | AF16: -853.473903
H17: CME_PJM_ON_Futures USD/MWH | I17: FALSE | J17: 1 | K17: 13 | N17: =MATCH(M17,'Monthly Database'!$C$7:$AF$7,0) ->  | P17: 20 | Q17: 22.83963986 | R17: =INDEX('Monthly Database'!$B$1:$B$143,'Monthly Analysis'!P17) -> 2018-09-01 | S17: 2018-09-01 | T17: =IF(INDEX('Monthly Database'!$C$8:$AF$143,'Monthly Analysis'!$P17,'Monthly Analysis'!T$3),INDEX('Monthly Database'!$C$8:$AF$143,'Monthly Analysis'!$P17,'Monthly Analysis'!T$3),NA()) -> 8.38950454 | U17: =IF(INDEX('Monthly Database'!$C$8:$AF$143,'Monthly Analysis'!$P17,'Monthly Analysis'!U$3),INDEX('Monthly Database'!$C$8:$AF$143,'Monthly Analysis'!$P17,'Monthly Analysis'!U$3),NA()) -> 2.706 | V17: =IF(INDEX('Monthly Database'!$C$8:$AF$143,'Monthly Analysis'!$P17,'Monthly Analysis'!V$3),INDEX('Monthly Database'!$C$8:$AF$143,'Monthly Analysis'!$P17,'Monthly Analysis'!V$3),NA()) -> 11.74413532 | W17: =IF(INDEX('Monthly Database'!$C$8:$AF$143,'Monthly Analysis'!$P17,'Monthly Analysis'!W$3),INDEX('Monthly Database'!$C$8:$AF$143,'Monthly Analysis'!$P17,'Monthly Analysis'!W$3),NA()) ->  | X17: =IF(INDEX('Monthly Database'!$C$8:$AF$143,'Monthly Analysis'!$P17,'Monthly Analysis'!X$3),INDEX('Monthly Database'!$C$8:$AF$143,'Monthly Analysis'!$P17,'Monthly Analysis'!X$3),NA()) ->  | Y17: =IF(INDEX('Monthly Database'!$C$8:$AF$143,'Monthly Analysis'!$P17,'Monthly Analysis'!Y$3),INDEX('Monthly Database'!$C$8:$AF$143,'Monthly Analysis'!$P17,'Monthly Analysis'!Y$3),NA()) ->  | Z17: =IF(INDEX('Monthly Database'!$C$8:$AF$143,'Monthly Analysis'!$P17,'Monthly Analysis'!Z$3),INDEX('Monthly Database'!$C$8:$AF$143,'Monthly Analysis'!$P17,'Monthly Analysis'!Z$3),NA()) ->  | AA17: -0.6774541348
H18: CME_PJM_ON_Futures USD/MMBTU | I18: FALSE | J18: 1 | K18: 14 | N18: =MATCH(M18,'Monthly Database'!$C$7:$AF$7,0) ->  | P18: 21 | Q18: 22.79717658 | R18: =INDEX('Monthly Database'!$B$1:$B$143,'Monthly Analysis'!P18) -> 2018-10-01 | S18: 2018-10-01 | T18: =IF(INDEX('Monthly Database'!$C$8:$AF$143,'Monthly Analysis'!$P18,'Monthly Analysis'!T$3),INDEX('Monthly Database'!$C$8:$AF$143,'Monthly Analysis'!$P18,'Monthly Analysis'!T$3),NA()) -> 8.398067006 | U18: =IF(INDEX('Monthly Database'!$C$8:$AF$143,'Monthly Analysis'!$P18,'Monthly Analysis'!U$3),INDEX('Monthly Database'!$C$8:$AF$143,'Monthly Analysis'!$P18,'Monthly Analysis'!U$3),NA()) -> 2.673 | V18: =IF(INDEX('Monthly Database'!$C$8:$AF$143,'Monthly Analysis'!$P18,'Monthly Analysis'!V$3),INDEX('Monthly Database'!$C$8:$AF$143,'Monthly Analysis'!$P18,'Monthly Analysis'!V$3),NA()) -> 11.72610957 | W18: =IF(INDEX('Monthly Database'!$C$8:$AF$143,'Monthly Analysis'!$P18,'Monthly Analysis'!W$3),INDEX('Monthly Database'!$C$8:$AF$143,'Monthly Analysis'!$P18,'Monthly Analysis'!W$3),NA()) ->  | X18: =IF(INDEX('Monthly Database'!$C$8:$AF$143,'Monthly Analysis'!$P18,'Monthly Analysis'!X$3),INDEX('Monthly Database'!$C$8:$AF$143,'Monthly Analysis'!$P18,'Monthly Analysis'!X$3),NA()) ->  | Y18: =IF(INDEX('Monthly Database'!$C$8:$AF$143,'Monthly Analysis'!$P18,'Monthly Analysis'!Y$3),INDEX('Monthly Database'!$C$8:$AF$143,'Monthly Analysis'!$P18,'Monthly Analysis'!Y$3),NA()) ->  | Z18: =IF(INDEX('Monthly Database'!$C$8:$AF$143,'Monthly Analysis'!$P18,'Monthly Analysis'!Z$3),INDEX('Monthly Database'!$C$8:$AF$143,'Monthly Analysis'!$P18,'Monthly Analysis'!Z$3),NA()) ->  | AA18: -0.6817124705 | AE18: per mw-yr | AF18: =SUM(AF5:AF16) -> -10358.61076
H19: CME_NIND_Off_Futures USD/MWH | I19: FALSE | J19: 1 | K19: 15 | N19: =MATCH(M19,'Monthly Database'!$C$7:$AF$7,0) ->  | P19: 22 | Q19: 22.83052436 | R19: =INDEX('Monthly Database'!$B$1:$B$143,'Monthly Analysis'!P19) -> 2018-11-01 | S19: 2018-11-01 | T19: =IF(INDEX('Monthly Database'!$C$8:$AF$143,'Monthly Analysis'!$P19,'Monthly Analysis'!T$3),INDEX('Monthly Database'!$C$8:$AF$143,'Monthly Analysis'!$P19,'Monthly Analysis'!T$3),NA()) -> 8.403204486 | U19: =IF(INDEX('Monthly Database'!$C$8:$AF$143,'Monthly Analysis'!$P19,'Monthly Analysis'!U$3),INDEX('Monthly Database'!$C$8:$AF$143,'Monthly Analysis'!$P19,'Monthly Analysis'!U$3),NA()) -> 2.694 | V19: =IF(INDEX('Monthly Database'!$C$8:$AF$143,'Monthly Analysis'!$P19,'Monthly Analysis'!V$3),INDEX('Monthly Database'!$C$8:$AF$143,'Monthly Analysis'!$P19,'Monthly Analysis'!V$3),NA()) -> 11.73331987 | W19: =IF(INDEX('Monthly Database'!$C$8:$AF$143,'Monthly Analysis'!$P19,'Monthly Analysis'!W$3),INDEX('Monthly Database'!$C$8:$AF$143,'Monthly Analysis'!$P19,'Monthly Analysis'!W$3),NA()) ->  | X19: =IF(INDEX('Monthly Database'!$C$8:$AF$143,'Monthly Analysis'!$P19,'Monthly Analysis'!X$3),INDEX('Monthly Database'!$C$8:$AF$143,'Monthly Analysis'!$P19,'Monthly Analysis'!X$3),NA()) ->  | Y19: =IF(INDEX('Monthly Database'!$C$8:$AF$143,'Monthly Analysis'!$P19,'Monthly Analysis'!Y$3),INDEX('Monthly Database'!$C$8:$AF$143,'Monthly Analysis'!$P19,'Monthly Analysis'!Y$3),NA()) ->  | Z19: =IF(INDEX('Monthly Database'!$C$8:$AF$143,'Monthly Analysis'!$P19,'Monthly Analysis'!Z$3),INDEX('Monthly Database'!$C$8:$AF$143,'Monthly Analysis'!$P19,'Monthly Analysis'!Z$3),NA()) ->  | AA19: -0.6794080158 | AE19: per kw-yr | AF19: =AF18/1000 -> -10.35861076
H20: CME_NIND_Off_Futures USD/MMBTU | I20: FALSE | J20: 1 | K20: 16 | N20: =MATCH(M20,'Monthly Database'!$C$7:$AF$7,0) ->  | P20: 23 | Q20: 25.90706633 | R20: =INDEX('Monthly Database'!$B$1:$B$143,'Monthly Analysis'!P20) -> 2018-12-01 | S20: 2018-12-01 | T20: =IF(INDEX('Monthly Database'!$C$8:$AF$143,'Monthly Analysis'!$P20,'Monthly Analysis'!T$3),INDEX('Monthly Database'!$C$8:$AF$143,'Monthly Analysis'!$P20,'Monthly Analysis'!T$3),NA()) -> 8.411766952 | U20: =IF(INDEX('Monthly Database'!$C$8:$AF$143,'Monthly Analysis'!$P20,'Monthly Analysis'!U$3),INDEX('Monthly Database'!$C$8:$AF$143,'Monthly Analysis'!$P20,'Monthly Analysis'!U$3),NA()) -> 2.716 | V20: =IF(INDEX('Monthly Database'!$C$8:$AF$143,'Monthly Analysis'!$P20,'Monthly Analysis'!V$3),INDEX('Monthly Database'!$C$8:$AF$143,'Monthly Analysis'!$P20,'Monthly Analysis'!V$3),NA()) -> 11.76216107 | W20: =IF(INDEX('Monthly Database'!$C$8:$AF$143,'Monthly Analysis'!$P20,'Monthly Analysis'!W$3),INDEX('Monthly Database'!$C$8:$AF$143,'Monthly Analysis'!$P20,'Monthly Analysis'!W$3),NA()) -> 3.017138302 | X20: =IF(INDEX('Monthly Database'!$C$8:$AF$143,'Monthly Analysis'!$P20,'Monthly Analysis'!X$3),INDEX('Monthly Database'!$C$8:$AF$143,'Monthly Analysis'!$P20,'Monthly Analysis'!X$3),NA()) ->  | Y20: =IF(INDEX('Monthly Database'!$C$8:$AF$143,'Monthly Analysis'!$P20,'Monthly Analysis'!Y$3),INDEX('Monthly Database'!$C$8:$AF$143,'Monthly Analysis'!$P20,'Monthly Analysis'!Y$3),NA()) ->  | Z20: =IF(INDEX('Monthly Database'!$C$8:$AF$143,'Monthly Analysis'!$P20,'Monthly Analysis'!Z$3),INDEX('Monthly Database'!$C$8:$AF$143,'Monthly Analysis'!$P20,'Monthly Analysis'!Z$3),NA()) ->  | AA20: -0.6771189673
H21: CME_Gas_Futures USD/MMBTU | I21: TRUE | J21: 2 | K21: 16 | P21: 24 | Q21: 22.94025448 | R21: =INDEX('Monthly Database'!$B$1:$B$143,'Monthly Analysis'!P21) -> 2019-01-01 | S21: 2019-01-01 | T21: =IF(INDEX('Monthly Database'!$C$8:$AF$143,'Monthly Analysis'!$P21,'Monthly Analysis'!T$3),INDEX('Monthly Database'!$C$8:$AF$143,'Monthly Analysis'!$P21,'Monthly Analysis'!T$3),NA()) -> 8.422041912 | U21: =IF(INDEX('Monthly Database'!$C$8:$AF$143,'Monthly Analysis'!$P21,'Monthly Analysis'!U$3),INDEX('Monthly Database'!$C$8:$AF$143,'Monthly Analysis'!$P21,'Monthly Analysis'!U$3),NA()) -> 2.72 | V21: =IF(INDEX('Monthly Database'!$C$8:$AF$143,'Monthly Analysis'!$P21,'Monthly Analysis'!V$3),INDEX('Monthly Database'!$C$8:$AF$143,'Monthly Analysis'!$P21,'Monthly Analysis'!V$3),NA()) -> 11.79821257 | W21: =IF(INDEX('Monthly Database'!$C$8:$AF$143,'Monthly Analysis'!$P21,'Monthly Analysis'!W$3),INDEX('Monthly Database'!$C$8:$AF$143,'Monthly Analysis'!$P21,'Monthly Analysis'!W$3),NA()) ->  | X21: =IF(INDEX('Monthly Database'!$C$8:$AF$143,'Monthly Analysis'!$P21,'Monthly Analysis'!X$3),INDEX('Monthly Database'!$C$8:$AF$143,'Monthly Analysis'!$P21,'Monthly Analysis'!X$3),NA()) ->  | Y21: =IF(INDEX('Monthly Database'!$C$8:$AF$143,'Monthly Analysis'!$P21,'Monthly Analysis'!Y$3),INDEX('Monthly Database'!$C$8:$AF$143,'Monthly Analysis'!$P21,'Monthly Analysis'!Y$3),NA()) ->  | Z21: =IF(INDEX('Monthly Database'!$C$8:$AF$143,'Monthly Analysis'!$P21,'Monthly Analysis'!Z$3),INDEX('Monthly Database'!$C$8:$AF$143,'Monthly Analysis'!$P21,'Monthly Analysis'!Z$3),NA()) ->  | AA21: -0.6770379406
H22: CME_Algonquin USD/MMBTU | I22: FALSE | J22: 2 | K22: 16 | P22: 25 | Q22: 22.98560668 | R22: =INDEX('Monthly Database'!$B$1:$B$143,'Monthly Analysis'!P22) -> 2019-02-01 | S22: 2019-02-01 | T22: =IF(INDEX('Monthly Database'!$C$8:$AF$143,'Monthly Analysis'!$P22,'Monthly Analysis'!T$3),INDEX('Monthly Database'!$C$8:$AF$143,'Monthly Analysis'!$P22,'Monthly Analysis'!T$3),NA()) -> 8.432316872 | U22: =IF(INDEX('Monthly Database'!$C$8:$AF$143,'Monthly Analysis'!$P22,'Monthly Analysis'!U$3),INDEX('Monthly Database'!$C$8:$AF$143,'Monthly Analysis'!$P22,'Monthly Analysis'!U$3),NA()) -> 2.701 | V22: =IF(INDEX('Monthly Database'!$C$8:$AF$143,'Monthly Analysis'!$P22,'Monthly Analysis'!V$3),INDEX('Monthly Database'!$C$8:$AF$143,'Monthly Analysis'!$P22,'Monthly Analysis'!V$3),NA()) -> 11.85228981 | W22: =IF(INDEX('Monthly Database'!$C$8:$AF$143,'Monthly Analysis'!$P22,'Monthly Analysis'!W$3),INDEX('Monthly Database'!$C$8:$AF$143,'Monthly Analysis'!$P22,'Monthly Analysis'!W$3),NA()) ->  | X22: =IF(INDEX('Monthly Database'!$C$8:$AF$143,'Monthly Analysis'!$P22,'Monthly Analysis'!X$3),INDEX('Monthly Database'!$C$8:$AF$143,'Monthly Analysis'!$P22,'Monthly Analysis'!X$3),NA()) ->  | Y22: =IF(INDEX('Monthly Database'!$C$8:$AF$143,'Monthly Analysis'!$P22,'Monthly Analysis'!Y$3),INDEX('Monthly Database'!$C$8:$AF$143,'Monthly Analysis'!$P22,'Monthly Analysis'!Y$3),NA()) ->  | Z22: =IF(INDEX('Monthly Database'!$C$8:$AF$143,'Monthly Analysis'!$P22,'Monthly Analysis'!Z$3),INDEX('Monthly Database'!$C$8:$AF$143,'Monthly Analysis'!$P22,'Monthly Analysis'!Z$3),NA()) ->  | AA22: -0.6796847129
H23: CME_No2_Oil US Cents/Gal | I23: FALSE | J23: 2 | K23: 16 | P23: 26 | Q23: 23.07898902 | R23: =INDEX('Monthly Database'!$B$1:$B$143,'Monthly Analysis'!P23) -> 2019-03-01 | S23: 2019-03-01 | T23: =IF(INDEX('Monthly Database'!$C$8:$AF$143,'Monthly Analysis'!$P23,'Monthly Analysis'!T$3),INDEX('Monthly Database'!$C$8:$AF$143,'Monthly Analysis'!$P23,'Monthly Analysis'!T$3),NA()) -> 8.446016818 | U23: =IF(INDEX('Monthly Database'!$C$8:$AF$143,'Monthly Analysis'!$P23,'Monthly Analysis'!U$3),INDEX('Monthly Database'!$C$8:$AF$143,'Monthly Analysis'!$P23,'Monthly Analysis'!U$3),NA()) -> 2.723 | V23: =IF(INDEX('Monthly Database'!$C$8:$AF$143,'Monthly Analysis'!$P23,'Monthly Analysis'!V$3),INDEX('Monthly Database'!$C$8:$AF$143,'Monthly Analysis'!$P23,'Monthly Analysis'!V$3),NA()) -> 11.9099722 | W23: =IF(INDEX('Monthly Database'!$C$8:$AF$143,'Monthly Analysis'!$P23,'Monthly Analysis'!W$3),INDEX('Monthly Database'!$C$8:$AF$143,'Monthly Analysis'!$P23,'Monthly Analysis'!W$3),NA()) ->  | X23: =IF(INDEX('Monthly Database'!$C$8:$AF$143,'Monthly Analysis'!$P23,'Monthly Analysis'!X$3),INDEX('Monthly Database'!$C$8:$AF$143,'Monthly Analysis'!$P23,'Monthly Analysis'!X$3),NA()) ->  | Y23: =IF(INDEX('Monthly Database'!$C$8:$AF$143,'Monthly Analysis'!$P23,'Monthly Analysis'!Y$3),INDEX('Monthly Database'!$C$8:$AF$143,'Monthly Analysis'!$P23,'Monthly Analysis'!Y$3),NA()) ->  | Z23: =IF(INDEX('Monthly Database'!$C$8:$AF$143,'Monthly Analysis'!$P23,'Monthly Analysis'!Z$3),INDEX('Monthly Database'!$C$8:$AF$143,'Monthly Analysis'!$P23,'Monthly Analysis'!Z$3),NA()) ->  | AA23: -0.6775995053
H24: CME_No2_Oil USD/MMBTU | I24: TRUE | J24: 3 | K24: 16 | P24: 27 | Q24: 23.20416106 | R24: =INDEX('Monthly Database'!$B$1:$B$143,'Monthly Analysis'!P24) -> 2019-04-01 | S24: 2019-04-01 | T24: =IF(INDEX('Monthly Database'!$C$8:$AF$143,'Monthly Analysis'!$P24,'Monthly Analysis'!T$3),INDEX('Monthly Database'!$C$8:$AF$143,'Monthly Analysis'!$P24,'Monthly Analysis'!T$3),NA()) -> 8.459716764 | U24: =IF(INDEX('Monthly Database'!$C$8:$AF$143,'Monthly Analysis'!$P24,'Monthly Analysis'!U$3),INDEX('Monthly Database'!$C$8:$AF$143,'Monthly Analysis'!$P24,'Monthly Analysis'!U$3),NA()) -> 2.784 | V24: =IF(INDEX('Monthly Database'!$C$8:$AF$143,'Monthly Analysis'!$P24,'Monthly Analysis'!V$3),INDEX('Monthly Database'!$C$8:$AF$143,'Monthly Analysis'!$P24,'Monthly Analysis'!V$3),NA()) -> 11.9604443 | W24: =IF(INDEX('Monthly Database'!$C$8:$AF$143,'Monthly Analysis'!$P24,'Monthly Analysis'!W$3),INDEX('Monthly Database'!$C$8:$AF$143,'Monthly Analysis'!$P24,'Monthly Analysis'!W$3),NA()) ->  | X24: =IF(INDEX('Monthly Database'!$C$8:$AF$143,'Monthly Analysis'!$P24,'Monthly Analysis'!X$3),INDEX('Monthly Database'!$C$8:$AF$143,'Monthly Analysis'!$P24,'Monthly Analysis'!X$3),NA()) ->  | Y24: =IF(INDEX('Monthly Database'!$C$8:$AF$143,'Monthly Analysis'!$P24,'Monthly Analysis'!Y$3),INDEX('Monthly Database'!$C$8:$AF$143,'Monthly Analysis'!$P24,'Monthly Analysis'!Y$3),NA()) ->  | Z24: =IF(INDEX('Monthly Database'!$C$8:$AF$143,'Monthly Analysis'!$P24,'Monthly Analysis'!Z$3),INDEX('Monthly Database'!$C$8:$AF$143,'Monthly Analysis'!$P24,'Monthly Analysis'!Z$3),NA()) ->  | AA24: -0.6709109681
H25: CME_Gasoline US Cents/Gal | I25: FALSE | J25: 3 | K25: 16 | P25: 28 | Q25: 23.39519562 | R25: =INDEX('Monthly Database'!$B$1:$B$143,'Monthly Analysis'!P25) -> 2019-05-01 | S25: 2019-05-01 | T25: =IF(INDEX('Monthly Database'!$C$8:$AF$143,'Monthly Analysis'!$P25,'Monthly Analysis'!T$3),INDEX('Monthly Database'!$C$8:$AF$143,'Monthly Analysis'!$P25,'Monthly Analysis'!T$3),NA()) -> 8.46827923 | U25: =IF(INDEX('Monthly Database'!$C$8:$AF$143,'Monthly Analysis'!$P25,'Monthly Analysis'!U$3),INDEX('Monthly Database'!$C$8:$AF$143,'Monthly Analysis'!$P25,'Monthly Analysis'!U$3),NA()) -> 2.916 | V25: =IF(INDEX('Monthly Database'!$C$8:$AF$143,'Monthly Analysis'!$P25,'Monthly Analysis'!V$3),INDEX('Monthly Database'!$C$8:$AF$143,'Monthly Analysis'!$P25,'Monthly Analysis'!V$3),NA()) -> 12.01091639 | W25: =IF(INDEX('Monthly Database'!$C$8:$AF$143,'Monthly Analysis'!$P25,'Monthly Analysis'!W$3),INDEX('Monthly Database'!$C$8:$AF$143,'Monthly Analysis'!$P25,'Monthly Analysis'!W$3),NA()) ->  | X25: =IF(INDEX('Monthly Database'!$C$8:$AF$143,'Monthly Analysis'!$P25,'Monthly Analysis'!X$3),INDEX('Monthly Database'!$C$8:$AF$143,'Monthly Analysis'!$P25,'Monthly Analysis'!X$3),NA()) ->  | Y25: =IF(INDEX('Monthly Database'!$C$8:$AF$143,'Monthly Analysis'!$P25,'Monthly Analysis'!Y$3),INDEX('Monthly Database'!$C$8:$AF$143,'Monthly Analysis'!$P25,'Monthly Analysis'!Y$3),NA()) ->  | Z25: =IF(INDEX('Monthly Database'!$C$8:$AF$143,'Monthly Analysis'!$P25,'Monthly Analysis'!Z$3),INDEX('Monthly Database'!$C$8:$AF$143,'Monthly Analysis'!$P25,'Monthly Analysis'!Z$3),NA()) ->  | AA25: -0.655656135
H26: CME_Gasoline USD/MMBTU | I26: FALSE | J26: 3 | K26: 16 | P26: 29 | Q26: 23.56083533 | R26: =INDEX('Monthly Database'!$B$1:$B$143,'Monthly Analysis'!P26) -> 2019-06-01 | S26: 2019-06-01 | T26: =IF(INDEX('Monthly Database'!$C$8:$AF$143,'Monthly Analysis'!$P26,'Monthly Analysis'!T$3),INDEX('Monthly Database'!$C$8:$AF$143,'Monthly Analysis'!$P26,'Monthly Analysis'!T$3),NA()) -> 8.476841697 | U26: =IF(INDEX('Monthly Database'!$C$8:$AF$143,'Monthly Analysis'!$P26,'Monthly Analysis'!U$3),INDEX('Monthly Database'!$C$8:$AF$143,'Monthly Analysis'!$P26,'Monthly Analysis'!U$3),NA()) -> 3.019 | V26: =IF(INDEX('Monthly Database'!$C$8:$AF$143,'Monthly Analysis'!$P26,'Monthly Analysis'!V$3),INDEX('Monthly Database'!$C$8:$AF$143,'Monthly Analysis'!$P26,'Monthly Analysis'!V$3),NA()) -> 12.06499364 | W26: =IF(INDEX('Monthly Database'!$C$8:$AF$143,'Monthly Analysis'!$P26,'Monthly Analysis'!W$3),INDEX('Monthly Database'!$C$8:$AF$143,'Monthly Analysis'!$P26,'Monthly Analysis'!W$3),NA()) ->  | X26: =IF(INDEX('Monthly Database'!$C$8:$AF$143,'Monthly Analysis'!$P26,'Monthly Analysis'!X$3),INDEX('Monthly Database'!$C$8:$AF$143,'Monthly Analysis'!$P26,'Monthly Analysis'!X$3),NA()) ->  | Y26: =IF(INDEX('Monthly Database'!$C$8:$AF$143,'Monthly Analysis'!$P26,'Monthly Analysis'!Y$3),INDEX('Monthly Database'!$C$8:$AF$143,'Monthly Analysis'!$P26,'Monthly Analysis'!Y$3),NA()) ->  | Z26: =IF(INDEX('Monthly Database'!$C$8:$AF$143,'Monthly Analysis'!$P26,'Monthly Analysis'!Z$3),INDEX('Monthly Database'!$C$8:$AF$143,'Monthly Analysis'!$P26,'Monthly Analysis'!Z$3),NA()) ->  | AA26: -0.6438532052
H27: Coal_Pbasin USD/Ton | I27: FALSE | J27: 3 | K27: 16 | P27: 30 | Q27: 23.57684415 | R27: =INDEX('Monthly Database'!$B$1:$B$143,'Monthly Analysis'!P27) -> 2019-07-01 | S27: 2019-07-01 | T27: =IF(INDEX('Monthly Database'!$C$8:$AF$143,'Monthly Analysis'!$P27,'Monthly Analysis'!T$3),INDEX('Monthly Database'!$C$8:$AF$143,'Monthly Analysis'!$P27,'Monthly Analysis'!T$3),NA()) -> 8.485404163 | U27: =IF(INDEX('Monthly Database'!$C$8:$AF$143,'Monthly Analysis'!$P27,'Monthly Analysis'!U$3),INDEX('Monthly Database'!$C$8:$AF$143,'Monthly Analysis'!$P27,'Monthly Analysis'!U$3),NA()) -> 2.994 | V27: =IF(INDEX('Monthly Database'!$C$8:$AF$143,'Monthly Analysis'!$P27,'Monthly Analysis'!V$3),INDEX('Monthly Database'!$C$8:$AF$143,'Monthly Analysis'!$P27,'Monthly Analysis'!V$3),NA()) -> 12.09743998 | W27: =IF(INDEX('Monthly Database'!$C$8:$AF$143,'Monthly Analysis'!$P27,'Monthly Analysis'!W$3),INDEX('Monthly Database'!$C$8:$AF$143,'Monthly Analysis'!$P27,'Monthly Analysis'!W$3),NA()) ->  | X27: =IF(INDEX('Monthly Database'!$C$8:$AF$143,'Monthly Analysis'!$P27,'Monthly Analysis'!X$3),INDEX('Monthly Database'!$C$8:$AF$143,'Monthly Analysis'!$P27,'Monthly Analysis'!X$3),NA()) ->  | Y27: =IF(INDEX('Monthly Database'!$C$8:$AF$143,'Monthly Analysis'!$P27,'Monthly Analysis'!Y$3),INDEX('Monthly Database'!$C$8:$AF$143,'Monthly Analysis'!$P27,'Monthly Analysis'!Y$3),NA()) ->  | Z27: =IF(INDEX('Monthly Database'!$C$8:$AF$143,'Monthly Analysis'!$P27,'Monthly Analysis'!Z$3),INDEX('Monthly Database'!$C$8:$AF$143,'Monthly Analysis'!$P27,'Monthly Analysis'!Z$3),NA()) ->  | AA27: -0.6471588221
H28: Coal_Pbasin USD/MMBTU | I28: FALSE | J28: 3 | K28: 16 | P28: 31 | Q28: 23.52880146 | R28: =INDEX('Monthly Database'!$B$1:$B$143,'Monthly Analysis'!P28) -> 2019-08-01 | S28: 2019-08-01 | T28: =IF(INDEX('Monthly Database'!$C$8:$AF$143,'Monthly Analysis'!$P28,'Monthly Analysis'!T$3),INDEX('Monthly Database'!$C$8:$AF$143,'Monthly Analysis'!$P28,'Monthly Analysis'!T$3),NA()) -> 8.493966629 | U28: =IF(INDEX('Monthly Database'!$C$8:$AF$143,'Monthly Analysis'!$P28,'Monthly Analysis'!U$3),INDEX('Monthly Database'!$C$8:$AF$143,'Monthly Analysis'!$P28,'Monthly Analysis'!U$3),NA()) -> 2.941 | V28: =IF(INDEX('Monthly Database'!$C$8:$AF$143,'Monthly Analysis'!$P28,'Monthly Analysis'!V$3),INDEX('Monthly Database'!$C$8:$AF$143,'Monthly Analysis'!$P28,'Monthly Analysis'!V$3),NA()) -> 12.09383483 | W28: =IF(INDEX('Monthly Database'!$C$8:$AF$143,'Monthly Analysis'!$P28,'Monthly Analysis'!W$3),INDEX('Monthly Database'!$C$8:$AF$143,'Monthly Analysis'!$P28,'Monthly Analysis'!W$3),NA()) ->  | X28: =IF(INDEX('Monthly Database'!$C$8:$AF$143,'Monthly Analysis'!$P28,'Monthly Analysis'!X$3),INDEX('Monthly Database'!$C$8:$AF$143,'Monthly Analysis'!$P28,'Monthly Analysis'!X$3),NA()) ->  | Y28: =IF(INDEX('Monthly Database'!$C$8:$AF$143,'Monthly Analysis'!$P28,'Monthly Analysis'!Y$3),INDEX('Monthly Database'!$C$8:$AF$143,'Monthly Analysis'!$P28,'Monthly Analysis'!Y$3),NA()) ->  | Z28: =IF(INDEX('Monthly Database'!$C$8:$AF$143,'Monthly Analysis'!$P28,'Monthly Analysis'!Z$3),INDEX('Monthly Database'!$C$8:$AF$143,'Monthly Analysis'!$P28,'Monthly Analysis'!Z$3),NA()) ->  | AA28: -0.6537542319
H29: Coal_API4 USD/Ton | I29: FALSE | J29: 3 | K29: 16 | P29: 32 | Q29: 23.17452712 | R29: =INDEX('Monthly Database'!$B$1:$B$143,'Monthly Analysis'!P29) -> 2019-09-01 | S29: 2019-09-01 | T29: =IF(INDEX('Monthly Database'!$C$8:$AF$143,'Monthly Analysis'!$P29,'Monthly Analysis'!T$3),INDEX('Monthly Database'!$C$8:$AF$143,'Monthly Analysis'!$P29,'Monthly Analysis'!T$3),NA()) -> 8.505954082 | U29: =IF(INDEX('Monthly Database'!$C$8:$AF$143,'Monthly Analysis'!$P29,'Monthly Analysis'!U$3),INDEX('Monthly Database'!$C$8:$AF$143,'Monthly Analysis'!$P29,'Monthly Analysis'!U$3),NA()) -> 2.618 | V29: =IF(INDEX('Monthly Database'!$C$8:$AF$143,'Monthly Analysis'!$P29,'Monthly Analysis'!V$3),INDEX('Monthly Database'!$C$8:$AF$143,'Monthly Analysis'!$P29,'Monthly Analysis'!V$3),NA()) -> 12.05057304 | W29: =IF(INDEX('Monthly Database'!$C$8:$AF$143,'Monthly Analysis'!$P29,'Monthly Analysis'!W$3),INDEX('Monthly Database'!$C$8:$AF$143,'Monthly Analysis'!$P29,'Monthly Analysis'!W$3),NA()) ->  | X29: =IF(INDEX('Monthly Database'!$C$8:$AF$143,'Monthly Analysis'!$P29,'Monthly Analysis'!X$3),INDEX('Monthly Database'!$C$8:$AF$143,'Monthly Analysis'!$P29,'Monthly Analysis'!X$3),NA()) ->  | Y29: =IF(INDEX('Monthly Database'!$C$8:$AF$143,'Monthly Analysis'!$P29,'Monthly Analysis'!Y$3),INDEX('Monthly Database'!$C$8:$AF$143,'Monthly Analysis'!$P29,'Monthly Analysis'!Y$3),NA()) ->  | Z29: =IF(INDEX('Monthly Database'!$C$8:$AF$143,'Monthly Analysis'!$P29,'Monthly Analysis'!Z$3),INDEX('Monthly Database'!$C$8:$AF$143,'Monthly Analysis'!$P29,'Monthly Analysis'!Z$3),NA()) ->  | AA29: -0.6922155969
H30: Coal_API4 USD/MMBTU | I30: TRUE | J30: 4 | K30: 16 | P30: 33 | Q30: 23.15059178 | R30: =INDEX('Monthly Database'!$B$1:$B$143,'Monthly Analysis'!P30) -> 2019-10-01 | S30: 2019-10-01 | T30: =IF(INDEX('Monthly Database'!$C$8:$AF$143,'Monthly Analysis'!$P30,'Monthly Analysis'!T$3),INDEX('Monthly Database'!$C$8:$AF$143,'Monthly Analysis'!$P30,'Monthly Analysis'!T$3),NA()) -> 8.516229042 | U30: =IF(INDEX('Monthly Database'!$C$8:$AF$143,'Monthly Analysis'!$P30,'Monthly Analysis'!U$3),INDEX('Monthly Database'!$C$8:$AF$143,'Monthly Analysis'!$P30,'Monthly Analysis'!U$3),NA()) -> 2.591 | V30: =IF(INDEX('Monthly Database'!$C$8:$AF$143,'Monthly Analysis'!$P30,'Monthly Analysis'!V$3),INDEX('Monthly Database'!$C$8:$AF$143,'Monthly Analysis'!$P30,'Monthly Analysis'!V$3),NA()) -> 12.04336274 | W30: =IF(INDEX('Monthly Database'!$C$8:$AF$143,'Monthly Analysis'!$P30,'Monthly Analysis'!W$3),INDEX('Monthly Database'!$C$8:$AF$143,'Monthly Analysis'!$P30,'Monthly Analysis'!W$3),NA()) ->  | X30: =IF(INDEX('Monthly Database'!$C$8:$AF$143,'Monthly Analysis'!$P30,'Monthly Analysis'!X$3),INDEX('Monthly Database'!$C$8:$AF$143,'Monthly Analysis'!$P30,'Monthly Analysis'!X$3),NA()) ->  | Y30: =IF(INDEX('Monthly Database'!$C$8:$AF$143,'Monthly Analysis'!$P30,'Monthly Analysis'!Y$3),INDEX('Monthly Database'!$C$8:$AF$143,'Monthly Analysis'!$P30,'Monthly Analysis'!Y$3),NA()) ->  | Z30: =IF(INDEX('Monthly Database'!$C$8:$AF$143,'Monthly Analysis'!$P30,'Monthly Analysis'!Z$3),INDEX('Monthly Database'!$C$8:$AF$143,'Monthly Analysis'!$P30,'Monthly Analysis'!Z$3),NA()) ->  | AA30: -0.6957573608
H31: ULSD_Gulf USD/BBL | I31: FALSE | J31: 4 | K31: 16 | P31: 34 | Q31: 23.19514986 | R31: =INDEX('Monthly Database'!$B$1:$B$143,'Monthly Analysis'!P31) -> 2019-11-01 | S31: 2019-11-01 | T31: =IF(INDEX('Monthly Database'!$C$8:$AF$143,'Monthly Analysis'!$P31,'Monthly Analysis'!T$3),INDEX('Monthly Database'!$C$8:$AF$143,'Monthly Analysis'!$P31,'Monthly Analysis'!T$3),NA()) -> 8.521366522 | U31: =IF(INDEX('Monthly Database'!$C$8:$AF$143,'Monthly Analysis'!$P31,'Monthly Analysis'!U$3),INDEX('Monthly Database'!$C$8:$AF$143,'Monthly Analysis'!$P31,'Monthly Analysis'!U$3),NA()) -> 2.616 | V31: =IF(INDEX('Monthly Database'!$C$8:$AF$143,'Monthly Analysis'!$P31,'Monthly Analysis'!V$3),INDEX('Monthly Database'!$C$8:$AF$143,'Monthly Analysis'!$P31,'Monthly Analysis'!V$3),NA()) -> 12.05778334 | W31: =IF(INDEX('Monthly Database'!$C$8:$AF$143,'Monthly Analysis'!$P31,'Monthly Analysis'!W$3),INDEX('Monthly Database'!$C$8:$AF$143,'Monthly Analysis'!$P31,'Monthly Analysis'!W$3),NA()) ->  | X31: =IF(INDEX('Monthly Database'!$C$8:$AF$143,'Monthly Analysis'!$P31,'Monthly Analysis'!X$3),INDEX('Monthly Database'!$C$8:$AF$143,'Monthly Analysis'!$P31,'Monthly Analysis'!X$3),NA()) ->  | Y31: =IF(INDEX('Monthly Database'!$C$8:$AF$143,'Monthly Analysis'!$P31,'Monthly Analysis'!Y$3),INDEX('Monthly Database'!$C$8:$AF$143,'Monthly Analysis'!$P31,'Monthly Analysis'!Y$3),NA()) ->  | Z31: =IF(INDEX('Monthly Database'!$C$8:$AF$143,'Monthly Analysis'!$P31,'Monthly Analysis'!Z$3),INDEX('Monthly Database'!$C$8:$AF$143,'Monthly Analysis'!$P31,'Monthly Analysis'!Z$3),NA()) ->  | AA31: -0.693006985
H32: ULSD_Gulf USD/MMBTU | I32: FALSE | J32: 4 | K32: 16 | P32: 35 | Q32: 26.1921908 | R32: =INDEX('Monthly Database'!$B$1:$B$143,'Monthly Analysis'!P32) -> 2019-12-01 | S32: 2019-12-01 | T32: =IF(INDEX('Monthly Database'!$C$8:$AF$143,'Monthly Analysis'!$P32,'Monthly Analysis'!T$3),INDEX('Monthly Database'!$C$8:$AF$143,'Monthly Analysis'!$P32,'Monthly Analysis'!T$3),NA()) -> 8.531641481 | U32: =IF(INDEX('Monthly Database'!$C$8:$AF$143,'Monthly Analysis'!$P32,'Monthly Analysis'!U$3),INDEX('Monthly Database'!$C$8:$AF$143,'Monthly Analysis'!$P32,'Monthly Analysis'!U$3),NA()) -> 2.644 | V32: =IF(INDEX('Monthly Database'!$C$8:$AF$143,'Monthly Analysis'!$P32,'Monthly Analysis'!V$3),INDEX('Monthly Database'!$C$8:$AF$143,'Monthly Analysis'!$P32,'Monthly Analysis'!V$3),NA()) -> 12.10104513 | W32: =IF(INDEX('Monthly Database'!$C$8:$AF$143,'Monthly Analysis'!$P32,'Monthly Analysis'!W$3),INDEX('Monthly Database'!$C$8:$AF$143,'Monthly Analysis'!$P32,'Monthly Analysis'!W$3),NA()) -> 2.915504185 | X32: =IF(INDEX('Monthly Database'!$C$8:$AF$143,'Monthly Analysis'!$P32,'Monthly Analysis'!X$3),INDEX('Monthly Database'!$C$8:$AF$143,'Monthly Analysis'!$P32,'Monthly Analysis'!X$3),NA()) ->  | Y32: =IF(INDEX('Monthly Database'!$C$8:$AF$143,'Monthly Analysis'!$P32,'Monthly Analysis'!Y$3),INDEX('Monthly Database'!$C$8:$AF$143,'Monthly Analysis'!$P32,'Monthly Analysis'!Y$3),NA()) ->  | Z32: =IF(INDEX('Monthly Database'!$C$8:$AF$143,'Monthly Analysis'!$P32,'Monthly Analysis'!Z$3),INDEX('Monthly Database'!$C$8:$AF$143,'Monthly Analysis'!$P32,'Monthly Analysis'!Z$3),NA()) ->  | AA32: -0.690094807
H33: Crack_Spread USD/BBL | I33: FALSE | J33: 4 | K33: 16 | P33: 36 | Q33: 23.35193586 | R33: =INDEX('Monthly Database'!$B$1:$B$143,'Monthly Analysis'!P33) -> 2020-01-01 | S33: 2020-01-01 | T33: =IF(INDEX('Monthly Database'!$C$8:$AF$143,'Monthly Analysis'!$P33,'Monthly Analysis'!T$3),INDEX('Monthly Database'!$C$8:$AF$143,'Monthly Analysis'!$P33,'Monthly Analysis'!T$3),NA()) -> 8.543628934 | U33: =IF(INDEX('Monthly Database'!$C$8:$AF$143,'Monthly Analysis'!$P33,'Monthly Analysis'!U$3),INDEX('Monthly Database'!$C$8:$AF$143,'Monthly Analysis'!$P33,'Monthly Analysis'!U$3),NA()) -> 2.664 | V33: =IF(INDEX('Monthly Database'!$C$8:$AF$143,'Monthly Analysis'!$P33,'Monthly Analysis'!V$3),INDEX('Monthly Database'!$C$8:$AF$143,'Monthly Analysis'!$P33,'Monthly Analysis'!V$3),NA()) -> 12.14430693 | W33: =IF(INDEX('Monthly Database'!$C$8:$AF$143,'Monthly Analysis'!$P33,'Monthly Analysis'!W$3),INDEX('Monthly Database'!$C$8:$AF$143,'Monthly Analysis'!$P33,'Monthly Analysis'!W$3),NA()) ->  | X33: =IF(INDEX('Monthly Database'!$C$8:$AF$143,'Monthly Analysis'!$P33,'Monthly Analysis'!X$3),INDEX('Monthly Database'!$C$8:$AF$143,'Monthly Analysis'!$P33,'Monthly Analysis'!X$3),NA()) ->  | Y33: =IF(INDEX('Monthly Database'!$C$8:$AF$143,'Monthly Analysis'!$P33,'Monthly Analysis'!Y$3),INDEX('Monthly Database'!$C$8:$AF$143,'Monthly Analysis'!$P33,'Monthly Analysis'!Y$3),NA()) ->  | Z33: =IF(INDEX('Monthly Database'!$C$8:$AF$143,'Monthly Analysis'!$P33,'Monthly Analysis'!Z$3),INDEX('Monthly Database'!$C$8:$AF$143,'Monthly Analysis'!$P33,'Monthly Analysis'!Z$3),NA()) ->  | AA33: -0.6881887052
H34: Crack_Spread USD/MMBTU | I34: FALSE | J34: 4 | K34: 16 | P34: 37 | Q34: 23.4111079 | R34: =INDEX('Monthly Database'!$B$1:$B$143,'Monthly Analysis'!P34) -> 2020-02-01 | S34: 2020-02-01 | T34: =IF(INDEX('Monthly Database'!$C$8:$AF$143,'Monthly Analysis'!$P34,'Monthly Analysis'!T$3),INDEX('Monthly Database'!$C$8:$AF$143,'Monthly Analysis'!$P34,'Monthly Analysis'!T$3),NA()) -> 8.55732888 | U34: =IF(INDEX('Monthly Database'!$C$8:$AF$143,'Monthly Analysis'!$P34,'Monthly Analysis'!U$3),INDEX('Monthly Database'!$C$8:$AF$143,'Monthly Analysis'!$P34,'Monthly Analysis'!U$3),NA()) -> 2.659 | V34: =IF(INDEX('Monthly Database'!$C$8:$AF$143,'Monthly Analysis'!$P34,'Monthly Analysis'!V$3),INDEX('Monthly Database'!$C$8:$AF$143,'Monthly Analysis'!$P34,'Monthly Analysis'!V$3),NA()) -> 12.19477902 | W34: =IF(INDEX('Monthly Database'!$C$8:$AF$143,'Monthly Analysis'!$P34,'Monthly Analysis'!W$3),INDEX('Monthly Database'!$C$8:$AF$143,'Monthly Analysis'!$P34,'Monthly Analysis'!W$3),NA()) ->  | X34: =IF(INDEX('Monthly Database'!$C$8:$AF$143,'Monthly Analysis'!$P34,'Monthly Analysis'!X$3),INDEX('Monthly Database'!$C$8:$AF$143,'Monthly Analysis'!$P34,'Monthly Analysis'!X$3),NA()) ->  | Y34: =IF(INDEX('Monthly Database'!$C$8:$AF$143,'Monthly Analysis'!$P34,'Monthly Analysis'!Y$3),INDEX('Monthly Database'!$C$8:$AF$143,'Monthly Analysis'!$P34,'Monthly Analysis'!Y$3),NA()) ->  | Z34: =IF(INDEX('Monthly Database'!$C$8:$AF$143,'Monthly Analysis'!$P34,'Monthly Analysis'!Z$3),INDEX('Monthly Database'!$C$8:$AF$143,'Monthly Analysis'!$P34,'Monthly Analysis'!Z$3),NA()) ->  | AA34: -0.6892721973
P35: 38 | Q35: 23.50020712 | R35: =INDEX('Monthly Database'!$B$1:$B$143,'Monthly Analysis'!P35) -> 2020-03-01 | S35: 2020-03-01 | T35: =IF(INDEX('Monthly Database'!$C$8:$AF$143,'Monthly Analysis'!$P35,'Monthly Analysis'!T$3),INDEX('Monthly Database'!$C$8:$AF$143,'Monthly Analysis'!$P35,'Monthly Analysis'!T$3),NA()) -> 8.576166306 | U35: =IF(INDEX('Monthly Database'!$C$8:$AF$143,'Monthly Analysis'!$P35,'Monthly Analysis'!U$3),INDEX('Monthly Database'!$C$8:$AF$143,'Monthly Analysis'!$P35,'Monthly Analysis'!U$3),NA()) -> 2.686 | V35: =IF(INDEX('Monthly Database'!$C$8:$AF$143,'Monthly Analysis'!$P35,'Monthly Analysis'!V$3),INDEX('Monthly Database'!$C$8:$AF$143,'Monthly Analysis'!$P35,'Monthly Analysis'!V$3),NA()) -> 12.23804082 | W35: =IF(INDEX('Monthly Database'!$C$8:$AF$143,'Monthly Analysis'!$P35,'Monthly Analysis'!W$3),INDEX('Monthly Database'!$C$8:$AF$143,'Monthly Analysis'!$P35,'Monthly Analysis'!W$3),NA()) ->  | X35: =IF(INDEX('Monthly Database'!$C$8:$AF$143,'Monthly Analysis'!$P35,'Monthly Analysis'!X$3),INDEX('Monthly Database'!$C$8:$AF$143,'Monthly Analysis'!$P35,'Monthly Analysis'!X$3),NA()) ->  | Y35: =IF(INDEX('Monthly Database'!$C$8:$AF$143,'Monthly Analysis'!$P35,'Monthly Analysis'!Y$3),INDEX('Monthly Database'!$C$8:$AF$143,'Monthly Analysis'!$P35,'Monthly Analysis'!Y$3),NA()) ->  | Z35: =IF(INDEX('Monthly Database'!$C$8:$AF$143,'Monthly Analysis'!$P35,'Monthly Analysis'!Z$3),INDEX('Monthly Database'!$C$8:$AF$143,'Monthly Analysis'!$P35,'Monthly Analysis'!Z$3),NA()) ->  | AA35: -0.6868064466
P36: 39 | Q36: 23.62006591 | R36: =INDEX('Monthly Database'!$B$1:$B$143,'Monthly Analysis'!P36) -> 2020-04-01 | S36: 2020-04-01 | T36: =IF(INDEX('Monthly Database'!$C$8:$AF$143,'Monthly Analysis'!$P36,'Monthly Analysis'!T$3),INDEX('Monthly Database'!$C$8:$AF$143,'Monthly Analysis'!$P36,'Monthly Analysis'!T$3),NA()) -> 8.591578746 | U36: =IF(INDEX('Monthly Database'!$C$8:$AF$143,'Monthly Analysis'!$P36,'Monthly Analysis'!U$3),INDEX('Monthly Database'!$C$8:$AF$143,'Monthly Analysis'!$P36,'Monthly Analysis'!U$3),NA()) -> 2.758 | V36: =IF(INDEX('Monthly Database'!$C$8:$AF$143,'Monthly Analysis'!$P36,'Monthly Analysis'!V$3),INDEX('Monthly Database'!$C$8:$AF$143,'Monthly Analysis'!$P36,'Monthly Analysis'!V$3),NA()) -> 12.27048716 | W36: =IF(INDEX('Monthly Database'!$C$8:$AF$143,'Monthly Analysis'!$P36,'Monthly Analysis'!W$3),INDEX('Monthly Database'!$C$8:$AF$143,'Monthly Analysis'!$P36,'Monthly Analysis'!W$3),NA()) ->  | X36: =IF(INDEX('Monthly Database'!$C$8:$AF$143,'Monthly Analysis'!$P36,'Monthly Analysis'!X$3),INDEX('Monthly Database'!$C$8:$AF$143,'Monthly Analysis'!$P36,'Monthly Analysis'!X$3),NA()) ->  | Y36: =IF(INDEX('Monthly Database'!$C$8:$AF$143,'Monthly Analysis'!$P36,'Monthly Analysis'!Y$3),INDEX('Monthly Database'!$C$8:$AF$143,'Monthly Analysis'!$P36,'Monthly Analysis'!Y$3),NA()) ->  | Z36: =IF(INDEX('Monthly Database'!$C$8:$AF$143,'Monthly Analysis'!$P36,'Monthly Analysis'!Z$3),INDEX('Monthly Database'!$C$8:$AF$143,'Monthly Analysis'!$P36,'Monthly Analysis'!Z$3),NA()) ->  | AA36: -0.6789879856
P37: 40 | Q37: 23.80518207 | R37: =INDEX('Monthly Database'!$B$1:$B$143,'Monthly Analysis'!P37) -> 2020-05-01 | S37: 2020-05-01 | T37: =IF(INDEX('Monthly Database'!$C$8:$AF$143,'Monthly Analysis'!$P37,'Monthly Analysis'!T$3),INDEX('Monthly Database'!$C$8:$AF$143,'Monthly Analysis'!$P37,'Monthly Analysis'!T$3),NA()) -> 8.601853705 | U37: =IF(INDEX('Monthly Database'!$C$8:$AF$143,'Monthly Analysis'!$P37,'Monthly Analysis'!U$3),INDEX('Monthly Database'!$C$8:$AF$143,'Monthly Analysis'!$P37,'Monthly Analysis'!U$3),NA()) -> 2.904 | V37: =IF(INDEX('Monthly Database'!$C$8:$AF$143,'Monthly Analysis'!$P37,'Monthly Analysis'!V$3),INDEX('Monthly Database'!$C$8:$AF$143,'Monthly Analysis'!$P37,'Monthly Analysis'!V$3),NA()) -> 12.29932836 | W37: =IF(INDEX('Monthly Database'!$C$8:$AF$143,'Monthly Analysis'!$P37,'Monthly Analysis'!W$3),INDEX('Monthly Database'!$C$8:$AF$143,'Monthly Analysis'!$P37,'Monthly Analysis'!W$3),NA()) ->  | X37: =IF(INDEX('Monthly Database'!$C$8:$AF$143,'Monthly Analysis'!$P37,'Monthly Analysis'!X$3),INDEX('Monthly Database'!$C$8:$AF$143,'Monthly Analysis'!$P37,'Monthly Analysis'!X$3),NA()) ->  | Y37: =IF(INDEX('Monthly Database'!$C$8:$AF$143,'Monthly Analysis'!$P37,'Monthly Analysis'!Y$3),INDEX('Monthly Database'!$C$8:$AF$143,'Monthly Analysis'!$P37,'Monthly Analysis'!Y$3),NA()) ->  | Z37: =IF(INDEX('Monthly Database'!$C$8:$AF$143,'Monthly Analysis'!$P37,'Monthly Analysis'!Z$3),INDEX('Monthly Database'!$C$8:$AF$143,'Monthly Analysis'!$P37,'Monthly Analysis'!Z$3),NA()) ->  | AA37: -0.6623983505
P38: 41 | Q38: 23.96371882 | R38: =INDEX('Monthly Database'!$B$1:$B$143,'Monthly Analysis'!P38) -> 2020-06-01 | S38: 2020-06-01 | T38: =IF(INDEX('Monthly Database'!$C$8:$AF$143,'Monthly Analysis'!$P38,'Monthly Analysis'!T$3),INDEX('Monthly Database'!$C$8:$AF$143,'Monthly Analysis'!$P38,'Monthly Analysis'!T$3),NA()) -> 8.612128665 | U38: =IF(INDEX('Monthly Database'!$C$8:$AF$143,'Monthly Analysis'!$P38,'Monthly Analysis'!U$3),INDEX('Monthly Database'!$C$8:$AF$143,'Monthly Analysis'!$P38,'Monthly Analysis'!U$3),NA()) -> 3.009 | V38: =IF(INDEX('Monthly Database'!$C$8:$AF$143,'Monthly Analysis'!$P38,'Monthly Analysis'!V$3),INDEX('Monthly Database'!$C$8:$AF$143,'Monthly Analysis'!$P38,'Monthly Analysis'!V$3),NA()) -> 12.34259016 | W38: =IF(INDEX('Monthly Database'!$C$8:$AF$143,'Monthly Analysis'!$P38,'Monthly Analysis'!W$3),INDEX('Monthly Database'!$C$8:$AF$143,'Monthly Analysis'!$P38,'Monthly Analysis'!W$3),NA()) ->  | X38: =IF(INDEX('Monthly Database'!$C$8:$AF$143,'Monthly Analysis'!$P38,'Monthly Analysis'!X$3),INDEX('Monthly Database'!$C$8:$AF$143,'Monthly Analysis'!$P38,'Monthly Analysis'!X$3),NA()) ->  | Y38: =IF(INDEX('Monthly Database'!$C$8:$AF$143,'Monthly Analysis'!$P38,'Monthly Analysis'!Y$3),INDEX('Monthly Database'!$C$8:$AF$143,'Monthly Analysis'!$P38,'Monthly Analysis'!Y$3),NA()) ->  | Z38: =IF(INDEX('Monthly Database'!$C$8:$AF$143,'Monthly Analysis'!$P38,'Monthly Analysis'!Z$3),INDEX('Monthly Database'!$C$8:$AF$143,'Monthly Analysis'!$P38,'Monthly Analysis'!Z$3),NA()) ->  | AA38: -0.6506090286
P39: 42 | Q39: 11.60640362 | R39: =INDEX('Monthly Database'!$B$1:$B$143,'Monthly Analysis'!P39) -> 2020-07-01 | S39: 2020-07-01 | T39: =IF(INDEX('Monthly Database'!$C$8:$AF$143,'Monthly Analysis'!$P39,'Monthly Analysis'!T$3),INDEX('Monthly Database'!$C$8:$AF$143,'Monthly Analysis'!$P39,'Monthly Analysis'!T$3),NA()) -> 8.622403625 | U39: =IF(INDEX('Monthly Database'!$C$8:$AF$143,'Monthly Analysis'!$P39,'Monthly Analysis'!U$3),INDEX('Monthly Database'!$C$8:$AF$143,'Monthly Analysis'!$P39,'Monthly Analysis'!U$3),NA()) -> 2.984 | V39: =IF(INDEX('Monthly Database'!$C$8:$AF$143,'Monthly Analysis'!$P39,'Monthly Analysis'!V$3),INDEX('Monthly Database'!$C$8:$AF$143,'Monthly Analysis'!$P39,'Monthly Analysis'!V$3),NA()) ->  | W39: =IF(INDEX('Monthly Database'!$C$8:$AF$143,'Monthly Analysis'!$P39,'Monthly Analysis'!W$3),INDEX('Monthly Database'!$C$8:$AF$143,'Monthly Analysis'!$P39,'Monthly Analysis'!W$3),NA()) ->  | X39: =IF(INDEX('Monthly Database'!$C$8:$AF$143,'Monthly Analysis'!$P39,'Monthly Analysis'!X$3),INDEX('Monthly Database'!$C$8:$AF$143,'Monthly Analysis'!$P39,'Monthly Analysis'!X$3),NA()) ->  | Y39: =IF(INDEX('Monthly Database'!$C$8:$AF$143,'Monthly Analysis'!$P39,'Monthly Analysis'!Y$3),INDEX('Monthly Database'!$C$8:$AF$143,'Monthly Analysis'!$P39,'Monthly Analysis'!Y$3),NA()) ->  | Z39: =IF(INDEX('Monthly Database'!$C$8:$AF$143,'Monthly Analysis'!$P39,'Monthly Analysis'!Z$3),INDEX('Monthly Database'!$C$8:$AF$143,'Monthly Analysis'!$P39,'Monthly Analysis'!Z$3),NA()) ->  | AA39: -0.6539248068
P40: 43 | Q40: 11.56281606 | R40: =INDEX('Monthly Database'!$B$1:$B$143,'Monthly Analysis'!P40) -> 2020-08-01 | S40: 2020-08-01 | T40: =IF(INDEX('Monthly Database'!$C$8:$AF$143,'Monthly Analysis'!$P40,'Monthly Analysis'!T$3),INDEX('Monthly Database'!$C$8:$AF$143,'Monthly Analysis'!$P40,'Monthly Analysis'!T$3),NA()) -> 8.637816064 | U40: =IF(INDEX('Monthly Database'!$C$8:$AF$143,'Monthly Analysis'!$P40,'Monthly Analysis'!U$3),INDEX('Monthly Database'!$C$8:$AF$143,'Monthly Analysis'!$P40,'Monthly Analysis'!U$3),NA()) -> 2.925 | V40: =IF(INDEX('Monthly Database'!$C$8:$AF$143,'Monthly Analysis'!$P40,'Monthly Analysis'!V$3),INDEX('Monthly Database'!$C$8:$AF$143,'Monthly Analysis'!$P40,'Monthly Analysis'!V$3),NA()) ->  | W40: =IF(INDEX('Monthly Database'!$C$8:$AF$143,'Monthly Analysis'!$P40,'Monthly Analysis'!W$3),INDEX('Monthly Database'!$C$8:$AF$143,'Monthly Analysis'!$P40,'Monthly Analysis'!W$3),NA()) ->  | X40: =IF(INDEX('Monthly Database'!$C$8:$AF$143,'Monthly Analysis'!$P40,'Monthly Analysis'!X$3),INDEX('Monthly Database'!$C$8:$AF$143,'Monthly Analysis'!$P40,'Monthly Analysis'!X$3),NA()) ->  | Y40: =IF(INDEX('Monthly Database'!$C$8:$AF$143,'Monthly Analysis'!$P40,'Monthly Analysis'!Y$3),INDEX('Monthly Database'!$C$8:$AF$143,'Monthly Analysis'!$P40,'Monthly Analysis'!Y$3),NA()) ->  | Z40: =IF(INDEX('Monthly Database'!$C$8:$AF$143,'Monthly Analysis'!$P40,'Monthly Analysis'!Z$3),INDEX('Monthly Database'!$C$8:$AF$143,'Monthly Analysis'!$P40,'Monthly Analysis'!Z$3),NA()) ->  | AA40: -0.6613727384
P41: 44 | Q41: 11.26365349 | R41: =INDEX('Monthly Database'!$B$1:$B$143,'Monthly Analysis'!P41) -> 2020-09-01 | S41: 2020-09-01 | T41: =IF(INDEX('Monthly Database'!$C$8:$AF$143,'Monthly Analysis'!$P41,'Monthly Analysis'!T$3),INDEX('Monthly Database'!$C$8:$AF$143,'Monthly Analysis'!$P41,'Monthly Analysis'!T$3),NA()) -> 8.65665349 | U41: =IF(INDEX('Monthly Database'!$C$8:$AF$143,'Monthly Analysis'!$P41,'Monthly Analysis'!U$3),INDEX('Monthly Database'!$C$8:$AF$143,'Monthly Analysis'!$P41,'Monthly Analysis'!U$3),NA()) -> 2.607 | V41: =IF(INDEX('Monthly Database'!$C$8:$AF$143,'Monthly Analysis'!$P41,'Monthly Analysis'!V$3),INDEX('Monthly Database'!$C$8:$AF$143,'Monthly Analysis'!$P41,'Monthly Analysis'!V$3),NA()) ->  | W41: =IF(INDEX('Monthly Database'!$C$8:$AF$143,'Monthly Analysis'!$P41,'Monthly Analysis'!W$3),INDEX('Monthly Database'!$C$8:$AF$143,'Monthly Analysis'!$P41,'Monthly Analysis'!W$3),NA()) ->  | X41: =IF(INDEX('Monthly Database'!$C$8:$AF$143,'Monthly Analysis'!$P41,'Monthly Analysis'!X$3),INDEX('Monthly Database'!$C$8:$AF$143,'Monthly Analysis'!$P41,'Monthly Analysis'!X$3),NA()) ->  | Y41: =IF(INDEX('Monthly Database'!$C$8:$AF$143,'Monthly Analysis'!$P41,'Monthly Analysis'!Y$3),INDEX('Monthly Database'!$C$8:$AF$143,'Monthly Analysis'!$P41,'Monthly Analysis'!Y$3),NA()) ->  | Z41: =IF(INDEX('Monthly Database'!$C$8:$AF$143,'Monthly Analysis'!$P41,'Monthly Analysis'!Z$3),INDEX('Monthly Database'!$C$8:$AF$143,'Monthly Analysis'!$P41,'Monthly Analysis'!Z$3),NA()) ->  | AA41: -0.6988443626
P42: 45 | Q42: 11.25435344 | R42: =INDEX('Monthly Database'!$B$1:$B$143,'Monthly Analysis'!P42) -> 2020-10-01 | S42: 2020-10-01 | T42: =IF(INDEX('Monthly Database'!$C$8:$AF$143,'Monthly Analysis'!$P42,'Monthly Analysis'!T$3),INDEX('Monthly Database'!$C$8:$AF$143,'Monthly Analysis'!$P42,'Monthly Analysis'!T$3),NA()) -> 8.670353436 | U42: =IF(INDEX('Monthly Database'!$C$8:$AF$143,'Monthly Analysis'!$P42,'Monthly Analysis'!U$3),INDEX('Monthly Database'!$C$8:$AF$143,'Monthly Analysis'!$P42,'Monthly Analysis'!U$3),NA()) -> 2.584 | V42: =IF(INDEX('Monthly Database'!$C$8:$AF$143,'Monthly Analysis'!$P42,'Monthly Analysis'!V$3),INDEX('Monthly Database'!$C$8:$AF$143,'Monthly Analysis'!$P42,'Monthly Analysis'!V$3),NA()) ->  | W42: =IF(INDEX('Monthly Database'!$C$8:$AF$143,'Monthly Analysis'!$P42,'Monthly Analysis'!W$3),INDEX('Monthly Database'!$C$8:$AF$143,'Monthly Analysis'!$P42,'Monthly Analysis'!W$3),NA()) ->  | X42: =IF(INDEX('Monthly Database'!$C$8:$AF$143,'Monthly Analysis'!$P42,'Monthly Analysis'!X$3),INDEX('Monthly Database'!$C$8:$AF$143,'Monthly Analysis'!$P42,'Monthly Analysis'!X$3),NA()) ->  | Y42: =IF(INDEX('Monthly Database'!$C$8:$AF$143,'Monthly Analysis'!$P42,'Monthly Analysis'!Y$3),INDEX('Monthly Database'!$C$8:$AF$143,'Monthly Analysis'!$P42,'Monthly Analysis'!Y$3),NA()) ->  | Z42: =IF(INDEX('Monthly Database'!$C$8:$AF$143,'Monthly Analysis'!$P42,'Monthly Analysis'!Z$3),INDEX('Monthly Database'!$C$8:$AF$143,'Monthly Analysis'!$P42,'Monthly Analysis'!Z$3),NA()) ->  | AA42: -0.7019729335
P43: 46 | Q43: 11.28520341 | R43: =INDEX('Monthly Database'!$B$1:$B$143,'Monthly Analysis'!P43) -> 2020-11-01 | S43: 2020-11-01 | T43: =IF(INDEX('Monthly Database'!$C$8:$AF$143,'Monthly Analysis'!$P43,'Monthly Analysis'!T$3),INDEX('Monthly Database'!$C$8:$AF$143,'Monthly Analysis'!$P43,'Monthly Analysis'!T$3),NA()) -> 8.677203409 | U43: =IF(INDEX('Monthly Database'!$C$8:$AF$143,'Monthly Analysis'!$P43,'Monthly Analysis'!U$3),INDEX('Monthly Database'!$C$8:$AF$143,'Monthly Analysis'!$P43,'Monthly Analysis'!U$3),NA()) -> 2.608 | V43: =IF(INDEX('Monthly Database'!$C$8:$AF$143,'Monthly Analysis'!$P43,'Monthly Analysis'!V$3),INDEX('Monthly Database'!$C$8:$AF$143,'Monthly Analysis'!$P43,'Monthly Analysis'!V$3),NA()) ->  | W43: =IF(INDEX('Monthly Database'!$C$8:$AF$143,'Monthly Analysis'!$P43,'Monthly Analysis'!W$3),INDEX('Monthly Database'!$C$8:$AF$143,'Monthly Analysis'!$P43,'Monthly Analysis'!W$3),NA()) ->  | X43: =IF(INDEX('Monthly Database'!$C$8:$AF$143,'Monthly Analysis'!$P43,'Monthly Analysis'!X$3),INDEX('Monthly Database'!$C$8:$AF$143,'Monthly Analysis'!$P43,'Monthly Analysis'!X$3),NA()) ->  | Y43: =IF(INDEX('Monthly Database'!$C$8:$AF$143,'Monthly Analysis'!$P43,'Monthly Analysis'!Y$3),INDEX('Monthly Database'!$C$8:$AF$143,'Monthly Analysis'!$P43,'Monthly Analysis'!Y$3),NA()) ->  | Z43: =IF(INDEX('Monthly Database'!$C$8:$AF$143,'Monthly Analysis'!$P43,'Monthly Analysis'!Z$3),INDEX('Monthly Database'!$C$8:$AF$143,'Monthly Analysis'!$P43,'Monthly Analysis'!Z$3),NA()) ->  | AA43: -0.6994423345
P44: 47 | Q44: 14.22573809 | R44: =INDEX('Monthly Database'!$B$1:$B$143,'Monthly Analysis'!P44) -> 2020-12-01 | S44: 2020-12-01 | T44: =IF(INDEX('Monthly Database'!$C$8:$AF$143,'Monthly Analysis'!$P44,'Monthly Analysis'!T$3),INDEX('Monthly Database'!$C$8:$AF$143,'Monthly Analysis'!$P44,'Monthly Analysis'!T$3),NA()) -> 8.689190862 | U44: =IF(INDEX('Monthly Database'!$C$8:$AF$143,'Monthly Analysis'!$P44,'Monthly Analysis'!U$3),INDEX('Monthly Database'!$C$8:$AF$143,'Monthly Analysis'!$P44,'Monthly Analysis'!U$3),NA()) -> 2.633 | V44: =IF(INDEX('Monthly Database'!$C$8:$AF$143,'Monthly Analysis'!$P44,'Monthly Analysis'!V$3),INDEX('Monthly Database'!$C$8:$AF$143,'Monthly Analysis'!$P44,'Monthly Analysis'!V$3),NA()) ->  | W44: =IF(INDEX('Monthly Database'!$C$8:$AF$143,'Monthly Analysis'!$P44,'Monthly Analysis'!W$3),INDEX('Monthly Database'!$C$8:$AF$143,'Monthly Analysis'!$P44,'Monthly Analysis'!W$3),NA()) -> 2.90354723 | X44: =IF(INDEX('Monthly Database'!$C$8:$AF$143,'Monthly Analysis'!$P44,'Monthly Analysis'!X$3),INDEX('Monthly Database'!$C$8:$AF$143,'Monthly Analysis'!$P44,'Monthly Analysis'!X$3),NA()) ->  | Y44: =IF(INDEX('Monthly Database'!$C$8:$AF$143,'Monthly Analysis'!$P44,'Monthly Analysis'!Y$3),INDEX('Monthly Database'!$C$8:$AF$143,'Monthly Analysis'!$P44,'Monthly Analysis'!Y$3),NA()) ->  | Z44: =IF(INDEX('Monthly Database'!$C$8:$AF$143,'Monthly Analysis'!$P44,'Monthly Analysis'!Z$3),INDEX('Monthly Database'!$C$8:$AF$143,'Monthly Analysis'!$P44,'Monthly Analysis'!Z$3),NA()) ->  | AA44: -0.6969798406
P45: 48 | Q45: 11.3593158 | R45: =INDEX('Monthly Database'!$B$1:$B$143,'Monthly Analysis'!P45) -> 2021-01-01 | S45: 2021-01-01 | T45: =IF(INDEX('Monthly Database'!$C$8:$AF$143,'Monthly Analysis'!$P45,'Monthly Analysis'!T$3),INDEX('Monthly Database'!$C$8:$AF$143,'Monthly Analysis'!$P45,'Monthly Analysis'!T$3),NA()) -> 8.706315795 | U45: =IF(INDEX('Monthly Database'!$C$8:$AF$143,'Monthly Analysis'!$P45,'Monthly Analysis'!U$3),INDEX('Monthly Database'!$C$8:$AF$143,'Monthly Analysis'!$P45,'Monthly Analysis'!U$3),NA()) -> 2.653 | V45: =IF(INDEX('Monthly Database'!$C$8:$AF$143,'Monthly Analysis'!$P45,'Monthly Analysis'!V$3),INDEX('Monthly Database'!$C$8:$AF$143,'Monthly Analysis'!$P45,'Monthly Analysis'!V$3),NA()) ->  | W45: =IF(INDEX('Monthly Database'!$C$8:$AF$143,'Monthly Analysis'!$P45,'Monthly Analysis'!W$3),INDEX('Monthly Database'!$C$8:$AF$143,'Monthly Analysis'!$P45,'Monthly Analysis'!W$3),NA()) ->  | X45: =IF(INDEX('Monthly Database'!$C$8:$AF$143,'Monthly Analysis'!$P45,'Monthly Analysis'!X$3),INDEX('Monthly Database'!$C$8:$AF$143,'Monthly Analysis'!$P45,'Monthly Analysis'!X$3),NA()) ->  | Y45: =IF(INDEX('Monthly Database'!$C$8:$AF$143,'Monthly Analysis'!$P45,'Monthly Analysis'!Y$3),INDEX('Monthly Database'!$C$8:$AF$143,'Monthly Analysis'!$P45,'Monthly Analysis'!Y$3),NA()) ->  | Z45: =IF(INDEX('Monthly Database'!$C$8:$AF$143,'Monthly Analysis'!$P45,'Monthly Analysis'!Z$3),INDEX('Monthly Database'!$C$8:$AF$143,'Monthly Analysis'!$P45,'Monthly Analysis'!Z$3),NA()) ->  | AA45: -0.6952786848
P46: 49 | Q46: 11.37815322 | R46: =INDEX('Monthly Database'!$B$1:$B$143,'Monthly Analysis'!P46) -> 2021-02-01 | S46: 2021-02-01 | T46: =IF(INDEX('Monthly Database'!$C$8:$AF$143,'Monthly Analysis'!$P46,'Monthly Analysis'!T$3),INDEX('Monthly Database'!$C$8:$AF$143,'Monthly Analysis'!$P46,'Monthly Analysis'!T$3),NA()) -> 8.725153221 | U46: =IF(INDEX('Monthly Database'!$C$8:$AF$143,'Monthly Analysis'!$P46,'Monthly Analysis'!U$3),INDEX('Monthly Database'!$C$8:$AF$143,'Monthly Analysis'!$P46,'Monthly Analysis'!U$3),NA()) -> 2.653 | V46: =IF(INDEX('Monthly Database'!$C$8:$AF$143,'Monthly Analysis'!$P46,'Monthly Analysis'!V$3),INDEX('Monthly Database'!$C$8:$AF$143,'Monthly Analysis'!$P46,'Monthly Analysis'!V$3),NA()) ->  | W46: =IF(INDEX('Monthly Database'!$C$8:$AF$143,'Monthly Analysis'!$P46,'Monthly Analysis'!W$3),INDEX('Monthly Database'!$C$8:$AF$143,'Monthly Analysis'!$P46,'Monthly Analysis'!W$3),NA()) ->  | X46: =IF(INDEX('Monthly Database'!$C$8:$AF$143,'Monthly Analysis'!$P46,'Monthly Analysis'!X$3),INDEX('Monthly Database'!$C$8:$AF$143,'Monthly Analysis'!$P46,'Monthly Analysis'!X$3),NA()) ->  | Y46: =IF(INDEX('Monthly Database'!$C$8:$AF$143,'Monthly Analysis'!$P46,'Monthly Analysis'!Y$3),INDEX('Monthly Database'!$C$8:$AF$143,'Monthly Analysis'!$P46,'Monthly Analysis'!Y$3),NA()) ->  | Z46: =IF(INDEX('Monthly Database'!$C$8:$AF$143,'Monthly Analysis'!$P46,'Monthly Analysis'!Z$3),INDEX('Monthly Database'!$C$8:$AF$143,'Monthly Analysis'!$P46,'Monthly Analysis'!Z$3),NA()) ->  | AA46: -0.6959365718
P47: 50 | Q47: 11.42812813 | R47: =INDEX('Monthly Database'!$B$1:$B$143,'Monthly Analysis'!P47) -> 2021-03-01 | S47: 2021-03-01 | T47: =IF(INDEX('Monthly Database'!$C$8:$AF$143,'Monthly Analysis'!$P47,'Monthly Analysis'!T$3),INDEX('Monthly Database'!$C$8:$AF$143,'Monthly Analysis'!$P47,'Monthly Analysis'!T$3),NA()) -> 8.749128127 | U47: =IF(INDEX('Monthly Database'!$C$8:$AF$143,'Monthly Analysis'!$P47,'Monthly Analysis'!U$3),INDEX('Monthly Database'!$C$8:$AF$143,'Monthly Analysis'!$P47,'Monthly Analysis'!U$3),NA()) -> 2.679 | V47: =IF(INDEX('Monthly Database'!$C$8:$AF$143,'Monthly Analysis'!$P47,'Monthly Analysis'!V$3),INDEX('Monthly Database'!$C$8:$AF$143,'Monthly Analysis'!$P47,'Monthly Analysis'!V$3),NA()) ->  | W47: =IF(INDEX('Monthly Database'!$C$8:$AF$143,'Monthly Analysis'!$P47,'Monthly Analysis'!W$3),INDEX('Monthly Database'!$C$8:$AF$143,'Monthly Analysis'!$P47,'Monthly Analysis'!W$3),NA()) ->  | X47: =IF(INDEX('Monthly Database'!$C$8:$AF$143,'Monthly Analysis'!$P47,'Monthly Analysis'!X$3),INDEX('Monthly Database'!$C$8:$AF$143,'Monthly Analysis'!$P47,'Monthly Analysis'!X$3),NA()) ->  | Y47: =IF(INDEX('Monthly Database'!$C$8:$AF$143,'Monthly Analysis'!$P47,'Monthly Analysis'!Y$3),INDEX('Monthly Database'!$C$8:$AF$143,'Monthly Analysis'!$P47,'Monthly Analysis'!Y$3),NA()) ->  | Z47: =IF(INDEX('Monthly Database'!$C$8:$AF$143,'Monthly Analysis'!$P47,'Monthly Analysis'!Z$3),INDEX('Monthly Database'!$C$8:$AF$143,'Monthly Analysis'!$P47,'Monthly Analysis'!Z$3),NA()) ->  | AA47: -0.6937980607
P48: 51 | Q48: 11.52196555 | R48: =INDEX('Monthly Database'!$B$1:$B$143,'Monthly Analysis'!P48) -> 2021-04-01 | S48: 2021-04-01 | T48: =IF(INDEX('Monthly Database'!$C$8:$AF$143,'Monthly Analysis'!$P48,'Monthly Analysis'!T$3),INDEX('Monthly Database'!$C$8:$AF$143,'Monthly Analysis'!$P48,'Monthly Analysis'!T$3),NA()) -> 8.767965553 | U48: =IF(INDEX('Monthly Database'!$C$8:$AF$143,'Monthly Analysis'!$P48,'Monthly Analysis'!U$3),INDEX('Monthly Database'!$C$8:$AF$143,'Monthly Analysis'!$P48,'Monthly Analysis'!U$3),NA()) -> 2.754 | V48: =IF(INDEX('Monthly Database'!$C$8:$AF$143,'Monthly Analysis'!$P48,'Monthly Analysis'!V$3),INDEX('Monthly Database'!$C$8:$AF$143,'Monthly Analysis'!$P48,'Monthly Analysis'!V$3),NA()) ->  | W48: =IF(INDEX('Monthly Database'!$C$8:$AF$143,'Monthly Analysis'!$P48,'Monthly Analysis'!W$3),INDEX('Monthly Database'!$C$8:$AF$143,'Monthly Analysis'!$P48,'Monthly Analysis'!W$3),NA()) ->  | X48: =IF(INDEX('Monthly Database'!$C$8:$AF$143,'Monthly Analysis'!$P48,'Monthly Analysis'!X$3),INDEX('Monthly Database'!$C$8:$AF$143,'Monthly Analysis'!$P48,'Monthly Analysis'!X$3),NA()) ->  | Y48: =IF(INDEX('Monthly Database'!$C$8:$AF$143,'Monthly Analysis'!$P48,'Monthly Analysis'!Y$3),INDEX('Monthly Database'!$C$8:$AF$143,'Monthly Analysis'!$P48,'Monthly Analysis'!Y$3),NA()) ->  | Z48: =IF(INDEX('Monthly Database'!$C$8:$AF$143,'Monthly Analysis'!$P48,'Monthly Analysis'!Z$3),INDEX('Monthly Database'!$C$8:$AF$143,'Monthly Analysis'!$P48,'Monthly Analysis'!Z$3),NA()) ->  | AA48: -0.6859020507
P49: 52 | Q49: 11.68052802 | R49: =INDEX('Monthly Database'!$B$1:$B$143,'Monthly Analysis'!P49) -> 2021-05-01 | S49: 2021-05-01 | T49: =IF(INDEX('Monthly Database'!$C$8:$AF$143,'Monthly Analysis'!$P49,'Monthly Analysis'!T$3),INDEX('Monthly Database'!$C$8:$AF$143,'Monthly Analysis'!$P49,'Monthly Analysis'!T$3),NA()) -> 8.776528019 | U49: =IF(INDEX('Monthly Database'!$C$8:$AF$143,'Monthly Analysis'!$P49,'Monthly Analysis'!U$3),INDEX('Monthly Database'!$C$8:$AF$143,'Monthly Analysis'!$P49,'Monthly Analysis'!U$3),NA()) -> 2.904 | V49: =IF(INDEX('Monthly Database'!$C$8:$AF$143,'Monthly Analysis'!$P49,'Monthly Analysis'!V$3),INDEX('Monthly Database'!$C$8:$AF$143,'Monthly Analysis'!$P49,'Monthly Analysis'!V$3),NA()) ->  | W49: =IF(INDEX('Monthly Database'!$C$8:$AF$143,'Monthly Analysis'!$P49,'Monthly Analysis'!W$3),INDEX('Monthly Database'!$C$8:$AF$143,'Monthly Analysis'!$P49,'Monthly Analysis'!W$3),NA()) ->  | X49: =IF(INDEX('Monthly Database'!$C$8:$AF$143,'Monthly Analysis'!$P49,'Monthly Analysis'!X$3),INDEX('Monthly Database'!$C$8:$AF$143,'Monthly Analysis'!$P49,'Monthly Analysis'!X$3),NA()) ->  | Y49: =IF(INDEX('Monthly Database'!$C$8:$AF$143,'Monthly Analysis'!$P49,'Monthly Analysis'!Y$3),INDEX('Monthly Database'!$C$8:$AF$143,'Monthly Analysis'!$P49,'Monthly Analysis'!Y$3),NA()) ->  | Z49: =IF(INDEX('Monthly Database'!$C$8:$AF$143,'Monthly Analysis'!$P49,'Monthly Analysis'!Z$3),INDEX('Monthly Database'!$C$8:$AF$143,'Monthly Analysis'!$P49,'Monthly Analysis'!Z$3),NA()) ->  | AA49: -0.6691174467
P50: 53 | Q50: 11.80080298 | R50: =INDEX('Monthly Database'!$B$1:$B$143,'Monthly Analysis'!P50) -> 2021-06-01 | S50: 2021-06-01 | T50: =IF(INDEX('Monthly Database'!$C$8:$AF$143,'Monthly Analysis'!$P50,'Monthly Analysis'!T$3),INDEX('Monthly Database'!$C$8:$AF$143,'Monthly Analysis'!$P50,'Monthly Analysis'!T$3),NA()) -> 8.786802979 | U50: =IF(INDEX('Monthly Database'!$C$8:$AF$143,'Monthly Analysis'!$P50,'Monthly Analysis'!U$3),INDEX('Monthly Database'!$C$8:$AF$143,'Monthly Analysis'!$P50,'Monthly Analysis'!U$3),NA()) -> 3.014 | V50: =IF(INDEX('Monthly Database'!$C$8:$AF$143,'Monthly Analysis'!$P50,'Monthly Analysis'!V$3),INDEX('Monthly Database'!$C$8:$AF$143,'Monthly Analysis'!$P50,'Monthly Analysis'!V$3),NA()) ->  | W50: =IF(INDEX('Monthly Database'!$C$8:$AF$143,'Monthly Analysis'!$P50,'Monthly Analysis'!W$3),INDEX('Monthly Database'!$C$8:$AF$143,'Monthly Analysis'!$P50,'Monthly Analysis'!W$3),NA()) ->  | X50: =IF(INDEX('Monthly Database'!$C$8:$AF$143,'Monthly Analysis'!$P50,'Monthly Analysis'!X$3),INDEX('Monthly Database'!$C$8:$AF$143,'Monthly Analysis'!$P50,'Monthly Analysis'!X$3),NA()) ->  | Y50: =IF(INDEX('Monthly Database'!$C$8:$AF$143,'Monthly Analysis'!$P50,'Monthly Analysis'!Y$3),INDEX('Monthly Database'!$C$8:$AF$143,'Monthly Analysis'!$P50,'Monthly Analysis'!Y$3),NA()) ->  | Z50: =IF(INDEX('Monthly Database'!$C$8:$AF$143,'Monthly Analysis'!$P50,'Monthly Analysis'!Z$3),INDEX('Monthly Database'!$C$8:$AF$143,'Monthly Analysis'!$P50,'Monthly Analysis'!Z$3),NA()) ->  | AA50: -0.6569855945
P51: 54 | Q51: 11.78779043 | R51: =INDEX('Monthly Database'!$B$1:$B$143,'Monthly Analysis'!P51) -> 2021-07-01 | S51: 2021-07-01 | T51: =IF(INDEX('Monthly Database'!$C$8:$AF$143,'Monthly Analysis'!$P51,'Monthly Analysis'!T$3),INDEX('Monthly Database'!$C$8:$AF$143,'Monthly Analysis'!$P51,'Monthly Analysis'!T$3),NA()) -> 8.798790432 | U51: =IF(INDEX('Monthly Database'!$C$8:$AF$143,'Monthly Analysis'!$P51,'Monthly Analysis'!U$3),INDEX('Monthly Database'!$C$8:$AF$143,'Monthly Analysis'!$P51,'Monthly Analysis'!U$3),NA()) -> 2.989 | V51: =IF(INDEX('Monthly Database'!$C$8:$AF$143,'Monthly Analysis'!$P51,'Monthly Analysis'!V$3),INDEX('Monthly Database'!$C$8:$AF$143,'Monthly Analysis'!$P51,'Monthly Analysis'!V$3),NA()) ->  | W51: =IF(INDEX('Monthly Database'!$C$8:$AF$143,'Monthly Analysis'!$P51,'Monthly Analysis'!W$3),INDEX('Monthly Database'!$C$8:$AF$143,'Monthly Analysis'!$P51,'Monthly Analysis'!W$3),NA()) ->  | X51: =IF(INDEX('Monthly Database'!$C$8:$AF$143,'Monthly Analysis'!$P51,'Monthly Analysis'!X$3),INDEX('Monthly Database'!$C$8:$AF$143,'Monthly Analysis'!$P51,'Monthly Analysis'!X$3),NA()) ->  | Y51: =IF(INDEX('Monthly Database'!$C$8:$AF$143,'Monthly Analysis'!$P51,'Monthly Analysis'!Y$3),INDEX('Monthly Database'!$C$8:$AF$143,'Monthly Analysis'!$P51,'Monthly Analysis'!Y$3),NA()) ->  | Z51: =IF(INDEX('Monthly Database'!$C$8:$AF$143,'Monthly Analysis'!$P51,'Monthly Analysis'!Z$3),INDEX('Monthly Database'!$C$8:$AF$143,'Monthly Analysis'!$P51,'Monthly Analysis'!Z$3),NA()) ->  | AA51: -0.6602942162
P52: 55 | Q52: 11.74591536 | R52: =INDEX('Monthly Database'!$B$1:$B$143,'Monthly Analysis'!P52) -> 2021-08-01 | S52: 2021-08-01 | T52: =IF(INDEX('Monthly Database'!$C$8:$AF$143,'Monthly Analysis'!$P52,'Monthly Analysis'!T$3),INDEX('Monthly Database'!$C$8:$AF$143,'Monthly Analysis'!$P52,'Monthly Analysis'!T$3),NA()) -> 8.815915364 | U52: =IF(INDEX('Monthly Database'!$C$8:$AF$143,'Monthly Analysis'!$P52,'Monthly Analysis'!U$3),INDEX('Monthly Database'!$C$8:$AF$143,'Monthly Analysis'!$P52,'Monthly Analysis'!U$3),NA()) -> 2.93 | V52: =IF(INDEX('Monthly Database'!$C$8:$AF$143,'Monthly Analysis'!$P52,'Monthly Analysis'!V$3),INDEX('Monthly Database'!$C$8:$AF$143,'Monthly Analysis'!$P52,'Monthly Analysis'!V$3),NA()) ->  | W52: =IF(INDEX('Monthly Database'!$C$8:$AF$143,'Monthly Analysis'!$P52,'Monthly Analysis'!W$3),INDEX('Monthly Database'!$C$8:$AF$143,'Monthly Analysis'!$P52,'Monthly Analysis'!W$3),NA()) ->  | X52: =IF(INDEX('Monthly Database'!$C$8:$AF$143,'Monthly Analysis'!$P52,'Monthly Analysis'!X$3),INDEX('Monthly Database'!$C$8:$AF$143,'Monthly Analysis'!$P52,'Monthly Analysis'!X$3),NA()) ->  | Y52: =IF(INDEX('Monthly Database'!$C$8:$AF$143,'Monthly Analysis'!$P52,'Monthly Analysis'!Y$3),INDEX('Monthly Database'!$C$8:$AF$143,'Monthly Analysis'!$P52,'Monthly Analysis'!Y$3),NA()) ->  | Z52: =IF(INDEX('Monthly Database'!$C$8:$AF$143,'Monthly Analysis'!$P52,'Monthly Analysis'!Z$3),INDEX('Monthly Database'!$C$8:$AF$143,'Monthly Analysis'!$P52,'Monthly Analysis'!Z$3),NA()) ->  | AA52: -0.6676465371
P53: 56 | Q53: 11.45317778 | R53: =INDEX('Monthly Database'!$B$1:$B$143,'Monthly Analysis'!P53) -> 2021-09-01 | S53: 2021-09-01 | T53: =IF(INDEX('Monthly Database'!$C$8:$AF$143,'Monthly Analysis'!$P53,'Monthly Analysis'!T$3),INDEX('Monthly Database'!$C$8:$AF$143,'Monthly Analysis'!$P53,'Monthly Analysis'!T$3),NA()) -> 8.838177777 | U53: =IF(INDEX('Monthly Database'!$C$8:$AF$143,'Monthly Analysis'!$P53,'Monthly Analysis'!U$3),INDEX('Monthly Database'!$C$8:$AF$143,'Monthly Analysis'!$P53,'Monthly Analysis'!U$3),NA()) -> 2.615 | V53: =IF(INDEX('Monthly Database'!$C$8:$AF$143,'Monthly Analysis'!$P53,'Monthly Analysis'!V$3),INDEX('Monthly Database'!$C$8:$AF$143,'Monthly Analysis'!$P53,'Monthly Analysis'!V$3),NA()) ->  | W53: =IF(INDEX('Monthly Database'!$C$8:$AF$143,'Monthly Analysis'!$P53,'Monthly Analysis'!W$3),INDEX('Monthly Database'!$C$8:$AF$143,'Monthly Analysis'!$P53,'Monthly Analysis'!W$3),NA()) ->  | X53: =IF(INDEX('Monthly Database'!$C$8:$AF$143,'Monthly Analysis'!$P53,'Monthly Analysis'!X$3),INDEX('Monthly Database'!$C$8:$AF$143,'Monthly Analysis'!$P53,'Monthly Analysis'!X$3),NA()) ->  | Y53: =IF(INDEX('Monthly Database'!$C$8:$AF$143,'Monthly Analysis'!$P53,'Monthly Analysis'!Y$3),INDEX('Monthly Database'!$C$8:$AF$143,'Monthly Analysis'!$P53,'Monthly Analysis'!Y$3),NA()) ->  | Z53: =IF(INDEX('Monthly Database'!$C$8:$AF$143,'Monthly Analysis'!$P53,'Monthly Analysis'!Z$3),INDEX('Monthly Database'!$C$8:$AF$143,'Monthly Analysis'!$P53,'Monthly Analysis'!Z$3),NA()) ->  | AA53: -0.7041245304
P54: 57 | Q54: 11.45459022 | R54: =INDEX('Monthly Database'!$B$1:$B$143,'Monthly Analysis'!P54) -> 2021-10-01 | S54: 2021-10-01 | T54: =IF(INDEX('Monthly Database'!$C$8:$AF$143,'Monthly Analysis'!$P54,'Monthly Analysis'!T$3),INDEX('Monthly Database'!$C$8:$AF$143,'Monthly Analysis'!$P54,'Monthly Analysis'!T$3),NA()) -> 8.853590216 | U54: =IF(INDEX('Monthly Database'!$C$8:$AF$143,'Monthly Analysis'!$P54,'Monthly Analysis'!U$3),INDEX('Monthly Database'!$C$8:$AF$143,'Monthly Analysis'!$P54,'Monthly Analysis'!U$3),NA()) -> 2.601 | V54: =IF(INDEX('Monthly Database'!$C$8:$AF$143,'Monthly Analysis'!$P54,'Monthly Analysis'!V$3),INDEX('Monthly Database'!$C$8:$AF$143,'Monthly Analysis'!$P54,'Monthly Analysis'!V$3),NA()) ->  | W54: =IF(INDEX('Monthly Database'!$C$8:$AF$143,'Monthly Analysis'!$P54,'Monthly Analysis'!W$3),INDEX('Monthly Database'!$C$8:$AF$143,'Monthly Analysis'!$P54,'Monthly Analysis'!W$3),NA()) ->  | X54: =IF(INDEX('Monthly Database'!$C$8:$AF$143,'Monthly Analysis'!$P54,'Monthly Analysis'!X$3),INDEX('Monthly Database'!$C$8:$AF$143,'Monthly Analysis'!$P54,'Monthly Analysis'!X$3),NA()) ->  | Y54: =IF(INDEX('Monthly Database'!$C$8:$AF$143,'Monthly Analysis'!$P54,'Monthly Analysis'!Y$3),INDEX('Monthly Database'!$C$8:$AF$143,'Monthly Analysis'!$P54,'Monthly Analysis'!Y$3),NA()) ->  | Z54: =IF(INDEX('Monthly Database'!$C$8:$AF$143,'Monthly Analysis'!$P54,'Monthly Analysis'!Z$3),INDEX('Monthly Database'!$C$8:$AF$143,'Monthly Analysis'!$P54,'Monthly Analysis'!Z$3),NA()) -> 
P55: 58 | Q55: 11.48915268 | R55: =INDEX('Monthly Database'!$B$1:$B$143,'Monthly Analysis'!P55) -> 2021-11-01 | S55: 2021-11-01 | T55: =IF(INDEX('Monthly Database'!$C$8:$AF$143,'Monthly Analysis'!$P55,'Monthly Analysis'!T$3),INDEX('Monthly Database'!$C$8:$AF$143,'Monthly Analysis'!$P55,'Monthly Analysis'!T$3),NA()) -> 8.862152683 | U55: =IF(INDEX('Monthly Database'!$C$8:$AF$143,'Monthly Analysis'!$P55,'Monthly Analysis'!U$3),INDEX('Monthly Database'!$C$8:$AF$143,'Monthly Analysis'!$P55,'Monthly Analysis'!U$3),NA()) -> 2.627 | V55: =IF(INDEX('Monthly Database'!$C$8:$AF$143,'Monthly Analysis'!$P55,'Monthly Analysis'!V$3),INDEX('Monthly Database'!$C$8:$AF$143,'Monthly Analysis'!$P55,'Monthly Analysis'!V$3),NA()) ->  | W55: =IF(INDEX('Monthly Database'!$C$8:$AF$143,'Monthly Analysis'!$P55,'Monthly Analysis'!W$3),INDEX('Monthly Database'!$C$8:$AF$143,'Monthly Analysis'!$P55,'Monthly Analysis'!W$3),NA()) ->  | X55: =IF(INDEX('Monthly Database'!$C$8:$AF$143,'Monthly Analysis'!$P55,'Monthly Analysis'!X$3),INDEX('Monthly Database'!$C$8:$AF$143,'Monthly Analysis'!$P55,'Monthly Analysis'!X$3),NA()) ->  | Y55: =IF(INDEX('Monthly Database'!$C$8:$AF$143,'Monthly Analysis'!$P55,'Monthly Analysis'!Y$3),INDEX('Monthly Database'!$C$8:$AF$143,'Monthly Analysis'!$P55,'Monthly Analysis'!Y$3),NA()) ->  | Z55: =IF(INDEX('Monthly Database'!$C$8:$AF$143,'Monthly Analysis'!$P55,'Monthly Analysis'!Z$3),INDEX('Monthly Database'!$C$8:$AF$143,'Monthly Analysis'!$P55,'Monthly Analysis'!Z$3),NA()) -> 
P56: 59 | Q56: 11.53085263 | R56: =INDEX('Monthly Database'!$B$1:$B$143,'Monthly Analysis'!P56) -> 2021-12-01 | S56: 2021-12-01 | T56: =IF(INDEX('Monthly Database'!$C$8:$AF$143,'Monthly Analysis'!$P56,'Monthly Analysis'!T$3),INDEX('Monthly Database'!$C$8:$AF$143,'Monthly Analysis'!$P56,'Monthly Analysis'!T$3),NA()) -> 8.875852629 | U56: =IF(INDEX('Monthly Database'!$C$8:$AF$143,'Monthly Analysis'!$P56,'Monthly Analysis'!U$3),INDEX('Monthly Database'!$C$8:$AF$143,'Monthly Analysis'!$P56,'Monthly Analysis'!U$3),NA()) -> 2.655 | V56: =IF(INDEX('Monthly Database'!$C$8:$AF$143,'Monthly Analysis'!$P56,'Monthly Analysis'!V$3),INDEX('Monthly Database'!$C$8:$AF$143,'Monthly Analysis'!$P56,'Monthly Analysis'!V$3),NA()) ->  | W56: =IF(INDEX('Monthly Database'!$C$8:$AF$143,'Monthly Analysis'!$P56,'Monthly Analysis'!W$3),INDEX('Monthly Database'!$C$8:$AF$143,'Monthly Analysis'!$P56,'Monthly Analysis'!W$3),NA()) ->  | X56: =IF(INDEX('Monthly Database'!$C$8:$AF$143,'Monthly Analysis'!$P56,'Monthly Analysis'!X$3),INDEX('Monthly Database'!$C$8:$AF$143,'Monthly Analysis'!$P56,'Monthly Analysis'!X$3),NA()) ->  | Y56: =IF(INDEX('Monthly Database'!$C$8:$AF$143,'Monthly Analysis'!$P56,'Monthly Analysis'!Y$3),INDEX('Monthly Database'!$C$8:$AF$143,'Monthly Analysis'!$P56,'Monthly Analysis'!Y$3),NA()) ->  | Z56: =IF(INDEX('Monthly Database'!$C$8:$AF$143,'Monthly Analysis'!$P56,'Monthly Analysis'!Z$3),INDEX('Monthly Database'!$C$8:$AF$143,'Monthly Analysis'!$P56,'Monthly Analysis'!Z$3),NA()) -> 
P57: 60 | Q57: 11.57126507 | R57: =INDEX('Monthly Database'!$B$1:$B$143,'Monthly Analysis'!P57) -> 2022-01-01 | S57: 2022-01-01 | T57: =IF(INDEX('Monthly Database'!$C$8:$AF$143,'Monthly Analysis'!$P57,'Monthly Analysis'!T$3),INDEX('Monthly Database'!$C$8:$AF$143,'Monthly Analysis'!$P57,'Monthly Analysis'!T$3),NA()) -> 8.891265068 | U57: =IF(INDEX('Monthly Database'!$C$8:$AF$143,'Monthly Analysis'!$P57,'Monthly Analysis'!U$3),INDEX('Monthly Database'!$C$8:$AF$143,'Monthly Analysis'!$P57,'Monthly Analysis'!U$3),NA()) -> 2.68 | V57: =IF(INDEX('Monthly Database'!$C$8:$AF$143,'Monthly Analysis'!$P57,'Monthly Analysis'!V$3),INDEX('Monthly Database'!$C$8:$AF$143,'Monthly Analysis'!$P57,'Monthly Analysis'!V$3),NA()) ->  | W57: =IF(INDEX('Monthly Database'!$C$8:$AF$143,'Monthly Analysis'!$P57,'Monthly Analysis'!W$3),INDEX('Monthly Database'!$C$8:$AF$143,'Monthly Analysis'!$P57,'Monthly Analysis'!W$3),NA()) ->  | X57: =IF(INDEX('Monthly Database'!$C$8:$AF$143,'Monthly Analysis'!$P57,'Monthly Analysis'!X$3),INDEX('Monthly Database'!$C$8:$AF$143,'Monthly Analysis'!$P57,'Monthly Analysis'!X$3),NA()) ->  | Y57: =IF(INDEX('Monthly Database'!$C$8:$AF$143,'Monthly Analysis'!$P57,'Monthly Analysis'!Y$3),INDEX('Monthly Database'!$C$8:$AF$143,'Monthly Analysis'!$P57,'Monthly Analysis'!Y$3),NA()) ->  | Z57: =IF(INDEX('Monthly Database'!$C$8:$AF$143,'Monthly Analysis'!$P57,'Monthly Analysis'!Z$3),INDEX('Monthly Database'!$C$8:$AF$143,'Monthly Analysis'!$P57,'Monthly Analysis'!Z$3),NA()) -> 
P58: 61 | Q58: 11.59652748 | R58: =INDEX('Monthly Database'!$B$1:$B$143,'Monthly Analysis'!P58) -> 2022-02-01 | S58: 2022-02-01 | T58: =IF(INDEX('Monthly Database'!$C$8:$AF$143,'Monthly Analysis'!$P58,'Monthly Analysis'!T$3),INDEX('Monthly Database'!$C$8:$AF$143,'Monthly Analysis'!$P58,'Monthly Analysis'!T$3),NA()) -> 8.913527481 | U58: =IF(INDEX('Monthly Database'!$C$8:$AF$143,'Monthly Analysis'!$P58,'Monthly Analysis'!U$3),INDEX('Monthly Database'!$C$8:$AF$143,'Monthly Analysis'!$P58,'Monthly Analysis'!U$3),NA()) -> 2.683 | V58: =IF(INDEX('Monthly Database'!$C$8:$AF$143,'Monthly Analysis'!$P58,'Monthly Analysis'!V$3),INDEX('Monthly Database'!$C$8:$AF$143,'Monthly Analysis'!$P58,'Monthly Analysis'!V$3),NA()) ->  | W58: =IF(INDEX('Monthly Database'!$C$8:$AF$143,'Monthly Analysis'!$P58,'Monthly Analysis'!W$3),INDEX('Monthly Database'!$C$8:$AF$143,'Monthly Analysis'!$P58,'Monthly Analysis'!W$3),NA()) ->  | X58: =IF(INDEX('Monthly Database'!$C$8:$AF$143,'Monthly Analysis'!$P58,'Monthly Analysis'!X$3),INDEX('Monthly Database'!$C$8:$AF$143,'Monthly Analysis'!$P58,'Monthly Analysis'!X$3),NA()) ->  | Y58: =IF(INDEX('Monthly Database'!$C$8:$AF$143,'Monthly Analysis'!$P58,'Monthly Analysis'!Y$3),INDEX('Monthly Database'!$C$8:$AF$143,'Monthly Analysis'!$P58,'Monthly Analysis'!Y$3),NA()) ->  | Z58: =IF(INDEX('Monthly Database'!$C$8:$AF$143,'Monthly Analysis'!$P58,'Monthly Analysis'!Z$3),INDEX('Monthly Database'!$C$8:$AF$143,'Monthly Analysis'!$P58,'Monthly Analysis'!Z$3),NA()) -> 
P59: 62 | Q59: 11.6470774 | R59: =INDEX('Monthly Database'!$B$1:$B$143,'Monthly Analysis'!P59) -> 2022-03-01 | S59: 2022-03-01 | T59: =IF(INDEX('Monthly Database'!$C$8:$AF$143,'Monthly Analysis'!$P59,'Monthly Analysis'!T$3),INDEX('Monthly Database'!$C$8:$AF$143,'Monthly Analysis'!$P59,'Monthly Analysis'!T$3),NA()) -> 8.9340774 | U59: =IF(INDEX('Monthly Database'!$C$8:$AF$143,'Monthly Analysis'!$P59,'Monthly Analysis'!U$3),INDEX('Monthly Database'!$C$8:$AF$143,'Monthly Analysis'!$P59,'Monthly Analysis'!U$3),NA()) -> 2.713 | V59: =IF(INDEX('Monthly Database'!$C$8:$AF$143,'Monthly Analysis'!$P59,'Monthly Analysis'!V$3),INDEX('Monthly Database'!$C$8:$AF$143,'Monthly Analysis'!$P59,'Monthly Analysis'!V$3),NA()) ->  | W59: =IF(INDEX('Monthly Database'!$C$8:$AF$143,'Monthly Analysis'!$P59,'Monthly Analysis'!W$3),INDEX('Monthly Database'!$C$8:$AF$143,'Monthly Analysis'!$P59,'Monthly Analysis'!W$3),NA()) ->  | X59: =IF(INDEX('Monthly Database'!$C$8:$AF$143,'Monthly Analysis'!$P59,'Monthly Analysis'!X$3),INDEX('Monthly Database'!$C$8:$AF$143,'Monthly Analysis'!$P59,'Monthly Analysis'!X$3),NA()) ->  | Y59: =IF(INDEX('Monthly Database'!$C$8:$AF$143,'Monthly Analysis'!$P59,'Monthly Analysis'!Y$3),INDEX('Monthly Database'!$C$8:$AF$143,'Monthly Analysis'!$P59,'Monthly Analysis'!Y$3),NA()) ->  | Z59: =IF(INDEX('Monthly Database'!$C$8:$AF$143,'Monthly Analysis'!$P59,'Monthly Analysis'!Z$3),INDEX('Monthly Database'!$C$8:$AF$143,'Monthly Analysis'!$P59,'Monthly Analysis'!Z$3),NA()) -> 
P60: 63 | Q60: 11.74020233 | R60: =INDEX('Monthly Database'!$B$1:$B$143,'Monthly Analysis'!P60) -> 2022-04-01 | S60: 2022-04-01 | T60: =IF(INDEX('Monthly Database'!$C$8:$AF$143,'Monthly Analysis'!$P60,'Monthly Analysis'!T$3),INDEX('Monthly Database'!$C$8:$AF$143,'Monthly Analysis'!$P60,'Monthly Analysis'!T$3),NA()) -> 8.951202333 | U60: =IF(INDEX('Monthly Database'!$C$8:$AF$143,'Monthly Analysis'!$P60,'Monthly Analysis'!U$3),INDEX('Monthly Database'!$C$8:$AF$143,'Monthly Analysis'!$P60,'Monthly Analysis'!U$3),NA()) -> 2.789 | V60: =IF(INDEX('Monthly Database'!$C$8:$AF$143,'Monthly Analysis'!$P60,'Monthly Analysis'!V$3),INDEX('Monthly Database'!$C$8:$AF$143,'Monthly Analysis'!$P60,'Monthly Analysis'!V$3),NA()) ->  | W60: =IF(INDEX('Monthly Database'!$C$8:$AF$143,'Monthly Analysis'!$P60,'Monthly Analysis'!W$3),INDEX('Monthly Database'!$C$8:$AF$143,'Monthly Analysis'!$P60,'Monthly Analysis'!W$3),NA()) ->  | X60: =IF(INDEX('Monthly Database'!$C$8:$AF$143,'Monthly Analysis'!$P60,'Monthly Analysis'!X$3),INDEX('Monthly Database'!$C$8:$AF$143,'Monthly Analysis'!$P60,'Monthly Analysis'!X$3),NA()) ->  | Y60: =IF(INDEX('Monthly Database'!$C$8:$AF$143,'Monthly Analysis'!$P60,'Monthly Analysis'!Y$3),INDEX('Monthly Database'!$C$8:$AF$143,'Monthly Analysis'!$P60,'Monthly Analysis'!Y$3),NA()) ->  | Z60: =IF(INDEX('Monthly Database'!$C$8:$AF$143,'Monthly Analysis'!$P60,'Monthly Analysis'!Z$3),INDEX('Monthly Database'!$C$8:$AF$143,'Monthly Analysis'!$P60,'Monthly Analysis'!Z$3),NA()) -> 
P61: 64 | Q61: 11.89220233 | R61: =INDEX('Monthly Database'!$B$1:$B$143,'Monthly Analysis'!P61) -> 2022-05-01 | S61: 2022-05-01 | T61: =IF(INDEX('Monthly Database'!$C$8:$AF$143,'Monthly Analysis'!$P61,'Monthly Analysis'!T$3),INDEX('Monthly Database'!$C$8:$AF$143,'Monthly Analysis'!$P61,'Monthly Analysis'!T$3),NA()) -> 8.951202333 | U61: =IF(INDEX('Monthly Database'!$C$8:$AF$143,'Monthly Analysis'!$P61,'Monthly Analysis'!U$3),INDEX('Monthly Database'!$C$8:$AF$143,'Monthly Analysis'!$P61,'Monthly Analysis'!U$3),NA()) -> 2.941 | V61: =IF(INDEX('Monthly Database'!$C$8:$AF$143,'Monthly Analysis'!$P61,'Monthly Analysis'!V$3),INDEX('Monthly Database'!$C$8:$AF$143,'Monthly Analysis'!$P61,'Monthly Analysis'!V$3),NA()) ->  | W61: =IF(INDEX('Monthly Database'!$C$8:$AF$143,'Monthly Analysis'!$P61,'Monthly Analysis'!W$3),INDEX('Monthly Database'!$C$8:$AF$143,'Monthly Analysis'!$P61,'Monthly Analysis'!W$3),NA()) ->  | X61: =IF(INDEX('Monthly Database'!$C$8:$AF$143,'Monthly Analysis'!$P61,'Monthly Analysis'!X$3),INDEX('Monthly Database'!$C$8:$AF$143,'Monthly Analysis'!$P61,'Monthly Analysis'!X$3),NA()) ->  | Y61: =IF(INDEX('Monthly Database'!$C$8:$AF$143,'Monthly Analysis'!$P61,'Monthly Analysis'!Y$3),INDEX('Monthly Database'!$C$8:$AF$143,'Monthly Analysis'!$P61,'Monthly Analysis'!Y$3),NA()) ->  | Z61: =IF(INDEX('Monthly Database'!$C$8:$AF$143,'Monthly Analysis'!$P61,'Monthly Analysis'!Z$3),INDEX('Monthly Database'!$C$8:$AF$143,'Monthly Analysis'!$P61,'Monthly Analysis'!Z$3),NA()) -> 
P62: 65 | Q62: 12.00220233 | R62: =INDEX('Monthly Database'!$B$1:$B$143,'Monthly Analysis'!P62) -> 2022-06-01 | S62: 2022-06-01 | T62: =IF(INDEX('Monthly Database'!$C$8:$AF$143,'Monthly Analysis'!$P62,'Monthly Analysis'!T$3),INDEX('Monthly Database'!$C$8:$AF$143,'Monthly Analysis'!$P62,'Monthly Analysis'!T$3),NA()) -> 8.951202333 | U62: =IF(INDEX('Monthly Database'!$C$8:$AF$143,'Monthly Analysis'!$P62,'Monthly Analysis'!U$3),INDEX('Monthly Database'!$C$8:$AF$143,'Monthly Analysis'!$P62,'Monthly Analysis'!U$3),NA()) -> 3.051 | V62: =IF(INDEX('Monthly Database'!$C$8:$AF$143,'Monthly Analysis'!$P62,'Monthly Analysis'!V$3),INDEX('Monthly Database'!$C$8:$AF$143,'Monthly Analysis'!$P62,'Monthly Analysis'!V$3),NA()) ->  | W62: =IF(INDEX('Monthly Database'!$C$8:$AF$143,'Monthly Analysis'!$P62,'Monthly Analysis'!W$3),INDEX('Monthly Database'!$C$8:$AF$143,'Monthly Analysis'!$P62,'Monthly Analysis'!W$3),NA()) ->  | X62: =IF(INDEX('Monthly Database'!$C$8:$AF$143,'Monthly Analysis'!$P62,'Monthly Analysis'!X$3),INDEX('Monthly Database'!$C$8:$AF$143,'Monthly Analysis'!$P62,'Monthly Analysis'!X$3),NA()) ->  | Y62: =IF(INDEX('Monthly Database'!$C$8:$AF$143,'Monthly Analysis'!$P62,'Monthly Analysis'!Y$3),INDEX('Monthly Database'!$C$8:$AF$143,'Monthly Analysis'!$P62,'Monthly Analysis'!Y$3),NA()) ->  | Z62: =IF(INDEX('Monthly Database'!$C$8:$AF$143,'Monthly Analysis'!$P62,'Monthly Analysis'!Z$3),INDEX('Monthly Database'!$C$8:$AF$143,'Monthly Analysis'!$P62,'Monthly Analysis'!Z$3),NA()) -> 
P63: 66 | Q63: 11.97420233 | R63: =INDEX('Monthly Database'!$B$1:$B$143,'Monthly Analysis'!P63) -> 2022-07-01 | S63: 2022-07-01 | T63: =IF(INDEX('Monthly Database'!$C$8:$AF$143,'Monthly Analysis'!$P63,'Monthly Analysis'!T$3),INDEX('Monthly Database'!$C$8:$AF$143,'Monthly Analysis'!$P63,'Monthly Analysis'!T$3),NA()) -> 8.951202333 | U63: =IF(INDEX('Monthly Database'!$C$8:$AF$143,'Monthly Analysis'!$P63,'Monthly Analysis'!U$3),INDEX('Monthly Database'!$C$8:$AF$143,'Monthly Analysis'!$P63,'Monthly Analysis'!U$3),NA()) -> 3.023 | V63: =IF(INDEX('Monthly Database'!$C$8:$AF$143,'Monthly Analysis'!$P63,'Monthly Analysis'!V$3),INDEX('Monthly Database'!$C$8:$AF$143,'Monthly Analysis'!$P63,'Monthly Analysis'!V$3),NA()) ->  | W63: =IF(INDEX('Monthly Database'!$C$8:$AF$143,'Monthly Analysis'!$P63,'Monthly Analysis'!W$3),INDEX('Monthly Database'!$C$8:$AF$143,'Monthly Analysis'!$P63,'Monthly Analysis'!W$3),NA()) ->  | X63: =IF(INDEX('Monthly Database'!$C$8:$AF$143,'Monthly Analysis'!$P63,'Monthly Analysis'!X$3),INDEX('Monthly Database'!$C$8:$AF$143,'Monthly Analysis'!$P63,'Monthly Analysis'!X$3),NA()) ->  | Y63: =IF(INDEX('Monthly Database'!$C$8:$AF$143,'Monthly Analysis'!$P63,'Monthly Analysis'!Y$3),INDEX('Monthly Database'!$C$8:$AF$143,'Monthly Analysis'!$P63,'Monthly Analysis'!Y$3),NA()) ->  | Z63: =IF(INDEX('Monthly Database'!$C$8:$AF$143,'Monthly Analysis'!$P63,'Monthly Analysis'!Z$3),INDEX('Monthly Database'!$C$8:$AF$143,'Monthly Analysis'!$P63,'Monthly Analysis'!Z$3),NA()) -> 
P64: 67 | Q64: 11.91420233 | R64: =INDEX('Monthly Database'!$B$1:$B$143,'Monthly Analysis'!P64) -> 2022-08-01 | S64: 2022-08-01 | T64: =IF(INDEX('Monthly Database'!$C$8:$AF$143,'Monthly Analysis'!$P64,'Monthly Analysis'!T$3),INDEX('Monthly Database'!$C$8:$AF$143,'Monthly Analysis'!$P64,'Monthly Analysis'!T$3),NA()) -> 8.951202333 | U64: =IF(INDEX('Monthly Database'!$C$8:$AF$143,'Monthly Analysis'!$P64,'Monthly Analysis'!U$3),INDEX('Monthly Database'!$C$8:$AF$143,'Monthly Analysis'!$P64,'Monthly Analysis'!U$3),NA()) -> 2.963 | V64: =IF(INDEX('Monthly Database'!$C$8:$AF$143,'Monthly Analysis'!$P64,'Monthly Analysis'!V$3),INDEX('Monthly Database'!$C$8:$AF$143,'Monthly Analysis'!$P64,'Monthly Analysis'!V$3),NA()) ->  | W64: =IF(INDEX('Monthly Database'!$C$8:$AF$143,'Monthly Analysis'!$P64,'Monthly Analysis'!W$3),INDEX('Monthly Database'!$C$8:$AF$143,'Monthly Analysis'!$P64,'Monthly Analysis'!W$3),NA()) ->  | X64: =IF(INDEX('Monthly Database'!$C$8:$AF$143,'Monthly Analysis'!$P64,'Monthly Analysis'!X$3),INDEX('Monthly Database'!$C$8:$AF$143,'Monthly Analysis'!$P64,'Monthly Analysis'!X$3),NA()) ->  | Y64: =IF(INDEX('Monthly Database'!$C$8:$AF$143,'Monthly Analysis'!$P64,'Monthly Analysis'!Y$3),INDEX('Monthly Database'!$C$8:$AF$143,'Monthly Analysis'!$P64,'Monthly Analysis'!Y$3),NA()) ->  | Z64: =IF(INDEX('Monthly Database'!$C$8:$AF$143,'Monthly Analysis'!$P64,'Monthly Analysis'!Z$3),INDEX('Monthly Database'!$C$8:$AF$143,'Monthly Analysis'!$P64,'Monthly Analysis'!Z$3),NA()) -> 
P65: 68 | Q65: 11.62117724 | R65: =INDEX('Monthly Database'!$B$1:$B$143,'Monthly Analysis'!P65) -> 2022-09-01 | S65: 2022-09-01 | T65: =IF(INDEX('Monthly Database'!$C$8:$AF$143,'Monthly Analysis'!$P65,'Monthly Analysis'!T$3),INDEX('Monthly Database'!$C$8:$AF$143,'Monthly Analysis'!$P65,'Monthly Analysis'!T$3),NA()) -> 8.975177239 | U65: =IF(INDEX('Monthly Database'!$C$8:$AF$143,'Monthly Analysis'!$P65,'Monthly Analysis'!U$3),INDEX('Monthly Database'!$C$8:$AF$143,'Monthly Analysis'!$P65,'Monthly Analysis'!U$3),NA()) -> 2.646 | V65: =IF(INDEX('Monthly Database'!$C$8:$AF$143,'Monthly Analysis'!$P65,'Monthly Analysis'!V$3),INDEX('Monthly Database'!$C$8:$AF$143,'Monthly Analysis'!$P65,'Monthly Analysis'!V$3),NA()) ->  | W65: =IF(INDEX('Monthly Database'!$C$8:$AF$143,'Monthly Analysis'!$P65,'Monthly Analysis'!W$3),INDEX('Monthly Database'!$C$8:$AF$143,'Monthly Analysis'!$P65,'Monthly Analysis'!W$3),NA()) ->  | X65: =IF(INDEX('Monthly Database'!$C$8:$AF$143,'Monthly Analysis'!$P65,'Monthly Analysis'!X$3),INDEX('Monthly Database'!$C$8:$AF$143,'Monthly Analysis'!$P65,'Monthly Analysis'!X$3),NA()) ->  | Y65: =IF(INDEX('Monthly Database'!$C$8:$AF$143,'Monthly Analysis'!$P65,'Monthly Analysis'!Y$3),INDEX('Monthly Database'!$C$8:$AF$143,'Monthly Analysis'!$P65,'Monthly Analysis'!Y$3),NA()) ->  | Z65: =IF(INDEX('Monthly Database'!$C$8:$AF$143,'Monthly Analysis'!$P65,'Monthly Analysis'!Z$3),INDEX('Monthly Database'!$C$8:$AF$143,'Monthly Analysis'!$P65,'Monthly Analysis'!Z$3),NA()) -> 
P66: 69 | Q66: 11.65655204 | R66: =INDEX('Monthly Database'!$B$1:$B$143,'Monthly Analysis'!P66) -> 2022-10-01 | S66: 2022-10-01 | T66: =IF(INDEX('Monthly Database'!$C$8:$AF$143,'Monthly Analysis'!$P66,'Monthly Analysis'!T$3),INDEX('Monthly Database'!$C$8:$AF$143,'Monthly Analysis'!$P66,'Monthly Analysis'!T$3),NA()) -> 9.026552037 | U66: =IF(INDEX('Monthly Database'!$C$8:$AF$143,'Monthly Analysis'!$P66,'Monthly Analysis'!U$3),INDEX('Monthly Database'!$C$8:$AF$143,'Monthly Analysis'!$P66,'Monthly Analysis'!U$3),NA()) -> 2.63 | V66: =IF(INDEX('Monthly Database'!$C$8:$AF$143,'Monthly Analysis'!$P66,'Monthly Analysis'!V$3),INDEX('Monthly Database'!$C$8:$AF$143,'Monthly Analysis'!$P66,'Monthly Analysis'!V$3),NA()) ->  | W66: =IF(INDEX('Monthly Database'!$C$8:$AF$143,'Monthly Analysis'!$P66,'Monthly Analysis'!W$3),INDEX('Monthly Database'!$C$8:$AF$143,'Monthly Analysis'!$P66,'Monthly Analysis'!W$3),NA()) ->  | X66: =IF(INDEX('Monthly Database'!$C$8:$AF$143,'Monthly Analysis'!$P66,'Monthly Analysis'!X$3),INDEX('Monthly Database'!$C$8:$AF$143,'Monthly Analysis'!$P66,'Monthly Analysis'!X$3),NA()) ->  | Y66: =IF(INDEX('Monthly Database'!$C$8:$AF$143,'Monthly Analysis'!$P66,'Monthly Analysis'!Y$3),INDEX('Monthly Database'!$C$8:$AF$143,'Monthly Analysis'!$P66,'Monthly Analysis'!Y$3),NA()) ->  | Z66: =IF(INDEX('Monthly Database'!$C$8:$AF$143,'Monthly Analysis'!$P66,'Monthly Analysis'!Z$3),INDEX('Monthly Database'!$C$8:$AF$143,'Monthly Analysis'!$P66,'Monthly Analysis'!Z$3),NA()) -> 
P67: 70 | Q67: 11.68355204 | R67: =INDEX('Monthly Database'!$B$1:$B$143,'Monthly Analysis'!P67) -> 2022-11-01 | S67: 2022-11-01 | T67: =IF(INDEX('Monthly Database'!$C$8:$AF$143,'Monthly Analysis'!$P67,'Monthly Analysis'!T$3),INDEX('Monthly Database'!$C$8:$AF$143,'Monthly Analysis'!$P67,'Monthly Analysis'!T$3),NA()) -> 9.026552037 | U67: =IF(INDEX('Monthly Database'!$C$8:$AF$143,'Monthly Analysis'!$P67,'Monthly Analysis'!U$3),INDEX('Monthly Database'!$C$8:$AF$143,'Monthly Analysis'!$P67,'Monthly Analysis'!U$3),NA()) -> 2.657 | V67: =IF(INDEX('Monthly Database'!$C$8:$AF$143,'Monthly Analysis'!$P67,'Monthly Analysis'!V$3),INDEX('Monthly Database'!$C$8:$AF$143,'Monthly Analysis'!$P67,'Monthly Analysis'!V$3),NA()) ->  | W67: =IF(INDEX('Monthly Database'!$C$8:$AF$143,'Monthly Analysis'!$P67,'Monthly Analysis'!W$3),INDEX('Monthly Database'!$C$8:$AF$143,'Monthly Analysis'!$P67,'Monthly Analysis'!W$3),NA()) ->  | X67: =IF(INDEX('Monthly Database'!$C$8:$AF$143,'Monthly Analysis'!$P67,'Monthly Analysis'!X$3),INDEX('Monthly Database'!$C$8:$AF$143,'Monthly Analysis'!$P67,'Monthly Analysis'!X$3),NA()) ->  | Y67: =IF(INDEX('Monthly Database'!$C$8:$AF$143,'Monthly Analysis'!$P67,'Monthly Analysis'!Y$3),INDEX('Monthly Database'!$C$8:$AF$143,'Monthly Analysis'!$P67,'Monthly Analysis'!Y$3),NA()) ->  | Z67: =IF(INDEX('Monthly Database'!$C$8:$AF$143,'Monthly Analysis'!$P67,'Monthly Analysis'!Z$3),INDEX('Monthly Database'!$C$8:$AF$143,'Monthly Analysis'!$P67,'Monthly Analysis'!Z$3),NA()) -> 
P68: 71 | Q68: 11.71255204 | R68: =INDEX('Monthly Database'!$B$1:$B$143,'Monthly Analysis'!P68) -> 2022-12-01 | S68: 2022-12-01 | T68: =IF(INDEX('Monthly Database'!$C$8:$AF$143,'Monthly Analysis'!$P68,'Monthly Analysis'!T$3),INDEX('Monthly Database'!$C$8:$AF$143,'Monthly Analysis'!$P68,'Monthly Analysis'!T$3),NA()) -> 9.026552037 | U68: =IF(INDEX('Monthly Database'!$C$8:$AF$143,'Monthly Analysis'!$P68,'Monthly Analysis'!U$3),INDEX('Monthly Database'!$C$8:$AF$143,'Monthly Analysis'!$P68,'Monthly Analysis'!U$3),NA()) -> 2.686 | V68: =IF(INDEX('Monthly Database'!$C$8:$AF$143,'Monthly Analysis'!$P68,'Monthly Analysis'!V$3),INDEX('Monthly Database'!$C$8:$AF$143,'Monthly Analysis'!$P68,'Monthly Analysis'!V$3),NA()) ->  | W68: =IF(INDEX('Monthly Database'!$C$8:$AF$143,'Monthly Analysis'!$P68,'Monthly Analysis'!W$3),INDEX('Monthly Database'!$C$8:$AF$143,'Monthly Analysis'!$P68,'Monthly Analysis'!W$3),NA()) ->  | X68: =IF(INDEX('Monthly Database'!$C$8:$AF$143,'Monthly Analysis'!$P68,'Monthly Analysis'!X$3),INDEX('Monthly Database'!$C$8:$AF$143,'Monthly Analysis'!$P68,'Monthly Analysis'!X$3),NA()) ->  | Y68: =IF(INDEX('Monthly Database'!$C$8:$AF$143,'Monthly Analysis'!$P68,'Monthly Analysis'!Y$3),INDEX('Monthly Database'!$C$8:$AF$143,'Monthly Analysis'!$P68,'Monthly Analysis'!Y$3),NA()) ->  | Z68: =IF(INDEX('Monthly Database'!$C$8:$AF$143,'Monthly Analysis'!$P68,'Monthly Analysis'!Z$3),INDEX('Monthly Database'!$C$8:$AF$143,'Monthly Analysis'!$P68,'Monthly Analysis'!Z$3),NA()) -> 
P69: 72 | Q69: 11.73955204 | R69: =INDEX('Monthly Database'!$B$1:$B$143,'Monthly Analysis'!P69) -> 2023-01-01 | S69: 2023-01-01 | T69: =IF(INDEX('Monthly Database'!$C$8:$AF$143,'Monthly Analysis'!$P69,'Monthly Analysis'!T$3),INDEX('Monthly Database'!$C$8:$AF$143,'Monthly Analysis'!$P69,'Monthly Analysis'!T$3),NA()) -> 9.026552037 | U69: =IF(INDEX('Monthly Database'!$C$8:$AF$143,'Monthly Analysis'!$P69,'Monthly Analysis'!U$3),INDEX('Monthly Database'!$C$8:$AF$143,'Monthly Analysis'!$P69,'Monthly Analysis'!U$3),NA()) -> 2.713 | V69: =IF(INDEX('Monthly Database'!$C$8:$AF$143,'Monthly Analysis'!$P69,'Monthly Analysis'!V$3),INDEX('Monthly Database'!$C$8:$AF$143,'Monthly Analysis'!$P69,'Monthly Analysis'!V$3),NA()) ->  | W69: =IF(INDEX('Monthly Database'!$C$8:$AF$143,'Monthly Analysis'!$P69,'Monthly Analysis'!W$3),INDEX('Monthly Database'!$C$8:$AF$143,'Monthly Analysis'!$P69,'Monthly Analysis'!W$3),NA()) ->  | X69: =IF(INDEX('Monthly Database'!$C$8:$AF$143,'Monthly Analysis'!$P69,'Monthly Analysis'!X$3),INDEX('Monthly Database'!$C$8:$AF$143,'Monthly Analysis'!$P69,'Monthly Analysis'!X$3),NA()) ->  | Y69: =IF(INDEX('Monthly Database'!$C$8:$AF$143,'Monthly Analysis'!$P69,'Monthly Analysis'!Y$3),INDEX('Monthly Database'!$C$8:$AF$143,'Monthly Analysis'!$P69,'Monthly Analysis'!Y$3),NA()) ->  | Z69: =IF(INDEX('Monthly Database'!$C$8:$AF$143,'Monthly Analysis'!$P69,'Monthly Analysis'!Z$3),INDEX('Monthly Database'!$C$8:$AF$143,'Monthly Analysis'!$P69,'Monthly Analysis'!Z$3),NA()) -> 
P70: 73 | Q70: =sum_na(T70:Z70) -> 11.74455204 | R70: =INDEX('Monthly Database'!$B$1:$B$143,'Monthly Analysis'!P70) -> 2023-02-01 | S70: =IF(Q70,R70,NA()) -> 2023-02-01 | T70: =IF(INDEX('Monthly Database'!$C$8:$AF$143,'Monthly Analysis'!$P70,'Monthly Analysis'!T$3),INDEX('Monthly Database'!$C$8:$AF$143,'Monthly Analysis'!$P70,'Monthly Analysis'!T$3),NA()) -> 9.026552037 | U70: =IF(INDEX('Monthly Database'!$C$8:$AF$143,'Monthly Analysis'!$P70,'Monthly Analysis'!U$3),INDEX('Monthly Database'!$C$8:$AF$143,'Monthly Analysis'!$P70,'Monthly Analysis'!U$3),NA()) -> 2.718 | V70: =IF(INDEX('Monthly Database'!$C$8:$AF$143,'Monthly Analysis'!$P70,'Monthly Analysis'!V$3),INDEX('Monthly Database'!$C$8:$AF$143,'Monthly Analysis'!$P70,'Monthly Analysis'!V$3),NA()) ->  | W70: =IF(INDEX('Monthly Database'!$C$8:$AF$143,'Monthly Analysis'!$P70,'Monthly Analysis'!W$3),INDEX('Monthly Database'!$C$8:$AF$143,'Monthly Analysis'!$P70,'Monthly Analysis'!W$3),NA()) ->  | X70: =IF(INDEX('Monthly Database'!$C$8:$AF$143,'Monthly Analysis'!$P70,'Monthly Analysis'!X$3),INDEX('Monthly Database'!$C$8:$AF$143,'Monthly Analysis'!$P70,'Monthly Analysis'!X$3),NA()) ->  | Y70: =IF(INDEX('Monthly Database'!$C$8:$AF$143,'Monthly Analysis'!$P70,'Monthly Analysis'!Y$3),INDEX('Monthly Database'!$C$8:$AF$143,'Monthly Analysis'!$P70,'Monthly Analysis'!Y$3),NA()) ->  | Z70: =IF(INDEX('Monthly Database'!$C$8:$AF$143,'Monthly Analysis'!$P70,'Monthly Analysis'!Z$3),INDEX('Monthly Database'!$C$8:$AF$143,'Monthly Analysis'!$P70,'Monthly Analysis'!Z$3),NA()) -> 
P71: =P70+1 -> 74 | Q71: 11.80695193 | R71: =INDEX('Monthly Database'!$B$1:$B$143,'Monthly Analysis'!P71) -> 2023-03-01 | S71: 2023-03-01 | T71: =IF(INDEX('Monthly Database'!$C$8:$AF$143,'Monthly Analysis'!$P71,'Monthly Analysis'!T$3),INDEX('Monthly Database'!$C$8:$AF$143,'Monthly Analysis'!$P71,'Monthly Analysis'!T$3),NA()) -> 9.053951929 | U71: =IF(INDEX('Monthly Database'!$C$8:$AF$143,'Monthly Analysis'!$P71,'Monthly Analysis'!U$3),INDEX('Monthly Database'!$C$8:$AF$143,'Monthly Analysis'!$P71,'Monthly Analysis'!U$3),NA()) -> 2.753 | V71: =IF(INDEX('Monthly Database'!$C$8:$AF$143,'Monthly Analysis'!$P71,'Monthly Analysis'!V$3),INDEX('Monthly Database'!$C$8:$AF$143,'Monthly Analysis'!$P71,'Monthly Analysis'!V$3),NA()) ->  | W71: =IF(INDEX('Monthly Database'!$C$8:$AF$143,'Monthly Analysis'!$P71,'Monthly Analysis'!W$3),INDEX('Monthly Database'!$C$8:$AF$143,'Monthly Analysis'!$P71,'Monthly Analysis'!W$3),NA()) ->  | X71: =IF(INDEX('Monthly Database'!$C$8:$AF$143,'Monthly Analysis'!$P71,'Monthly Analysis'!X$3),INDEX('Monthly Database'!$C$8:$AF$143,'Monthly Analysis'!$P71,'Monthly Analysis'!X$3),NA()) ->  | Y71: =IF(INDEX('Monthly Database'!$C$8:$AF$143,'Monthly Analysis'!$P71,'Monthly Analysis'!Y$3),INDEX('Monthly Database'!$C$8:$AF$143,'Monthly Analysis'!$P71,'Monthly Analysis'!Y$3),NA()) ->  | Z71: =IF(INDEX('Monthly Database'!$C$8:$AF$143,'Monthly Analysis'!$P71,'Monthly Analysis'!Z$3),INDEX('Monthly Database'!$C$8:$AF$143,'Monthly Analysis'!$P71,'Monthly Analysis'!Z$3),NA()) -> 
P72: 75 | Q72: 11.94046421 | R72: =INDEX('Monthly Database'!$B$1:$B$143,'Monthly Analysis'!P72) -> 2023-04-01 | S72: 2023-04-01 | T72: =IF(INDEX('Monthly Database'!$C$8:$AF$143,'Monthly Analysis'!$P72,'Monthly Analysis'!T$3),INDEX('Monthly Database'!$C$8:$AF$143,'Monthly Analysis'!$P72,'Monthly Analysis'!T$3),NA()) -> 9.110464207 | U72: =IF(INDEX('Monthly Database'!$C$8:$AF$143,'Monthly Analysis'!$P72,'Monthly Analysis'!U$3),INDEX('Monthly Database'!$C$8:$AF$143,'Monthly Analysis'!$P72,'Monthly Analysis'!U$3),NA()) -> 2.83 | V72: =IF(INDEX('Monthly Database'!$C$8:$AF$143,'Monthly Analysis'!$P72,'Monthly Analysis'!V$3),INDEX('Monthly Database'!$C$8:$AF$143,'Monthly Analysis'!$P72,'Monthly Analysis'!V$3),NA()) ->  | W72: =IF(INDEX('Monthly Database'!$C$8:$AF$143,'Monthly Analysis'!$P72,'Monthly Analysis'!W$3),INDEX('Monthly Database'!$C$8:$AF$143,'Monthly Analysis'!$P72,'Monthly Analysis'!W$3),NA()) ->  | X72: =IF(INDEX('Monthly Database'!$C$8:$AF$143,'Monthly Analysis'!$P72,'Monthly Analysis'!X$3),INDEX('Monthly Database'!$C$8:$AF$143,'Monthly Analysis'!$P72,'Monthly Analysis'!X$3),NA()) ->  | Y72: =IF(INDEX('Monthly Database'!$C$8:$AF$143,'Monthly Analysis'!$P72,'Monthly Analysis'!Y$3),INDEX('Monthly Database'!$C$8:$AF$143,'Monthly Analysis'!$P72,'Monthly Analysis'!Y$3),NA()) ->  | Z72: =IF(INDEX('Monthly Database'!$C$8:$AF$143,'Monthly Analysis'!$P72,'Monthly Analysis'!Z$3),INDEX('Monthly Database'!$C$8:$AF$143,'Monthly Analysis'!$P72,'Monthly Analysis'!Z$3),NA()) -> 
P73: 76 | Q73: 12.09446421 | R73: =INDEX('Monthly Database'!$B$1:$B$143,'Monthly Analysis'!P73) -> 2023-05-01 | S73: 2023-05-01 | T73: =IF(INDEX('Monthly Database'!$C$8:$AF$143,'Monthly Analysis'!$P73,'Monthly Analysis'!T$3),INDEX('Monthly Database'!$C$8:$AF$143,'Monthly Analysis'!$P73,'Monthly Analysis'!T$3),NA()) -> 9.110464207 | U73: =IF(INDEX('Monthly Database'!$C$8:$AF$143,'Monthly Analysis'!$P73,'Monthly Analysis'!U$3),INDEX('Monthly Database'!$C$8:$AF$143,'Monthly Analysis'!$P73,'Monthly Analysis'!U$3),NA()) -> 2.984 | V73: =IF(INDEX('Monthly Database'!$C$8:$AF$143,'Monthly Analysis'!$P73,'Monthly Analysis'!V$3),INDEX('Monthly Database'!$C$8:$AF$143,'Monthly Analysis'!$P73,'Monthly Analysis'!V$3),NA()) ->  | W73: =IF(INDEX('Monthly Database'!$C$8:$AF$143,'Monthly Analysis'!$P73,'Monthly Analysis'!W$3),INDEX('Monthly Database'!$C$8:$AF$143,'Monthly Analysis'!$P73,'Monthly Analysis'!W$3),NA()) ->  | X73: =IF(INDEX('Monthly Database'!$C$8:$AF$143,'Monthly Analysis'!$P73,'Monthly Analysis'!X$3),INDEX('Monthly Database'!$C$8:$AF$143,'Monthly Analysis'!$P73,'Monthly Analysis'!X$3),NA()) ->  | Y73: =IF(INDEX('Monthly Database'!$C$8:$AF$143,'Monthly Analysis'!$P73,'Monthly Analysis'!Y$3),INDEX('Monthly Database'!$C$8:$AF$143,'Monthly Analysis'!$P73,'Monthly Analysis'!Y$3),NA()) ->  | Z73: =IF(INDEX('Monthly Database'!$C$8:$AF$143,'Monthly Analysis'!$P73,'Monthly Analysis'!Z$3),INDEX('Monthly Database'!$C$8:$AF$143,'Monthly Analysis'!$P73,'Monthly Analysis'!Z$3),NA()) -> 
P74: 77 | Q74: 12.21846421 | R74: =INDEX('Monthly Database'!$B$1:$B$143,'Monthly Analysis'!P74) -> 2023-06-01 | S74: 2023-06-01 | T74: =IF(INDEX('Monthly Database'!$C$8:$AF$143,'Monthly Analysis'!$P74,'Monthly Analysis'!T$3),INDEX('Monthly Database'!$C$8:$AF$143,'Monthly Analysis'!$P74,'Monthly Analysis'!T$3),NA()) -> 9.110464207 | U74: =IF(INDEX('Monthly Database'!$C$8:$AF$143,'Monthly Analysis'!$P74,'Monthly Analysis'!U$3),INDEX('Monthly Database'!$C$8:$AF$143,'Monthly Analysis'!$P74,'Monthly Analysis'!U$3),NA()) -> 3.108 | V74: =IF(INDEX('Monthly Database'!$C$8:$AF$143,'Monthly Analysis'!$P74,'Monthly Analysis'!V$3),INDEX('Monthly Database'!$C$8:$AF$143,'Monthly Analysis'!$P74,'Monthly Analysis'!V$3),NA()) ->  | W74: =IF(INDEX('Monthly Database'!$C$8:$AF$143,'Monthly Analysis'!$P74,'Monthly Analysis'!W$3),INDEX('Monthly Database'!$C$8:$AF$143,'Monthly Analysis'!$P74,'Monthly Analysis'!W$3),NA()) ->  | X74: =IF(INDEX('Monthly Database'!$C$8:$AF$143,'Monthly Analysis'!$P74,'Monthly Analysis'!X$3),INDEX('Monthly Database'!$C$8:$AF$143,'Monthly Analysis'!$P74,'Monthly Analysis'!X$3),NA()) ->  | Y74: =IF(INDEX('Monthly Database'!$C$8:$AF$143,'Monthly Analysis'!$P74,'Monthly Analysis'!Y$3),INDEX('Monthly Database'!$C$8:$AF$143,'Monthly Analysis'!$P74,'Monthly Analysis'!Y$3),NA()) ->  | Z74: =IF(INDEX('Monthly Database'!$C$8:$AF$143,'Monthly Analysis'!$P74,'Monthly Analysis'!Z$3),INDEX('Monthly Database'!$C$8:$AF$143,'Monthly Analysis'!$P74,'Monthly Analysis'!Z$3),NA()) -> 
P75: 78 | Q75: 12.19046421 | R75: =INDEX('Monthly Database'!$B$1:$B$143,'Monthly Analysis'!P75) -> 2023-07-01 | S75: 2023-07-01 | T75: =IF(INDEX('Monthly Database'!$C$8:$AF$143,'Monthly Analysis'!$P75,'Monthly Analysis'!T$3),INDEX('Monthly Database'!$C$8:$AF$143,'Monthly Analysis'!$P75,'Monthly Analysis'!T$3),NA()) -> 9.110464207 | U75: =IF(INDEX('Monthly Database'!$C$8:$AF$143,'Monthly Analysis'!$P75,'Monthly Analysis'!U$3),INDEX('Monthly Database'!$C$8:$AF$143,'Monthly Analysis'!$P75,'Monthly Analysis'!U$3),NA()) -> 3.08 | V75: =IF(INDEX('Monthly Database'!$C$8:$AF$143,'Monthly Analysis'!$P75,'Monthly Analysis'!V$3),INDEX('Monthly Database'!$C$8:$AF$143,'Monthly Analysis'!$P75,'Monthly Analysis'!V$3),NA()) ->  | W75: =IF(INDEX('Monthly Database'!$C$8:$AF$143,'Monthly Analysis'!$P75,'Monthly Analysis'!W$3),INDEX('Monthly Database'!$C$8:$AF$143,'Monthly Analysis'!$P75,'Monthly Analysis'!W$3),NA()) ->  | X75: =IF(INDEX('Monthly Database'!$C$8:$AF$143,'Monthly Analysis'!$P75,'Monthly Analysis'!X$3),INDEX('Monthly Database'!$C$8:$AF$143,'Monthly Analysis'!$P75,'Monthly Analysis'!X$3),NA()) ->  | Y75: =IF(INDEX('Monthly Database'!$C$8:$AF$143,'Monthly Analysis'!$P75,'Monthly Analysis'!Y$3),INDEX('Monthly Database'!$C$8:$AF$143,'Monthly Analysis'!$P75,'Monthly Analysis'!Y$3),NA()) ->  | Z75: =IF(INDEX('Monthly Database'!$C$8:$AF$143,'Monthly Analysis'!$P75,'Monthly Analysis'!Z$3),INDEX('Monthly Database'!$C$8:$AF$143,'Monthly Analysis'!$P75,'Monthly Analysis'!Z$3),NA()) -> 
P76: 79 | Q76: 12.12946421 | R76: =INDEX('Monthly Database'!$B$1:$B$143,'Monthly Analysis'!P76) -> 2023-08-01 | S76: 2023-08-01 | T76: =IF(INDEX('Monthly Database'!$C$8:$AF$143,'Monthly Analysis'!$P76,'Monthly Analysis'!T$3),INDEX('Monthly Database'!$C$8:$AF$143,'Monthly Analysis'!$P76,'Monthly Analysis'!T$3),NA()) -> 9.110464207 | U76: =IF(INDEX('Monthly Database'!$C$8:$AF$143,'Monthly Analysis'!$P76,'Monthly Analysis'!U$3),INDEX('Monthly Database'!$C$8:$AF$143,'Monthly Analysis'!$P76,'Monthly Analysis'!U$3),NA()) -> 3.019 | V76: =IF(INDEX('Monthly Database'!$C$8:$AF$143,'Monthly Analysis'!$P76,'Monthly Analysis'!V$3),INDEX('Monthly Database'!$C$8:$AF$143,'Monthly Analysis'!$P76,'Monthly Analysis'!V$3),NA()) ->  | W76: =IF(INDEX('Monthly Database'!$C$8:$AF$143,'Monthly Analysis'!$P76,'Monthly Analysis'!W$3),INDEX('Monthly Database'!$C$8:$AF$143,'Monthly Analysis'!$P76,'Monthly Analysis'!W$3),NA()) ->  | X76: =IF(INDEX('Monthly Database'!$C$8:$AF$143,'Monthly Analysis'!$P76,'Monthly Analysis'!X$3),INDEX('Monthly Database'!$C$8:$AF$143,'Monthly Analysis'!$P76,'Monthly Analysis'!X$3),NA()) ->  | Y76: =IF(INDEX('Monthly Database'!$C$8:$AF$143,'Monthly Analysis'!$P76,'Monthly Analysis'!Y$3),INDEX('Monthly Database'!$C$8:$AF$143,'Monthly Analysis'!$P76,'Monthly Analysis'!Y$3),NA()) ->  | Z76: =IF(INDEX('Monthly Database'!$C$8:$AF$143,'Monthly Analysis'!$P76,'Monthly Analysis'!Z$3),INDEX('Monthly Database'!$C$8:$AF$143,'Monthly Analysis'!$P76,'Monthly Analysis'!Z$3),NA()) -> 
P77: 80 | Q77: 11.83130163 | R77: =INDEX('Monthly Database'!$B$1:$B$143,'Monthly Analysis'!P77) -> 2023-09-01 | S77: 2023-09-01 | T77: =IF(INDEX('Monthly Database'!$C$8:$AF$143,'Monthly Analysis'!$P77,'Monthly Analysis'!T$3),INDEX('Monthly Database'!$C$8:$AF$143,'Monthly Analysis'!$P77,'Monthly Analysis'!T$3),NA()) -> 9.129301633 | U77: =IF(INDEX('Monthly Database'!$C$8:$AF$143,'Monthly Analysis'!$P77,'Monthly Analysis'!U$3),INDEX('Monthly Database'!$C$8:$AF$143,'Monthly Analysis'!$P77,'Monthly Analysis'!U$3),NA()) -> 2.702 | V77: =IF(INDEX('Monthly Database'!$C$8:$AF$143,'Monthly Analysis'!$P77,'Monthly Analysis'!V$3),INDEX('Monthly Database'!$C$8:$AF$143,'Monthly Analysis'!$P77,'Monthly Analysis'!V$3),NA()) ->  | W77: =IF(INDEX('Monthly Database'!$C$8:$AF$143,'Monthly Analysis'!$P77,'Monthly Analysis'!W$3),INDEX('Monthly Database'!$C$8:$AF$143,'Monthly Analysis'!$P77,'Monthly Analysis'!W$3),NA()) ->  | X77: =IF(INDEX('Monthly Database'!$C$8:$AF$143,'Monthly Analysis'!$P77,'Monthly Analysis'!X$3),INDEX('Monthly Database'!$C$8:$AF$143,'Monthly Analysis'!$P77,'Monthly Analysis'!X$3),NA()) ->  | Y77: =IF(INDEX('Monthly Database'!$C$8:$AF$143,'Monthly Analysis'!$P77,'Monthly Analysis'!Y$3),INDEX('Monthly Database'!$C$8:$AF$143,'Monthly Analysis'!$P77,'Monthly Analysis'!Y$3),NA()) ->  | Z77: =IF(INDEX('Monthly Database'!$C$8:$AF$143,'Monthly Analysis'!$P77,'Monthly Analysis'!Z$3),INDEX('Monthly Database'!$C$8:$AF$143,'Monthly Analysis'!$P77,'Monthly Analysis'!Z$3),NA()) -> 
P78: 81 | Q78: 11.86667643 | R78: =INDEX('Monthly Database'!$B$1:$B$143,'Monthly Analysis'!P78) -> 2023-10-01 | S78: 2023-10-01 | T78: =IF(INDEX('Monthly Database'!$C$8:$AF$143,'Monthly Analysis'!$P78,'Monthly Analysis'!T$3),INDEX('Monthly Database'!$C$8:$AF$143,'Monthly Analysis'!$P78,'Monthly Analysis'!T$3),NA()) -> 9.180676431 | U78: =IF(INDEX('Monthly Database'!$C$8:$AF$143,'Monthly Analysis'!$P78,'Monthly Analysis'!U$3),INDEX('Monthly Database'!$C$8:$AF$143,'Monthly Analysis'!$P78,'Monthly Analysis'!U$3),NA()) -> 2.686 | V78: =IF(INDEX('Monthly Database'!$C$8:$AF$143,'Monthly Analysis'!$P78,'Monthly Analysis'!V$3),INDEX('Monthly Database'!$C$8:$AF$143,'Monthly Analysis'!$P78,'Monthly Analysis'!V$3),NA()) ->  | W78: =IF(INDEX('Monthly Database'!$C$8:$AF$143,'Monthly Analysis'!$P78,'Monthly Analysis'!W$3),INDEX('Monthly Database'!$C$8:$AF$143,'Monthly Analysis'!$P78,'Monthly Analysis'!W$3),NA()) ->  | X78: =IF(INDEX('Monthly Database'!$C$8:$AF$143,'Monthly Analysis'!$P78,'Monthly Analysis'!X$3),INDEX('Monthly Database'!$C$8:$AF$143,'Monthly Analysis'!$P78,'Monthly Analysis'!X$3),NA()) ->  | Y78: =IF(INDEX('Monthly Database'!$C$8:$AF$143,'Monthly Analysis'!$P78,'Monthly Analysis'!Y$3),INDEX('Monthly Database'!$C$8:$AF$143,'Monthly Analysis'!$P78,'Monthly Analysis'!Y$3),NA()) ->  | Z78: =IF(INDEX('Monthly Database'!$C$8:$AF$143,'Monthly Analysis'!$P78,'Monthly Analysis'!Z$3),INDEX('Monthly Database'!$C$8:$AF$143,'Monthly Analysis'!$P78,'Monthly Analysis'!Z$3),NA()) -> 
P79: 82 | Q79: 11.89467643 | R79: =INDEX('Monthly Database'!$B$1:$B$143,'Monthly Analysis'!P79) -> 2023-11-01 | S79: 2023-11-01 | T79: =IF(INDEX('Monthly Database'!$C$8:$AF$143,'Monthly Analysis'!$P79,'Monthly Analysis'!T$3),INDEX('Monthly Database'!$C$8:$AF$143,'Monthly Analysis'!$P79,'Monthly Analysis'!T$3),NA()) -> 9.180676431 | U79: =IF(INDEX('Monthly Database'!$C$8:$AF$143,'Monthly Analysis'!$P79,'Monthly Analysis'!U$3),INDEX('Monthly Database'!$C$8:$AF$143,'Monthly Analysis'!$P79,'Monthly Analysis'!U$3),NA()) -> 2.714 | V79: =IF(INDEX('Monthly Database'!$C$8:$AF$143,'Monthly Analysis'!$P79,'Monthly Analysis'!V$3),INDEX('Monthly Database'!$C$8:$AF$143,'Monthly Analysis'!$P79,'Monthly Analysis'!V$3),NA()) ->  | W79: =IF(INDEX('Monthly Database'!$C$8:$AF$143,'Monthly Analysis'!$P79,'Monthly Analysis'!W$3),INDEX('Monthly Database'!$C$8:$AF$143,'Monthly Analysis'!$P79,'Monthly Analysis'!W$3),NA()) ->  | X79: =IF(INDEX('Monthly Database'!$C$8:$AF$143,'Monthly Analysis'!$P79,'Monthly Analysis'!X$3),INDEX('Monthly Database'!$C$8:$AF$143,'Monthly Analysis'!$P79,'Monthly Analysis'!X$3),NA()) ->  | Y79: =IF(INDEX('Monthly Database'!$C$8:$AF$143,'Monthly Analysis'!$P79,'Monthly Analysis'!Y$3),INDEX('Monthly Database'!$C$8:$AF$143,'Monthly Analysis'!$P79,'Monthly Analysis'!Y$3),NA()) ->  | Z79: =IF(INDEX('Monthly Database'!$C$8:$AF$143,'Monthly Analysis'!$P79,'Monthly Analysis'!Z$3),INDEX('Monthly Database'!$C$8:$AF$143,'Monthly Analysis'!$P79,'Monthly Analysis'!Z$3),NA()) -> 
P80: 83 | Q80: 11.92667643 | R80: =INDEX('Monthly Database'!$B$1:$B$143,'Monthly Analysis'!P80) -> 2023-12-01 | S80: 2023-12-01 | T80: =IF(INDEX('Monthly Database'!$C$8:$AF$143,'Monthly Analysis'!$P80,'Monthly Analysis'!T$3),INDEX('Monthly Database'!$C$8:$AF$143,'Monthly Analysis'!$P80,'Monthly Analysis'!T$3),NA()) -> 9.180676431 | U80: =IF(INDEX('Monthly Database'!$C$8:$AF$143,'Monthly Analysis'!$P80,'Monthly Analysis'!U$3),INDEX('Monthly Database'!$C$8:$AF$143,'Monthly Analysis'!$P80,'Monthly Analysis'!U$3),NA()) -> 2.746 | V80: =IF(INDEX('Monthly Database'!$C$8:$AF$143,'Monthly Analysis'!$P80,'Monthly Analysis'!V$3),INDEX('Monthly Database'!$C$8:$AF$143,'Monthly Analysis'!$P80,'Monthly Analysis'!V$3),NA()) ->  | W80: =IF(INDEX('Monthly Database'!$C$8:$AF$143,'Monthly Analysis'!$P80,'Monthly Analysis'!W$3),INDEX('Monthly Database'!$C$8:$AF$143,'Monthly Analysis'!$P80,'Monthly Analysis'!W$3),NA()) ->  | X80: =IF(INDEX('Monthly Database'!$C$8:$AF$143,'Monthly Analysis'!$P80,'Monthly Analysis'!X$3),INDEX('Monthly Database'!$C$8:$AF$143,'Monthly Analysis'!$P80,'Monthly Analysis'!X$3),NA()) ->  | Y80: =IF(INDEX('Monthly Database'!$C$8:$AF$143,'Monthly Analysis'!$P80,'Monthly Analysis'!Y$3),INDEX('Monthly Database'!$C$8:$AF$143,'Monthly Analysis'!$P80,'Monthly Analysis'!Y$3),NA()) ->  | Z80: =IF(INDEX('Monthly Database'!$C$8:$AF$143,'Monthly Analysis'!$P80,'Monthly Analysis'!Z$3),INDEX('Monthly Database'!$C$8:$AF$143,'Monthly Analysis'!$P80,'Monthly Analysis'!Z$3),NA()) -> 
P81: 84 | Q81: 11.95467643 | R81: =INDEX('Monthly Database'!$B$1:$B$143,'Monthly Analysis'!P81) -> 2024-01-01 | S81: 2024-01-01 | T81: =IF(INDEX('Monthly Database'!$C$8:$AF$143,'Monthly Analysis'!$P81,'Monthly Analysis'!T$3),INDEX('Monthly Database'!$C$8:$AF$143,'Monthly Analysis'!$P81,'Monthly Analysis'!T$3),NA()) -> 9.180676431 | U81: =IF(INDEX('Monthly Database'!$C$8:$AF$143,'Monthly Analysis'!$P81,'Monthly Analysis'!U$3),INDEX('Monthly Database'!$C$8:$AF$143,'Monthly Analysis'!$P81,'Monthly Analysis'!U$3),NA()) -> 2.774 | V81: =IF(INDEX('Monthly Database'!$C$8:$AF$143,'Monthly Analysis'!$P81,'Monthly Analysis'!V$3),INDEX('Monthly Database'!$C$8:$AF$143,'Monthly Analysis'!$P81,'Monthly Analysis'!V$3),NA()) ->  | W81: =IF(INDEX('Monthly Database'!$C$8:$AF$143,'Monthly Analysis'!$P81,'Monthly Analysis'!W$3),INDEX('Monthly Database'!$C$8:$AF$143,'Monthly Analysis'!$P81,'Monthly Analysis'!W$3),NA()) ->  | X81: =IF(INDEX('Monthly Database'!$C$8:$AF$143,'Monthly Analysis'!$P81,'Monthly Analysis'!X$3),INDEX('Monthly Database'!$C$8:$AF$143,'Monthly Analysis'!$P81,'Monthly Analysis'!X$3),NA()) ->  | Y81: =IF(INDEX('Monthly Database'!$C$8:$AF$143,'Monthly Analysis'!$P81,'Monthly Analysis'!Y$3),INDEX('Monthly Database'!$C$8:$AF$143,'Monthly Analysis'!$P81,'Monthly Analysis'!Y$3),NA()) ->  | Z81: =IF(INDEX('Monthly Database'!$C$8:$AF$143,'Monthly Analysis'!$P81,'Monthly Analysis'!Z$3),INDEX('Monthly Database'!$C$8:$AF$143,'Monthly Analysis'!$P81,'Monthly Analysis'!Z$3),NA()) -> 
P82: 85 | Q82: 11.95967643 | R82: =INDEX('Monthly Database'!$B$1:$B$143,'Monthly Analysis'!P82) -> 2024-02-01 | S82: 2024-02-01 | T82: =IF(INDEX('Monthly Database'!$C$8:$AF$143,'Monthly Analysis'!$P82,'Monthly Analysis'!T$3),INDEX('Monthly Database'!$C$8:$AF$143,'Monthly Analysis'!$P82,'Monthly Analysis'!T$3),NA()) -> 9.180676431 | U82: =IF(INDEX('Monthly Database'!$C$8:$AF$143,'Monthly Analysis'!$P82,'Monthly Analysis'!U$3),INDEX('Monthly Database'!$C$8:$AF$143,'Monthly Analysis'!$P82,'Monthly Analysis'!U$3),NA()) -> 2.779 | V82: =IF(INDEX('Monthly Database'!$C$8:$AF$143,'Monthly Analysis'!$P82,'Monthly Analysis'!V$3),INDEX('Monthly Database'!$C$8:$AF$143,'Monthly Analysis'!$P82,'Monthly Analysis'!V$3),NA()) ->  | W82: =IF(INDEX('Monthly Database'!$C$8:$AF$143,'Monthly Analysis'!$P82,'Monthly Analysis'!W$3),INDEX('Monthly Database'!$C$8:$AF$143,'Monthly Analysis'!$P82,'Monthly Analysis'!W$3),NA()) ->  | X82: =IF(INDEX('Monthly Database'!$C$8:$AF$143,'Monthly Analysis'!$P82,'Monthly Analysis'!X$3),INDEX('Monthly Database'!$C$8:$AF$143,'Monthly Analysis'!$P82,'Monthly Analysis'!X$3),NA()) ->  | Y82: =IF(INDEX('Monthly Database'!$C$8:$AF$143,'Monthly Analysis'!$P82,'Monthly Analysis'!Y$3),INDEX('Monthly Database'!$C$8:$AF$143,'Monthly Analysis'!$P82,'Monthly Analysis'!Y$3),NA()) ->  | Z82: =IF(INDEX('Monthly Database'!$C$8:$AF$143,'Monthly Analysis'!$P82,'Monthly Analysis'!Z$3),INDEX('Monthly Database'!$C$8:$AF$143,'Monthly Analysis'!$P82,'Monthly Analysis'!Z$3),NA()) -> 
P83: 86 | Q83: 12.01893884 | R83: =INDEX('Monthly Database'!$B$1:$B$143,'Monthly Analysis'!P83) -> 2024-03-01 | S83: 2024-03-01 | T83: =IF(INDEX('Monthly Database'!$C$8:$AF$143,'Monthly Analysis'!$P83,'Monthly Analysis'!T$3),INDEX('Monthly Database'!$C$8:$AF$143,'Monthly Analysis'!$P83,'Monthly Analysis'!T$3),NA()) -> 9.202938844 | U83: =IF(INDEX('Monthly Database'!$C$8:$AF$143,'Monthly Analysis'!$P83,'Monthly Analysis'!U$3),INDEX('Monthly Database'!$C$8:$AF$143,'Monthly Analysis'!$P83,'Monthly Analysis'!U$3),NA()) -> 2.816 | V83: =IF(INDEX('Monthly Database'!$C$8:$AF$143,'Monthly Analysis'!$P83,'Monthly Analysis'!V$3),INDEX('Monthly Database'!$C$8:$AF$143,'Monthly Analysis'!$P83,'Monthly Analysis'!V$3),NA()) ->  | W83: =IF(INDEX('Monthly Database'!$C$8:$AF$143,'Monthly Analysis'!$P83,'Monthly Analysis'!W$3),INDEX('Monthly Database'!$C$8:$AF$143,'Monthly Analysis'!$P83,'Monthly Analysis'!W$3),NA()) ->  | X83: =IF(INDEX('Monthly Database'!$C$8:$AF$143,'Monthly Analysis'!$P83,'Monthly Analysis'!X$3),INDEX('Monthly Database'!$C$8:$AF$143,'Monthly Analysis'!$P83,'Monthly Analysis'!X$3),NA()) ->  | Y83: =IF(INDEX('Monthly Database'!$C$8:$AF$143,'Monthly Analysis'!$P83,'Monthly Analysis'!Y$3),INDEX('Monthly Database'!$C$8:$AF$143,'Monthly Analysis'!$P83,'Monthly Analysis'!Y$3),NA()) ->  | Z83: =IF(INDEX('Monthly Database'!$C$8:$AF$143,'Monthly Analysis'!$P83,'Monthly Analysis'!Z$3),INDEX('Monthly Database'!$C$8:$AF$143,'Monthly Analysis'!$P83,'Monthly Analysis'!Z$3),NA()) -> 
P84: 87 | Q84: 12.14902614 | R84: =INDEX('Monthly Database'!$B$1:$B$143,'Monthly Analysis'!P84) -> 2024-04-01 | S84: 2024-04-01 | T84: =IF(INDEX('Monthly Database'!$C$8:$AF$143,'Monthly Analysis'!$P84,'Monthly Analysis'!T$3),INDEX('Monthly Database'!$C$8:$AF$143,'Monthly Analysis'!$P84,'Monthly Analysis'!T$3),NA()) -> 9.256026135 | U84: =IF(INDEX('Monthly Database'!$C$8:$AF$143,'Monthly Analysis'!$P84,'Monthly Analysis'!U$3),INDEX('Monthly Database'!$C$8:$AF$143,'Monthly Analysis'!$P84,'Monthly Analysis'!U$3),NA()) -> 2.893 | V84: =IF(INDEX('Monthly Database'!$C$8:$AF$143,'Monthly Analysis'!$P84,'Monthly Analysis'!V$3),INDEX('Monthly Database'!$C$8:$AF$143,'Monthly Analysis'!$P84,'Monthly Analysis'!V$3),NA()) ->  | W84: =IF(INDEX('Monthly Database'!$C$8:$AF$143,'Monthly Analysis'!$P84,'Monthly Analysis'!W$3),INDEX('Monthly Database'!$C$8:$AF$143,'Monthly Analysis'!$P84,'Monthly Analysis'!W$3),NA()) ->  | X84: =IF(INDEX('Monthly Database'!$C$8:$AF$143,'Monthly Analysis'!$P84,'Monthly Analysis'!X$3),INDEX('Monthly Database'!$C$8:$AF$143,'Monthly Analysis'!$P84,'Monthly Analysis'!X$3),NA()) ->  | Y84: =IF(INDEX('Monthly Database'!$C$8:$AF$143,'Monthly Analysis'!$P84,'Monthly Analysis'!Y$3),INDEX('Monthly Database'!$C$8:$AF$143,'Monthly Analysis'!$P84,'Monthly Analysis'!Y$3),NA()) ->  | Z84: =IF(INDEX('Monthly Database'!$C$8:$AF$143,'Monthly Analysis'!$P84,'Monthly Analysis'!Z$3),INDEX('Monthly Database'!$C$8:$AF$143,'Monthly Analysis'!$P84,'Monthly Analysis'!Z$3),NA()) -> 
P85: 88 | Q85: 12.30102614 | R85: =INDEX('Monthly Database'!$B$1:$B$143,'Monthly Analysis'!P85) -> 2024-05-01 | S85: 2024-05-01 | T85: =IF(INDEX('Monthly Database'!$C$8:$AF$143,'Monthly Analysis'!$P85,'Monthly Analysis'!T$3),INDEX('Monthly Database'!$C$8:$AF$143,'Monthly Analysis'!$P85,'Monthly Analysis'!T$3),NA()) -> 9.256026135 | U85: =IF(INDEX('Monthly Database'!$C$8:$AF$143,'Monthly Analysis'!$P85,'Monthly Analysis'!U$3),INDEX('Monthly Database'!$C$8:$AF$143,'Monthly Analysis'!$P85,'Monthly Analysis'!U$3),NA()) -> 3.045 | V85: =IF(INDEX('Monthly Database'!$C$8:$AF$143,'Monthly Analysis'!$P85,'Monthly Analysis'!V$3),INDEX('Monthly Database'!$C$8:$AF$143,'Monthly Analysis'!$P85,'Monthly Analysis'!V$3),NA()) ->  | W85: =IF(INDEX('Monthly Database'!$C$8:$AF$143,'Monthly Analysis'!$P85,'Monthly Analysis'!W$3),INDEX('Monthly Database'!$C$8:$AF$143,'Monthly Analysis'!$P85,'Monthly Analysis'!W$3),NA()) ->  | X85: =IF(INDEX('Monthly Database'!$C$8:$AF$143,'Monthly Analysis'!$P85,'Monthly Analysis'!X$3),INDEX('Monthly Database'!$C$8:$AF$143,'Monthly Analysis'!$P85,'Monthly Analysis'!X$3),NA()) ->  | Y85: =IF(INDEX('Monthly Database'!$C$8:$AF$143,'Monthly Analysis'!$P85,'Monthly Analysis'!Y$3),INDEX('Monthly Database'!$C$8:$AF$143,'Monthly Analysis'!$P85,'Monthly Analysis'!Y$3),NA()) ->  | Z85: =IF(INDEX('Monthly Database'!$C$8:$AF$143,'Monthly Analysis'!$P85,'Monthly Analysis'!Z$3),INDEX('Monthly Database'!$C$8:$AF$143,'Monthly Analysis'!$P85,'Monthly Analysis'!Z$3),NA()) -> 
P86: 89 | Q86: 12.42302614 | R86: =INDEX('Monthly Database'!$B$1:$B$143,'Monthly Analysis'!P86) -> 2024-06-01 | S86: 2024-06-01 | T86: =IF(INDEX('Monthly Database'!$C$8:$AF$143,'Monthly Analysis'!$P86,'Monthly Analysis'!T$3),INDEX('Monthly Database'!$C$8:$AF$143,'Monthly Analysis'!$P86,'Monthly Analysis'!T$3),NA()) -> 9.256026135 | U86: =IF(INDEX('Monthly Database'!$C$8:$AF$143,'Monthly Analysis'!$P86,'Monthly Analysis'!U$3),INDEX('Monthly Database'!$C$8:$AF$143,'Monthly Analysis'!$P86,'Monthly Analysis'!U$3),NA()) -> 3.167 | V86: =IF(INDEX('Monthly Database'!$C$8:$AF$143,'Monthly Analysis'!$P86,'Monthly Analysis'!V$3),INDEX('Monthly Database'!$C$8:$AF$143,'Monthly Analysis'!$P86,'Monthly Analysis'!V$3),NA()) ->  | W86: =IF(INDEX('Monthly Database'!$C$8:$AF$143,'Monthly Analysis'!$P86,'Monthly Analysis'!W$3),INDEX('Monthly Database'!$C$8:$AF$143,'Monthly Analysis'!$P86,'Monthly Analysis'!W$3),NA()) ->  | X86: =IF(INDEX('Monthly Database'!$C$8:$AF$143,'Monthly Analysis'!$P86,'Monthly Analysis'!X$3),INDEX('Monthly Database'!$C$8:$AF$143,'Monthly Analysis'!$P86,'Monthly Analysis'!X$3),NA()) ->  | Y86: =IF(INDEX('Monthly Database'!$C$8:$AF$143,'Monthly Analysis'!$P86,'Monthly Analysis'!Y$3),INDEX('Monthly Database'!$C$8:$AF$143,'Monthly Analysis'!$P86,'Monthly Analysis'!Y$3),NA()) ->  | Z86: =IF(INDEX('Monthly Database'!$C$8:$AF$143,'Monthly Analysis'!$P86,'Monthly Analysis'!Z$3),INDEX('Monthly Database'!$C$8:$AF$143,'Monthly Analysis'!$P86,'Monthly Analysis'!Z$3),NA()) -> 
P87: 90 | Q87: 12.39002614 | R87: =INDEX('Monthly Database'!$B$1:$B$143,'Monthly Analysis'!P87) -> 2024-07-01 | S87: 2024-07-01 | T87: =IF(INDEX('Monthly Database'!$C$8:$AF$143,'Monthly Analysis'!$P87,'Monthly Analysis'!T$3),INDEX('Monthly Database'!$C$8:$AF$143,'Monthly Analysis'!$P87,'Monthly Analysis'!T$3),NA()) -> 9.256026135 | U87: =IF(INDEX('Monthly Database'!$C$8:$AF$143,'Monthly Analysis'!$P87,'Monthly Analysis'!U$3),INDEX('Monthly Database'!$C$8:$AF$143,'Monthly Analysis'!$P87,'Monthly Analysis'!U$3),NA()) -> 3.134 | V87: =IF(INDEX('Monthly Database'!$C$8:$AF$143,'Monthly Analysis'!$P87,'Monthly Analysis'!V$3),INDEX('Monthly Database'!$C$8:$AF$143,'Monthly Analysis'!$P87,'Monthly Analysis'!V$3),NA()) ->  | W87: =IF(INDEX('Monthly Database'!$C$8:$AF$143,'Monthly Analysis'!$P87,'Monthly Analysis'!W$3),INDEX('Monthly Database'!$C$8:$AF$143,'Monthly Analysis'!$P87,'Monthly Analysis'!W$3),NA()) ->  | X87: =IF(INDEX('Monthly Database'!$C$8:$AF$143,'Monthly Analysis'!$P87,'Monthly Analysis'!X$3),INDEX('Monthly Database'!$C$8:$AF$143,'Monthly Analysis'!$P87,'Monthly Analysis'!X$3),NA()) ->  | Y87: =IF(INDEX('Monthly Database'!$C$8:$AF$143,'Monthly Analysis'!$P87,'Monthly Analysis'!Y$3),INDEX('Monthly Database'!$C$8:$AF$143,'Monthly Analysis'!$P87,'Monthly Analysis'!Y$3),NA()) ->  | Z87: =IF(INDEX('Monthly Database'!$C$8:$AF$143,'Monthly Analysis'!$P87,'Monthly Analysis'!Z$3),INDEX('Monthly Database'!$C$8:$AF$143,'Monthly Analysis'!$P87,'Monthly Analysis'!Z$3),NA()) -> 
P88: 91 | Q88: 12.32602614 | R88: =INDEX('Monthly Database'!$B$1:$B$143,'Monthly Analysis'!P88) -> 2024-08-01 | S88: 2024-08-01 | T88: =IF(INDEX('Monthly Database'!$C$8:$AF$143,'Monthly Analysis'!$P88,'Monthly Analysis'!T$3),INDEX('Monthly Database'!$C$8:$AF$143,'Monthly Analysis'!$P88,'Monthly Analysis'!T$3),NA()) -> 9.256026135 | U88: =IF(INDEX('Monthly Database'!$C$8:$AF$143,'Monthly Analysis'!$P88,'Monthly Analysis'!U$3),INDEX('Monthly Database'!$C$8:$AF$143,'Monthly Analysis'!$P88,'Monthly Analysis'!U$3),NA()) -> 3.07 | V88: =IF(INDEX('Monthly Database'!$C$8:$AF$143,'Monthly Analysis'!$P88,'Monthly Analysis'!V$3),INDEX('Monthly Database'!$C$8:$AF$143,'Monthly Analysis'!$P88,'Monthly Analysis'!V$3),NA()) ->  | W88: =IF(INDEX('Monthly Database'!$C$8:$AF$143,'Monthly Analysis'!$P88,'Monthly Analysis'!W$3),INDEX('Monthly Database'!$C$8:$AF$143,'Monthly Analysis'!$P88,'Monthly Analysis'!W$3),NA()) ->  | X88: =IF(INDEX('Monthly Database'!$C$8:$AF$143,'Monthly Analysis'!$P88,'Monthly Analysis'!X$3),INDEX('Monthly Database'!$C$8:$AF$143,'Monthly Analysis'!$P88,'Monthly Analysis'!X$3),NA()) ->  | Y88: =IF(INDEX('Monthly Database'!$C$8:$AF$143,'Monthly Analysis'!$P88,'Monthly Analysis'!Y$3),INDEX('Monthly Database'!$C$8:$AF$143,'Monthly Analysis'!$P88,'Monthly Analysis'!Y$3),NA()) ->  | Z88: =IF(INDEX('Monthly Database'!$C$8:$AF$143,'Monthly Analysis'!$P88,'Monthly Analysis'!Z$3),INDEX('Monthly Database'!$C$8:$AF$143,'Monthly Analysis'!$P88,'Monthly Analysis'!Z$3),NA()) -> 
P89: 92 | Q89: 12.01943857 | R89: =INDEX('Monthly Database'!$B$1:$B$143,'Monthly Analysis'!P89) -> 2024-09-01 | S89: 2024-09-01 | T89: =IF(INDEX('Monthly Database'!$C$8:$AF$143,'Monthly Analysis'!$P89,'Monthly Analysis'!T$3),INDEX('Monthly Database'!$C$8:$AF$143,'Monthly Analysis'!$P89,'Monthly Analysis'!T$3),NA()) -> 9.271438575 | U89: =IF(INDEX('Monthly Database'!$C$8:$AF$143,'Monthly Analysis'!$P89,'Monthly Analysis'!U$3),INDEX('Monthly Database'!$C$8:$AF$143,'Monthly Analysis'!$P89,'Monthly Analysis'!U$3),NA()) -> 2.748 | V89: =IF(INDEX('Monthly Database'!$C$8:$AF$143,'Monthly Analysis'!$P89,'Monthly Analysis'!V$3),INDEX('Monthly Database'!$C$8:$AF$143,'Monthly Analysis'!$P89,'Monthly Analysis'!V$3),NA()) ->  | W89: =IF(INDEX('Monthly Database'!$C$8:$AF$143,'Monthly Analysis'!$P89,'Monthly Analysis'!W$3),INDEX('Monthly Database'!$C$8:$AF$143,'Monthly Analysis'!$P89,'Monthly Analysis'!W$3),NA()) ->  | X89: =IF(INDEX('Monthly Database'!$C$8:$AF$143,'Monthly Analysis'!$P89,'Monthly Analysis'!X$3),INDEX('Monthly Database'!$C$8:$AF$143,'Monthly Analysis'!$P89,'Monthly Analysis'!X$3),NA()) ->  | Y89: =IF(INDEX('Monthly Database'!$C$8:$AF$143,'Monthly Analysis'!$P89,'Monthly Analysis'!Y$3),INDEX('Monthly Database'!$C$8:$AF$143,'Monthly Analysis'!$P89,'Monthly Analysis'!Y$3),NA()) ->  | Z89: =IF(INDEX('Monthly Database'!$C$8:$AF$143,'Monthly Analysis'!$P89,'Monthly Analysis'!Z$3),INDEX('Monthly Database'!$C$8:$AF$143,'Monthly Analysis'!$P89,'Monthly Analysis'!Z$3),NA()) -> 
P90: 93 | Q90: 12.04282592 | R90: =INDEX('Monthly Database'!$B$1:$B$143,'Monthly Analysis'!P90) -> 2024-10-01 | S90: 2024-10-01 | T90: =IF(INDEX('Monthly Database'!$C$8:$AF$143,'Monthly Analysis'!$P90,'Monthly Analysis'!T$3),INDEX('Monthly Database'!$C$8:$AF$143,'Monthly Analysis'!$P90,'Monthly Analysis'!T$3),NA()) -> 9.31082592 | U90: =IF(INDEX('Monthly Database'!$C$8:$AF$143,'Monthly Analysis'!$P90,'Monthly Analysis'!U$3),INDEX('Monthly Database'!$C$8:$AF$143,'Monthly Analysis'!$P90,'Monthly Analysis'!U$3),NA()) -> 2.732 | V90: =IF(INDEX('Monthly Database'!$C$8:$AF$143,'Monthly Analysis'!$P90,'Monthly Analysis'!V$3),INDEX('Monthly Database'!$C$8:$AF$143,'Monthly Analysis'!$P90,'Monthly Analysis'!V$3),NA()) ->  | W90: =IF(INDEX('Monthly Database'!$C$8:$AF$143,'Monthly Analysis'!$P90,'Monthly Analysis'!W$3),INDEX('Monthly Database'!$C$8:$AF$143,'Monthly Analysis'!$P90,'Monthly Analysis'!W$3),NA()) ->  | X90: =IF(INDEX('Monthly Database'!$C$8:$AF$143,'Monthly Analysis'!$P90,'Monthly Analysis'!X$3),INDEX('Monthly Database'!$C$8:$AF$143,'Monthly Analysis'!$P90,'Monthly Analysis'!X$3),NA()) ->  | Y90: =IF(INDEX('Monthly Database'!$C$8:$AF$143,'Monthly Analysis'!$P90,'Monthly Analysis'!Y$3),INDEX('Monthly Database'!$C$8:$AF$143,'Monthly Analysis'!$P90,'Monthly Analysis'!Y$3),NA()) ->  | Z90: =IF(INDEX('Monthly Database'!$C$8:$AF$143,'Monthly Analysis'!$P90,'Monthly Analysis'!Z$3),INDEX('Monthly Database'!$C$8:$AF$143,'Monthly Analysis'!$P90,'Monthly Analysis'!Z$3),NA()) -> 
P91: 94 | Q91: 12.07582592 | R91: =INDEX('Monthly Database'!$B$1:$B$143,'Monthly Analysis'!P91) -> 2024-11-01 | S91: 2024-11-01 | T91: =IF(INDEX('Monthly Database'!$C$8:$AF$143,'Monthly Analysis'!$P91,'Monthly Analysis'!T$3),INDEX('Monthly Database'!$C$8:$AF$143,'Monthly Analysis'!$P91,'Monthly Analysis'!T$3),NA()) -> 9.31082592 | U91: =IF(INDEX('Monthly Database'!$C$8:$AF$143,'Monthly Analysis'!$P91,'Monthly Analysis'!U$3),INDEX('Monthly Database'!$C$8:$AF$143,'Monthly Analysis'!$P91,'Monthly Analysis'!U$3),NA()) -> 2.765 | V91: =IF(INDEX('Monthly Database'!$C$8:$AF$143,'Monthly Analysis'!$P91,'Monthly Analysis'!V$3),INDEX('Monthly Database'!$C$8:$AF$143,'Monthly Analysis'!$P91,'Monthly Analysis'!V$3),NA()) ->  | W91: =IF(INDEX('Monthly Database'!$C$8:$AF$143,'Monthly Analysis'!$P91,'Monthly Analysis'!W$3),INDEX('Monthly Database'!$C$8:$AF$143,'Monthly Analysis'!$P91,'Monthly Analysis'!W$3),NA()) ->  | X91: =IF(INDEX('Monthly Database'!$C$8:$AF$143,'Monthly Analysis'!$P91,'Monthly Analysis'!X$3),INDEX('Monthly Database'!$C$8:$AF$143,'Monthly Analysis'!$P91,'Monthly Analysis'!X$3),NA()) ->  | Y91: =IF(INDEX('Monthly Database'!$C$8:$AF$143,'Monthly Analysis'!$P91,'Monthly Analysis'!Y$3),INDEX('Monthly Database'!$C$8:$AF$143,'Monthly Analysis'!$P91,'Monthly Analysis'!Y$3),NA()) ->  | Z91: =IF(INDEX('Monthly Database'!$C$8:$AF$143,'Monthly Analysis'!$P91,'Monthly Analysis'!Z$3),INDEX('Monthly Database'!$C$8:$AF$143,'Monthly Analysis'!$P91,'Monthly Analysis'!Z$3),NA()) -> 
P92: 95 | Q92: 9.31082592 | R92: =INDEX('Monthly Database'!$B$1:$B$143,'Monthly Analysis'!P92) -> 2024-12-01 | S92: 2024-12-01 | T92: =IF(INDEX('Monthly Database'!$C$8:$AF$143,'Monthly Analysis'!$P92,'Monthly Analysis'!T$3),INDEX('Monthly Database'!$C$8:$AF$143,'Monthly Analysis'!$P92,'Monthly Analysis'!T$3),NA()) -> 9.31082592 | U92: =IF(INDEX('Monthly Database'!$C$8:$AF$143,'Monthly Analysis'!$P92,'Monthly Analysis'!U$3),INDEX('Monthly Database'!$C$8:$AF$143,'Monthly Analysis'!$P92,'Monthly Analysis'!U$3),NA()) ->  | V92: =IF(INDEX('Monthly Database'!$C$8:$AF$143,'Monthly Analysis'!$P92,'Monthly Analysis'!V$3),INDEX('Monthly Database'!$C$8:$AF$143,'Monthly Analysis'!$P92,'Monthly Analysis'!V$3),NA()) ->  | W92: =IF(INDEX('Monthly Database'!$C$8:$AF$143,'Monthly Analysis'!$P92,'Monthly Analysis'!W$3),INDEX('Monthly Database'!$C$8:$AF$143,'Monthly Analysis'!$P92,'Monthly Analysis'!W$3),NA()) ->  | X92: =IF(INDEX('Monthly Database'!$C$8:$AF$143,'Monthly Analysis'!$P92,'Monthly Analysis'!X$3),INDEX('Monthly Database'!$C$8:$AF$143,'Monthly Analysis'!$P92,'Monthly Analysis'!X$3),NA()) ->  | Y92: =IF(INDEX('Monthly Database'!$C$8:$AF$143,'Monthly Analysis'!$P92,'Monthly Analysis'!Y$3),INDEX('Monthly Database'!$C$8:$AF$143,'Monthly Analysis'!$P92,'Monthly Analysis'!Y$3),NA()) ->  | Z92: =IF(INDEX('Monthly Database'!$C$8:$AF$143,'Monthly Analysis'!$P92,'Monthly Analysis'!Z$3),INDEX('Monthly Database'!$C$8:$AF$143,'Monthly Analysis'!$P92,'Monthly Analysis'!Z$3),NA()) -> 
P93: 96 | Q93: 9.31082592 | R93: =INDEX('Monthly Database'!$B$1:$B$143,'Monthly Analysis'!P93) -> 2025-01-01 | S93: 2025-01-01 | T93: =IF(INDEX('Monthly Database'!$C$8:$AF$143,'Monthly Analysis'!$P93,'Monthly Analysis'!T$3),INDEX('Monthly Database'!$C$8:$AF$143,'Monthly Analysis'!$P93,'Monthly Analysis'!T$3),NA()) -> 9.31082592 | U93: =IF(INDEX('Monthly Database'!$C$8:$AF$143,'Monthly Analysis'!$P93,'Monthly Analysis'!U$3),INDEX('Monthly Database'!$C$8:$AF$143,'Monthly Analysis'!$P93,'Monthly Analysis'!U$3),NA()) ->  | V93: =IF(INDEX('Monthly Database'!$C$8:$AF$143,'Monthly Analysis'!$P93,'Monthly Analysis'!V$3),INDEX('Monthly Database'!$C$8:$AF$143,'Monthly Analysis'!$P93,'Monthly Analysis'!V$3),NA()) ->  | W93: =IF(INDEX('Monthly Database'!$C$8:$AF$143,'Monthly Analysis'!$P93,'Monthly Analysis'!W$3),INDEX('Monthly Database'!$C$8:$AF$143,'Monthly Analysis'!$P93,'Monthly Analysis'!W$3),NA()) ->  | X93: =IF(INDEX('Monthly Database'!$C$8:$AF$143,'Monthly Analysis'!$P93,'Monthly Analysis'!X$3),INDEX('Monthly Database'!$C$8:$AF$143,'Monthly Analysis'!$P93,'Monthly Analysis'!X$3),NA()) ->  | Y93: =IF(INDEX('Monthly Database'!$C$8:$AF$143,'Monthly Analysis'!$P93,'Monthly Analysis'!Y$3),INDEX('Monthly Database'!$C$8:$AF$143,'Monthly Analysis'!$P93,'Monthly Analysis'!Y$3),NA()) ->  | Z93: =IF(INDEX('Monthly Database'!$C$8:$AF$143,'Monthly Analysis'!$P93,'Monthly Analysis'!Z$3),INDEX('Monthly Database'!$C$8:$AF$143,'Monthly Analysis'!$P93,'Monthly Analysis'!Z$3),NA()) -> 
P94: 97 | Q94: 9.31082592 | R94: =INDEX('Monthly Database'!$B$1:$B$143,'Monthly Analysis'!P94) -> 2025-02-01 | S94: 2025-02-01 | T94: =IF(INDEX('Monthly Database'!$C$8:$AF$143,'Monthly Analysis'!$P94,'Monthly Analysis'!T$3),INDEX('Monthly Database'!$C$8:$AF$143,'Monthly Analysis'!$P94,'Monthly Analysis'!T$3),NA()) -> 9.31082592 | U94: =IF(INDEX('Monthly Database'!$C$8:$AF$143,'Monthly Analysis'!$P94,'Monthly Analysis'!U$3),INDEX('Monthly Database'!$C$8:$AF$143,'Monthly Analysis'!$P94,'Monthly Analysis'!U$3),NA()) ->  | V94: =IF(INDEX('Monthly Database'!$C$8:$AF$143,'Monthly Analysis'!$P94,'Monthly Analysis'!V$3),INDEX('Monthly Database'!$C$8:$AF$143,'Monthly Analysis'!$P94,'Monthly Analysis'!V$3),NA()) ->  | W94: =IF(INDEX('Monthly Database'!$C$8:$AF$143,'Monthly Analysis'!$P94,'Monthly Analysis'!W$3),INDEX('Monthly Database'!$C$8:$AF$143,'Monthly Analysis'!$P94,'Monthly Analysis'!W$3),NA()) ->  | X94: =IF(INDEX('Monthly Database'!$C$8:$AF$143,'Monthly Analysis'!$P94,'Monthly Analysis'!X$3),INDEX('Monthly Database'!$C$8:$AF$143,'Monthly Analysis'!$P94,'Monthly Analysis'!X$3),NA()) ->  | Y94: =IF(INDEX('Monthly Database'!$C$8:$AF$143,'Monthly Analysis'!$P94,'Monthly Analysis'!Y$3),INDEX('Monthly Database'!$C$8:$AF$143,'Monthly Analysis'!$P94,'Monthly Analysis'!Y$3),NA()) ->  | Z94: =IF(INDEX('Monthly Database'!$C$8:$AF$143,'Monthly Analysis'!$P94,'Monthly Analysis'!Z$3),INDEX('Monthly Database'!$C$8:$AF$143,'Monthly Analysis'!$P94,'Monthly Analysis'!Z$3),NA()) -> 
P95: 98 | Q95: 9.329663346 | R95: =INDEX('Monthly Database'!$B$1:$B$143,'Monthly Analysis'!P95) -> 2025-03-01 | S95: 2025-03-01 | T95: =IF(INDEX('Monthly Database'!$C$8:$AF$143,'Monthly Analysis'!$P95,'Monthly Analysis'!T$3),INDEX('Monthly Database'!$C$8:$AF$143,'Monthly Analysis'!$P95,'Monthly Analysis'!T$3),NA()) -> 9.329663346 | U95: =IF(INDEX('Monthly Database'!$C$8:$AF$143,'Monthly Analysis'!$P95,'Monthly Analysis'!U$3),INDEX('Monthly Database'!$C$8:$AF$143,'Monthly Analysis'!$P95,'Monthly Analysis'!U$3),NA()) ->  | V95: =IF(INDEX('Monthly Database'!$C$8:$AF$143,'Monthly Analysis'!$P95,'Monthly Analysis'!V$3),INDEX('Monthly Database'!$C$8:$AF$143,'Monthly Analysis'!$P95,'Monthly Analysis'!V$3),NA()) ->  | W95: =IF(INDEX('Monthly Database'!$C$8:$AF$143,'Monthly Analysis'!$P95,'Monthly Analysis'!W$3),INDEX('Monthly Database'!$C$8:$AF$143,'Monthly Analysis'!$P95,'Monthly Analysis'!W$3),NA()) ->  | X95: =IF(INDEX('Monthly Database'!$C$8:$AF$143,'Monthly Analysis'!$P95,'Monthly Analysis'!X$3),INDEX('Monthly Database'!$C$8:$AF$143,'Monthly Analysis'!$P95,'Monthly Analysis'!X$3),NA()) ->  | Y95: =IF(INDEX('Monthly Database'!$C$8:$AF$143,'Monthly Analysis'!$P95,'Monthly Analysis'!Y$3),INDEX('Monthly Database'!$C$8:$AF$143,'Monthly Analysis'!$P95,'Monthly Analysis'!Y$3),NA()) ->  | Z95: =IF(INDEX('Monthly Database'!$C$8:$AF$143,'Monthly Analysis'!$P95,'Monthly Analysis'!Z$3),INDEX('Monthly Database'!$C$8:$AF$143,'Monthly Analysis'!$P95,'Monthly Analysis'!Z$3),NA()) -> 
P96: 99 | Q96: 9.367338198 | R96: =INDEX('Monthly Database'!$B$1:$B$143,'Monthly Analysis'!P96) -> 2025-04-01 | S96: 2025-04-01 | T96: =IF(INDEX('Monthly Database'!$C$8:$AF$143,'Monthly Analysis'!$P96,'Monthly Analysis'!T$3),INDEX('Monthly Database'!$C$8:$AF$143,'Monthly Analysis'!$P96,'Monthly Analysis'!T$3),NA()) -> 9.367338198 | U96: =IF(INDEX('Monthly Database'!$C$8:$AF$143,'Monthly Analysis'!$P96,'Monthly Analysis'!U$3),INDEX('Monthly Database'!$C$8:$AF$143,'Monthly Analysis'!$P96,'Monthly Analysis'!U$3),NA()) ->  | V96: =IF(INDEX('Monthly Database'!$C$8:$AF$143,'Monthly Analysis'!$P96,'Monthly Analysis'!V$3),INDEX('Monthly Database'!$C$8:$AF$143,'Monthly Analysis'!$P96,'Monthly Analysis'!V$3),NA()) ->  | W96: =IF(INDEX('Monthly Database'!$C$8:$AF$143,'Monthly Analysis'!$P96,'Monthly Analysis'!W$3),INDEX('Monthly Database'!$C$8:$AF$143,'Monthly Analysis'!$P96,'Monthly Analysis'!W$3),NA()) ->  | X96: =IF(INDEX('Monthly Database'!$C$8:$AF$143,'Monthly Analysis'!$P96,'Monthly Analysis'!X$3),INDEX('Monthly Database'!$C$8:$AF$143,'Monthly Analysis'!$P96,'Monthly Analysis'!X$3),NA()) ->  | Y96: =IF(INDEX('Monthly Database'!$C$8:$AF$143,'Monthly Analysis'!$P96,'Monthly Analysis'!Y$3),INDEX('Monthly Database'!$C$8:$AF$143,'Monthly Analysis'!$P96,'Monthly Analysis'!Y$3),NA()) ->  | Z96: =IF(INDEX('Monthly Database'!$C$8:$AF$143,'Monthly Analysis'!$P96,'Monthly Analysis'!Z$3),INDEX('Monthly Database'!$C$8:$AF$143,'Monthly Analysis'!$P96,'Monthly Analysis'!Z$3),NA()) -> 
P97: 100 | Q97: 9.367338198 | R97: =INDEX('Monthly Database'!$B$1:$B$143,'Monthly Analysis'!P97) -> 2025-05-01 | S97: 2025-05-01 | T97: =IF(INDEX('Monthly Database'!$C$8:$AF$143,'Monthly Analysis'!$P97,'Monthly Analysis'!T$3),INDEX('Monthly Database'!$C$8:$AF$143,'Monthly Analysis'!$P97,'Monthly Analysis'!T$3),NA()) -> 9.367338198 | U97: =IF(INDEX('Monthly Database'!$C$8:$AF$143,'Monthly Analysis'!$P97,'Monthly Analysis'!U$3),INDEX('Monthly Database'!$C$8:$AF$143,'Monthly Analysis'!$P97,'Monthly Analysis'!U$3),NA()) ->  | V97: =IF(INDEX('Monthly Database'!$C$8:$AF$143,'Monthly Analysis'!$P97,'Monthly Analysis'!V$3),INDEX('Monthly Database'!$C$8:$AF$143,'Monthly Analysis'!$P97,'Monthly Analysis'!V$3),NA()) ->  | W97: =IF(INDEX('Monthly Database'!$C$8:$AF$143,'Monthly Analysis'!$P97,'Monthly Analysis'!W$3),INDEX('Monthly Database'!$C$8:$AF$143,'Monthly Analysis'!$P97,'Monthly Analysis'!W$3),NA()) ->  | X97: =IF(INDEX('Monthly Database'!$C$8:$AF$143,'Monthly Analysis'!$P97,'Monthly Analysis'!X$3),INDEX('Monthly Database'!$C$8:$AF$143,'Monthly Analysis'!$P97,'Monthly Analysis'!X$3),NA()) ->  | Y97: =IF(INDEX('Monthly Database'!$C$8:$AF$143,'Monthly Analysis'!$P97,'Monthly Analysis'!Y$3),INDEX('Monthly Database'!$C$8:$AF$143,'Monthly Analysis'!$P97,'Monthly Analysis'!Y$3),NA()) ->  | Z97: =IF(INDEX('Monthly Database'!$C$8:$AF$143,'Monthly Analysis'!$P97,'Monthly Analysis'!Z$3),INDEX('Monthly Database'!$C$8:$AF$143,'Monthly Analysis'!$P97,'Monthly Analysis'!Z$3),NA()) -> 
P98: 101 | Q98: 0 | R98: =INDEX('Monthly Database'!$B$1:$B$143,'Monthly Analysis'!P98) -> 2025-06-01 | T98: =IF(INDEX('Monthly Database'!$C$8:$AF$143,'Monthly Analysis'!$P98,'Monthly Analysis'!T$3),INDEX('Monthly Database'!$C$8:$AF$143,'Monthly Analysis'!$P98,'Monthly Analysis'!T$3),NA()) ->  | U98: =IF(INDEX('Monthly Database'!$C$8:$AF$143,'Monthly Analysis'!$P98,'Monthly Analysis'!U$3),INDEX('Monthly Database'!$C$8:$AF$143,'Monthly Analysis'!$P98,'Monthly Analysis'!U$3),NA()) ->  | V98: =IF(INDEX('Monthly Database'!$C$8:$AF$143,'Monthly Analysis'!$P98,'Monthly Analysis'!V$3),INDEX('Monthly Database'!$C$8:$AF$143,'Monthly Analysis'!$P98,'Monthly Analysis'!V$3),NA()) ->  | W98: =IF(INDEX('Monthly Database'!$C$8:$AF$143,'Monthly Analysis'!$P98,'Monthly Analysis'!W$3),INDEX('Monthly Database'!$C$8:$AF$143,'Monthly Analysis'!$P98,'Monthly Analysis'!W$3),NA()) ->  | X98: =IF(INDEX('Monthly Database'!$C$8:$AF$143,'Monthly Analysis'!$P98,'Monthly Analysis'!X$3),INDEX('Monthly Database'!$C$8:$AF$143,'Monthly Analysis'!$P98,'Monthly Analysis'!X$3),NA()) ->  | Y98: =IF(INDEX('Monthly Database'!$C$8:$AF$143,'Monthly Analysis'!$P98,'Monthly Analysis'!Y$3),INDEX('Monthly Database'!$C$8:$AF$143,'Monthly Analysis'!$P98,'Monthly Analysis'!Y$3),NA()) ->  | Z98: =IF(INDEX('Monthly Database'!$C$8:$AF$143,'Monthly Analysis'!$P98,'Monthly Analysis'!Z$3),INDEX('Monthly Database'!$C$8:$AF$143,'Monthly Analysis'!$P98,'Monthly Analysis'!Z$3),NA()) -> 
P99: 102 | Q99: 0 | R99: =INDEX('Monthly Database'!$B$1:$B$143,'Monthly Analysis'!P99) -> 2025-07-01 | T99: =IF(INDEX('Monthly Database'!$C$8:$AF$143,'Monthly Analysis'!$P99,'Monthly Analysis'!T$3),INDEX('Monthly Database'!$C$8:$AF$143,'Monthly Analysis'!$P99,'Monthly Analysis'!T$3),NA()) ->  | U99: =IF(INDEX('Monthly Database'!$C$8:$AF$143,'Monthly Analysis'!$P99,'Monthly Analysis'!U$3),INDEX('Monthly Database'!$C$8:$AF$143,'Monthly Analysis'!$P99,'Monthly Analysis'!U$3),NA()) ->  | V99: =IF(INDEX('Monthly Database'!$C$8:$AF$143,'Monthly Analysis'!$P99,'Monthly Analysis'!V$3),INDEX('Monthly Database'!$C$8:$AF$143,'Monthly Analysis'!$P99,'Monthly Analysis'!V$3),NA()) ->  | W99: =IF(INDEX('Monthly Database'!$C$8:$AF$143,'Monthly Analysis'!$P99,'Monthly Analysis'!W$3),INDEX('Monthly Database'!$C$8:$AF$143,'Monthly Analysis'!$P99,'Monthly Analysis'!W$3),NA()) ->  | X99: =IF(INDEX('Monthly Database'!$C$8:$AF$143,'Monthly Analysis'!$P99,'Monthly Analysis'!X$3),INDEX('Monthly Database'!$C$8:$AF$143,'Monthly Analysis'!$P99,'Monthly Analysis'!X$3),NA()) ->  | Y99: =IF(INDEX('Monthly Database'!$C$8:$AF$143,'Monthly Analysis'!$P99,'Monthly Analysis'!Y$3),INDEX('Monthly Database'!$C$8:$AF$143,'Monthly Analysis'!$P99,'Monthly Analysis'!Y$3),NA()) ->  | Z99: =IF(INDEX('Monthly Database'!$C$8:$AF$143,'Monthly Analysis'!$P99,'Monthly Analysis'!Z$3),INDEX('Monthly Database'!$C$8:$AF$143,'Monthly Analysis'!$P99,'Monthly Analysis'!Z$3),NA()) -> 
P100: 103 | Q100: 0 | R100: =INDEX('Monthly Database'!$B$1:$B$143,'Monthly Analysis'!P100) -> 2025-08-01 | T100: =IF(INDEX('Monthly Database'!$C$8:$AF$143,'Monthly Analysis'!$P100,'Monthly Analysis'!T$3),INDEX('Monthly Database'!$C$8:$AF$143,'Monthly Analysis'!$P100,'Monthly Analysis'!T$3),NA()) ->  | U100: =IF(INDEX('Monthly Database'!$C$8:$AF$143,'Monthly Analysis'!$P100,'Monthly Analysis'!U$3),INDEX('Monthly Database'!$C$8:$AF$143,'Monthly Analysis'!$P100,'Monthly Analysis'!U$3),NA()) ->  | V100: =IF(INDEX('Monthly Database'!$C$8:$AF$143,'Monthly Analysis'!$P100,'Monthly Analysis'!V$3),INDEX('Monthly Database'!$C$8:$AF$143,'Monthly Analysis'!$P100,'Monthly Analysis'!V$3),NA()) ->  | W100: =IF(INDEX('Monthly Database'!$C$8:$AF$143,'Monthly Analysis'!$P100,'Monthly Analysis'!W$3),INDEX('Monthly Database'!$C$8:$AF$143,'Monthly Analysis'!$P100,'Monthly Analysis'!W$3),NA()) ->  | X100: =IF(INDEX('Monthly Database'!$C$8:$AF$143,'Monthly Analysis'!$P100,'Monthly Analysis'!X$3),INDEX('Monthly Database'!$C$8:$AF$143,'Monthly Analysis'!$P100,'Monthly Analysis'!X$3),NA()) ->  | Y100: =IF(INDEX('Monthly Database'!$C$8:$AF$143,'Monthly Analysis'!$P100,'Monthly Analysis'!Y$3),INDEX('Monthly Database'!$C$8:$AF$143,'Monthly Analysis'!$P100,'Monthly Analysis'!Y$3),NA()) ->  | Z100: =IF(INDEX('Monthly Database'!$C$8:$AF$143,'Monthly Analysis'!$P100,'Monthly Analysis'!Z$3),INDEX('Monthly Database'!$C$8:$AF$143,'Monthly Analysis'!$P100,'Monthly Analysis'!Z$3),NA()) -> 
P101: 104 | Q101: 0 | R101: =INDEX('Monthly Database'!$B$1:$B$143,'Monthly Analysis'!P101) -> 2025-09-01 | T101: =IF(INDEX('Monthly Database'!$C$8:$AF$143,'Monthly Analysis'!$P101,'Monthly Analysis'!T$3),INDEX('Monthly Database'!$C$8:$AF$143,'Monthly Analysis'!$P101,'Monthly Analysis'!T$3),NA()) ->  | U101: =IF(INDEX('Monthly Database'!$C$8:$AF$143,'Monthly Analysis'!$P101,'Monthly Analysis'!U$3),INDEX('Monthly Database'!$C$8:$AF$143,'Monthly Analysis'!$P101,'Monthly Analysis'!U$3),NA()) ->  | V101: =IF(INDEX('Monthly Database'!$C$8:$AF$143,'Monthly Analysis'!$P101,'Monthly Analysis'!V$3),INDEX('Monthly Database'!$C$8:$AF$143,'Monthly Analysis'!$P101,'Monthly Analysis'!V$3),NA()) ->  | W101: =IF(INDEX('Monthly Database'!$C$8:$AF$143,'Monthly Analysis'!$P101,'Monthly Analysis'!W$3),INDEX('Monthly Database'!$C$8:$AF$143,'Monthly Analysis'!$P101,'Monthly Analysis'!W$3),NA()) ->  | X101: =IF(INDEX('Monthly Database'!$C$8:$AF$143,'Monthly Analysis'!$P101,'Monthly Analysis'!X$3),INDEX('Monthly Database'!$C$8:$AF$143,'Monthly Analysis'!$P101,'Monthly Analysis'!X$3),NA()) ->  | Y101: =IF(INDEX('Monthly Database'!$C$8:$AF$143,'Monthly Analysis'!$P101,'Monthly Analysis'!Y$3),INDEX('Monthly Database'!$C$8:$AF$143,'Monthly Analysis'!$P101,'Monthly Analysis'!Y$3),NA()) ->  | Z101: =IF(INDEX('Monthly Database'!$C$8:$AF$143,'Monthly Analysis'!$P101,'Monthly Analysis'!Z$3),INDEX('Monthly Database'!$C$8:$AF$143,'Monthly Analysis'!$P101,'Monthly Analysis'!Z$3),NA()) -> 
P102: 105 | Q102: 0 | R102: =INDEX('Monthly Database'!$B$1:$B$143,'Monthly Analysis'!P102) -> 2025-10-01 | T102: =IF(INDEX('Monthly Database'!$C$8:$AF$143,'Monthly Analysis'!$P102,'Monthly Analysis'!T$3),INDEX('Monthly Database'!$C$8:$AF$143,'Monthly Analysis'!$P102,'Monthly Analysis'!T$3),NA()) ->  | U102: =IF(INDEX('Monthly Database'!$C$8:$AF$143,'Monthly Analysis'!$P102,'Monthly Analysis'!U$3),INDEX('Monthly Database'!$C$8:$AF$143,'Monthly Analysis'!$P102,'Monthly Analysis'!U$3),NA()) ->  | V102: =IF(INDEX('Monthly Database'!$C$8:$AF$143,'Monthly Analysis'!$P102,'Monthly Analysis'!V$3),INDEX('Monthly Database'!$C$8:$AF$143,'Monthly Analysis'!$P102,'Monthly Analysis'!V$3),NA()) ->  | W102: =IF(INDEX('Monthly Database'!$C$8:$AF$143,'Monthly Analysis'!$P102,'Monthly Analysis'!W$3),INDEX('Monthly Database'!$C$8:$AF$143,'Monthly Analysis'!$P102,'Monthly Analysis'!W$3),NA()) ->  | X102: =IF(INDEX('Monthly Database'!$C$8:$AF$143,'Monthly Analysis'!$P102,'Monthly Analysis'!X$3),INDEX('Monthly Database'!$C$8:$AF$143,'Monthly Analysis'!$P102,'Monthly Analysis'!X$3),NA()) ->  | Y102: =IF(INDEX('Monthly Database'!$C$8:$AF$143,'Monthly Analysis'!$P102,'Monthly Analysis'!Y$3),INDEX('Monthly Database'!$C$8:$AF$143,'Monthly Analysis'!$P102,'Monthly Analysis'!Y$3),NA()) ->  | Z102: =IF(INDEX('Monthly Database'!$C$8:$AF$143,'Monthly Analysis'!$P102,'Monthly Analysis'!Z$3),INDEX('Monthly Database'!$C$8:$AF$143,'Monthly Analysis'!$P102,'Monthly Analysis'!Z$3),NA()) -> 

Sheet Annual Data
A2: Conversion | C2: Code | D2: 5 | G2: Start | H2: 2016 | I2: End | J2: 2025 | L2: 15 | M2: =INDEX(C5:C20,L2) -> CME_NIND_Off_Futures USD/MWH
A3: to MMBTU
G4: 2017 | H4: 2018 | I4: 2019 | J4: 2020 | K4: 2021 | L4: 2022 | M4: 2023 | N4: 2024 | O4: 2025 | P4: 2026 | Q4: 2027 | R4: 2028
B5: 1 | C5: ='Monthly Analysis'!H5 -> CME_WTI_Futures USD/BBL | E5: 'Monthly Database'! | F5: C | G5: =IFERROR(AVERAGEIF('Monthly Database'!$A$8:$A$143,'Annual Data'!G$4,INDIRECT($E5&$F5&"8:"&$F5&"143")),NA()) -> 47.86 | H5: =IFERROR(AVERAGEIF('Monthly Database'!$A$8:$A$143,'Annual Data'!H$4,INDIRECT($E5&$F5&"8:"&$F5&"143")),NA()) -> 48.68416667 | I5: =IFERROR(AVERAGEIF('Monthly Database'!$A$8:$A$143,'Annual Data'!I$4,INDIRECT($E5&$F5&"8:"&$F5&"143")),NA()) -> 49.12916667 | J5: =IFERROR(AVERAGEIF('Monthly Database'!$A$8:$A$143,'Annual Data'!J$4,INDIRECT($E5&$F5&"8:"&$F5&"143")),NA()) -> 49.83083333 | K5: =IFERROR(AVERAGEIF('Monthly Database'!$A$8:$A$143,'Annual Data'!K$4,INDIRECT($E5&$F5&"8:"&$F5&"143")),NA()) -> 50.75 | L5: =IFERROR(AVERAGEIF('Monthly Database'!$A$8:$A$143,'Annual Data'!L$4,INDIRECT($E5&$F5&"8:"&$F5&"143")),NA()) -> 51.81166667 | M5: =IFERROR(AVERAGEIF('Monthly Database'!$A$8:$A$143,'Annual Data'!M$4,INDIRECT($E5&$F5&"8:"&$F5&"143")),NA()) -> 52.67 | N5: =IFERROR(AVERAGEIF('Monthly Database'!$A$8:$A$143,'Annual Data'!N$4,INDIRECT($E5&$F5&"8:"&$F5&"143")),NA()) -> 53.56666667 | O5: =IFERROR(AVERAGEIF('Monthly Database'!$A$8:$A$143,'Annual Data'!O$4,INDIRECT($E5&$F5&"8:"&$F5&"143")),NA()) -> 54.335 | P5: =IFERROR(AVERAGEIF('Monthly Database'!$A$8:$A$143,'Annual Data'!P$4,INDIRECT($E5&$F5&"8:"&$F5&"143")),NA()) ->  | Q5: =IFERROR(AVERAGEIF('Monthly Database'!$A$8:$A$143,'Annual Data'!Q$4,INDIRECT($E5&$F5&"8:"&$F5&"143")),NA()) ->  | R5: =IFERROR(AVERAGEIF('Monthly Database'!$A$8:$A$143,'Annual Data'!R$4,INDIRECT($E5&$F5&"8:"&$F5&"143")),NA()) -> 
B6: 2 | C6: ='Monthly Analysis'!H6 -> CME_WTI_Futures USD/MMBTU | E6: 'Monthly Database'! | F6: D | G6: =IFERROR(AVERAGEIF('Monthly Database'!$A$8:$A$143,'Annual Data'!G$4,INDIRECT($E6&$F6&"8:"&$F6&"143")),NA()) -> 8.1959928 | H6: =IFERROR(AVERAGEIF('Monthly Database'!$A$8:$A$143,'Annual Data'!H$4,INDIRECT($E6&$F6&"8:"&$F6&"143")),NA()) -> 8.337130787 | I6: =IFERROR(AVERAGEIF('Monthly Database'!$A$8:$A$143,'Annual Data'!I$4,INDIRECT($E6&$F6&"8:"&$F6&"143")),NA()) -> 8.413336738 | J6: =IFERROR(AVERAGEIF('Monthly Database'!$A$8:$A$143,'Annual Data'!J$4,INDIRECT($E6&$F6&"8:"&$F6&"143")),NA()) -> 8.533496682 | K6: =IFERROR(AVERAGEIF('Monthly Database'!$A$8:$A$143,'Annual Data'!K$4,INDIRECT($E6&$F6&"8:"&$F6&"143")),NA()) -> 8.690903356 | L6: =IFERROR(AVERAGEIF('Monthly Database'!$A$8:$A$143,'Annual Data'!L$4,INDIRECT($E6&$F6&"8:"&$F6&"143")),NA()) -> 8.872713058 | M6: =IFERROR(AVERAGEIF('Monthly Database'!$A$8:$A$143,'Annual Data'!M$4,INDIRECT($E6&$F6&"8:"&$F6&"143")),NA()) -> 9.019702064 | N6: =IFERROR(AVERAGEIF('Monthly Database'!$A$8:$A$143,'Annual Data'!N$4,INDIRECT($E6&$F6&"8:"&$F6&"143")),NA()) -> 9.173255627 | O6: =IFERROR(AVERAGEIF('Monthly Database'!$A$8:$A$143,'Annual Data'!O$4,INDIRECT($E6&$F6&"8:"&$F6&"143")),NA()) -> 9.304832194 | P6: =IFERROR(AVERAGEIF('Monthly Database'!$A$8:$A$143,'Annual Data'!P$4,INDIRECT($E6&$F6&"8:"&$F6&"143")),NA()) -> 0 | Q6: =IFERROR(AVERAGEIF('Monthly Database'!$A$8:$A$143,'Annual Data'!Q$4,INDIRECT($E6&$F6&"8:"&$F6&"143")),NA()) -> 0 | R6: =IFERROR(AVERAGEIF('Monthly Database'!$A$8:$A$143,'Annual Data'!R$4,INDIRECT($E6&$F6&"8:"&$F6&"143")),NA()) -> 0
B7: 3 | C7: ='Monthly Analysis'!H7 -> CME_NEPOOL_OFF_Futures USD/MWH | E7: 'Monthly Database'! | F7: E | G7: =IFERROR(AVERAGEIF('Monthly Database'!$A$8:$A$143,'Annual Data'!G$4,INDIRECT($E7&$F7&"8:"&$F7&"143")),NA()) -> 27.4825 | H7: =IFERROR(AVERAGEIF('Monthly Database'!$A$8:$A$143,'Annual Data'!H$4,INDIRECT($E7&$F7&"8:"&$F7&"143")),NA()) -> 32.54166667 | I7: =IFERROR(AVERAGEIF('Monthly Database'!$A$8:$A$143,'Annual Data'!I$4,INDIRECT($E7&$F7&"8:"&$F7&"143")),NA()) -> 32.35416667 | J7: =IFERROR(AVERAGEIF('Monthly Database'!$A$8:$A$143,'Annual Data'!J$4,INDIRECT($E7&$F7&"8:"&$F7&"143")),NA()) -> 31.70083333 | K7: =IFERROR(AVERAGEIF('Monthly Database'!$A$8:$A$143,'Annual Data'!K$4,INDIRECT($E7&$F7&"8:"&$F7&"143")),NA()) -> 32.09916667 | L7: =IFERROR(AVERAGEIF('Monthly Database'!$A$8:$A$143,'Annual Data'!L$4,INDIRECT($E7&$F7&"8:"&$F7&"143")),NA()) -> 32.2 | M7: =IFERROR(AVERAGEIF('Monthly Database'!$A$8:$A$143,'Annual Data'!M$4,INDIRECT($E7&$F7&"8:"&$F7&"143")),NA()) ->  | N7: =IFERROR(AVERAGEIF('Monthly Database'!$A$8:$A$143,'Annual Data'!N$4,INDIRECT($E7&$F7&"8:"&$F7&"143")),NA()) ->  | O7: =IFERROR(AVERAGEIF('Monthly Database'!$A$8:$A$143,'Annual Data'!O$4,INDIRECT($E7&$F7&"8:"&$F7&"143")),NA()) ->  | P7: =IFERROR(AVERAGEIF('Monthly Database'!$A$8:$A$143,'Annual Data'!P$4,INDIRECT($E7&$F7&"8:"&$F7&"143")),NA()) ->  | Q7: =IFERROR(AVERAGEIF('Monthly Database'!$A$8:$A$143,'Annual Data'!Q$4,INDIRECT($E7&$F7&"8:"&$F7&"143")),NA()) ->  | R7: =IFERROR(AVERAGEIF('Monthly Database'!$A$8:$A$143,'Annual Data'!R$4,INDIRECT($E7&$F7&"8:"&$F7&"143")),NA()) -> 
B8: 4 | C8: ='Monthly Analysis'!H8 -> CME_NEPOOL_OFF_Futures USD/MMBTU | E8: 'Monthly Database'! | F8: F | G8: =IFERROR(AVERAGEIF('Monthly Database'!$A$8:$A$143,'Annual Data'!G$4,INDIRECT($E8&$F8&"8:"&$F8&"143")),NA()) -> 93.77029 | H8: =IFERROR(AVERAGEIF('Monthly Database'!$A$8:$A$143,'Annual Data'!H$4,INDIRECT($E8&$F8&"8:"&$F8&"143")),NA()) -> 111.0321667 | I8: =IFERROR(AVERAGEIF('Monthly Database'!$A$8:$A$143,'Annual Data'!I$4,INDIRECT($E8&$F8&"8:"&$F8&"143")),NA()) -> 110.3924167 | J8: =IFERROR(AVERAGEIF('Monthly Database'!$A$8:$A$143,'Annual Data'!J$4,INDIRECT($E8&$F8&"8:"&$F8&"143")),NA()) -> 108.1632433 | K8: =IFERROR(AVERAGEIF('Monthly Database'!$A$8:$A$143,'Annual Data'!K$4,INDIRECT($E8&$F8&"8:"&$F8&"143")),NA()) -> 109.5223567 | L8: =IFERROR(AVERAGEIF('Monthly Database'!$A$8:$A$143,'Annual Data'!L$4,INDIRECT($E8&$F8&"8:"&$F8&"143")),NA()) -> 109.8664 | M8: =IFERROR(AVERAGEIF('Monthly Database'!$A$8:$A$143,'Annual Data'!M$4,INDIRECT($E8&$F8&"8:"&$F8&"143")),NA()) ->  | N8: =IFERROR(AVERAGEIF('Monthly Database'!$A$8:$A$143,'Annual Data'!N$4,INDIRECT($E8&$F8&"8:"&$F8&"143")),NA()) ->  | O8: =IFERROR(AVERAGEIF('Monthly Database'!$A$8:$A$143,'Annual Data'!O$4,INDIRECT($E8&$F8&"8:"&$F8&"143")),NA()) ->  | P8: =IFERROR(AVERAGEIF('Monthly Database'!$A$8:$A$143,'Annual Data'!P$4,INDIRECT($E8&$F8&"8:"&$F8&"143")),NA()) ->  | Q8: =IFERROR(AVERAGEIF('Monthly Database'!$A$8:$A$143,'Annual Data'!Q$4,INDIRECT($E8&$F8&"8:"&$F8&"143")),NA()) ->  | R8: =IFERROR(AVERAGEIF('Monthly Database'!$A$8:$A$143,'Annual Data'!R$4,INDIRECT($E8&$F8&"8:"&$F8&"143")),NA()) -> 
B9: 5 | C9: ='Monthly Analysis'!H9 -> CME_NEPOOL_ON_Futures USD/MWH | E9: 'Monthly Database'! | F9: G | G9: =IFERROR(AVERAGEIF('Monthly Database'!$A$8:$A$143,'Annual Data'!G$4,INDIRECT($E9&$F9&"8:"&$F9&"143")),NA()) ->  | H9: =IFERROR(AVERAGEIF('Monthly Database'!$A$8:$A$143,'Annual Data'!H$4,INDIRECT($E9&$F9&"8:"&$F9&"143")),NA()) -> 38.15 | I9: =IFERROR(AVERAGEIF('Monthly Database'!$A$8:$A$143,'Annual Data'!I$4,INDIRECT($E9&$F9&"8:"&$F9&"143")),NA()) -> 39.85 | J9: =IFERROR(AVERAGEIF('Monthly Database'!$A$8:$A$143,'Annual Data'!J$4,INDIRECT($E9&$F9&"8:"&$F9&"143")),NA()) -> 41.16 | K9: =IFERROR(AVERAGEIF('Monthly Database'!$A$8:$A$143,'Annual Data'!K$4,INDIRECT($E9&$F9&"8:"&$F9&"143")),NA()) -> 38.35 | L9: =IFERROR(AVERAGEIF('Monthly Database'!$A$8:$A$143,'Annual Data'!L$4,INDIRECT($E9&$F9&"8:"&$F9&"143")),NA()) ->  | M9: =IFERROR(AVERAGEIF('Monthly Database'!$A$8:$A$143,'Annual Data'!M$4,INDIRECT($E9&$F9&"8:"&$F9&"143")),NA()) ->  | N9: =IFERROR(AVERAGEIF('Monthly Database'!$A$8:$A$143,'Annual Data'!N$4,INDIRECT($E9&$F9&"8:"&$F9&"143")),NA()) ->  | O9: =IFERROR(AVERAGEIF('Monthly Database'!$A$8:$A$143,'Annual Data'!O$4,INDIRECT($E9&$F9&"8:"&$F9&"143")),NA()) ->  | P9: =IFERROR(AVERAGEIF('Monthly Database'!$A$8:$A$143,'Annual Data'!P$4,INDIRECT($E9&$F9&"8:"&$F9&"143")),NA()) ->  | Q9: =IFERROR(AVERAGEIF('Monthly Database'!$A$8:$A$143,'Annual Data'!Q$4,INDIRECT($E9&$F9&"8:"&$F9&"143")),NA()) ->  | R9: =IFERROR(AVERAGEIF('Monthly Database'!$A$8:$A$143,'Annual Data'!R$4,INDIRECT($E9&$F9&"8:"&$F9&"143")),NA()) -> 
B10: 6 | C10: ='Monthly Analysis'!H10 -> CME_NEPOOL_ON_Futures USD/MMBTU | E10: 'Monthly Database'! | F10: H | G10: =IFERROR(AVERAGEIF('Monthly Database'!$A$8:$A$143,'Annual Data'!G$4,INDIRECT($E10&$F10&"8:"&$F10&"143")),NA()) ->  | H10: =IFERROR(AVERAGEIF('Monthly Database'!$A$8:$A$143,'Annual Data'!H$4,INDIRECT($E10&$F10&"8:"&$F10&"143")),NA()) -> 130.1678 | I10: =IFERROR(AVERAGEIF('Monthly Database'!$A$8:$A$143,'Annual Data'!I$4,INDIRECT($E10&$F10&"8:"&$F10&"143")),NA()) -> 135.9682 | J10: =IFERROR(AVERAGEIF('Monthly Database'!$A$8:$A$143,'Annual Data'!J$4,INDIRECT($E10&$F10&"8:"&$F10&"143")),NA()) -> 140.43792 | K10: =IFERROR(AVERAGEIF('Monthly Database'!$A$8:$A$143,'Annual Data'!K$4,INDIRECT($E10&$F10&"8:"&$F10&"143")),NA()) -> 130.8502 | L10: =IFERROR(AVERAGEIF('Monthly Database'!$A$8:$A$143,'Annual Data'!L$4,INDIRECT($E10&$F10&"8:"&$F10&"143")),NA()) ->  | M10: =IFERROR(AVERAGEIF('Monthly Database'!$A$8:$A$143,'Annual Data'!M$4,INDIRECT($E10&$F10&"8:"&$F10&"143")),NA()) ->  | N10: =IFERROR(AVERAGEIF('Monthly Database'!$A$8:$A$143,'Annual Data'!N$4,INDIRECT($E10&$F10&"8:"&$F10&"143")),NA()) ->  | O10: =IFERROR(AVERAGEIF('Monthly Database'!$A$8:$A$143,'Annual Data'!O$4,INDIRECT($E10&$F10&"8:"&$F10&"143")),NA()) ->  | P10: =IFERROR(AVERAGEIF('Monthly Database'!$A$8:$A$143,'Annual Data'!P$4,INDIRECT($E10&$F10&"8:"&$F10&"143")),NA()) ->  | Q10: =IFERROR(AVERAGEIF('Monthly Database'!$A$8:$A$143,'Annual Data'!Q$4,INDIRECT($E10&$F10&"8:"&$F10&"143")),NA()) ->  | R10: =IFERROR(AVERAGEIF('Monthly Database'!$A$8:$A$143,'Annual Data'!R$4,INDIRECT($E10&$F10&"8:"&$F10&"143")),NA()) -> 
B11: 7 | C11: ='Monthly Analysis'!H11 -> CME_BRENT_Futures USD/BBL | E11: 'Monthly Database'! | F11: I | G11: =IFERROR(AVERAGEIF('Monthly Database'!$A$8:$A$143,'Annual Data'!G$4,INDIRECT($E11&$F11&"8:"&$F11&"143")),NA()) -> 51.75666667 | H11: =IFERROR(AVERAGEIF('Monthly Database'!$A$8:$A$143,'Annual Data'!H$4,INDIRECT($E11&$F11&"8:"&$F11&"143")),NA()) -> 51.99083333 | I11: =IFERROR(AVERAGEIF('Monthly Database'!$A$8:$A$143,'Annual Data'!I$4,INDIRECT($E11&$F11&"8:"&$F11&"143")),NA()) -> 52.64583333 | J11: =IFERROR(AVERAGEIF('Monthly Database'!$A$8:$A$143,'Annual Data'!J$4,INDIRECT($E11&$F11&"8:"&$F11&"143")),NA()) -> 53.43916667 | K11: =IFERROR(AVERAGEIF('Monthly Database'!$A$8:$A$143,'Annual Data'!K$4,INDIRECT($E11&$F11&"8:"&$F11&"143")),NA()) -> 54.41833333 | L11: =IFERROR(AVERAGEIF('Monthly Database'!$A$8:$A$143,'Annual Data'!L$4,INDIRECT($E11&$F11&"8:"&$F11&"143")),NA()) -> 55.6 | M11: =IFERROR(AVERAGEIF('Monthly Database'!$A$8:$A$143,'Annual Data'!M$4,INDIRECT($E11&$F11&"8:"&$F11&"143")),NA()) -> 56.76333333 | N11: =IFERROR(AVERAGEIF('Monthly Database'!$A$8:$A$143,'Annual Data'!N$4,INDIRECT($E11&$F11&"8:"&$F11&"143")),NA()) -> 57.4725 | O11: =IFERROR(AVERAGEIF('Monthly Database'!$A$8:$A$143,'Annual Data'!O$4,INDIRECT($E11&$F11&"8:"&$F11&"143")),NA()) ->  | P11: =IFERROR(AVERAGEIF('Monthly Database'!$A$8:$A$143,'Annual Data'!P$4,INDIRECT($E11&$F11&"8:"&$F11&"143")),NA()) ->  | Q11: =IFERROR(AVERAGEIF('Monthly Database'!$A$8:$A$143,'Annual Data'!Q$4,INDIRECT($E11&$F11&"8:"&$F11&"143")),NA()) ->  | R11: =IFERROR(AVERAGEIF('Monthly Database'!$A$8:$A$143,'Annual Data'!R$4,INDIRECT($E11&$F11&"8:"&$F11&"143")),NA()) -> 
B12: 8 | C12: ='Monthly Analysis'!H12 -> CME_BRENT_Futures USD/MMBTU | E12: 'Monthly Database'! | F12: J | G12: =IFERROR(AVERAGEIF('Monthly Database'!$A$8:$A$143,'Annual Data'!G$4,INDIRECT($E12&$F12&"8:"&$F12&"143")),NA()) -> 8.863294345 | H12: =IFERROR(AVERAGEIF('Monthly Database'!$A$8:$A$143,'Annual Data'!H$4,INDIRECT($E12&$F12&"8:"&$F12&"143")),NA()) -> 8.903395229 | I12: =IFERROR(AVERAGEIF('Monthly Database'!$A$8:$A$143,'Annual Data'!I$4,INDIRECT($E12&$F12&"8:"&$F12&"143")),NA()) -> 9.015563538 | J12: =IFERROR(AVERAGEIF('Monthly Database'!$A$8:$A$143,'Annual Data'!J$4,INDIRECT($E12&$F12&"8:"&$F12&"143")),NA()) -> 9.151421338 | K12: =IFERROR(AVERAGEIF('Monthly Database'!$A$8:$A$143,'Annual Data'!K$4,INDIRECT($E12&$F12&"8:"&$F12&"143")),NA()) -> 9.319102971 | L12: =IFERROR(AVERAGEIF('Monthly Database'!$A$8:$A$143,'Annual Data'!L$4,INDIRECT($E12&$F12&"8:"&$F12&"143")),NA()) -> 9.521462593 | M12: =IFERROR(AVERAGEIF('Monthly Database'!$A$8:$A$143,'Annual Data'!M$4,INDIRECT($E12&$F12&"8:"&$F12&"143")),NA()) -> 9.720682643 | N12: =IFERROR(AVERAGEIF('Monthly Database'!$A$8:$A$143,'Annual Data'!N$4,INDIRECT($E12&$F12&"8:"&$F12&"143")),NA()) -> 9.842126958 | O12: =IFERROR(AVERAGEIF('Monthly Database'!$A$8:$A$143,'Annual Data'!O$4,INDIRECT($E12&$F12&"8:"&$F12&"143")),NA()) ->  | P12: =IFERROR(AVERAGEIF('Monthly Database'!$A$8:$A$143,'Annual Data'!P$4,INDIRECT($E12&$F12&"8:"&$F12&"143")),NA()) ->  | Q12: =IFERROR(AVERAGEIF('Monthly Database'!$A$8:$A$143,'Annual Data'!Q$4,INDIRECT($E12&$F12&"8:"&$F12&"143")),NA()) ->  | R12: =IFERROR(AVERAGEIF('Monthly Database'!$A$8:$A$143,'Annual Data'!R$4,INDIRECT($E12&$F12&"8:"&$F12&"143")),NA()) -> 
B13: 9 | C13: ='Monthly Analysis'!H13 -> CME_BRENTF_Futures USD/BBL | E13: 'Monthly Database'! | F13: K | G13: =IFERROR(AVERAGEIF('Monthly Database'!$A$8:$A$143,'Annual Data'!G$4,INDIRECT($E13&$F13&"8:"&$F13&"143")),NA()) -> 51.75666667 | H13: =IFERROR(AVERAGEIF('Monthly Database'!$A$8:$A$143,'Annual Data'!H$4,INDIRECT($E13&$F13&"8:"&$F13&"143")),NA()) -> 51.99083333 | I13: =IFERROR(AVERAGEIF('Monthly Database'!$A$8:$A$143,'Annual Data'!I$4,INDIRECT($E13&$F13&"8:"&$F13&"143")),NA()) -> 52.64583333 | J13: =IFERROR(AVERAGEIF('Monthly Database'!$A$8:$A$143,'Annual Data'!J$4,INDIRECT($E13&$F13&"8:"&$F13&"143")),NA()) -> 53.43916667 | K13: =IFERROR(AVERAGEIF('Monthly Database'!$A$8:$A$143,'Annual Data'!K$4,INDIRECT($E13&$F13&"8:"&$F13&"143")),NA()) -> 54.41833333 | L13: =IFERROR(AVERAGEIF('Monthly Database'!$A$8:$A$143,'Annual Data'!L$4,INDIRECT($E13&$F13&"8:"&$F13&"143")),NA()) -> 55.6 | M13: =IFERROR(AVERAGEIF('Monthly Database'!$A$8:$A$143,'Annual Data'!M$4,INDIRECT($E13&$F13&"8:"&$F13&"143")),NA()) -> 56.76333333 | N13: =IFERROR(AVERAGEIF('Monthly Database'!$A$8:$A$143,'Annual Data'!N$4,INDIRECT($E13&$F13&"8:"&$F13&"143")),NA()) -> 57.4725 | O13: =IFERROR(AVERAGEIF('Monthly Database'!$A$8:$A$143,'Annual Data'!O$4,INDIRECT($E13&$F13&"8:"&$F13&"143")),NA()) ->  | P13: =IFERROR(AVERAGEIF('Monthly Database'!$A$8:$A$143,'Annual Data'!P$4,INDIRECT($E13&$F13&"8:"&$F13&"143")),NA()) ->  | Q13: =IFERROR(AVERAGEIF('Monthly Database'!$A$8:$A$143,'Annual Data'!Q$4,INDIRECT($E13&$F13&"8:"&$F13&"143")),NA()) ->  | R13: =IFERROR(AVERAGEIF('Monthly Database'!$A$8:$A$143,'Annual Data'!R$4,INDIRECT($E13&$F13&"8:"&$F13&"143")),NA()) -> 
B14: 10 | C14: ='Monthly Analysis'!H14 -> CME_BRENTF_Futures USD/MMBTU | E14: 'Monthly Database'! | F14: L | G14: =IFERROR(AVERAGEIF('Monthly Database'!$A$8:$A$143,'Annual Data'!G$4,INDIRECT($E14&$F14&"8:"&$F14&"143")),NA()) -> 8.863294345 | H14: =IFERROR(AVERAGEIF('Monthly Database'!$A$8:$A$143,'Annual Data'!H$4,INDIRECT($E14&$F14&"8:"&$F14&"143")),NA()) -> 8.903395229 | I14: =IFERROR(AVERAGEIF('Monthly Database'!$A$8:$A$143,'Annual Data'!I$4,INDIRECT($E14&$F14&"8:"&$F14&"143")),NA()) -> 9.015563538 | J14: =IFERROR(AVERAGEIF('Monthly Database'!$A$8:$A$143,'Annual Data'!J$4,INDIRECT($E14&$F14&"8:"&$F14&"143")),NA()) -> 9.151421338 | K14: =IFERROR(AVERAGEIF('Monthly Database'!$A$8:$A$143,'Annual Data'!K$4,INDIRECT($E14&$F14&"8:"&$F14&"143")),NA()) -> 9.319102971 | L14: =IFERROR(AVERAGEIF('Monthly Database'!$A$8:$A$143,'Annual Data'!L$4,INDIRECT($E14&$F14&"8:"&$F14&"143")),NA()) -> 9.521462593 | M14: =IFERROR(AVERAGEIF('Monthly Database'!$A$8:$A$143,'Annual Data'!M$4,INDIRECT($E14&$F14&"8:"&$F14&"143")),NA()) -> 9.720682643 | N14: =IFERROR(AVERAGEIF('Monthly Database'!$A$8:$A$143,'Annual Data'!N$4,INDIRECT($E14&$F14&"8:"&$F14&"143")),NA()) -> 9.842126958 | O14: =IFERROR(AVERAGEIF('Monthly Database'!$A$8:$A$143,'Annual Data'!O$4,INDIRECT($E14&$F14&"8:"&$F14&"143")),NA()) ->  | P14: =IFERROR(AVERAGEIF('Monthly Database'!$A$8:$A$143,'Annual Data'!P$4,INDIRECT($E14&$F14&"8:"&$F14&"143")),NA()) ->  | Q14: =IFERROR(AVERAGEIF('Monthly Database'!$A$8:$A$143,'Annual Data'!Q$4,INDIRECT($E14&$F14&"8:"&$F14&"143")),NA()) ->  | R14: =IFERROR(AVERAGEIF('Monthly Database'!$A$8:$A$143,'Annual Data'!R$4,INDIRECT($E14&$F14&"8:"&$F14&"143")),NA()) -> 
B15: 11 | C15: ='Monthly Analysis'!H15 -> CME_PJM_OFF_Futures USD/MWH | E15: 'Monthly Database'! | F15: M | G15: =IFERROR(AVERAGEIF('Monthly Database'!$A$8:$A$143,'Annual Data'!G$4,INDIRECT($E15&$F15&"8:"&$F15&"143")),NA()) -> 24.1825 | H15: =IFERROR(AVERAGEIF('Monthly Database'!$A$8:$A$143,'Annual Data'!H$4,INDIRECT($E15&$F15&"8:"&$F15&"143")),NA()) -> 25.54333333 | I15: =IFERROR(AVERAGEIF('Monthly Database'!$A$8:$A$143,'Annual Data'!I$4,INDIRECT($E15&$F15&"8:"&$F15&"143")),NA()) -> 24.27833333 | J15: =IFERROR(AVERAGEIF('Monthly Database'!$A$8:$A$143,'Annual Data'!J$4,INDIRECT($E15&$F15&"8:"&$F15&"143")),NA()) -> 23.86416667 | K15: =IFERROR(AVERAGEIF('Monthly Database'!$A$8:$A$143,'Annual Data'!K$4,INDIRECT($E15&$F15&"8:"&$F15&"143")),NA()) -> 23.81416667 | L15: =IFERROR(AVERAGEIF('Monthly Database'!$A$8:$A$143,'Annual Data'!L$4,INDIRECT($E15&$F15&"8:"&$F15&"143")),NA()) -> 23.59916667 | M15: =IFERROR(AVERAGEIF('Monthly Database'!$A$8:$A$143,'Annual Data'!M$4,INDIRECT($E15&$F15&"8:"&$F15&"143")),NA()) ->  | N15: =IFERROR(AVERAGEIF('Monthly Database'!$A$8:$A$143,'Annual Data'!N$4,INDIRECT($E15&$F15&"8:"&$F15&"143")),NA()) ->  | O15: =IFERROR(AVERAGEIF('Monthly Database'!$A$8:$A$143,'Annual Data'!O$4,INDIRECT($E15&$F15&"8:"&$F15&"143")),NA()) ->  | P15: =IFERROR(AVERAGEIF('Monthly Database'!$A$8:$A$143,'Annual Data'!P$4,INDIRECT($E15&$F15&"8:"&$F15&"143")),NA()) ->  | Q15: =IFERROR(AVERAGEIF('Monthly Database'!$A$8:$A$143,'Annual Data'!Q$4,INDIRECT($E15&$F15&"8:"&$F15&"143")),NA()) ->  | R15: =IFERROR(AVERAGEIF('Monthly Database'!$A$8:$A$143,'Annual Data'!R$4,INDIRECT($E15&$F15&"8:"&$F15&"143")),NA()) -> 
B16: 12 | C16: ='Monthly Analysis'!H16 -> CME_PJM_OFF_Futures USD/MMBTU | E16: 'Monthly Database'! | F16: N | G16: =IFERROR(AVERAGEIF('Monthly Database'!$A$8:$A$143,'Annual Data'!G$4,INDIRECT($E16&$F16&"8:"&$F16&"143")),NA()) -> 82.51069 | H16: =IFERROR(AVERAGEIF('Monthly Database'!$A$8:$A$143,'Annual Data'!H$4,INDIRECT($E16&$F16&"8:"&$F16&"143")),NA()) -> 87.15385333 | I16: =IFERROR(AVERAGEIF('Monthly Database'!$A$8:$A$143,'Annual Data'!I$4,INDIRECT($E16&$F16&"8:"&$F16&"143")),NA()) -> 82.83767333 | J16: =IFERROR(AVERAGEIF('Monthly Database'!$A$8:$A$143,'Annual Data'!J$4,INDIRECT($E16&$F16&"8:"&$F16&"143")),NA()) -> 81.42453667 | K16: =IFERROR(AVERAGEIF('Monthly Database'!$A$8:$A$143,'Annual Data'!K$4,INDIRECT($E16&$F16&"8:"&$F16&"143")),NA()) -> 81.25393667 | L16: =IFERROR(AVERAGEIF('Monthly Database'!$A$8:$A$143,'Annual Data'!L$4,INDIRECT($E16&$F16&"8:"&$F16&"143")),NA()) -> 80.52035667 | M16: =IFERROR(AVERAGEIF('Monthly Database'!$A$8:$A$143,'Annual Data'!M$4,INDIRECT($E16&$F16&"8:"&$F16&"143")),NA()) ->  | N16: =IFERROR(AVERAGEIF('Monthly Database'!$A$8:$A$143,'Annual Data'!N$4,INDIRECT($E16&$F16&"8:"&$F16&"143")),NA()) ->  | O16: =IFERROR(AVERAGEIF('Monthly Database'!$A$8:$A$143,'Annual Data'!O$4,INDIRECT($E16&$F16&"8:"&$F16&"143")),NA()) ->  | P16: =IFERROR(AVERAGEIF('Monthly Database'!$A$8:$A$143,'Annual Data'!P$4,INDIRECT($E16&$F16&"8:"&$F16&"143")),NA()) ->  | Q16: =IFERROR(AVERAGEIF('Monthly Database'!$A$8:$A$143,'Annual Data'!Q$4,INDIRECT($E16&$F16&"8:"&$F16&"143")),NA()) ->  | R16: =IFERROR(AVERAGEIF('Monthly Database'!$A$8:$A$143,'Annual Data'!R$4,INDIRECT($E16&$F16&"8:"&$F16&"143")),NA()) -> 
B17: 13 | C17: ='Monthly Analysis'!H17 -> CME_PJM_ON_Futures USD/MWH | E17: 'Monthly Database'! | F17: O | G17: =IFERROR(AVERAGEIF('Monthly Database'!$A$8:$A$143,'Annual Data'!G$4,INDIRECT($E17&$F17&"8:"&$F17&"143")),NA()) ->  | H17: =IFERROR(AVERAGEIF('Monthly Database'!$A$8:$A$143,'Annual Data'!H$4,INDIRECT($E17&$F17&"8:"&$F17&"143")),NA()) -> 37.97 | I17: =IFERROR(AVERAGEIF('Monthly Database'!$A$8:$A$143,'Annual Data'!I$4,INDIRECT($E17&$F17&"8:"&$F17&"143")),NA()) -> 37.15 | J17: =IFERROR(AVERAGEIF('Monthly Database'!$A$8:$A$143,'Annual Data'!J$4,INDIRECT($E17&$F17&"8:"&$F17&"143")),NA()) -> 36.83 | K17: =IFERROR(AVERAGEIF('Monthly Database'!$A$8:$A$143,'Annual Data'!K$4,INDIRECT($E17&$F17&"8:"&$F17&"143")),NA()) -> 38.11 | L17: =IFERROR(AVERAGEIF('Monthly Database'!$A$8:$A$143,'Annual Data'!L$4,INDIRECT($E17&$F17&"8:"&$F17&"143")),NA()) ->  | M17: =IFERROR(AVERAGEIF('Monthly Database'!$A$8:$A$143,'Annual Data'!M$4,INDIRECT($E17&$F17&"8:"&$F17&"143")),NA()) ->  | N17: =IFERROR(AVERAGEIF('Monthly Database'!$A$8:$A$143,'Annual Data'!N$4,INDIRECT($E17&$F17&"8:"&$F17&"143")),NA()) ->  | O17: =IFERROR(AVERAGEIF('Monthly Database'!$A$8:$A$143,'Annual Data'!O$4,INDIRECT($E17&$F17&"8:"&$F17&"143")),NA()) ->  | P17: =IFERROR(AVERAGEIF('Monthly Database'!$A$8:$A$143,'Annual Data'!P$4,INDIRECT($E17&$F17&"8:"&$F17&"143")),NA()) ->  | Q17: =IFERROR(AVERAGEIF('Monthly Database'!$A$8:$A$143,'Annual Data'!Q$4,INDIRECT($E17&$F17&"8:"&$F17&"143")),NA()) ->  | R17: =IFERROR(AVERAGEIF('Monthly Database'!$A$8:$A$143,'Annual Data'!R$4,INDIRECT($E17&$F17&"8:"&$F17&"143")),NA()) -> 
B18: 14 | C18: ='Monthly Analysis'!H18 -> CME_PJM_ON_Futures USD/MMBTU | E18: 'Monthly Database'! | F18: P | G18: =IFERROR(AVERAGEIF('Monthly Database'!$A$8:$A$143,'Annual Data'!G$4,INDIRECT($E18&$F18&"8:"&$F18&"143")),NA()) ->  | H18: =IFERROR(AVERAGEIF('Monthly Database'!$A$8:$A$143,'Annual Data'!H$4,INDIRECT($E18&$F18&"8:"&$F18&"143")),NA()) -> 129.55364 | I18: =IFERROR(AVERAGEIF('Monthly Database'!$A$8:$A$143,'Annual Data'!I$4,INDIRECT($E18&$F18&"8:"&$F18&"143")),NA()) -> 126.7558 | J18: =IFERROR(AVERAGEIF('Monthly Database'!$A$8:$A$143,'Annual Data'!J$4,INDIRECT($E18&$F18&"8:"&$F18&"143")),NA()) -> 125.66396 | K18: =IFERROR(AVERAGEIF('Monthly Database'!$A$8:$A$143,'Annual Data'!K$4,INDIRECT($E18&$F18&"8:"&$F18&"143")),NA()) -> 130.03132 | L18: =IFERROR(AVERAGEIF('Monthly Database'!$A$8:$A$143,'Annual Data'!L$4,INDIRECT($E18&$F18&"8:"&$F18&"143")),NA()) ->  | M18: =IFERROR(AVERAGEIF('Monthly Database'!$A$8:$A$143,'Annual Data'!M$4,INDIRECT($E18&$F18&"8:"&$F18&"143")),NA()) ->  | N18: =IFERROR(AVERAGEIF('Monthly Database'!$A$8:$A$143,'Annual Data'!N$4,INDIRECT($E18&$F18&"8:"&$F18&"143")),NA()) ->  | O18: =IFERROR(AVERAGEIF('Monthly Database'!$A$8:$A$143,'Annual Data'!O$4,INDIRECT($E18&$F18&"8:"&$F18&"143")),NA()) ->  | P18: =IFERROR(AVERAGEIF('Monthly Database'!$A$8:$A$143,'Annual Data'!P$4,INDIRECT($E18&$F18&"8:"&$F18&"143")),NA()) ->  | Q18: =IFERROR(AVERAGEIF('Monthly Database'!$A$8:$A$143,'Annual Data'!Q$4,INDIRECT($E18&$F18&"8:"&$F18&"143")),NA()) ->  | R18: =IFERROR(AVERAGEIF('Monthly Database'!$A$8:$A$143,'Annual Data'!R$4,INDIRECT($E18&$F18&"8:"&$F18&"143")),NA()) -> 
B19: 15 | C19: ='Monthly Analysis'!H19 -> CME_NIND_Off_Futures USD/MWH | E19: 'Monthly Database'! | F19: Q | G19: =IFERROR(AVERAGEIF('Monthly Database'!$A$8:$A$143,'Annual Data'!G$4,INDIRECT($E19&$F19&"8:"&$F19&"143")),NA()) ->  | H19: =IFERROR(AVERAGEIF('Monthly Database'!$A$8:$A$143,'Annual Data'!H$4,INDIRECT($E19&$F19&"8:"&$F19&"143")),NA()) -> 25.24 | I19: =IFERROR(AVERAGEIF('Monthly Database'!$A$8:$A$143,'Annual Data'!I$4,INDIRECT($E19&$F19&"8:"&$F19&"143")),NA()) -> 24.73 | J19: =IFERROR(AVERAGEIF('Monthly Database'!$A$8:$A$143,'Annual Data'!J$4,INDIRECT($E19&$F19&"8:"&$F19&"143")),NA()) -> 24.35 | K19: =IFERROR(AVERAGEIF('Monthly Database'!$A$8:$A$143,'Annual Data'!K$4,INDIRECT($E19&$F19&"8:"&$F19&"143")),NA()) ->  | L19: =IFERROR(AVERAGEIF('Monthly Database'!$A$8:$A$143,'Annual Data'!L$4,INDIRECT($E19&$F19&"8:"&$F19&"143")),NA()) ->  | M19: =IFERROR(AVERAGEIF('Monthly Database'!$A$8:$A$143,'Annual Data'!M$4,INDIRECT($E19&$F19&"8:"&$F19&"143")),NA()) ->  | N19: =IFERROR(AVERAGEIF('Monthly Database'!$A$8:$A$143,'Annual Data'!N$4,INDIRECT($E19&$F19&"8:"&$F19&"143")),NA()) ->  | O19: =IFERROR(AVERAGEIF('Monthly Database'!$A$8:$A$143,'Annual Data'!O$4,INDIRECT($E19&$F19&"8:"&$F19&"143")),NA()) ->  | P19: =IFERROR(AVERAGEIF('Monthly Database'!$A$8:$A$143,'Annual Data'!P$4,INDIRECT($E19&$F19&"8:"&$F19&"143")),NA()) ->  | Q19: =IFERROR(AVERAGEIF('Monthly Database'!$A$8:$A$143,'Annual Data'!Q$4,INDIRECT($E19&$F19&"8:"&$F19&"143")),NA()) ->  | R19: =IFERROR(AVERAGEIF('Monthly Database'!$A$8:$A$143,'Annual Data'!R$4,INDIRECT($E19&$F19&"8:"&$F19&"143")),NA()) -> 
B20: 16 | C20: ='Monthly Analysis'!H20 -> CME_NIND_Off_Futures USD/MMBTU | E20: 'Monthly Database'! | F20: R | G20: =IFERROR(AVERAGEIF('Monthly Database'!$A$8:$A$143,'Annual Data'!G$4,INDIRECT($E20&$F20&"8:"&$F20&"143")),NA()) ->  | H20: =IFERROR(AVERAGEIF('Monthly Database'!$A$8:$A$143,'Annual Data'!H$4,INDIRECT($E20&$F20&"8:"&$F20&"143")),NA()) -> 86.11888 | I20: =IFERROR(AVERAGEIF('Monthly Database'!$A$8:$A$143,'Annual Data'!I$4,INDIRECT($E20&$F20&"8:"&$F20&"143")),NA()) -> 84.37876 | J20: =IFERROR(AVERAGEIF('Monthly Database'!$A$8:$A$143,'Annual Data'!J$4,INDIRECT($E20&$F20&"8:"&$F20&"143")),NA()) -> 83.0822 | K20: =IFERROR(AVERAGEIF('Monthly Database'!$A$8:$A$143,'Annual Data'!K$4,INDIRECT($E20&$F20&"8:"&$F20&"143")),NA()) ->  | L20: =IFERROR(AVERAGEIF('Monthly Database'!$A$8:$A$143,'Annual Data'!L$4,INDIRECT($E20&$F20&"8:"&$F20&"143")),NA()) ->  | M20: =IFERROR(AVERAGEIF('Monthly Database'!$A$8:$A$143,'Annual Data'!M$4,INDIRECT($E20&$F20&"8:"&$F20&"143")),NA()) ->  | N20: =IFERROR(AVERAGEIF('Monthly Database'!$A$8:$A$143,'Annual Data'!N$4,INDIRECT($E20&$F20&"8:"&$F20&"143")),NA()) ->  | O20: =IFERROR(AVERAGEIF('Monthly Database'!$A$8:$A$143,'Annual Data'!O$4,INDIRECT($E20&$F20&"8:"&$F20&"143")),NA()) ->  | P20: =IFERROR(AVERAGEIF('Monthly Database'!$A$8:$A$143,'Annual Data'!P$4,INDIRECT($E20&$F20&"8:"&$F20&"143")),NA()) ->  | Q20: =IFERROR(AVERAGEIF('Monthly Database'!$A$8:$A$143,'Annual Data'!Q$4,INDIRECT($E20&$F20&"8:"&$F20&"143")),NA()) ->  | R20: =IFERROR(AVERAGEIF('Monthly Database'!$A$8:$A$143,'Annual Data'!R$4,INDIRECT($E20&$F20&"8:"&$F20&"143")),NA()) -> 
B21: 17 | C21: ='Monthly Analysis'!H21 -> CME_Gas_Futures USD/MMBTU | E21: 'Monthly Database'! | F21: S | G21: =IFERROR(AVERAGEIF('Monthly Database'!$A$8:$A$143,'Annual Data'!G$4,INDIRECT($E21&$F21&"8:"&$F21&"143")),NA()) -> 3.04425 | H21: =IFERROR(AVERAGEIF('Monthly Database'!$A$8:$A$143,'Annual Data'!H$4,INDIRECT($E21&$F21&"8:"&$F21&"143")),NA()) -> 3.018666667 | I21: =IFERROR(AVERAGEIF('Monthly Database'!$A$8:$A$143,'Annual Data'!I$4,INDIRECT($E21&$F21&"8:"&$F21&"143")),NA()) -> 2.836333333 | J21: =IFERROR(AVERAGEIF('Monthly Database'!$A$8:$A$143,'Annual Data'!J$4,INDIRECT($E21&$F21&"8:"&$F21&"143")),NA()) -> 2.757833333 | K21: =IFERROR(AVERAGEIF('Monthly Database'!$A$8:$A$143,'Annual Data'!K$4,INDIRECT($E21&$F21&"8:"&$F21&"143")),NA()) -> 2.749416667 | L21: =IFERROR(AVERAGEIF('Monthly Database'!$A$8:$A$143,'Annual Data'!L$4,INDIRECT($E21&$F21&"8:"&$F21&"143")),NA()) -> 2.76975 | M21: =IFERROR(AVERAGEIF('Monthly Database'!$A$8:$A$143,'Annual Data'!M$4,INDIRECT($E21&$F21&"8:"&$F21&"143")),NA()) -> 2.8045 | N21: =IFERROR(AVERAGEIF('Monthly Database'!$A$8:$A$143,'Annual Data'!N$4,INDIRECT($E21&$F21&"8:"&$F21&"143")),NA()) -> 2.8635 | O21: =IFERROR(AVERAGEIF('Monthly Database'!$A$8:$A$143,'Annual Data'!O$4,INDIRECT($E21&$F21&"8:"&$F21&"143")),NA()) ->  | P21: =IFERROR(AVERAGEIF('Monthly Database'!$A$8:$A$143,'Annual Data'!P$4,INDIRECT($E21&$F21&"8:"&$F21&"143")),NA()) ->  | Q21: =IFERROR(AVERAGEIF('Monthly Database'!$A$8:$A$143,'Annual Data'!Q$4,INDIRECT($E21&$F21&"8:"&$F21&"143")),NA()) -> 3.18325 | R21: =IFERROR(AVERAGEIF('Monthly Database'!$A$8:$A$143,'Annual Data'!R$4,INDIRECT($E21&$F21&"8:"&$F21&"143")),NA()) -> 
B22: 18 | C22: ='Monthly Analysis'!H22 -> CME_Algonquin USD/MMBTU | E22: 'Monthly Database'! | F22: T | G22: =IFERROR(AVERAGEIF('Monthly Database'!$A$8:$A$143,'Annual Data'!G$4,INDIRECT($E22&$F22&"8:"&$F22&"143")),NA()) -> 0.62475 | H22: =IFERROR(AVERAGEIF('Monthly Database'!$A$8:$A$143,'Annual Data'!H$4,INDIRECT($E22&$F22&"8:"&$F22&"143")),NA()) -> 1.36825 | I22: =IFERROR(AVERAGEIF('Monthly Database'!$A$8:$A$143,'Annual Data'!I$4,INDIRECT($E22&$F22&"8:"&$F22&"143")),NA()) -> 1.471583333 | J22: =IFERROR(AVERAGEIF('Monthly Database'!$A$8:$A$143,'Annual Data'!J$4,INDIRECT($E22&$F22&"8:"&$F22&"143")),NA()) -> 1.779125 | K22: =IFERROR(AVERAGEIF('Monthly Database'!$A$8:$A$143,'Annual Data'!K$4,INDIRECT($E22&$F22&"8:"&$F22&"143")),NA()) ->  | L22: =IFERROR(AVERAGEIF('Monthly Database'!$A$8:$A$143,'Annual Data'!L$4,INDIRECT($E22&$F22&"8:"&$F22&"143")),NA()) ->  | M22: =IFERROR(AVERAGEIF('Monthly Database'!$A$8:$A$143,'Annual Data'!M$4,INDIRECT($E22&$F22&"8:"&$F22&"143")),NA()) ->  | N22: =IFERROR(AVERAGEIF('Monthly Database'!$A$8:$A$143,'Annual Data'!N$4,INDIRECT($E22&$F22&"8:"&$F22&"143")),NA()) ->  | O22: =IFERROR(AVERAGEIF('Monthly Database'!$A$8:$A$143,'Annual Data'!O$4,INDIRECT($E22&$F22&"8:"&$F22&"143")),NA()) ->  | P22: =IFERROR(AVERAGEIF('Monthly Database'!$A$8:$A$143,'Annual Data'!P$4,INDIRECT($E22&$F22&"8:"&$F22&"143")),NA()) ->  | Q22: =IFERROR(AVERAGEIF('Monthly Database'!$A$8:$A$143,'Annual Data'!Q$4,INDIRECT($E22&$F22&"8:"&$F22&"143")),NA()) ->  | R22: =IFERROR(AVERAGEIF('Monthly Database'!$A$8:$A$143,'Annual Data'!R$4,INDIRECT($E22&$F22&"8:"&$F22&"143")),NA()) -> 
B23: 19 | C23: ='Monthly Analysis'!H23 -> CME_No2_Oil US Cents/Gal | E23: 'Monthly Database'! | F23: U | G23: =IFERROR(AVERAGEIF('Monthly Database'!$A$8:$A$143,'Annual Data'!G$4,INDIRECT($E23&$F23&"8:"&$F23&"143")),NA()) -> 1.625025 | H23: =IFERROR(AVERAGEIF('Monthly Database'!$A$8:$A$143,'Annual Data'!H$4,INDIRECT($E23&$F23&"8:"&$F23&"143")),NA()) -> 1.623958333 | I23: =IFERROR(AVERAGEIF('Monthly Database'!$A$8:$A$143,'Annual Data'!I$4,INDIRECT($E23&$F23&"8:"&$F23&"143")),NA()) -> 1.641258333 | J23: =IFERROR(AVERAGEIF('Monthly Database'!$A$8:$A$143,'Annual Data'!J$4,INDIRECT($E23&$F23&"8:"&$F23&"143")),NA()) -> 1.683425 | K23: =IFERROR(AVERAGEIF('Monthly Database'!$A$8:$A$143,'Annual Data'!K$4,INDIRECT($E23&$F23&"8:"&$F23&"143")),NA()) -> 1.7118 | L23: =IFERROR(AVERAGEIF('Monthly Database'!$A$8:$A$143,'Annual Data'!L$4,INDIRECT($E23&$F23&"8:"&$F23&"143")),NA()) ->  | M23: =IFERROR(AVERAGEIF('Monthly Database'!$A$8:$A$143,'Annual Data'!M$4,INDIRECT($E23&$F23&"8:"&$F23&"143")),NA()) ->  | N23: =IFERROR(AVERAGEIF('Monthly Database'!$A$8:$A$143,'Annual Data'!N$4,INDIRECT($E23&$F23&"8:"&$F23&"143")),NA()) ->  | O23: =IFERROR(AVERAGEIF('Monthly Database'!$A$8:$A$143,'Annual Data'!O$4,INDIRECT($E23&$F23&"8:"&$F23&"143")),NA()) ->  | P23: =IFERROR(AVERAGEIF('Monthly Database'!$A$8:$A$143,'Annual Data'!P$4,INDIRECT($E23&$F23&"8:"&$F23&"143")),NA()) ->  | Q23: =IFERROR(AVERAGEIF('Monthly Database'!$A$8:$A$143,'Annual Data'!Q$4,INDIRECT($E23&$F23&"8:"&$F23&"143")),NA()) ->  | R23: =IFERROR(AVERAGEIF('Monthly Database'!$A$8:$A$143,'Annual Data'!R$4,INDIRECT($E23&$F23&"8:"&$F23&"143")),NA()) -> 
B24: 20 | C24: ='Monthly Analysis'!H24 -> CME_No2_Oil USD/MMBTU | E24: 'Monthly Database'! | F24: V | G24: =IFERROR(AVERAGEIF('Monthly Database'!$A$8:$A$143,'Annual Data'!G$4,INDIRECT($E24&$F24&"8:"&$F24&"143")),NA()) -> 11.71691644 | H24: =IFERROR(AVERAGEIF('Monthly Database'!$A$8:$A$143,'Annual Data'!H$4,INDIRECT($E24&$F24&"8:"&$F24&"143")),NA()) -> 11.70922546 | I24: =IFERROR(AVERAGEIF('Monthly Database'!$A$8:$A$143,'Annual Data'!I$4,INDIRECT($E24&$F24&"8:"&$F24&"143")),NA()) -> 11.83396363 | J24: =IFERROR(AVERAGEIF('Monthly Database'!$A$8:$A$143,'Annual Data'!J$4,INDIRECT($E24&$F24&"8:"&$F24&"143")),NA()) -> 12.13799792 | K24: =IFERROR(AVERAGEIF('Monthly Database'!$A$8:$A$143,'Annual Data'!K$4,INDIRECT($E24&$F24&"8:"&$F24&"143")),NA()) -> 12.34259016 | L24: =IFERROR(AVERAGEIF('Monthly Database'!$A$8:$A$143,'Annual Data'!L$4,INDIRECT($E24&$F24&"8:"&$F24&"143")),NA()) ->  | M24: =IFERROR(AVERAGEIF('Monthly Database'!$A$8:$A$143,'Annual Data'!M$4,INDIRECT($E24&$F24&"8:"&$F24&"143")),NA()) ->  | N24: =IFERROR(AVERAGEIF('Monthly Database'!$A$8:$A$143,'Annual Data'!N$4,INDIRECT($E24&$F24&"8:"&$F24&"143")),NA()) ->  | O24: =IFERROR(AVERAGEIF('Monthly Database'!$A$8:$A$143,'Annual Data'!O$4,INDIRECT($E24&$F24&"8:"&$F24&"143")),NA()) ->  | P24: =IFERROR(AVERAGEIF('Monthly Database'!$A$8:$A$143,'Annual Data'!P$4,INDIRECT($E24&$F24&"8:"&$F24&"143")),NA()) ->  | Q24: =IFERROR(AVERAGEIF('Monthly Database'!$A$8:$A$143,'Annual Data'!Q$4,INDIRECT($E24&$F24&"8:"&$F24&"143")),NA()) ->  | R24: =IFERROR(AVERAGEIF('Monthly Database'!$A$8:$A$143,'Annual Data'!R$4,INDIRECT($E24&$F24&"8:"&$F24&"143")),NA()) -> 
B25: 21 | C25: ='Monthly Analysis'!H25 -> CME_Gasoline US Cents/Gal | E25: 'Monthly Database'! | F25: W | G25: =IFERROR(AVERAGEIF('Monthly Database'!$A$8:$A$143,'Annual Data'!G$4,INDIRECT($E25&$F25&"8:"&$F25&"143")),NA()) ->  | H25: =IFERROR(AVERAGEIF('Monthly Database'!$A$8:$A$143,'Annual Data'!H$4,INDIRECT($E25&$F25&"8:"&$F25&"143")),NA()) -> 1.6479 | I25: =IFERROR(AVERAGEIF('Monthly Database'!$A$8:$A$143,'Annual Data'!I$4,INDIRECT($E25&$F25&"8:"&$F25&"143")),NA()) -> 1.6387 | J25: =IFERROR(AVERAGEIF('Monthly Database'!$A$8:$A$143,'Annual Data'!J$4,INDIRECT($E25&$F25&"8:"&$F25&"143")),NA()) -> 1.6337 | K25: =IFERROR(AVERAGEIF('Monthly Database'!$A$8:$A$143,'Annual Data'!K$4,INDIRECT($E25&$F25&"8:"&$F25&"143")),NA()) ->  | L25: =IFERROR(AVERAGEIF('Monthly Database'!$A$8:$A$143,'Annual Data'!L$4,INDIRECT($E25&$F25&"8:"&$F25&"143")),NA()) ->  | M25: =IFERROR(AVERAGEIF('Monthly Database'!$A$8:$A$143,'Annual Data'!M$4,INDIRECT($E25&$F25&"8:"&$F25&"143")),NA()) ->  | N25: =IFERROR(AVERAGEIF('Monthly Database'!$A$8:$A$143,'Annual Data'!N$4,INDIRECT($E25&$F25&"8:"&$F25&"143")),NA()) ->  | O25: =IFERROR(AVERAGEIF('Monthly Database'!$A$8:$A$143,'Annual Data'!O$4,INDIRECT($E25&$F25&"8:"&$F25&"143")),NA()) ->  | P25: =IFERROR(AVERAGEIF('Monthly Database'!$A$8:$A$143,'Annual Data'!P$4,INDIRECT($E25&$F25&"8:"&$F25&"143")),NA()) ->  | Q25: =IFERROR(AVERAGEIF('Monthly Database'!$A$8:$A$143,'Annual Data'!Q$4,INDIRECT($E25&$F25&"8:"&$F25&"143")),NA()) ->  | R25: =IFERROR(AVERAGEIF('Monthly Database'!$A$8:$A$143,'Annual Data'!R$4,INDIRECT($E25&$F25&"8:"&$F25&"143")),NA()) -> 
B26: 22 | C26: ='Monthly Analysis'!H26 -> CME_Gasoline USD/MMBTU | E26: 'Monthly Database'! | F26: X | G26: =IFERROR(AVERAGEIF('Monthly Database'!$A$8:$A$143,'Annual Data'!G$4,INDIRECT($E26&$F26&"8:"&$F26&"143")),NA()) ->  | H26: =IFERROR(AVERAGEIF('Monthly Database'!$A$8:$A$143,'Annual Data'!H$4,INDIRECT($E26&$F26&"8:"&$F26&"143")),NA()) -> 11.88185204 | I26: =IFERROR(AVERAGEIF('Monthly Database'!$A$8:$A$143,'Annual Data'!I$4,INDIRECT($E26&$F26&"8:"&$F26&"143")),NA()) -> 11.81551728 | J26: =IFERROR(AVERAGEIF('Monthly Database'!$A$8:$A$143,'Annual Data'!J$4,INDIRECT($E26&$F26&"8:"&$F26&"143")),NA()) -> 11.77946579 | K26: =IFERROR(AVERAGEIF('Monthly Database'!$A$8:$A$143,'Annual Data'!K$4,INDIRECT($E26&$F26&"8:"&$F26&"143")),NA()) ->  | L26: =IFERROR(AVERAGEIF('Monthly Database'!$A$8:$A$143,'Annual Data'!L$4,INDIRECT($E26&$F26&"8:"&$F26&"143")),NA()) ->  | M26: =IFERROR(AVERAGEIF('Monthly Database'!$A$8:$A$143,'Annual Data'!M$4,INDIRECT($E26&$F26&"8:"&$F26&"143")),NA()) ->  | N26: =IFERROR(AVERAGEIF('Monthly Database'!$A$8:$A$143,'Annual Data'!N$4,INDIRECT($E26&$F26&"8:"&$F26&"143")),NA()) ->  | O26: =IFERROR(AVERAGEIF('Monthly Database'!$A$8:$A$143,'Annual Data'!O$4,INDIRECT($E26&$F26&"8:"&$F26&"143")),NA()) ->  | P26: =IFERROR(AVERAGEIF('Monthly Database'!$A$8:$A$143,'Annual Data'!P$4,INDIRECT($E26&$F26&"8:"&$F26&"143")),NA()) ->  | Q26: =IFERROR(AVERAGEIF('Monthly Database'!$A$8:$A$143,'Annual Data'!Q$4,INDIRECT($E26&$F26&"8:"&$F26&"143")),NA()) ->  | R26: =IFERROR(AVERAGEIF('Monthly Database'!$A$8:$A$143,'Annual Data'!R$4,INDIRECT($E26&$F26&"8:"&$F26&"143")),NA()) -> 
B27: 23 | C27: ='Monthly Analysis'!H27 -> Coal_Pbasin USD/Ton | E27: 'Monthly Database'! | F27: Y | G27: =IFERROR(AVERAGEIF('Monthly Database'!$A$8:$A$143,'Annual Data'!G$4,INDIRECT($E27&$F27&"8:"&$F27&"143")),NA()) ->  | H27: =IFERROR(AVERAGEIF('Monthly Database'!$A$8:$A$143,'Annual Data'!H$4,INDIRECT($E27&$F27&"8:"&$F27&"143")),NA()) -> 11.65 | I27: =IFERROR(AVERAGEIF('Monthly Database'!$A$8:$A$143,'Annual Data'!I$4,INDIRECT($E27&$F27&"8:"&$F27&"143")),NA()) ->  | J27: =IFERROR(AVERAGEIF('Monthly Database'!$A$8:$A$143,'Annual Data'!J$4,INDIRECT($E27&$F27&"8:"&$F27&"143")),NA()) ->  | K27: =IFERROR(AVERAGEIF('Monthly Database'!$A$8:$A$143,'Annual Data'!K$4,INDIRECT($E27&$F27&"8:"&$F27&"143")),NA()) ->  | L27: =IFERROR(AVERAGEIF('Monthly Database'!$A$8:$A$143,'Annual Data'!L$4,INDIRECT($E27&$F27&"8:"&$F27&"143")),NA()) ->  | M27: =IFERROR(AVERAGEIF('Monthly Database'!$A$8:$A$143,'Annual Data'!M$4,INDIRECT($E27&$F27&"8:"&$F27&"143")),NA()) ->  | N27: =IFERROR(AVERAGEIF('Monthly Database'!$A$8:$A$143,'Annual Data'!N$4,INDIRECT($E27&$F27&"8:"&$F27&"143")),NA()) ->  | O27: =IFERROR(AVERAGEIF('Monthly Database'!$A$8:$A$143,'Annual Data'!O$4,INDIRECT($E27&$F27&"8:"&$F27&"143")),NA()) ->  | P27: =IFERROR(AVERAGEIF('Monthly Database'!$A$8:$A$143,'Annual Data'!P$4,INDIRECT($E27&$F27&"8:"&$F27&"143")),NA()) ->  | Q27: =IFERROR(AVERAGEIF('Monthly Database'!$A$8:$A$143,'Annual Data'!Q$4,INDIRECT($E27&$F27&"8:"&$F27&"143")),NA()) ->  | R27: =IFERROR(AVERAGEIF('Monthly Database'!$A$8:$A$143,'Annual Data'!R$4,INDIRECT($E27&$F27&"8:"&$F27&"143")),NA()) -> 
B28: 24 | C28: ='Monthly Analysis'!H28 -> Coal_Pbasin USD/MMBTU | E28: 'Monthly Database'! | F28: Z | G28: =IFERROR(AVERAGEIF('Monthly Database'!$A$8:$A$143,'Annual Data'!G$4,INDIRECT($E28&$F28&"8:"&$F28&"143")),NA()) ->  | H28: =IFERROR(AVERAGEIF('Monthly Database'!$A$8:$A$143,'Annual Data'!H$4,INDIRECT($E28&$F28&"8:"&$F28&"143")),NA()) -> 0.4673084637 | I28: =IFERROR(AVERAGEIF('Monthly Database'!$A$8:$A$143,'Annual Data'!I$4,INDIRECT($E28&$F28&"8:"&$F28&"143")),NA()) ->  | J28: =IFERROR(AVERAGEIF('Monthly Database'!$A$8:$A$143,'Annual Data'!J$4,INDIRECT($E28&$F28&"8:"&$F28&"143")),NA()) ->  | K28: =IFERROR(AVERAGEIF('Monthly Database'!$A$8:$A$143,'Annual Data'!K$4,INDIRECT($E28&$F28&"8:"&$F28&"143")),NA()) ->  | L28: =IFERROR(AVERAGEIF('Monthly Database'!$A$8:$A$143,'Annual Data'!L$4,INDIRECT($E28&$F28&"8:"&$F28&"143")),NA()) ->  | M28: =IFERROR(AVERAGEIF('Monthly Database'!$A$8:$A$143,'Annual Data'!M$4,INDIRECT($E28&$F28&"8:"&$F28&"143")),NA()) ->  | N28: =IFERROR(AVERAGEIF('Monthly Database'!$A$8:$A$143,'Annual Data'!N$4,INDIRECT($E28&$F28&"8:"&$F28&"143")),NA()) ->  | O28: =IFERROR(AVERAGEIF('Monthly Database'!$A$8:$A$143,'Annual Data'!O$4,INDIRECT($E28&$F28&"8:"&$F28&"143")),NA()) ->  | P28: =IFERROR(AVERAGEIF('Monthly Database'!$A$8:$A$143,'Annual Data'!P$4,INDIRECT($E28&$F28&"8:"&$F28&"143")),NA()) ->  | Q28: =IFERROR(AVERAGEIF('Monthly Database'!$A$8:$A$143,'Annual Data'!Q$4,INDIRECT($E28&$F28&"8:"&$F28&"143")),NA()) ->  | R28: =IFERROR(AVERAGEIF('Monthly Database'!$A$8:$A$143,'Annual Data'!R$4,INDIRECT($E28&$F28&"8:"&$F28&"143")),NA()) -> 
B29: 25 | C29: ='Monthly Analysis'!H29 -> Coal_API4 USD/Ton | E29: 'Monthly Database'! | F29: AA | G29: =IFERROR(AVERAGEIF('Monthly Database'!$A$8:$A$143,'Annual Data'!G$4,INDIRECT($E29&$F29&"8:"&$F29&"143")),NA()) ->  | H29: =IFERROR(AVERAGEIF('Monthly Database'!$A$8:$A$143,'Annual Data'!H$4,INDIRECT($E29&$F29&"8:"&$F29&"143")),NA()) -> 79.5 | I29: =IFERROR(AVERAGEIF('Monthly Database'!$A$8:$A$143,'Annual Data'!I$4,INDIRECT($E29&$F29&"8:"&$F29&"143")),NA()) -> 75.7 | J29: =IFERROR(AVERAGEIF('Monthly Database'!$A$8:$A$143,'Annual Data'!J$4,INDIRECT($E29&$F29&"8:"&$F29&"143")),NA()) -> 73.15 | K29: =IFERROR(AVERAGEIF('Monthly Database'!$A$8:$A$143,'Annual Data'!K$4,INDIRECT($E29&$F29&"8:"&$F29&"143")),NA()) -> 72.85 | L29: =IFERROR(AVERAGEIF('Monthly Database'!$A$8:$A$143,'Annual Data'!L$4,INDIRECT($E29&$F29&"8:"&$F29&"143")),NA()) ->  | M29: =IFERROR(AVERAGEIF('Monthly Database'!$A$8:$A$143,'Annual Data'!M$4,INDIRECT($E29&$F29&"8:"&$F29&"143")),NA()) ->  | N29: =IFERROR(AVERAGEIF('Monthly Database'!$A$8:$A$143,'Annual Data'!N$4,INDIRECT($E29&$F29&"8:"&$F29&"143")),NA()) ->  | O29: =IFERROR(AVERAGEIF('Monthly Database'!$A$8:$A$143,'Annual Data'!O$4,INDIRECT($E29&$F29&"8:"&$F29&"143")),NA()) ->  | P29: =IFERROR(AVERAGEIF('Monthly Database'!$A$8:$A$143,'Annual Data'!P$4,INDIRECT($E29&$F29&"8:"&$F29&"143")),NA()) ->  | Q29: =IFERROR(AVERAGEIF('Monthly Database'!$A$8:$A$143,'Annual Data'!Q$4,INDIRECT($E29&$F29&"8:"&$F29&"143")),NA()) ->  | R29: =IFERROR(AVERAGEIF('Monthly Database'!$A$8:$A$143,'Annual Data'!R$4,INDIRECT($E29&$F29&"8:"&$F29&"143")),NA()) -> 
B30: 26 | C30: ='Monthly Analysis'!H30 -> Coal_API4 USD/MMBTU | E30: 'Monthly Database'! | F30: AB | G30: =IFERROR(AVERAGEIF('Monthly Database'!$A$8:$A$143,'Annual Data'!G$4,INDIRECT($E30&$F30&"8:"&$F30&"143")),NA()) ->  | H30: =IFERROR(AVERAGEIF('Monthly Database'!$A$8:$A$143,'Annual Data'!H$4,INDIRECT($E30&$F30&"8:"&$F30&"143")),NA()) -> 3.168593065 | I30: =IFERROR(AVERAGEIF('Monthly Database'!$A$8:$A$143,'Annual Data'!I$4,INDIRECT($E30&$F30&"8:"&$F30&"143")),NA()) -> 3.017138302 | J30: =IFERROR(AVERAGEIF('Monthly Database'!$A$8:$A$143,'Annual Data'!J$4,INDIRECT($E30&$F30&"8:"&$F30&"143")),NA()) -> 2.915504185 | K30: =IFERROR(AVERAGEIF('Monthly Database'!$A$8:$A$143,'Annual Data'!K$4,INDIRECT($E30&$F30&"8:"&$F30&"143")),NA()) -> 2.90354723 | L30: =IFERROR(AVERAGEIF('Monthly Database'!$A$8:$A$143,'Annual Data'!L$4,INDIRECT($E30&$F30&"8:"&$F30&"143")),NA()) ->  | M30: =IFERROR(AVERAGEIF('Monthly Database'!$A$8:$A$143,'Annual Data'!M$4,INDIRECT($E30&$F30&"8:"&$F30&"143")),NA()) ->  | N30: =IFERROR(AVERAGEIF('Monthly Database'!$A$8:$A$143,'Annual Data'!N$4,INDIRECT($E30&$F30&"8:"&$F30&"143")),NA()) ->  | O30: =IFERROR(AVERAGEIF('Monthly Database'!$A$8:$A$143,'Annual Data'!O$4,INDIRECT($E30&$F30&"8:"&$F30&"143")),NA()) ->  | P30: =IFERROR(AVERAGEIF('Monthly Database'!$A$8:$A$143,'Annual Data'!P$4,INDIRECT($E30&$F30&"8:"&$F30&"143")),NA()) ->  | Q30: =IFERROR(AVERAGEIF('Monthly Database'!$A$8:$A$143,'Annual Data'!Q$4,INDIRECT($E30&$F30&"8:"&$F30&"143")),NA()) ->  | R30: =IFERROR(AVERAGEIF('Monthly Database'!$A$8:$A$143,'Annual Data'!R$4,INDIRECT($E30&$F30&"8:"&$F30&"143")),NA()) -> 
B31: 27 | C31: ='Monthly Analysis'!H31 -> ULSD_Gulf USD/BBL | E31: 'Monthly Database'! | F31: AC | G31: =IFERROR(AVERAGEIF('Monthly Database'!$A$8:$A$143,'Annual Data'!G$4,INDIRECT($E31&$F31&"8:"&$F31&"143")),NA()) ->  | H31: =IFERROR(AVERAGEIF('Monthly Database'!$A$8:$A$143,'Annual Data'!H$4,INDIRECT($E31&$F31&"8:"&$F31&"143")),NA()) -> 44.28 | I31: =IFERROR(AVERAGEIF('Monthly Database'!$A$8:$A$143,'Annual Data'!I$4,INDIRECT($E31&$F31&"8:"&$F31&"143")),NA()) -> 43.57 | J31: =IFERROR(AVERAGEIF('Monthly Database'!$A$8:$A$143,'Annual Data'!J$4,INDIRECT($E31&$F31&"8:"&$F31&"143")),NA()) -> 40.99 | K31: =IFERROR(AVERAGEIF('Monthly Database'!$A$8:$A$143,'Annual Data'!K$4,INDIRECT($E31&$F31&"8:"&$F31&"143")),NA()) ->  | L31: =IFERROR(AVERAGEIF('Monthly Database'!$A$8:$A$143,'Annual Data'!L$4,INDIRECT($E31&$F31&"8:"&$F31&"143")),NA()) ->  | M31: =IFERROR(AVERAGEIF('Monthly Database'!$A$8:$A$143,'Annual Data'!M$4,INDIRECT($E31&$F31&"8:"&$F31&"143")),NA()) ->  | N31: =IFERROR(AVERAGEIF('Monthly Database'!$A$8:$A$143,'Annual Data'!N$4,INDIRECT($E31&$F31&"8:"&$F31&"143")),NA()) ->  | O31: =IFERROR(AVERAGEIF('Monthly Database'!$A$8:$A$143,'Annual Data'!O$4,INDIRECT($E31&$F31&"8:"&$F31&"143")),NA()) ->  | P31: =IFERROR(AVERAGEIF('Monthly Database'!$A$8:$A$143,'Annual Data'!P$4,INDIRECT($E31&$F31&"8:"&$F31&"143")),NA()) ->  | Q31: =IFERROR(AVERAGEIF('Monthly Database'!$A$8:$A$143,'Annual Data'!Q$4,INDIRECT($E31&$F31&"8:"&$F31&"143")),NA()) ->  | R31: =IFERROR(AVERAGEIF('Monthly Database'!$A$8:$A$143,'Annual Data'!R$4,INDIRECT($E31&$F31&"8:"&$F31&"143")),NA()) -> 
B32: 28 | C32: ='Monthly Analysis'!H32 -> ULSD_Gulf USD/MMBTU | E32: 'Monthly Database'! | F32: AD | G32: =IFERROR(AVERAGEIF('Monthly Database'!$A$8:$A$143,'Annual Data'!G$4,INDIRECT($E32&$F32&"8:"&$F32&"143")),NA()) ->  | H32: =IFERROR(AVERAGEIF('Monthly Database'!$A$8:$A$143,'Annual Data'!H$4,INDIRECT($E32&$F32&"8:"&$F32&"143")),NA()) -> 7.65560166 | I32: =IFERROR(AVERAGEIF('Monthly Database'!$A$8:$A$143,'Annual Data'!I$4,INDIRECT($E32&$F32&"8:"&$F32&"143")),NA()) -> 7.532849239 | J32: =IFERROR(AVERAGEIF('Monthly Database'!$A$8:$A$143,'Annual Data'!J$4,INDIRECT($E32&$F32&"8:"&$F32&"143")),NA()) -> 7.086791148 | K32: =IFERROR(AVERAGEIF('Monthly Database'!$A$8:$A$143,'Annual Data'!K$4,INDIRECT($E32&$F32&"8:"&$F32&"143")),NA()) ->  | L32: =IFERROR(AVERAGEIF('Monthly Database'!$A$8:$A$143,'Annual Data'!L$4,INDIRECT($E32&$F32&"8:"&$F32&"143")),NA()) ->  | M32: =IFERROR(AVERAGEIF('Monthly Database'!$A$8:$A$143,'Annual Data'!M$4,INDIRECT($E32&$F32&"8:"&$F32&"143")),NA()) ->  | N32: =IFERROR(AVERAGEIF('Monthly Database'!$A$8:$A$143,'Annual Data'!N$4,INDIRECT($E32&$F32&"8:"&$F32&"143")),NA()) ->  | O32: =IFERROR(AVERAGEIF('Monthly Database'!$A$8:$A$143,'Annual Data'!O$4,INDIRECT($E32&$F32&"8:"&$F32&"143")),NA()) ->  | P32: =IFERROR(AVERAGEIF('Monthly Database'!$A$8:$A$143,'Annual Data'!P$4,INDIRECT($E32&$F32&"8:"&$F32&"143")),NA()) ->  | Q32: =IFERROR(AVERAGEIF('Monthly Database'!$A$8:$A$143,'Annual Data'!Q$4,INDIRECT($E32&$F32&"8:"&$F32&"143")),NA()) ->  | R32: =IFERROR(AVERAGEIF('Monthly Database'!$A$8:$A$143,'Annual Data'!R$4,INDIRECT($E32&$F32&"8:"&$F32&"143")),NA()) -> 
B33: 29 | C33: ='Monthly Analysis'!H33 -> Crack_Spread USD/BBL | E33: 'Monthly Database'! | F33: AE | G33: =IFERROR(AVERAGEIF('Monthly Database'!$A$8:$A$143,'Annual Data'!G$4,INDIRECT($E33&$F33&"8:"&$F33&"143")),NA()) ->  | H33: =IFERROR(AVERAGEIF('Monthly Database'!$A$8:$A$143,'Annual Data'!H$4,INDIRECT($E33&$F33&"8:"&$F33&"143")),NA()) -> 11.204 | I33: =IFERROR(AVERAGEIF('Monthly Database'!$A$8:$A$143,'Annual Data'!I$4,INDIRECT($E33&$F33&"8:"&$F33&"143")),NA()) -> 10.03 | J33: =IFERROR(AVERAGEIF('Monthly Database'!$A$8:$A$143,'Annual Data'!J$4,INDIRECT($E33&$F33&"8:"&$F33&"143")),NA()) -> 9.115 | K33: =IFERROR(AVERAGEIF('Monthly Database'!$A$8:$A$143,'Annual Data'!K$4,INDIRECT($E33&$F33&"8:"&$F33&"143")),NA()) ->  | L33: =IFERROR(AVERAGEIF('Monthly Database'!$A$8:$A$143,'Annual Data'!L$4,INDIRECT($E33&$F33&"8:"&$F33&"143")),NA()) ->  | M33: =IFERROR(AVERAGEIF('Monthly Database'!$A$8:$A$143,'Annual Data'!M$4,INDIRECT($E33&$F33&"8:"&$F33&"143")),NA()) ->  | N33: =IFERROR(AVERAGEIF('Monthly Database'!$A$8:$A$143,'Annual Data'!N$4,INDIRECT($E33&$F33&"8:"&$F33&"143")),NA()) ->  | O33: =IFERROR(AVERAGEIF('Monthly Database'!$A$8:$A$143,'Annual Data'!O$4,INDIRECT($E33&$F33&"8:"&$F33&"143")),NA()) ->  | P33: =IFERROR(AVERAGEIF('Monthly Database'!$A$8:$A$143,'Annual Data'!P$4,INDIRECT($E33&$F33&"8:"&$F33&"143")),NA()) ->  | Q33: =IFERROR(AVERAGEIF('Monthly Database'!$A$8:$A$143,'Annual Data'!Q$4,INDIRECT($E33&$F33&"8:"&$F33&"143")),NA()) ->  | R33: =IFERROR(AVERAGEIF('Monthly Database'!$A$8:$A$143,'Annual Data'!R$4,INDIRECT($E33&$F33&"8:"&$F33&"143")),NA()) -> 
B34: 30 | C34: ='Monthly Analysis'!H34 -> Crack_Spread USD/MMBTU | E34: 'Monthly Database'! | F34: AF | G34: =IFERROR(AVERAGEIF('Monthly Database'!$A$8:$A$143,'Annual Data'!G$4,INDIRECT($E34&$F34&"8:"&$F34&"143")),NA()) ->  | H34: =IFERROR(AVERAGEIF('Monthly Database'!$A$8:$A$143,'Annual Data'!H$4,INDIRECT($E34&$F34&"8:"&$F34&"143")),NA()) -> 1.918677462 | I34: =IFERROR(AVERAGEIF('Monthly Database'!$A$8:$A$143,'Annual Data'!I$4,INDIRECT($E34&$F34&"8:"&$F34&"143")),NA()) -> 1.717630752 | J34: =IFERROR(AVERAGEIF('Monthly Database'!$A$8:$A$143,'Annual Data'!J$4,INDIRECT($E34&$F34&"8:"&$F34&"143")),NA()) -> 1.560937617 | K34: =IFERROR(AVERAGEIF('Monthly Database'!$A$8:$A$143,'Annual Data'!K$4,INDIRECT($E34&$F34&"8:"&$F34&"143")),NA()) ->  | L34: =IFERROR(AVERAGEIF('Monthly Database'!$A$8:$A$143,'Annual Data'!L$4,INDIRECT($E34&$F34&"8:"&$F34&"143")),NA()) ->  | M34: =IFERROR(AVERAGEIF('Monthly Database'!$A$8:$A$143,'Annual Data'!M$4,INDIRECT($E34&$F34&"8:"&$F34&"143")),NA()) ->  | N34: =IFERROR(AVERAGEIF('Monthly Database'!$A$8:$A$143,'Annual Data'!N$4,INDIRECT($E34&$F34&"8:"&$F34&"143")),NA()) ->  | O34: =IFERROR(AVERAGEIF('Monthly Database'!$A$8:$A$143,'Annual Data'!O$4,INDIRECT($E34&$F34&"8:"&$F34&"143")),NA()) ->  | P34: =IFERROR(AVERAGEIF('Monthly Database'!$A$8:$A$143,'Annual Data'!P$4,INDIRECT($E34&$F34&"8:"&$F34&"143")),NA()) ->  | Q34: =IFERROR(AVERAGEIF('Monthly Database'!$A$8:$A$143,'Annual Data'!Q$4,INDIRECT($E34&$F34&"8:"&$F34&"143")),NA()) ->  | R34: =IFERROR(AVERAGEIF('Monthly Database'!$A$8:$A$143,'Annual Data'!R$4,INDIRECT($E34&$F34&"8:"&$F34&"143")),NA()) -> 
C41: Switch | G41: TRUE | H41: TRUE | I41: TRUE | J41: TRUE | K41: TRUE | L41: TRUE | M41: TRUE | N41: TRUE | O41: TRUE | P41: TRUE | Q41: FALSE | R41: FALSE
G42: 2016 | H42: 2017 | I42: 2018 | J42: 2019 | K42: 2020 | L42: 2021 | M42: 2022 | N42: 2023 | O42: 2024 | P42: 2025 | Q42: FALSE | R42: FALSE
C43: =INDEX(C5:C20,$L$2) -> CME_NIND_Off_Futures USD/MWH | G43: =INDEX(G5:G20,$L$2) ->  | H43: =INDEX(H5:H20,$L$2) -> 25.24 | I43: 24.73 | J43: 24.35

Sheet Monthly Database
B4: Unit/1 MMBTU | D4: ='EIA Conversions'!H45 -> 5.839439 | F4: =1/'Fuel Units'!J8 -> 0.2930832356 | H4: =F4 -> 0.2930832356 | J4: =D4 -> 5.839439 | L4: =J4 -> 5.839439 | N4: =H4 -> 0.2930832356 | P4: =N4 -> 0.2930832356 | R4: =P4 -> 0.2930832356 | V4: ='Fuel Units'!J35 -> 0.1386905 | X4: =V4 -> 0.1386905 | Z4: ='Fuel Units'!J55 -> 24.93 | AB4: ='Fuel Units'!J49 -> 25.09 | AD4: ='EIA Conversions'!H23 -> 5.784 | AF4: =D4 -> 5.839439
C5: USD/BBL | D5: USD/MMBTU | E5: USD/MWH | F5: USD/MMBTU | G5: USD/MWH | H5: USD/MMBTU | I5: USD/BBL | J5: USD/MMBTU | K5: USD/BBL | L5: USD/MMBTU | M5: USD/MWH | N5: USD/MMBTU | O5: USD/MWH | P5: =N5 -> USD/MMBTU | Q5: USD/MWH | R5: =P5 -> USD/MMBTU | S5: USD/MMBTU | T5: USD/MMBTU | U5: US Cents/Gal | V5: USD/MMBTU | W5: US Cents/Gal | X5: USD/MMBTU | Y5: USD/Ton | Z5: USD/MMBTU | AA5: USD/Ton | AB5: USD/MMBTU | AC5: USD/BBL | AD5: USD/MMBTU | AE5: USD/BBL | AF5: USD/MMBTU
B6: Month | C6: ='Master Database'!F11 -> CME_WTI_Futures | D6: =C6 -> CME_WTI_Futures | E6: ='Master Database'!G11 -> CME_NEPOOL_OFF_Futures | F6: =E6 -> CME_NEPOOL_OFF_Futures | G6: ='Master Database'!H11 -> CME_NEPOOL_ON_Futures | H6: =G6 -> CME_NEPOOL_ON_Futures | I6: ='Master Database'!I11 -> CME_BRENT_Futures | J6: =I6 -> CME_BRENT_Futures | K6: ='Master Database'!J11 -> CME_BRENTF_Futures | L6: =K6 -> CME_BRENTF_Futures | M6: ='Master Database'!K11 -> CME_PJM_OFF_Futures | N6: =M6 -> CME_PJM_OFF_Futures | O6: ='Master Database'!L11 -> CME_PJM_ON_Futures | P6: =O6 -> CME_PJM_ON_Futures | Q6: ='Master Database'!M11 -> CME_NIND_Off_Futures | R6: =Q6 -> CME_NIND_Off_Futures | S6: ='Master Database'!N11 -> CME_Gas_Futures | T6: ='Master Database'!O11 -> CME_Algonquin | U6: ='Master Database'!P11 -> CME_No2_Oil | V6: =U6 -> CME_No2_Oil | W6: ='Master Database'!Q11 -> CME_Gasoline | X6: =W6 -> CME_Gasoline | Y6: ='Master Database'!R11 -> Coal_Pbasin | Z6: =Y6 -> Coal_Pbasin | AA6: ='Master Database'!S11 -> Coal_API4 | AB6: =AA6 -> Coal_API4 | AC6: ='Master Database'!T11 -> ULSD_Gulf | AD6: =AC6 -> ULSD_Gulf | AE6: ='Master Database'!U11 -> Crack_Spread | AF6: =AE6 -> Crack_Spread
C7: =C6&" "&C5 -> CME_WTI_Futures USD/BBL | D7: =D6&" "&D5 -> CME_WTI_Futures USD/MMBTU | E7: CME_NEPOOL_OFF_Futures USD/MWH | F7: CME_NEPOOL_OFF_Futures USD/MMBTU | G7: CME_NEPOOL_ON_Futures USD/MWH | H7: CME_NEPOOL_ON_Futures USD/MMBTU | I7: CME_BRENT_Futures USD/BBL | J7: CME_BRENT_Futures USD/MMBTU | K7: CME_BRENTF_Futures USD/BBL | L7: CME_BRENTF_Futures USD/MMBTU | M7: CME_PJM_OFF_Futures USD/MWH | N7: CME_PJM_OFF_Futures USD/MMBTU | O7: CME_PJM_ON_Futures USD/MWH | P7: CME_PJM_ON_Futures USD/MMBTU | Q7: CME_NIND_Off_Futures USD/MWH | R7: CME_NIND_Off_Futures USD/MMBTU | S7: CME_Gas_Futures USD/MMBTU | T7: CME_Algonquin USD/MMBTU | U7: CME_No2_Oil US Cents/Gal | V7: CME_No2_Oil USD/MMBTU | W7: CME_Gasoline US Cents/Gal | X7: CME_Gasoline USD/MMBTU | Y7: Coal_Pbasin USD/Ton | Z7: Coal_Pbasin USD/MMBTU | AA7: Coal_API4 USD/Ton | AB7: Coal_API4 USD/MMBTU | AC7: ULSD_Gulf USD/BBL | AD7: ULSD_Gulf USD/MMBTU | AE7: Crack_Spread USD/BBL | AF7: Crack_Spread USD/MMBTU
A8: =YEAR(B8) -> 2017 | B8: ='Master Database'!B12 -> 2017-09-01 | C8: =IF('Master Database'!F12,'Master Database'!F12) -> 47.52 | D8: =C8/$D$4 -> 8.137768029 | E8: =IF('Master Database'!G12,'Master Database'!G12) -> 19.75 | F8: =IF(E8,E8/$F$4) -> 67.387 | G8: =IF('Master Database'!H12,'Master Database'!H12) -> FALSE | H8: =IF(G8,G8/$H$4) -> FALSE | I8: =IF('Master Database'!I12,'Master Database'!I12) -> FALSE | J8: =IF(I8,I8/$J$4) -> FALSE | K8: =IF('Master Database'!J12,'Master Database'!J12) -> FALSE | L8: =IF(K8,K8/$L$4) -> FALSE | M8: =IF('Master Database'!K12,'Master Database'!K12) -> 22.68 | N8: =IF(M8,M8/$N$4) -> 77.38416 | O8: =IF('Master Database'!L12,'Master Database'!L12) -> FALSE | P8: =IF(O8,O8/$P$4) -> FALSE | Q8: =IF('Master Database'!M12,'Master Database'!M12) -> FALSE | R8: =IF(Q8,Q8/$R$4) -> FALSE | S8: =IF('Master Database'!N12,'Master Database'!N12) -> 2.949 | T8: =IF('Master Database'!O12,'Master Database'!O12) -> -0.581 | U8: =IF('Master Database'!P12,'Master Database'!P12) -> 1.621 | V8: =IF(U8,U8/$V$4) -> 11.68789499 | W8: =IF('Master Database'!Q12,'Master Database'!Q12) -> FALSE | X8: =IF(W8,W8/$X$4) -> FALSE | Y8: =IF('Master Database'!R12,'Master Database'!R12) -> FALSE | Z8: =IF(Y8,Y8/$Z$4) -> FALSE | AA8: =IF('Master Database'!S12,'Master Database'!S12) -> FALSE | AB8: =IF(AA8,AA8/$AB$4) -> FALSE | AC8: =IF('Master Database'!T12,'Master Database'!T12) -> FALSE | AD8: =IF(AC8,AC8/$AD$4) -> FALSE | AE8: =IF('Master Database'!U12,'Master Database'!U12) -> FALSE | AF8: =IF(AE8,AE8/$AF$4) -> FALSE
A9: =YEAR(B9) -> 2017 | B9: ='Master Database'!B13 -> 2017-10-01 | C9: =IF('Master Database'!F13,'Master Database'!F13) -> 47.77 | D9: =C9/$D$4 -> 8.180580361 | E9: =IF('Master Database'!G13,'Master Database'!G13) -> 20.85 | F9: =IF(E9,E9/$F$4) -> 71.1402 | G9: =IF('Master Database'!H13,'Master Database'!H13) -> FALSE | H9: =IF(G9,G9/$H$4) -> FALSE | I9: =IF('Master Database'!I13,'Master Database'!I13) -> 52.04 | J9: =IF(I9,I9/$J$4) -> 8.911814988 | K9: =IF('Master Database'!J13,'Master Database'!J13) -> 52.04 | L9: =IF(K9,K9/$L$4) -> 8.911814988 | M9: =IF('Master Database'!K13,'Master Database'!K13) -> 23.21 | N9: =IF(M9,M9/$N$4) -> 79.19252 | O9: =IF('Master Database'!L13,'Master Database'!L13) -> FALSE | P9: =IF(O9,O9/$P$4) -> FALSE | Q9: =IF('Master Database'!M13,'Master Database'!M13) -> FALSE | R9: =IF(Q9,Q9/$R$4) -> FALSE | S9: =IF('Master Database'!N13,'Master Database'!N13) -> 2.982 | T9: =IF('Master Database'!O13,'Master Database'!O13) -> -0.435 | U9: =IF('Master Database'!P13,'Master Database'!P13) -> 1.6234 | V9: =IF(U9,U9/$V$4) -> 11.70519971 | W9: =IF('Master Database'!Q13,'Master Database'!Q13) -> FALSE | X9: =IF(W9,W9/$X$4) -> FALSE | Y9: =IF('Master Database'!R13,'Master Database'!R13) -> FALSE | Z9: =IF(Y9,Y9/$Z$4) -> FALSE | AA9: =IF('Master Database'!S13,'Master Database'!S13) -> FALSE | AB9: =IF(AA9,AA9/$AB$4) -> FALSE | AC9: =IF('Master Database'!T13,'Master Database'!T13) -> FALSE | AD9: =IF(AC9,AC9/$AD$4) -> FALSE | AE9: =IF('Master Database'!U13,'Master Database'!U13) -> FALSE | AF9: =IF(AE9,AE9/$AF$4) -> FALSE
A10: 2017 | B10: ='Master Database'!B14 -> 2017-11-01 | C10: =IF('Master Database'!F14,'Master Database'!F14) -> 47.98 | D10: 8.216542719 | E10: =IF('Master Database'!G14,'Master Database'!G14) -> 26.35 | F10: 89.9062 | G10: =IF('Master Database'!H14,'Master Database'!H14) -> FALSE | H10: FALSE | I10: =IF('Master Database'!I14,'Master Database'!I14) -> 51.66 | J10: 8.846740243 | K10: =IF('Master Database'!J14,'Master Database'!J14) -> 51.66 | L10: 8.846740243 | M10: =IF('Master Database'!K14,'Master Database'!K14) -> 24.06 | N10: 82.09272 | O10: =IF('Master Database'!L14,'Master Database'!L14) -> FALSE | P10: FALSE | Q10: =IF('Master Database'!M14,'Master Database'!M14) -> FALSE | R10: FALSE | S10: =IF('Master Database'!N14,'Master Database'!N14) -> 3.053 | T10: =IF('Master Database'!O14,'Master Database'!O14) -> 0.418 | U10: =IF('Master Database'!P14,'Master Database'!P14) -> 1.6266 | V10: =IF(U10,U10/$V$4) -> 11.72827266 | W10: =IF('Master Database'!Q14,'Master Database'!Q14) -> FALSE | X10: FALSE | Y10: =IF('Master Database'!R14,'Master Database'!R14) -> FALSE | Z10: FALSE | AA10: =IF('Master Database'!S14,'Master Database'!S14) -> FALSE | AB10: FALSE | AC10: =IF('Master Database'!T14,'Master Database'!T14) -> FALSE | AD10: FALSE | AE10: =IF('Master Database'!U14,'Master Database'!U14) -> FALSE | AF10: FALSE
A11: 2017 | B11: ='Master Database'!B15 -> 2017-12-01 | C11: =IF('Master Database'!F15,'Master Database'!F15) -> 48.17 | D11: 8.249080091 | E11: =IF('Master Database'!G15,'Master Database'!G15) -> 42.98 | F11: 146.64776 | G11: =IF('Master Database'!H15,'Master Database'!H15) -> FALSE | H11: FALSE | I11: =IF('Master Database'!I15,'Master Database'!I15) -> 51.57 | J11: 8.831327804 | K11: =IF('Master Database'!J15,'Master Database'!J15) -> 51.57 | L11: 8.831327804 | M11: =IF('Master Database'!K15,'Master Database'!K15) -> 26.78 | N11: 91.37336 | O11: =IF('Master Database'!L15,'Master Database'!L15) -> FALSE | P11: FALSE | Q11: =IF('Master Database'!M15,'Master Database'!M15) -> FALSE | R11: FALSE | S11: =IF('Master Database'!N15,'Master Database'!N15) -> 3.193 | T11: =IF('Master Database'!O15,'Master Database'!O15) -> 3.097 | U11: =IF('Master Database'!P15,'Master Database'!P15) -> 1.6291 | V11: 11.74629841 | W11: =IF('Master Database'!Q15,'Master Database'!Q15) -> FALSE | X11: FALSE | Y11: =IF('Master Database'!R15,'Master Database'!R15) -> FALSE | Z11: FALSE | AA11: =IF('Master Database'!S15,'Master Database'!S15) -> FALSE | AB11: FALSE | AC11: =IF('Master Database'!T15,'Master Database'!T15) -> FALSE | AD11: FALSE | AE11: =IF('Master Database'!U15,'Master Database'!U15) -> FALSE | AF11: FALSE
A12: 2018 | B12: ='Master Database'!B16 -> 2018-01-01 | C12: =IF('Master Database'!F16,'Master Database'!F16) -> 48.31 | D12: 8.273054997 | E12: =IF('Master Database'!G16,'Master Database'!G16) -> 62.85 | F12: 214.4442 | G12: =IF('Master Database'!H16,'Master Database'!H16) -> FALSE | H12: FALSE | I12: =IF('Master Database'!I16,'Master Database'!I16) -> 51.59 | J12: 8.83475279 | K12: =IF('Master Database'!J16,'Master Database'!J16) -> 51.59 | L12: 8.83475279 | M12: =IF('Master Database'!K16,'Master Database'!K16) -> 38.62 | N12: 131.77144 | O12: =IF('Master Database'!L16,'Master Database'!L16) -> FALSE | P12: FALSE | Q12: =IF('Master Database'!M16,'Master Database'!M16) -> FALSE | R12: FALSE | S12: =IF('Master Database'!N16,'Master Database'!N16) -> 3.288 | T12: =IF('Master Database'!O16,'Master Database'!O16) -> 5.418 | U12: =IF('Master Database'!P16,'Master Database'!P16) -> 1.6322 | V12: 11.76865034 | W12: =IF('Master Database'!Q16,'Master Database'!Q16) -> FALSE | X12: FALSE | Y12: =IF('Master Database'!R16,'Master Database'!R16) -> FALSE | Z12: FALSE | AA12: =IF('Master Database'!S16,'Master Database'!S16) -> FALSE | AB12: FALSE | AC12: =IF('Master Database'!T16,'Master Database'!T16) -> FALSE | AD12: FALSE | AE12: =IF('Master Database'!U16,'Master Database'!U16) -> FALSE | AF12: FALSE
A13: 2018 | B13: ='Master Database'!B17 -> 2018-02-01 | C13: =IF('Master Database'!F17,'Master Database'!F17) -> 48.43 | D13: 8.293604916 | E13: =IF('Master Database'!G17,'Master Database'!G17) -> 59.9 | F13: 204.3788 | G13: =IF('Master Database'!H17,'Master Database'!H17) -> FALSE | H13: FALSE | I13: =IF('Master Database'!I17,'Master Database'!I17) -> 51.67 | J13: 8.848452737 | K13: =IF('Master Database'!J17,'Master Database'!J17) -> 51.67 | L13: 8.848452737 | M13: =IF('Master Database'!K17,'Master Database'!K17) -> 35.64 | N13: 121.60368 | O13: =IF('Master Database'!L17,'Master Database'!L17) -> FALSE | P13: FALSE | Q13: =IF('Master Database'!M17,'Master Database'!M17) -> FALSE | R13: FALSE | S13: =IF('Master Database'!N17,'Master Database'!N17) -> 3.283 | T13: =IF('Master Database'!O17,'Master Database'!O17) -> 5.426 | U13: =IF('Master Database'!P17,'Master Database'!P17) -> 1.6328 | V13: 11.77297652 | W13: =IF('Master Database'!Q17,'Master Database'!Q17) -> FALSE | X13: FALSE | Y13: =IF('Master Database'!R17,'Master Database'!R17) -> FALSE | Z13: FALSE | AA13: =IF('Master Database'!S17,'Master Database'!S17) -> FALSE | AB13: FALSE | AC13: =IF('Master Database'!T17,'Master Database'!T17) -> FALSE | AD13: FALSE | AE13: =IF('Master Database'!U17,'Master Database'!U17) -> FALSE | AF13: FALSE
A14: 2018 | B14: ='Master Database'!B18 -> 2018-03-01 | C14: =IF('Master Database'!F18,'Master Database'!F18) -> 48.54 | D14: 8.312442342 | E14: =IF('Master Database'!G18,'Master Database'!G18) -> 40.4 | F14: 137.8448 | G14: =IF('Master Database'!H18,'Master Database'!H18) -> FALSE | H14: FALSE | I14: =IF('Master Database'!I18,'Master Database'!I18) -> 51.76 | J14: 8.863865176 | K14: =IF('Master Database'!J18,'Master Database'!J18) -> 51.76 | L14: 8.863865176 | M14: =IF('Master Database'!K18,'Master Database'!K18) -> 28.9 | N14: 98.6068 | O14: =IF('Master Database'!L18,'Master Database'!L18) -> FALSE | P14: FALSE | Q14: =IF('Master Database'!M18,'Master Database'!M18) -> FALSE | R14: FALSE | S14: =IF('Master Database'!N18,'Master Database'!N18) -> 3.244 | T14: =IF('Master Database'!O18,'Master Database'!O18) -> 2.182 | U14: =IF('Master Database'!P18,'Master Database'!P18) -> 1.6286 | V14: 11.74269326 | W14: =IF('Master Database'!Q18,'Master Database'!Q18) -> FALSE | X14: FALSE | Y14: =IF('Master Database'!R18,'Master Database'!R18) -> FALSE | Z14: FALSE | AA14: =IF('Master Database'!S18,'Master Database'!S18) -> FALSE | AB14: FALSE | AC14: =IF('Master Database'!T18,'Master Database'!T18) -> FALSE | AD14: FALSE | AE14: =IF('Master Database'!U18,'Master Database'!U18) -> FALSE | AF14: FALSE
A15: 2018 | B15: ='Master Database'!B19 -> 2018-04-01 | C15: =IF('Master Database'!F19,'Master Database'!F19) -> 48.62 | D15: 8.326142289 | E15: =IF('Master Database'!G19,'Master Database'!G19) -> 24.5 | F15: 83.594 | G15: =IF('Master Database'!H19,'Master Database'!H19) -> FALSE | H15: FALSE | I15: =IF('Master Database'!I19,'Master Database'!I19) -> 51.84 | J15: 8.877565122 | K15: =IF('Master Database'!J19,'Master Database'!J19) -> 51.84 | L15: 8.877565122 | M15: =IF('Master Database'!K19,'Master Database'!K19) -> 24.45 | N15: 83.4234 | O15: =IF('Master Database'!L19,'Master Database'!L19) -> FALSE | P15: FALSE | Q15: =IF('Master Database'!M19,'Master Database'!M19) -> FALSE | R15: FALSE | S15: =IF('Master Database'!N19,'Master Database'!N19) -> 2.911 | T15: =IF('Master Database'!O19,'Master Database'!O19) -> 0.214 | U15: =IF('Master Database'!P19,'Master Database'!P19) -> 1.6189 | V15: 11.67275336 | W15: =IF('Master Database'!Q19,'Master Database'!Q19) -> FALSE | X15: FALSE | Y15: =IF('Master Database'!R19,'Master Database'!R19) -> FALSE | Z15: FALSE | AA15: =IF('Master Database'!S19,'Master Database'!S19) -> FALSE | AB15: FALSE | AC15: =IF('Master Database'!T19,'Master Database'!T19) -> FALSE | AD15: FALSE | AE15: =IF('Master Database'!U19,'Master Database'!U19) -> FALSE | AF15: FALSE
A16: 2018 | B16: ='Master Database'!B20 -> 2018-05-01 | C16: =IF('Master Database'!F20,'Master Database'!F20) -> 48.68 | D16: 8.336417248 | E16: =IF('Master Database'!G20,'Master Database'!G20) -> 21.6 | F16: 73.6992 | G16: =IF('Master Database'!H20,'Master Database'!H20) -> FALSE | H16: FALSE | I16: =IF('Master Database'!I20,'Master Database'!I20) -> 51.91 | J16: 8.889552575 | K16: =IF('Master Database'!J20,'Master Database'!J20) -> 51.91 | L16: 8.889552575 | M16: =IF('Master Database'!K20,'Master Database'!K20) -> 21.75 | N16: 74.211 | O16: =IF('Master Database'!L20,'Master Database'!L20) -> FALSE | P16: FALSE | Q16: =IF('Master Database'!M20,'Master Database'!M20) -> FALSE | R16: FALSE | S16: =IF('Master Database'!N20,'Master Database'!N20) -> 2.875 | T16: =IF('Master Database'!O20,'Master Database'!O20) -> -0.151 | U16: =IF('Master Database'!P20,'Master Database'!P20) -> 1.6133 | V16: 11.63237569 | W16: =IF('Master Database'!Q20,'Master Database'!Q20) -> FALSE | X16: FALSE | Y16: =IF('Master Database'!R20,'Master Database'!R20) -> FALSE | Z16: FALSE | AA16: =IF('Master Database'!S20,'Master Database'!S20) -> FALSE | AB16: FALSE | AC16: =IF('Master Database'!T20,'Master Database'!T20) -> FALSE | AD16: FALSE | AE16: =IF('Master Database'!U20,'Master Database'!U20) -> FALSE | AF16: FALSE
A17: 2018 | B17: ='Master Database'!B21 -> 2018-06-01 | C17: =IF('Master Database'!F21,'Master Database'!F21) -> 48.72 | D17: 8.343267221 | E17: =IF('Master Database'!G21,'Master Database'!G21) -> 21.7 | F17: 74.0404 | G17: =IF('Master Database'!H21,'Master Database'!H21) -> FALSE | H17: FALSE | I17: =IF('Master Database'!I21,'Master Database'!I21) -> 51.98 | J17: 8.901540028 | K17: =IF('Master Database'!J21,'Master Database'!J21) -> 51.98 | L17: 8.901540028 | M17: =IF('Master Database'!K21,'Master Database'!K21) -> 21.78 | N17: 74.31336 | O17: =IF('Master Database'!L21,'Master Database'!L21) -> FALSE | P17: FALSE | Q17: =IF('Master Database'!M21,'Master Database'!M21) -> FALSE | R17: FALSE | S17: =IF('Master Database'!N21,'Master Database'!N21) -> 2.898 | T17: =IF('Master Database'!O21,'Master Database'!O21) -> -0.091 | U17: =IF('Master Database'!P21,'Master Database'!P21) -> 1.6102 | V17: 11.61002376 | W17: =IF('Master Database'!Q21,'Master Database'!Q21) -> FALSE | X17: FALSE | Y17: =IF('Master Database'!R21,'Master Database'!R21) -> FALSE | Z17: FALSE | AA17: =IF('Master Database'!S21,'Master Database'!S21) -> FALSE | AB17: FALSE | AC17: =IF('Master Database'!T21,'Master Database'!T21) -> FALSE | AD17: FALSE | AE17: =IF('Master Database'!U21,'Master Database'!U21) -> FALSE | AF17: FALSE
A18: 2018 | B18: ='Master Database'!B22 -> 2018-07-01 | C18: =IF('Master Database'!F22,'Master Database'!F22) -> 48.75 | D18: 8.348404701 | E18: =IF('Master Database'!G22,'Master Database'!G22) -> 25.2 | F18: 85.9824 | G18: =IF('Master Database'!H22,'Master Database'!H22) -> 38.15 | H18: 130.1678 | I18: =IF('Master Database'!I22,'Master Database'!I22) -> 52.07 | J18: 8.916952468 | K18: =IF('Master Database'!J22,'Master Database'!J22) -> 52.07 | L18: 8.916952468 | M18: =IF('Master Database'!K22,'Master Database'!K22) -> 24.07 | N18: 82.12684 | O18: =IF('Master Database'!L22,'Master Database'!L22) -> 37.97 | P18: 129.55364 | Q18: =IF('Master Database'!M22,'Master Database'!M22) -> 25.24 | R18: 86.11888 | S18: =IF('Master Database'!N22,'Master Database'!N22) -> 2.922 | T18: =IF('Master Database'!O22,'Master Database'!O22) -> -0.033 | U18: =IF('Master Database'!P22,'Master Database'!P22) -> 1.6127 | V18: 11.62804951 | W18: =IF('Master Database'!Q22,'Master Database'!Q22) -> 1.6479 | X18: 11.88185204 | Y18: =IF('Master Database'!R22,'Master Database'!R22) -> 11.65 | Z18: 0.4673084637 | AA18: =IF('Master Database'!S22,'Master Database'!S22) -> 79.5 | AB18: 3.168593065 | AC18: =IF('Master Database'!T22,'Master Database'!T22) -> 44.28 | AD18: 7.65560166 | AE18: =IF('Master Database'!U22,'Master Database'!U22) -> 11.204 | AF18: 1.918677462
A19: 2018 | B19: ='Master Database'!B23 -> 2018-08-01 | C19: =IF('Master Database'!F23,'Master Database'!F23) -> 48.78 | D19: 8.353542181 | E19: =IF('Master Database'!G23,'Master Database'!G23) -> 23.45 | F19: 80.0114 | G19: =IF('Master Database'!H23,'Master Database'!H23) -> FALSE | H19: FALSE | I19: =IF('Master Database'!I23,'Master Database'!I23) -> 52.14 | J19: 8.92893992 | K19: =IF('Master Database'!J23,'Master Database'!J23) -> 52.14 | L19: 8.92893992 | M19: =IF('Master Database'!K23,'Master Database'!K23) -> 21.7 | N19: 74.0404 | O19: =IF('Master Database'!L23,'Master Database'!L23) -> FALSE | P19: FALSE | Q19: =IF('Master Database'!M23,'Master Database'!M23) -> FALSE | R19: FALSE | S19: =IF('Master Database'!N23,'Master Database'!N23) -> 2.925 | T19: =IF('Master Database'!O23,'Master Database'!O23) -> -0.102 | U19: =IF('Master Database'!P23,'Master Database'!P23) -> 1.6167 | V19: 11.6568907 | W19: =IF('Master Database'!Q23,'Master Database'!Q23) -> FALSE | X19: FALSE | Y19: =IF('Master Database'!R23,'Master Database'!R23) -> FALSE | Z19: FALSE | AA19: =IF('Master Database'!S23,'Master Database'!S23) -> FALSE | AB19: FALSE | AC19: =IF('Master Database'!T23,'Master Database'!T23) -> FALSE | AD19: FALSE | AE19: =IF('Master Database'!U23,'Master Database'!U23) -> FALSE | AF19: FALSE
A20: 2018 | B20: ='Master Database'!B24 -> 2018-09-01 | C20: =IF('Master Database'!F24,'Master Database'!F24) -> 48.81 | D20: 8.358679661 | E20: =IF('Master Database'!G24,'Master Database'!G24) -> 21.25 | F20: 72.505 | G20: =IF('Master Database'!H24,'Master Database'!H24) -> FALSE | H20: FALSE | I20: =IF('Master Database'!I24,'Master Database'!I24) -> 52.18 | J20: 8.935789894 | K20: =IF('Master Database'!J24,'Master Database'!J24) -> 52.18 | L20: 8.935789894 | M20: =IF('Master Database'!K24,'Master Database'!K24) -> 21.55 | N20: 73.5286 | O20: =IF('Master Database'!L24,'Master Database'!L24) -> FALSE | P20: FALSE | Q20: =IF('Master Database'!M24,'Master Database'!M24) -> FALSE | R20: FALSE | S20: =IF('Master Database'!N24,'Master Database'!N24) -> 2.901 | T20: =IF('Master Database'!O24,'Master Database'!O24) -> -0.25 | U20: =IF('Master Database'!P24,'Master Database'!P24) -> 1.6219 | V20: 11.69438426 | W20: =IF('Master Database'!Q24,'Master Database'!Q24) -> FALSE | X20: FALSE | Y20: =IF('Master Database'!R24,'Master Database'!R24) -> FALSE | Z20: FALSE | AA20: =IF('Master Database'!S24,'Master Database'!S24) -> FALSE | AB20: FALSE | AC20: =IF('Master Database'!T24,'Master Database'!T24) -> FALSE | AD20: FALSE | AE20: =IF('Master Database'!U24,'Master Database'!U24) -> FALSE | AF20: FALSE
A21: 2018 | B21: ='Master Database'!B25 -> 2018-10-01 | C21: =IF('Master Database'!F25,'Master Database'!F25) -> 48.83 | D21: 8.362104647 | E21: =IF('Master Database'!G25,'Master Database'!G25) -> 21.75 | F21: 74.211 | G21: =IF('Master Database'!H25,'Master Database'!H25) -> FALSE | H21: FALSE | I21: =IF('Master Database'!I25,'Master Database'!I25) -> 52.22 | J21: 8.942639867 | K21: =IF('Master Database'!J25,'Master Database'!J25) -> 52.22 | L21: 8.942639867 | M21: =IF('Master Database'!K25,'Master Database'!K25) -> 21.22 | N21: 72.40264 | O21: =IF('Master Database'!L25,'Master Database'!L25) -> FALSE | P21: FALSE | Q21: =IF('Master Database'!M25,'Master Database'!M25) -> FALSE | R21: FALSE | S21: =IF('Master Database'!N25,'Master Database'!N25) -> 2.919 | T21: =IF('Master Database'!O25,'Master Database'!O25) -> -0.222 | U21: =IF('Master Database'!P25,'Master Database'!P25) -> 1.6277 | V21: 11.73620399 | W21: =IF('Master Database'!Q25,'Master Database'!Q25) -> FALSE | X21: FALSE | Y21: =IF('Master Database'!R25,'Master Database'!R25) -> FALSE | Z21: FALSE | AA21: =IF('Master Database'!S25,'Master Database'!S25) -> FALSE | AB21: FALSE | AC21: =IF('Master Database'!T25,'Master Database'!T25) -> FALSE | AD21: FALSE | AE21: =IF('Master Database'!U25,'Master Database'!U25) -> FALSE | AF21: FALSE
A22: 2018 | B22: ='Master Database'!B26 -> 2018-11-01 | C22: =IF('Master Database'!F26,'Master Database'!F26) -> 48.86 | D22: 8.367242127 | E22: =IF('Master Database'!G26,'Master Database'!G26) -> 26.15 | F22: 89.2238 | G22: =IF('Master Database'!H26,'Master Database'!H26) -> FALSE | H22: FALSE | I22: =IF('Master Database'!I26,'Master Database'!I26) -> 52.25 | J22: 8.947777346 | K22: =IF('Master Database'!J26,'Master Database'!J26) -> 52.25 | L22: 8.947777346 | M22: =IF('Master Database'!K26,'Master Database'!K26) -> 21.47 | N22: 73.25564 | O22: =IF('Master Database'!L26,'Master Database'!L26) -> FALSE | P22: FALSE | Q22: =IF('Master Database'!M26,'Master Database'!M26) -> FALSE | R22: FALSE | S22: =IF('Master Database'!N26,'Master Database'!N26) -> 2.966 | T22: =IF('Master Database'!O26,'Master Database'!O26) -> 0.631 | U22: =IF('Master Database'!P26,'Master Database'!P26) -> 1.6337 | V22: 11.77946579 | W22: =IF('Master Database'!Q26,'Master Database'!Q26) -> FALSE | X22: FALSE | Y22: =IF('Master Database'!R26,'Master Database'!R26) -> FALSE | Z22: FALSE | AA22: =IF('Master Database'!S26,'Master Database'!S26) -> FALSE | AB22: FALSE | AC22: =IF('Master Database'!T26,'Master Database'!T26) -> FALSE | AD22: FALSE | AE22: =IF('Master Database'!U26,'Master Database'!U26) -> FALSE | AF22: FALSE
A23: 2018 | B23: ='Master Database'!B27 -> 2018-12-01 | C23: =IF('Master Database'!F27,'Master Database'!F27) -> 48.88 | D23: 8.370667114 | E23: =IF('Master Database'!G27,'Master Database'!G27) -> 41.75 | F23: 142.451 | G23: =IF('Master Database'!H27,'Master Database'!H27) -> FALSE | H23: FALSE | I23: =IF('Master Database'!I27,'Master Database'!I27) -> 52.28 | J23: 8.952914826 | K23: =IF('Master Database'!J27,'Master Database'!J27) -> 52.28 | L23: 8.952914826 | M23: =IF('Master Database'!K27,'Master Database'!K27) -> 25.37 | N23: 86.56244 | O23: =IF('Master Database'!L27,'Master Database'!L27) -> FALSE | P23: FALSE | Q23: =IF('Master Database'!M27,'Master Database'!M27) -> FALSE | R23: FALSE | S23: =IF('Master Database'!N27,'Master Database'!N27) -> 3.092 | T23: =IF('Master Database'!O27,'Master Database'!O27) -> 3.397 | U23: =IF('Master Database'!P27,'Master Database'!P27) -> 1.6388 | V23: 11.81623831 | W23: =IF('Master Database'!Q27,'Master Database'!Q27) -> FALSE | X23: FALSE | Y23: =IF('Master Database'!R27,'Master Database'!R27) -> FALSE | Z23: FALSE | AA23: =IF('Master Database'!S27,'Master Database'!S27) -> FALSE | AB23: FALSE | AC23: =IF('Master Database'!T27,'Master Database'!T27) -> FALSE | AD23: FALSE | AE23: =IF('Master Database'!U27,'Master Database'!U27) -> FALSE | AF23: FALSE
A24: 2019 | B24: ='Master Database'!B28 -> 2019-01-01 | C24: =IF('Master Database'!F28,'Master Database'!F28) -> 48.89 | D24: 8.372379607 | E24: =IF('Master Database'!G28,'Master Database'!G28) -> 62.75 | F24: 214.103 | G24: =IF('Master Database'!H28,'Master Database'!H28) -> FALSE | H24: FALSE | I24: =IF('Master Database'!I28,'Master Database'!I28) -> 52.31 | J24: 8.958052306 | K24: =IF('Master Database'!J28,'Master Database'!J28) -> 52.31 | L24: 8.958052306 | M24: =IF('Master Database'!K28,'Master Database'!K28) -> 36.81 | N24: 125.59572 | O24: =IF('Master Database'!L28,'Master Database'!L28) -> FALSE | P24: FALSE | Q24: =IF('Master Database'!M28,'Master Database'!M28) -> FALSE | R24: FALSE | S24: =IF('Master Database'!N28,'Master Database'!N28) -> 3.174 | T24: =IF('Master Database'!O28,'Master Database'!O28) -> 5.749 | U24: =IF('Master Database'!P28,'Master Database'!P28) -> 1.6438 | V24: 11.85228981 | W24: =IF('Master Database'!Q28,'Master Database'!Q28) -> FALSE | X24: FALSE | Y24: =IF('Master Database'!R28,'Master Database'!R28) -> FALSE | Z24: FALSE | AA24: =IF('Master Database'!S28,'Master Database'!S28) -> FALSE | AB24: FALSE | AC24: =IF('Master Database'!T28,'Master Database'!T28) -> FALSE | AD24: FALSE | AE24: =IF('Master Database'!U28,'Master Database'!U28) -> FALSE | AF24: FALSE
A25: 2019 | B25: ='Master Database'!B29 -> 2019-02-01 | C25: =IF('Master Database'!F29,'Master Database'!F29) -> 48.91 | D25: 8.375804594 | E25: =IF('Master Database'!G29,'Master Database'!G29) -> 62.25 | F25: 212.397 | G25: =IF('Master Database'!H29,'Master Database'!H29) -> FALSE | H25: FALSE | I25: =IF('Master Database'!I29,'Master Database'!I29) -> 52.37 | J25: 8.968327266 | K25: =IF('Master Database'!J29,'Master Database'!J29) -> 52.37 | L25: 8.968327266 | M25: =IF('Master Database'!K29,'Master Database'!K29) -> 34.82 | N25: 118.80584 | O25: =IF('Master Database'!L29,'Master Database'!L29) -> FALSE | P25: FALSE | Q25: =IF('Master Database'!M29,'Master Database'!M29) -> FALSE | R25: FALSE | S25: =IF('Master Database'!N29,'Master Database'!N29) -> 3.148 | T25: =IF('Master Database'!O29,'Master Database'!O29) -> 5.727 | U25: =IF('Master Database'!P29,'Master Database'!P29) -> 1.6433 | V25: 11.84868466 | W25: =IF('Master Database'!Q29,'Master Database'!Q29) -> FALSE | X25: FALSE | Y25: =IF('Master Database'!R29,'Master Database'!R29) -> FALSE | Z25: FALSE | AA25: =IF('Master Database'!S29,'Master Database'!S29) -> FALSE | AB25: FALSE | AC25: =IF('Master Database'!T29,'Master Database'!T29) -> FALSE | AD25: FALSE | AE25: =IF('Master Database'!U29,'Master Database'!U29) -> FALSE | AF25: FALSE
A26: 2019 | B26: ='Master Database'!B30 -> 2019-03-01 | C26: =IF('Master Database'!F30,'Master Database'!F30) -> 48.94 | D26: 8.380942073 | E26: =IF('Master Database'!G30,'Master Database'!G30) -> 40 | F26: 136.48 | G26: =IF('Master Database'!H30,'Master Database'!H30) -> FALSE | H26: FALSE | I26: =IF('Master Database'!I30,'Master Database'!I30) -> 52.44 | J26: 8.980314719 | K26: =IF('Master Database'!J30,'Master Database'!J30) -> 52.44 | L26: 8.980314719 | M26: =IF('Master Database'!K30,'Master Database'!K30) -> 27.59 | N26: 94.13708 | O26: =IF('Master Database'!L30,'Master Database'!L30) -> FALSE | P26: FALSE | Q26: =IF('Master Database'!M30,'Master Database'!M30) -> FALSE | R26: FALSE | S26: =IF('Master Database'!N30,'Master Database'!N30) -> 3.081 | T26: =IF('Master Database'!O30,'Master Database'!O30) -> 2.315 | U26: =IF('Master Database'!P30,'Master Database'!P30) -> 1.6378 | V26: 11.80902802 | W26: =IF('Master Database'!Q30,'Master Database'!Q30) -> FALSE | X26: FALSE | Y26: =IF('Master Database'!R30,'Master Database'!R30) -> FALSE | Z26: FALSE | AA26: =IF('Master Database'!S30,'Master Database'!S30) -> FALSE | AB26: FALSE | AC26: =IF('Master Database'!T30,'Master Database'!T30) -> FALSE | AD26: FALSE | AE26: =IF('Master Database'!U30,'Master Database'!U30) -> FALSE | AF26: FALSE
A27: 2019 | B27: ='Master Database'!B31 -> 2019-04-01 | C27: =IF('Master Database'!F31,'Master Database'!F31) -> 48.99 | D27: 8.38950454 | E27: =IF('Master Database'!G31,'Master Database'!G31) -> 24 | F27: 81.888 | G27: =IF('Master Database'!H31,'Master Database'!H31) -> FALSE | H27: FALSE | I27: =IF('Master Database'!I31,'Master Database'!I31) -> 52.54 | J27: 8.997439651 | K27: =IF('Master Database'!J31,'Master Database'!J31) -> 52.54 | L27: 8.997439651 | M27: =IF('Master Database'!K31,'Master Database'!K31) -> 23.21 | N27: 79.19252 | O27: =IF('Master Database'!L31,'Master Database'!L31) -> FALSE | P27: FALSE | Q27: =IF('Master Database'!M31,'Master Database'!M31) -> FALSE | R27: FALSE | S27: =IF('Master Database'!N31,'Master Database'!N31) -> 2.706 | T27: =IF('Master Database'!O31,'Master Database'!O31) -> 0.189 | U27: =IF('Master Database'!P31,'Master Database'!P31) -> 1.6288 | V27: 11.74413532 | W27: =IF('Master Database'!Q31,'Master Database'!Q31) -> FALSE | X27: FALSE | Y27: =IF('Master Database'!R31,'Master Database'!R31) -> FALSE | Z27: FALSE | AA27: =IF('Master Database'!S31,'Master Database'!S31) -> FALSE | AB27: FALSE | AC27: =IF('Master Database'!T31,'Master Database'!T31) -> FALSE | AD27: FALSE | AE27: =IF('Master Database'!U31,'Master Database'!U31) -> FALSE | AF27: FALSE
A28: 2019 | B28: ='Master Database'!B32 -> 2019-05-01 | C28: =IF('Master Database'!F32,'Master Database'!F32) -> 49.04 | D28: 8.398067006 | E28: =IF('Master Database'!G32,'Master Database'!G32) -> 20.75 | F28: 70.799 | G28: =IF('Master Database'!H32,'Master Database'!H32) -> FALSE | H28: FALSE | I28: =IF('Master Database'!I32,'Master Database'!I32) -> 52.58 | J28: 9.004289624 | K28: =IF('Master Database'!J32,'Master Database'!J32) -> 52.58 | L28: 9.004289624 | M28: =IF('Master Database'!K32,'Master Database'!K32) -> 20.55 | N28: 70.1166 | O28: =IF('Master Database'!L32,'Master Database'!L32) -> FALSE | P28: FALSE | Q28: =IF('Master Database'!M32,'Master Database'!M32) -> FALSE | R28: FALSE | S28: =IF('Master Database'!N32,'Master Database'!N32) -> 2.673 | T28: =IF('Master Database'!O32,'Master Database'!O32) -> -0.123 | U28: =IF('Master Database'!P32,'Master Database'!P32) -> 1.6263 | V28: 11.72610957 | W28: =IF('Master Database'!Q32,'Master Database'!Q32) -> FALSE | X28: FALSE | Y28: =IF('Master Database'!R32,'Master Database'!R32) -> FALSE | Z28: FALSE | AA28: =IF('Master Database'!S32,'Master Database'!S32) -> FALSE | AB28: FALSE | AC28: =IF('Master Database'!T32,'Master Database'!T32) -> FALSE | AD28: FALSE | AE28: =IF('Master Database'!U32,'Master Database'!U32) -> FALSE | AF28: FALSE
A29: 2019 | B29: ='Master Database'!B33 -> 2019-06-01 | C29: =IF('Master Database'!F33,'Master Database'!F33) -> 49.07 | D29: 8.403204486 | E29: =IF('Master Database'!G33,'Master Database'!G33) -> 20.75 | F29: 70.799 | G29: =IF('Master Database'!H33,'Master Database'!H33) -> FALSE | H29: FALSE | I29: =IF('Master Database'!I33,'Master Database'!I33) -> 52.59 | J29: 9.006002118 | K29: =IF('Master Database'!J33,'Master Database'!J33) -> 52.59 | L29: 9.006002118 | M29: =IF('Master Database'!K33,'Master Database'!K33) -> 20.3 | N29: 69.2636 | O29: =IF('Master Database'!L33,'Master Database'!L33) -> FALSE | P29: FALSE | Q29: =IF('Master Database'!M33,'Master Database'!M33) -> FALSE | R29: FALSE | S29: =IF('Master Database'!N33,'Master Database'!N33) -> 2.694 | T29: =IF('Master Database'!O33,'Master Database'!O33) -> -0.093 | U29: =IF('Master Database'!P33,'Master Database'!P33) -> 1.6273 | V29: 11.73331987 | W29: =IF('Master Database'!Q33,'Master Database'!Q33) -> FALSE | X29: FALSE | Y29: =IF('Master Database'!R33,'Master Database'!R33) -> FALSE | Z29: FALSE | AA29: =IF('Master Database'!S33,'Master Database'!S33) -> FALSE | AB29: FALSE | AC29: =IF('Master Database'!T33,'Master Database'!T33) -> FALSE | AD29: FALSE | AE29: =IF('Master Database'!U33,'Master Database'!U33) -> FALSE | AF29: FALSE
A30: 2019 | B30: ='Master Database'!B34 -> 2019-07-01 | C30: =IF('Master Database'!F34,'Master Database'!F34) -> 49.12 | D30: 8.411766952 | E30: =IF('Master Database'!G34,'Master Database'!G34) -> 24.71 | F30: 84.31052 | G30: =IF('Master Database'!H34,'Master Database'!H34) -> 39.85 | H30: 135.9682 | I30: =IF('Master Database'!I34,'Master Database'!I34) -> 52.68 | J30: 9.021414557 | K30: =IF('Master Database'!J34,'Master Database'!J34) -> 52.68 | L30: 9.021414557 | M30: =IF('Master Database'!K34,'Master Database'!K34) -> 23.15 | N30: 78.9878 | O30: =IF('Master Database'!L34,'Master Database'!L34) -> 37.15 | P30: 126.7558 | Q30: =IF('Master Database'!M34,'Master Database'!M34) -> 24.73 | R30: 84.37876 | S30: =IF('Master Database'!N34,'Master Database'!N34) -> 2.716 | T30: =IF('Master Database'!O34,'Master Database'!O34) -> 0.067 | U30: =IF('Master Database'!P34,'Master Database'!P34) -> 1.6313 | V30: 11.76216107 | W30: =IF('Master Database'!Q34,'Master Database'!Q34) -> 1.6387 | X30: 11.81551728 | Y30: =IF('Master Database'!R34,'Master Database'!R34) -> FALSE | Z30: FALSE | AA30: =IF('Master Database'!S34,'Master Database'!S34) -> 75.7 | AB30: 3.017138302 | AC30: =IF('Master Database'!T34,'Master Database'!T34) -> 43.57 | AD30: 7.532849239 | AE30: =IF('Master Database'!U34,'Master Database'!U34) -> 10.03 | AF30: 1.717630752
A31: 2019 | B31: ='Master Database'!B35 -> 2019-08-01 | C31: =IF('Master Database'!F35,'Master Database'!F35) -> 49.18 | D31: 8.422041912 | E31: =IF('Master Database'!G35,'Master Database'!G35) -> 22.79 | F31: 77.75948 | G31: =IF('Master Database'!H35,'Master Database'!H35) -> FALSE | H31: FALSE | I31: =IF('Master Database'!I35,'Master Database'!I35) -> 52.74 | J31: 9.031689517 | K31: =IF('Master Database'!J35,'Master Database'!J35) -> 52.74 | L31: 9.031689517 | M31: =IF('Master Database'!K35,'Master Database'!K35) -> 20.9 | N31: 71.3108 | O31: =IF('Master Database'!L35,'Master Database'!L35) -> FALSE | P31: FALSE | Q31: =IF('Master Database'!M35,'Master Database'!M35) -> FALSE | R31: FALSE | S31: =IF('Master Database'!N35,'Master Database'!N35) -> 2.72 | T31: =IF('Master Database'!O35,'Master Database'!O35) -> 0.012 | U31: =IF('Master Database'!P35,'Master Database'!P35) -> 1.6363 | V31: 11.79821257 | W31: =IF('Master Database'!Q35,'Master Database'!Q35) -> FALSE | X31: FALSE | Y31: =IF('Master Database'!R35,'Master Database'!R35) -> FALSE | Z31: FALSE | AA31: =IF('Master Database'!S35,'Master Database'!S35) -> FALSE | AB31: FALSE | AC31: =IF('Master Database'!T35,'Master Database'!T35) -> FALSE | AD31: FALSE | AE31: =IF('Master Database'!U35,'Master Database'!U35) -> FALSE | AF31: FALSE
A32: 2019 | B32: ='Master Database'!B36 -> 2019-09-01 | C32: =IF('Master Database'!F36,'Master Database'!F36) -> 49.24 | D32: 8.432316872 | E32: =IF('Master Database'!G36,'Master Database'!G36) -> 20.25 | F32: 69.093 | G32: =IF('Master Database'!H36,'Master Database'!H36) -> FALSE | H32: FALSE | I32: =IF('Master Database'!I36,'Master Database'!I36) -> 52.81 | J32: 9.04367697 | K32: =IF('Master Database'!J36,'Master Database'!J36) -> 52.81 | L32: 9.04367697 | M32: =IF('Master Database'!K36,'Master Database'!K36) -> 20.1 | N32: 68.5812 | O32: =IF('Master Database'!L36,'Master Database'!L36) -> FALSE | P32: FALSE | Q32: =IF('Master Database'!M36,'Master Database'!M36) -> FALSE | R32: FALSE | S32: =IF('Master Database'!N36,'Master Database'!N36) -> 2.701 | T32: =IF('Master Database'!O36,'Master Database'!O36) -> -0.313 | U32: =IF('Master Database'!P36,'Master Database'!P36) -> 1.6438 | V32: 11.85228981 | W32: =IF('Master Database'!Q36,'Master Database'!Q36) -> FALSE | X32: FALSE | Y32: =IF('Master Database'!R36,'Master Database'!R36) -> FALSE | Z32: FALSE | AA32: =IF('Master Database'!S36,'Master Database'!S36) -> FALSE | AB32: FALSE | AC32: =IF('Master Database'!T36,'Master Database'!T36) -> FALSE | AD32: FALSE | AE32: =IF('Master Database'!U36,'Master Database'!U36) -> FALSE | AF32: FALSE
A33: 2019 | B33: ='Master Database'!B37 -> 2019-10-01 | C33: =IF('Master Database'!F37,'Master Database'!F37) -> 49.32 | D33: 8.446016818 | E33: =IF('Master Database'!G37,'Master Database'!G37) -> 21.77 | F33: 74.27924 | G33: =IF('Master Database'!H37,'Master Database'!H37) -> FALSE | H33: FALSE | I33: =IF('Master Database'!I37,'Master Database'!I37) -> 52.88 | J33: 9.055664423 | K33: =IF('Master Database'!J37,'Master Database'!J37) -> 52.88 | L33: 9.055664423 | M33: =IF('Master Database'!K37,'Master Database'!K37) -> 19.39 | N33: 66.15868 | O33: =IF('Master Database'!L37,'Master Database'!L37) -> FALSE | P33: FALSE | Q33: =IF('Master Database'!M37,'Master Database'!M37) -> FALSE | R33: FALSE | S33: =IF('Master Database'!N37,'Master Database'!N37) -> 2.723 | T33: =IF('Master Database'!O37,'Master Database'!O37) -> -0.224 | U33: =IF('Master Database'!P37,'Master Database'!P37) -> 1.6518 | V33: 11.9099722 | W33: =IF('Master Database'!Q37,'Master Database'!Q37) -> FALSE | X33: FALSE | Y33: =IF('Master Database'!R37,'Master Database'!R37) -> FALSE | Z33: FALSE | AA33: =IF('Master Database'!S37,'Master Database'!S37) -> FALSE | AB33: FALSE | AC33: =IF('Master Database'!T37,'Master Database'!T37) -> FALSE | AD33: FALSE | AE33: =IF('Master Database'!U37,'Master Database'!U37) -> FALSE | AF33: FALSE
A34: 2019 | B34: ='Master Database'!B38 -> 2019-11-01 | C34: =IF('Master Database'!F38,'Master Database'!F38) -> 49.4 | D34: 8.459716764 | E34: =IF('Master Database'!G38,'Master Database'!G38) -> 27.42 | F34: 93.55704 | G34: =IF('Master Database'!H38,'Master Database'!H38) -> FALSE | H34: FALSE | I34: =IF('Master Database'!I38,'Master Database'!I38) -> 52.9 | J34: 9.059089409 | K34: =IF('Master Database'!J38,'Master Database'!J38) -> 52.9 | L34: 9.059089409 | M34: =IF('Master Database'!K38,'Master Database'!K38) -> 20.65 | N34: 70.4578 | O34: =IF('Master Database'!L38,'Master Database'!L38) -> FALSE | P34: FALSE | Q34: =IF('Master Database'!M38,'Master Database'!M38) -> FALSE | R34: FALSE | S34: =IF('Master Database'!N38,'Master Database'!N38) -> 2.784 | T34: =IF('Master Database'!O38,'Master Database'!O38) -> 0.822 | U34: =IF('Master Database'!P38,'Master Database'!P38) -> 1.6588 | V34: 11.9604443 | W34: =IF('Master Database'!Q38,'Master Database'!Q38) -> FALSE | X34: FALSE | Y34: =IF('Master Database'!R38,'Master Database'!R38) -> FALSE | Z34: FALSE | AA34: =IF('Master Database'!S38,'Master Database'!S38) -> FALSE | AB34: FALSE | AC34: =IF('Master Database'!T38,'Master Database'!T38) -> FALSE | AD34: FALSE | AE34: =IF('Master Database'!U38,'Master Database'!U38) -> FALSE | AF34: FALSE
A35: 2019 | B35: ='Master Database'!B39 -> 2019-12-01 | C35: =IF('Master Database'!F39,'Master Database'!F39) -> 49.45 | D35: 8.46827923 | E35: =IF('Master Database'!G39,'Master Database'!G39) -> 40.81 | F35: 139.24372 | G35: =IF('Master Database'!H39,'Master Database'!H39) -> FALSE | H35: FALSE | I35: =IF('Master Database'!I39,'Master Database'!I39) -> 52.91 | J35: 9.060801902 | K35: =IF('Master Database'!J39,'Master Database'!J39) -> 52.91 | L35: 9.060801902 | M35: =IF('Master Database'!K39,'Master Database'!K39) -> 23.87 | N35: 81.44444 | O35: =IF('Master Database'!L39,'Master Database'!L39) -> FALSE | P35: FALSE | Q35: =IF('Master Database'!M39,'Master Database'!M39) -> FALSE | R35: FALSE | S35: =IF('Master Database'!N39,'Master Database'!N39) -> 2.916 | T35: =IF('Master Database'!O39,'Master Database'!O39) -> 3.531 | U35: =IF('Master Database'!P39,'Master Database'!P39) -> 1.6658 | V35: 12.01091639 | W35: =IF('Master Database'!Q39,'Master Database'!Q39) -> FALSE | X35: FALSE | Y35: =IF('Master Database'!R39,'Master Database'!R39) -> FALSE | Z35: FALSE | AA35: =IF('Master Database'!S39,'Master Database'!S39) -> FALSE | AB35: FALSE | AC35: =IF('Master Database'!T39,'Master Database'!T39) -> FALSE | AD35: FALSE | AE35: =IF('Master Database'!U39,'Master Database'!U39) -> FALSE | AF35: FALSE
A36: 2020 | B36: ='Master Database'!B40 -> 2020-01-01 | C36: =IF('Master Database'!F40,'Master Database'!F40) -> 49.5 | D36: 8.476841697 | E36: =IF('Master Database'!G40,'Master Database'!G40) -> 59.88 | F36: 204.31056 | G36: =IF('Master Database'!H40,'Master Database'!H40) -> FALSE | H36: FALSE | I36: =IF('Master Database'!I40,'Master Database'!I40) -> 53 | J36: 9.076214342 | K36: =IF('Master Database'!J40,'Master Database'!J40) -> 53 | L36: 9.076214342 | M36: =IF('Master Database'!K40,'Master Database'!K40) -> 37.54 | N36: 128.08648 | O36: =IF('Master Database'!L40,'Master Database'!L40) -> FALSE | P36: FALSE | Q36: =IF('Master Database'!M40,'Master Database'!M40) -> FALSE | R36: FALSE | S36: =IF('Master Database'!N40,'Master Database'!N40) -> 3.019 | T36: =IF('Master Database'!O40,'Master Database'!O40) -> 5.776 | U36: =IF('Master Database'!P40,'Master Database'!P40) -> 1.6733 | V36: 12.06499364 | W36: =IF('Master Database'!Q40,'Master Database'!Q40) -> FALSE | X36: FALSE | Y36: =IF('Master Database'!R40,'Master Database'!R40) -> FALSE | Z36: FALSE | AA36: =IF('Master Database'!S40,'Master Database'!S40) -> FALSE | AB36: FALSE | AC36: =IF('Master Database'!T40,'Master Database'!T40) -> FALSE | AD36: FALSE | AE36: =IF('Master Database'!U40,'Master Database'!U40) -> FALSE | AF36: FALSE
A37: 2020 | B37: ='Master Database'!B41 -> 2020-02-01 | C37: =IF('Master Database'!F41,'Master Database'!F41) -> 49.55 | D37: 8.485404163 | E37: =IF('Master Database'!G41,'Master Database'!G41) -> 59.15 | F37: 201.8198 | G37: =IF('Master Database'!H41,'Master Database'!H41) -> FALSE | H37: FALSE | I37: =IF('Master Database'!I41,'Master Database'!I41) -> 53.09 | J37: 9.091626781 | K37: =IF('Master Database'!J41,'Master Database'!J41) -> 53.09 | L37: 9.091626781 | M37: =IF('Master Database'!K41,'Master Database'!K41) -> 35.29 | N37: 120.40948 | O37: =IF('Master Database'!L41,'Master Database'!L41) -> FALSE | P37: FALSE | Q37: =IF('Master Database'!M41,'Master Database'!M41) -> FALSE | R37: FALSE | S37: =IF('Master Database'!N41,'Master Database'!N41) -> 2.994 | T37: =IF('Master Database'!O41,'Master Database'!O41) -> 5.718 | U37: =IF('Master Database'!P41,'Master Database'!P41) -> 1.6778 | V37: 12.09743998 | W37: =IF('Master Database'!Q41,'Master Database'!Q41) -> FALSE | X37: FALSE | Y37: =IF('Master Database'!R41,'Master Database'!R41) -> FALSE | Z37: FALSE | AA37: =IF('Master Database'!S41,'Master Database'!S41) -> FALSE | AB37: FALSE | AC37: =IF('Master Database'!T41,'Master Database'!T41) -> FALSE | AD37: FALSE | AE37: =IF('Master Database'!U41,'Master Database'!U41) -> FALSE | AF37: FALSE
A38: 2020 | B38: ='Master Database'!B42 -> 2020-03-01 | C38: =IF('Master Database'!F42,'Master Database'!F42) -> 49.6 | D38: 8.493966629 | E38: =IF('Master Database'!G42,'Master Database'!G42) -> 40.36 | F38: 137.70832 | G38: =IF('Master Database'!H42,'Master Database'!H42) -> FALSE | H38: FALSE | I38: =IF('Master Database'!I42,'Master Database'!I42) -> 53.19 | J38: 9.108751714 | K38: =IF('Master Database'!J42,'Master Database'!J42) -> 53.19 | L38: 9.108751714 | M38: =IF('Master Database'!K42,'Master Database'!K42) -> 26.73 | N38: 91.20276 | O38: =IF('Master Database'!L42,'Master Database'!L42) -> FALSE | P38: FALSE | Q38: =IF('Master Database'!M42,'Master Database'!M42) -> FALSE | R38: FALSE | S38: =IF('Master Database'!N42,'Master Database'!N42) -> 2.941 | T38: =IF('Master Database'!O42,'Master Database'!O42) -> 2.429 | U38: =IF('Master Database'!P42,'Master Database'!P42) -> 1.6773 | V38: 12.09383483 | W38: =IF('Master Database'!Q42,'Master Database'!Q42) -> FALSE | X38: FALSE | Y38: =IF('Master Database'!R42,'Master Database'!R42) -> FALSE | Z38: FALSE | AA38: =IF('Master Database'!S42,'Master Database'!S42) -> FALSE | AB38: FALSE | AC38: =IF('Master Database'!T42,'Master Database'!T42) -> FALSE | AD38: FALSE | AE38: =IF('Master Database'!U42,'Master Database'!U42) -> FALSE | AF38: FALSE
A39: 2020 | B39: ='Master Database'!B43 -> 2020-04-01 | C39: =IF('Master Database'!F43,'Master Database'!F43) -> 49.67 | D39: 8.505954082 | E39: =IF('Master Database'!G43,'Master Database'!G43) -> 25.82 | F39: 88.09784 | G39: =IF('Master Database'!H43,'Master Database'!H43) -> FALSE | H39: FALSE | I39: =IF('Master Database'!I43,'Master Database'!I43) -> 53.27 | J39: 9.12245166 | K39: =IF('Master Database'!J43,'Master Database'!J43) -> 53.27 | L39: 9.12245166 | M39: =IF('Master Database'!K43,'Master Database'!K43) -> 22.28 | N39: 76.01936 | O39: =IF('Master Database'!L43,'Master Database'!L43) -> FALSE | P39: FALSE | Q39: =IF('Master Database'!M43,'Master Database'!M43) -> FALSE | R39: FALSE | S39: =IF('Master Database'!N43,'Master Database'!N43) -> 2.618 | T39: =IF('Master Database'!O43,'Master Database'!O43) -> 0.194 | U39: =IF('Master Database'!P43,'Master Database'!P43) -> 1.6713 | V39: 12.05057304 | W39: =IF('Master Database'!Q43,'Master Database'!Q43) -> FALSE | X39: FALSE | Y39: =IF('Master Database'!R43,'Master Database'!R43) -> FALSE | Z39: FALSE | AA39: =IF('Master Database'!S43,'Master Database'!S43) -> FALSE | AB39: FALSE | AC39: =IF('Master Database'!T43,'Master Database'!T43) -> FALSE | AD39: FALSE | AE39: =IF('Master Database'!U43,'Master Database'!U43) -> FALSE | AF39: FALSE
A40: 2020 | B40: ='Master Database'!B44 -> 2020-05-01 | C40: =IF('Master Database'!F44,'Master Database'!F44) -> 49.73 | D40: 8.516229042 | E40: =IF('Master Database'!G44,'Master Database'!G44) -> 21.03 | F40: 71.75436 | G40: =IF('Master Database'!H44,'Master Database'!H44) -> FALSE | H40: FALSE | I40: =IF('Master Database'!I44,'Master Database'!I44) -> 53.35 | J40: 9.136151606 | K40: =IF('Master Database'!J44,'Master Database'!J44) -> 53.35 | L40: 9.136151606 | M40: =IF('Master Database'!K44,'Master Database'!K44) -> 19.22 | N40: 65.57864 | O40: =IF('Master Database'!L44,'Master Database'!L44) -> FALSE | P40: FALSE | Q40: =IF('Master Database'!M44,'Master Database'!M44) -> FALSE | R40: FALSE | S40: =IF('Master Database'!N44,'Master Database'!N44) -> 2.591 | T40: =IF('Master Database'!O44,'Master Database'!O44) -> -0.098 | U40: =IF('Master Database'!P44,'Master Database'!P44) -> 1.6703 | V40: 12.04336274 | W40: =IF('Master Database'!Q44,'Master Database'!Q44) -> FALSE | X40: FALSE | Y40: =IF('Master Database'!R44,'Master Database'!R44) -> FALSE | Z40: FALSE | AA40: =IF('Master Database'!S44,'Master Database'!S44) -> FALSE | AB40: FALSE | AC40: =IF('Master Database'!T44,'Master Database'!T44) -> FALSE | AD40: FALSE | AE40: =IF('Master Database'!U44,'Master Database'!U44) -> FALSE | AF40: FALSE
A41: 2020 | B41: ='Master Database'!B45 -> 2020-06-01 | C41: =IF('Master Database'!F45,'Master Database'!F45) -> 49.76 | D41: 8.521366522 | E41: =IF('Master Database'!G45,'Master Database'!G45) -> 21.42 | F41: 73.08504 | G41: =IF('Master Database'!H45,'Master Database'!H45) -> FALSE | H41: FALSE | I41: =IF('Master Database'!I45,'Master Database'!I45) -> 53.41 | J41: 9.146426566 | K41: =IF('Master Database'!J45,'Master Database'!J45) -> 53.41 | L41: 9.146426566 | M41: =IF('Master Database'!K45,'Master Database'!K45) -> 19.12 | N41: 65.23744 | O41: =IF('Master Database'!L45,'Master Database'!L45) -> FALSE | P41: FALSE | Q41: =IF('Master Database'!M45,'Master Database'!M45) -> FALSE | R41: FALSE | S41: =IF('Master Database'!N45,'Master Database'!N45) -> 2.616 | T41: =IF('Master Database'!O45,'Master Database'!O45) -> -0.053 | U41: =IF('Master Database'!P45,'Master Database'!P45) -> 1.6723 | V41: 12.05778334 | W41: =IF('Master Database'!Q45,'Master Database'!Q45) -> FALSE | X41: FALSE | Y41: =IF('Master Database'!R45,'Master Database'!R45) -> FALSE | Z41: FALSE | AA41: =IF('Master Database'!S45,'Master Database'!S45) -> FALSE | AB41: FALSE | AC41: =IF('Master Database'!T45,'Master Database'!T45) -> FALSE | AD41: FALSE | AE41: =IF('Master Database'!U45,'Master Database'!U45) -> FALSE | AF41: FALSE
A42: 2020 | B42: ='Master Database'!B46 -> 2020-07-01 | C42: =IF('Master Database'!F46,'Master Database'!F46) -> 49.82 | D42: 8.531641481 | E42: =IF('Master Database'!G46,'Master Database'!G46) -> 23.77 | F42: 81.10324 | G42: =IF('Master Database'!H46,'Master Database'!H46) -> 41.16 | H42: 140.43792 | I42: =IF('Master Database'!I46,'Master Database'!I46) -> 53.52 | J42: 9.165263992 | K42: =IF('Master Database'!J46,'Master Database'!J46) -> 53.52 | L42: 9.165263992 | M42: =IF('Master Database'!K46,'Master Database'!K46) -> 22.53 | N42: 76.87236 | O42: =IF('Master Database'!L46,'Master Database'!L46) -> 36.83 | P42: 125.66396 | Q42: =IF('Master Database'!M46,'Master Database'!M46) -> 24.35 | R42: 83.0822 | S42: =IF('Master Database'!N46,'Master Database'!N46) -> 2.644 | T42: =IF('Master Database'!O46,'Master Database'!O46) -> 0.179 | U42: =IF('Master Database'!P46,'Master Database'!P46) -> 1.6783 | V42: 12.10104513 | W42: =IF('Master Database'!Q46,'Master Database'!Q46) -> 1.6337 | X42: 11.77946579 | Y42: =IF('Master Database'!R46,'Master Database'!R46) -> FALSE | Z42: FALSE | AA42: =IF('Master Database'!S46,'Master Database'!S46) -> 73.15 | AB42: 2.915504185 | AC42: =IF('Master Database'!T46,'Master Database'!T46) -> 40.99 | AD42: 7.086791148 | AE42: =IF('Master Database'!U46,'Master Database'!U46) -> 9.115 | AF42: 1.560937617
A43: 2020 | B43: ='Master Database'!B47 -> 2020-08-01 | C43: =IF('Master Database'!F47,'Master Database'!F47) -> 49.89 | D43: 8.543628934 | E43: =IF('Master Database'!G47,'Master Database'!G47) -> 22.35 | F43: 76.2582 | G43: =IF('Master Database'!H47,'Master Database'!H47) -> FALSE | H43: FALSE | I43: =IF('Master Database'!I47,'Master Database'!I47) -> 53.6 | J43: 9.178963938 | K43: =IF('Master Database'!J47,'Master Database'!J47) -> 53.6 | L43: 9.178963938 | M43: =IF('Master Database'!K47,'Master Database'!K47) -> 20.92 | N43: 71.37904 | O43: =IF('Master Database'!L47,'Master Database'!L47) -> FALSE | P43: FALSE | Q43: =IF('Master Database'!M47,'Master Database'!M47) -> FALSE | R43: FALSE | S43: =IF('Master Database'!N47,'Master Database'!N47) -> 2.664 | T43: =IF('Master Database'!O47,'Master Database'!O47) -> 0.088 | U43: =IF('Master Database'!P47,'Master Database'!P47) -> 1.6843 | V43: 12.14430693 | W43: =IF('Master Database'!Q47,'Master Database'!Q47) -> FALSE | X43: FALSE | Y43: =IF('Master Database'!R47,'Master Database'!R47) -> FALSE | Z43: FALSE | AA43: =IF('Master Database'!S47,'Master Database'!S47) -> FALSE | AB43: FALSE | AC43: =IF('Master Database'!T47,'Master Database'!T47) -> FALSE | AD43: FALSE | AE43: =IF('Master Database'!U47,'Master Database'!U47) -> FALSE | AF43: FALSE
A44: 2020 | B44: ='Master Database'!B48 -> 2020-09-01 | C44: =IF('Master Database'!F48,'Master Database'!F48) -> 49.97 | D44: 8.55732888 | E44: =IF('Master Database'!G48,'Master Database'!G48) -> 20.01 | F44: 68.27412 | G44: =IF('Master Database'!H48,'Master Database'!H48) -> FALSE | H44: FALSE | I44: =IF('Master Database'!I48,'Master Database'!I48) -> 53.65 | J44: 9.187526405 | K44: =IF('Master Database'!J48,'Master Database'!J48) -> 53.65 | L44: 9.187526405 | M44: =IF('Master Database'!K48,'Master Database'!K48) -> 18.92 | N44: 64.55504 | O44: =IF('Master Database'!L48,'Master Database'!L48) -> FALSE | P44: FALSE | Q44: =IF('Master Database'!M48,'Master Database'!M48) -> FALSE | R44: FALSE | S44: =IF('Master Database'!N48,'Master Database'!N48) -> 2.659 | T44: =IF('Master Database'!O48,'Master Database'!O48) -> FALSE | U44: =IF('Master Database'!P48,'Master Database'!P48) -> 1.6913 | V44: 12.19477902 | W44: =IF('Master Database'!Q48,'Master Database'!Q48) -> FALSE | X44: FALSE | Y44: =IF('Master Database'!R48,'Master Database'!R48) -> FALSE | Z44: FALSE | AA44: =IF('Master Database'!S48,'Master Database'!S48) -> FALSE | AB44: FALSE | AC44: =IF('Master Database'!T48,'Master Database'!T48) -> FALSE | AD44: FALSE | AE44: =IF('Master Database'!U48,'Master Database'!U48) -> FALSE | AF44: FALSE
A45: 2020 | B45: ='Master Database'!B49 -> 2020-10-01 | C45: =IF('Master Database'!F49,'Master Database'!F49) -> 50.08 | D45: 8.576166306 | E45: =IF('Master Database'!G49,'Master Database'!G49) -> 20.45 | F45: 69.7754 | G45: =IF('Master Database'!H49,'Master Database'!H49) -> FALSE | H45: FALSE | I45: =IF('Master Database'!I49,'Master Database'!I49) -> 53.69 | J45: 9.194376378 | K45: =IF('Master Database'!J49,'Master Database'!J49) -> 53.69 | L45: 9.194376378 | M45: =IF('Master Database'!K49,'Master Database'!K49) -> 19.42 | N45: 66.26104 | O45: =IF('Master Database'!L49,'Master Database'!L49) -> FALSE | P45: FALSE | Q45: =IF('Master Database'!M49,'Master Database'!M49) -> FALSE | R45: FALSE | S45: =IF('Master Database'!N49,'Master Database'!N49) -> 2.686 | T45: =IF('Master Database'!O49,'Master Database'!O49) -> FALSE | U45: =IF('Master Database'!P49,'Master Database'!P49) -> 1.6973 | V45: 12.23804082 | W45: =IF('Master Database'!Q49,'Master Database'!Q49) -> FALSE | X45: FALSE | Y45: =IF('Master Database'!R49,'Master Database'!R49) -> FALSE | Z45: FALSE | AA45: =IF('Master Database'!S49,'Master Database'!S49) -> FALSE | AB45: FALSE | AC45: =IF('Master Database'!T49,'Master Database'!T49) -> FALSE | AD45: FALSE | AE45: =IF('Master Database'!U49,'Master Database'!U49) -> FALSE | AF45: FALSE
A46: 2020 | B46: ='Master Database'!B50 -> 2020-11-01 | C46: =IF('Master Database'!F50,'Master Database'!F50) -> 50.17 | D46: 8.591578746 | E46: =IF('Master Database'!G50,'Master Database'!G50) -> 27.08 | F46: 92.39696 | G46: =IF('Master Database'!H50,'Master Database'!H50) -> FALSE | H46: FALSE | I46: =IF('Master Database'!I50,'Master Database'!I50) -> 53.73 | J46: 9.201226351 | K46: =IF('Master Database'!J50,'Master Database'!J50) -> 53.73 | L46: 9.201226351 | M46: =IF('Master Database'!K50,'Master Database'!K50) -> 20.47 | N46: 69.84364 | O46: =IF('Master Database'!L50,'Master Database'!L50) -> FALSE | P46: FALSE | Q46: =IF('Master Database'!M50,'Master Database'!M50) -> FALSE | R46: FALSE | S46: =IF('Master Database'!N50,'Master Database'!N50) -> 2.758 | T46: =IF('Master Database'!O50,'Master Database'!O50) -> FALSE | U46: =IF('Master Database'!P50,'Master Database'!P50) -> 1.7018 | V46: 12.27048716 | W46: =IF('Master Database'!Q50,'Master Database'!Q50) -> FALSE | X46: FALSE | Y46: =IF('Master Database'!R50,'Master Database'!R50) -> FALSE | Z46: FALSE | AA46: =IF('Master Database'!S50,'Master Database'!S50) -> FALSE | AB46: FALSE | AC46: =IF('Master Database'!T50,'Master Database'!T50) -> FALSE | AD46: FALSE | AE46: =IF('Master Database'!U50,'Master Database'!U50) -> FALSE | AF46: FALSE
A47: 2020 | B47: ='Master Database'!B51 -> 2020-12-01 | C47: =IF('Master Database'!F51,'Master Database'!F51) -> 50.23 | D47: 8.601853705 | E47: =IF('Master Database'!G51,'Master Database'!G51) -> 39.09 | F47: 133.37508 | G47: =IF('Master Database'!H51,'Master Database'!H51) -> FALSE | H47: FALSE | I47: =IF('Master Database'!I51,'Master Database'!I51) -> 53.77 | J47: 9.208076324 | K47: =IF('Master Database'!J51,'Master Database'!J51) -> 53.77 | L47: 9.208076324 | M47: =IF('Master Database'!K51,'Master Database'!K51) -> 23.93 | N47: 81.64916 | O47: =IF('Master Database'!L51,'Master Database'!L51) -> FALSE | P47: FALSE | Q47: =IF('Master Database'!M51,'Master Database'!M51) -> FALSE | R47: FALSE | S47: =IF('Master Database'!N51,'Master Database'!N51) -> 2.904 | T47: =IF('Master Database'!O51,'Master Database'!O51) -> FALSE | U47: =IF('Master Database'!P51,'Master Database'!P51) -> 1.7058 | V47: 12.29932836 | W47: =IF('Master Database'!Q51,'Master Database'!Q51) -> FALSE | X47: FALSE | Y47: =IF('Master Database'!R51,'Master Database'!R51) -> FALSE | Z47: FALSE | AA47: =IF('Master Database'!S51,'Master Database'!S51) -> FALSE | AB47: FALSE | AC47: =IF('Master Database'!T51,'Master Database'!T51) -> FALSE | AD47: FALSE | AE47: =IF('Master Database'!U51,'Master Database'!U51) -> FALSE | AF47: FALSE
A48: 2021 | B48: ='Master Database'!B52 -> 2021-01-01 | C48: =IF('Master Database'!F52,'Master Database'!F52) -> 50.29 | D48: 8.612128665 | E48: =IF('Master Database'!G52,'Master Database'!G52) -> 59.87 | F48: 204.27644 | G48: =IF('Master Database'!H52,'Master Database'!H52) -> FALSE | H48: FALSE | I48: =IF('Master Database'!I52,'Master Database'!I52) -> 53.87 | J48: 9.225201256 | K48: =IF('Master Database'!J52,'Master Database'!J52) -> 53.87 | L48: 9.225201256 | M48: =IF('Master Database'!K52,'Master Database'!K52) -> 36.86 | N48: 125.76632 | O48: =IF('Master Database'!L52,'Master Database'!L52) -> FALSE | P48: FALSE | Q48: =IF('Master Database'!M52,'Master Database'!M52) -> FALSE | R48: FALSE | S48: =IF('Master Database'!N52,'Master Database'!N52) -> 3.009 | T48: =IF('Master Database'!O52,'Master Database'!O52) -> FALSE | U48: =IF('Master Database'!P52,'Master Database'!P52) -> 1.7118 | V48: 12.34259016 | W48: =IF('Master Database'!Q52,'Master Database'!Q52) -> FALSE | X48: FALSE | Y48: =IF('Master Database'!R52,'Master Database'!R52) -> FALSE | Z48: FALSE | AA48: =IF('Master Database'!S52,'Master Database'!S52) -> FALSE | AB48: FALSE | AC48: =IF('Master Database'!T52,'Master Database'!T52) -> FALSE | AD48: FALSE | AE48: =IF('Master Database'!U52,'Master Database'!U52) -> FALSE | AF48: FALSE
A49: 2021 | B49: ='Master Database'!B53 -> 2021-02-01 | C49: =IF('Master Database'!F53,'Master Database'!F53) -> 50.35 | D49: 8.622403625 | E49: =IF('Master Database'!G53,'Master Database'!G53) -> 59.92 | F49: 204.44704 | G49: =IF('Master Database'!H53,'Master Database'!H53) -> FALSE | H49: FALSE | I49: =IF('Master Database'!I53,'Master Database'!I53) -> 53.96 | J49: 9.240613696 | K49: =IF('Master Database'!J53,'Master Database'!J53) -> 53.96 | L49: 9.240613696 | M49: =IF('Master Database'!K53,'Master Database'!K53) -> 34.74 | N49: 118.53288 | O49: =IF('Master Database'!L53,'Master Database'!L53) -> FALSE | P49: FALSE | Q49: =IF('Master Database'!M53,'Master Database'!M53) -> FALSE | R49: FALSE | S49: =IF('Master Database'!N53,'Master Database'!N53) -> 2.984 | T49: =IF('Master Database'!O53,'Master Database'!O53) -> FALSE | U49: =IF('Master Database'!P53,'Master Database'!P53) -> FALSE | V49: FALSE | W49: =IF('Master Database'!Q53,'Master Database'!Q53) -> FALSE | X49: FALSE | Y49: =IF('Master Database'!R53,'Master Database'!R53) -> FALSE | Z49: FALSE | AA49: =IF('Master Database'!S53,'Master Database'!S53) -> FALSE | AB49: FALSE | AC49: =IF('Master Database'!T53,'Master Database'!T53) -> FALSE | AD49: FALSE | AE49: =IF('Master Database'!U53,'Master Database'!U53) -> FALSE | AF49: FALSE
A50: 2021 | B50: ='Master Database'!B54 -> 2021-03-01 | C50: =IF('Master Database'!F54,'Master Database'!F54) -> 50.44 | D50: 8.637816064 | E50: =IF('Master Database'!G54,'Master Database'!G54) -> 40.57 | F50: 138.42484 | G50: =IF('Master Database'!H54,'Master Database'!H54) -> FALSE | H50: FALSE | I50: =IF('Master Database'!I54,'Master Database'!I54) -> 54.06 | J50: 9.257738629 | K50: =IF('Master Database'!J54,'Master Database'!J54) -> 54.06 | L50: 9.257738629 | M50: =IF('Master Database'!K54,'Master Database'!K54) -> 26.6 | N50: 90.7592 | O50: =IF('Master Database'!L54,'Master Database'!L54) -> FALSE | P50: FALSE | Q50: =IF('Master Database'!M54,'Master Database'!M54) -> FALSE | R50: FALSE | S50: =IF('Master Database'!N54,'Master Database'!N54) -> 2.925 | T50: =IF('Master Database'!O54,'Master Database'!O54) -> FALSE | U50: =IF('Master Database'!P54,'Master Database'!P54) -> FALSE | V50: FALSE | W50: =IF('Master Database'!Q54,'Master Database'!Q54) -> FALSE | X50: FALSE | Y50: =IF('Master Database'!R54,'Master Database'!R54) -> FALSE | Z50: FALSE | AA50: =IF('Master Database'!S54,'Master Database'!S54) -> FALSE | AB50: FALSE | AC50: =IF('Master Database'!T54,'Master Database'!T54) -> FALSE | AD50: FALSE | AE50: =IF('Master Database'!U54,'Master Database'!U54) -> FALSE | AF50: FALSE
A51: 2021 | B51: ='Master Database'!B55 -> 2021-04-01 | C51: =IF('Master Database'!F55,'Master Database'!F55) -> 50.55 | D51: 8.65665349 | E51: =IF('Master Database'!G55,'Master Database'!G55) -> 25.93 | F51: 88.47316 | G51: =IF('Master Database'!H55,'Master Database'!H55) -> FALSE | H51: FALSE | I51: =IF('Master Database'!I55,'Master Database'!I55) -> 54.16 | J51: 9.274863561 | K51: =IF('Master Database'!J55,'Master Database'!J55) -> 54.16 | L51: 9.274863561 | M51: =IF('Master Database'!K55,'Master Database'!K55) -> 22.53 | N51: 76.87236 | O51: =IF('Master Database'!L55,'Master Database'!L55) -> FALSE | P51: FALSE | Q51: =IF('Master Database'!M55,'Master Database'!M55) -> FALSE | R51: FALSE | S51: =IF('Master Database'!N55,'Master Database'!N55) -> 2.607 | T51: =IF('Master Database'!O55,'Master Database'!O55) -> FALSE | U51: =IF('Master Database'!P55,'Master Database'!P55) -> FALSE | V51: FALSE | W51: =IF('Master Database'!Q55,'Master Database'!Q55) -> FALSE | X51: FALSE | Y51: =IF('Master Database'!R55,'Master Database'!R55) -> FALSE | Z51: FALSE | AA51: =IF('Master Database'!S55,'Master Database'!S55) -> FALSE | AB51: FALSE | AC51: =IF('Master Database'!T55,'Master Database'!T55) -> FALSE | AD51: FALSE | AE51: =IF('Master Database'!U55,'Master Database'!U55) -> FALSE | AF51: FALSE
A52: 2021 | B52: ='Master Database'!B56 -> 2021-05-01 | C52: =IF('Master Database'!F56,'Master Database'!F56) -> 50.63 | D52: 8.670353436 | E52: =IF('Master Database'!G56,'Master Database'!G56) -> 21.47 | F52: 73.25564 | G52: =IF('Master Database'!H56,'Master Database'!H56) -> FALSE | H52: FALSE | I52: =IF('Master Database'!I56,'Master Database'!I56) -> 54.27 | J52: 9.293700987 | K52: =IF('Master Database'!J56,'Master Database'!J56) -> 54.27 | L52: 9.293700987 | M52: =IF('Master Database'!K56,'Master Database'!K56) -> 19.26 | N52: 65.71512 | O52: =IF('Master Database'!L56,'Master Database'!L56) -> FALSE | P52: FALSE | Q52: =IF('Master Database'!M56,'Master Database'!M56) -> FALSE | R52: FALSE | S52: =IF('Master Database'!N56,'Master Database'!N56) -> 2.584 | T52: =IF('Master Database'!O56,'Master Database'!O56) -> FALSE | U52: =IF('Master Database'!P56,'Master Database'!P56) -> FALSE | V52: FALSE | W52: =IF('Master Database'!Q56,'Master Database'!Q56) -> FALSE | X52: FALSE | Y52: =IF('Master Database'!R56,'Master Database'!R56) -> FALSE | Z52: FALSE | AA52: =IF('Master Database'!S56,'Master Database'!S56) -> FALSE | AB52: FALSE | AC52: =IF('Master Database'!T56,'Master Database'!T56) -> FALSE | AD52: FALSE | AE52: =IF('Master Database'!U56,'Master Database'!U56) -> FALSE | AF52: FALSE
A53: 2021 | B53: ='Master Database'!B57 -> 2021-06-01 | C53: =IF('Master Database'!F57,'Master Database'!F57) -> 50.67 | D53: 8.677203409 | E53: =IF('Master Database'!G57,'Master Database'!G57) -> 22.02 | F53: 75.13224 | G53: =IF('Master Database'!H57,'Master Database'!H57) -> FALSE | H53: FALSE | I53: =IF('Master Database'!I57,'Master Database'!I57) -> 54.38 | J53: 9.312538413 | K53: =IF('Master Database'!J57,'Master Database'!J57) -> 54.38 | L53: 9.312538413 | M53: =IF('Master Database'!K57,'Master Database'!K57) -> 19.26 | N53: 65.71512 | O53: =IF('Master Database'!L57,'Master Database'!L57) -> FALSE | P53: FALSE | Q53: =IF('Master Database'!M57,'Master Database'!M57) -> FALSE | R53: FALSE | S53: =IF('Master Database'!N57,'Master Database'!N57) -> 2.608 | T53: =IF('Master Database'!O57,'Master Database'!O57) -> FALSE | U53: =IF('Master Database'!P57,'Master Database'!P57) -> FALSE | V53: FALSE | W53: =IF('Master Database'!Q57,'Master Database'!Q57) -> FALSE | X53: FALSE | Y53: =IF('Master Database'!R57,'Master Database'!R57) -> FALSE | Z53: FALSE | AA53: =IF('Master Database'!S57,'Master Database'!S57) -> FALSE | AB53: FALSE | AC53: =IF('Master Database'!T57,'Master Database'!T57) -> FALSE | AD53: FALSE | AE53: =IF('Master Database'!U57,'Master Database'!U57) -> FALSE | AF53: FALSE
A54: 2021 | B54: ='Master Database'!B58 -> 2021-07-01 | C54: =IF('Master Database'!F58,'Master Database'!F58) -> 50.74 | D54: 8.689190862 | E54: =IF('Master Database'!G58,'Master Database'!G58) -> 24.15 | F54: 82.3998 | G54: =IF('Master Database'!H58,'Master Database'!H58) -> 38.35 | H54: 130.8502 | I54: =IF('Master Database'!I58,'Master Database'!I58) -> 54.48 | J54: 9.329663346 | K54: =IF('Master Database'!J58,'Master Database'!J58) -> 54.48 | L54: 9.329663346 | M54: =IF('Master Database'!K58,'Master Database'!K58) -> 22.73 | N54: 77.55476 | O54: =IF('Master Database'!L58,'Master Database'!L58) -> 38.11 | P54: 130.03132 | Q54: =IF('Master Database'!M58,'Master Database'!M58) -> FALSE | R54: FALSE | S54: =IF('Master Database'!N58,'Master Database'!N58) -> 2.633 | T54: =IF('Master Database'!O58,'Master Database'!O58) -> FALSE | U54: =IF('Master Database'!P58,'Master Database'!P58) -> FALSE | V54: FALSE | W54: =IF('Master Database'!Q58,'Master Database'!Q58) -> FALSE | X54: FALSE | Y54: =IF('Master Database'!R58,'Master Database'!R58) -> FALSE | Z54: FALSE | AA54: =IF('Master Database'!S58,'Master Database'!S58) -> 72.85 | AB54: 2.90354723 | AC54: =IF('Master Database'!T58,'Master Database'!T58) -> FALSE | AD54: FALSE | AE54: =IF('Master Database'!U58,'Master Database'!U58) -> FALSE | AF54: FALSE
A55: 2021 | B55: ='Master Database'!B59 -> 2021-08-01 | C55: =IF('Master Database'!F59,'Master Database'!F59) -> 50.84 | D55: 8.706315795 | E55: =IF('Master Database'!G59,'Master Database'!G59) -> 22.46 | F55: 76.63352 | G55: =IF('Master Database'!H59,'Master Database'!H59) -> FALSE | H55: FALSE | I55: =IF('Master Database'!I59,'Master Database'!I59) -> 54.58 | J55: 9.346788279 | K55: =IF('Master Database'!J59,'Master Database'!J59) -> 54.58 | L55: 9.346788279 | M55: =IF('Master Database'!K59,'Master Database'!K59) -> 20.72 | N55: 70.69664 | O55: =IF('Master Database'!L59,'Master Database'!L59) -> FALSE | P55: FALSE | Q55: =IF('Master Database'!M59,'Master Database'!M59) -> FALSE | R55: FALSE | S55: =IF('Master Database'!N59,'Master Database'!N59) -> 2.653 | T55: =IF('Master Database'!O59,'Master Database'!O59) -> FALSE | U55: =IF('Master Database'!P59,'Master Database'!P59) -> FALSE | V55: FALSE | W55: =IF('Master Database'!Q59,'Master Database'!Q59) -> FALSE | X55: FALSE | Y55: =IF('Master Database'!R59,'Master Database'!R59) -> FALSE | Z55: FALSE | AA55: =IF('Master Database'!S59,'Master Database'!S59) -> FALSE | AB55: FALSE | AC55: =IF('Master Database'!T59,'Master Database'!T59) -> FALSE | AD55: FALSE | AE55: =IF('Master Database'!U59,'Master Database'!U59) -> FALSE | AF55: FALSE
A56: 2021 | B56: ='Master Database'!B60 -> 2021-09-01 | C56: =IF('Master Database'!F60,'Master Database'!F60) -> 50.95 | D56: 8.725153221 | E56: =IF('Master Database'!G60,'Master Database'!G60) -> 20.68 | F56: 70.56016 | G56: =IF('Master Database'!H60,'Master Database'!H60) -> FALSE | H56: FALSE | I56: =IF('Master Database'!I60,'Master Database'!I60) -> 54.68 | J56: 9.363913212 | K56: =IF('Master Database'!J60,'Master Database'!J60) -> 54.68 | L56: 9.363913212 | M56: =IF('Master Database'!K60,'Master Database'!K60) -> 19.21 | N56: 65.54452 | O56: =IF('Master Database'!L60,'Master Database'!L60) -> FALSE | P56: FALSE | Q56: =IF('Master Database'!M60,'Master Database'!M60) -> FALSE | R56: FALSE | S56: =IF('Master Database'!N60,'Master Database'!N60) -> 2.653 | T56: =IF('Master Database'!O60,'Master Database'!O60) -> FALSE | U56: =IF('Master Database'!P60,'Master Database'!P60) -> FALSE | V56: FALSE | W56: =IF('Master Database'!Q60,'Master Database'!Q60) -> FALSE | X56: FALSE | Y56: =IF('Master Database'!R60,'Master Database'!R60) -> FALSE | Z56: FALSE | AA56: =IF('Master Database'!S60,'Master Database'!S60) -> FALSE | AB56: FALSE | AC56: =IF('Master Database'!T60,'Master Database'!T60) -> FALSE | AD56: FALSE | AE56: =IF('Master Database'!U60,'Master Database'!U60) -> FALSE | AF56: FALSE
A57: 2021 | B57: ='Master Database'!B61 -> 2021-10-01 | C57: =IF('Master Database'!F61,'Master Database'!F61) -> 51.09 | D57: 8.749128127 | E57: =IF('Master Database'!G61,'Master Database'!G61) -> 20.98 | F57: 71.58376 | G57: =IF('Master Database'!H61,'Master Database'!H61) -> FALSE | H57: FALSE | I57: =IF('Master Database'!I61,'Master Database'!I61) -> 54.77 | J57: 9.379325651 | K57: =IF('Master Database'!J61,'Master Database'!J61) -> 54.77 | L57: 9.379325651 | M57: =IF('Master Database'!K61,'Master Database'!K61) -> 19.41 | N57: 66.22692 | O57: =IF('Master Database'!L61,'Master Database'!L61) -> FALSE | P57: FALSE | Q57: =IF('Master Database'!M61,'Master Database'!M61) -> FALSE | R57: FALSE | S57: =IF('Master Database'!N61,'Master Database'!N61) -> 2.679 | T57: =IF('Master Database'!O61,'Master Database'!O61) -> FALSE | U57: =IF('Master Database'!P61,'Master Database'!P61) -> FALSE | V57: FALSE | W57: =IF('Master Database'!Q61,'Master Database'!Q61) -> FALSE | X57: FALSE | Y57: =IF('Master Database'!R61,'Master Database'!R61) -> FALSE | Z57: FALSE | AA57: =IF('Master Database'!S61,'Master Database'!S61) -> FALSE | AB57: FALSE | AC57: =IF('Master Database'!T61,'Master Database'!T61) -> FALSE | AD57: FALSE | AE57: =IF('Master Database'!U61,'Master Database'!U61) -> FALSE | AF57: FALSE
A58: 2021 | B58: ='Master Database'!B62 -> 2021-11-01 | C58: =IF('Master Database'!F62,'Master Database'!F62) -> 51.2 | D58: 8.767965553 | E58: =IF('Master Database'!G62,'Master Database'!G62) -> 27.51 | F58: 93.86412 | G58: =IF('Master Database'!H62,'Master Database'!H62) -> FALSE | H58: FALSE | I58: =IF('Master Database'!I62,'Master Database'!I62) -> 54.86 | J58: 9.39473809 | K58: =IF('Master Database'!J62,'Master Database'!J62) -> 54.86 | L58: 9.39473809 | M58: =IF('Master Database'!K62,'Master Database'!K62) -> 20.26 | N58: 69.12712 | O58: =IF('Master Database'!L62,'Master Database'!L62) -> FALSE | P58: FALSE | Q58: =IF('Master Database'!M62,'Master Database'!M62) -> FALSE | R58: FALSE | S58: =IF('Master Database'!N62,'Master Database'!N62) -> 2.754 | T58: =IF('Master Database'!O62,'Master Database'!O62) -> FALSE | U58: =IF('Master Database'!P62,'Master Database'!P62) -> FALSE | V58: FALSE | W58: =IF('Master Database'!Q62,'Master Database'!Q62) -> FALSE | X58: FALSE | Y58: =IF('Master Database'!R62,'Master Database'!R62) -> FALSE | Z58: FALSE | AA58: =IF('Master Database'!S62,'Master Database'!S62) -> FALSE | AB58: FALSE | AC58: =IF('Master Database'!T62,'Master Database'!T62) -> FALSE | AD58: FALSE | AE58: =IF('Master Database'!U62,'Master Database'!U62) -> FALSE | AF58: FALSE
A59: 2021 | B59: ='Master Database'!B63 -> 2021-12-01 | C59: =IF('Master Database'!F63,'Master Database'!F63) -> 51.25 | D59: 8.776528019 | E59: =IF('Master Database'!G63,'Master Database'!G63) -> 39.63 | F59: 135.21756 | G59: =IF('Master Database'!H63,'Master Database'!H63) -> FALSE | H59: FALSE | I59: =IF('Master Database'!I63,'Master Database'!I63) -> 54.95 | J59: 9.41015053 | K59: =IF('Master Database'!J63,'Master Database'!J63) -> 54.95 | L59: 9.41015053 | M59: =IF('Master Database'!K63,'Master Database'!K63) -> 24.19 | N59: 82.53628 | O59: =IF('Master Database'!L63,'Master Database'!L63) -> FALSE | P59: FALSE | Q59: =IF('Master Database'!M63,'Master Database'!M63) -> FALSE | R59: FALSE | S59: =IF('Master Database'!N63,'Master Database'!N63) -> 2.904 | T59: =IF('Master Database'!O63,'Master Database'!O63) -> FALSE | U59: =IF('Master Database'!P63,'Master Database'!P63) -> FALSE | V59: FALSE | W59: =IF('Master Database'!Q63,'Master Database'!Q63) -> FALSE | X59: FALSE | Y59: =IF('Master Database'!R63,'Master Database'!R63) -> FALSE | Z59: FALSE | AA59: =IF('Master Database'!S63,'Master Database'!S63) -> FALSE | AB59: FALSE | AC59: =IF('Master Database'!T63,'Master Database'!T63) -> FALSE | AD59: FALSE | AE59: =IF('Master Database'!U63,'Master Database'!U63) -> FALSE | AF59: FALSE
A60: 2022 | B60: ='Master Database'!B64 -> 2022-01-01 | C60: =IF('Master Database'!F64,'Master Database'!F64) -> 51.31 | D60: 8.786802979 | E60: =IF('Master Database'!G64,'Master Database'!G64) -> 62.5 | F60: 213.25 | G60: =IF('Master Database'!H64,'Master Database'!H64) -> FALSE | H60: FALSE | I60: =IF('Master Database'!I64,'Master Database'!I64) -> 55.05 | J60: 9.427275463 | K60: =IF('Master Database'!J64,'Master Database'!J64) -> 55.05 | L60: 9.427275463 | M60: =IF('Master Database'!K64,'Master Database'!K64) -> 36.46 | N60: 124.40152 | O60: =IF('Master Database'!L64,'Master Database'!L64) -> FALSE | P60: FALSE | Q60: =IF('Master Database'!M64,'Master Database'!M64) -> FALSE | R60: FALSE | S60: =IF('Master Database'!N64,'Master Database'!N64) -> 3.014 | T60: =IF('Master Database'!O64,'Master Database'!O64) -> FALSE | U60: =IF('Master Database'!P64,'Master Database'!P64) -> FALSE | V60: FALSE | W60: =IF('Master Database'!Q64,'Master Database'!Q64) -> FALSE | X60: FALSE | Y60: =IF('Master Database'!R64,'Master Database'!R64) -> FALSE | Z60: FALSE | AA60: =IF('Master Database'!S64,'Master Database'!S64) -> FALSE | AB60: FALSE | AC60: =IF('Master Database'!T64,'Master Database'!T64) -> FALSE | AD60: FALSE | AE60: =IF('Master Database'!U64,'Master Database'!U64) -> FALSE | AF60: FALSE
A61: 2022 | B61: ='Master Database'!B65 -> 2022-02-01 | C61: =IF('Master Database'!F65,'Master Database'!F65) -> 51.38 | D61: 8.798790432 | E61: =IF('Master Database'!G65,'Master Database'!G65) -> 60.2 | F61: 205.4024 | G61: =IF('Master Database'!H65,'Master Database'!H65) -> FALSE | H61: FALSE | I61: =IF('Master Database'!I65,'Master Database'!I65) -> 55.15 | J61: 9.444400395 | K61: =IF('Master Database'!J65,'Master Database'!J65) -> 55.15 | L61: 9.444400395 | M61: =IF('Master Database'!K65,'Master Database'!K65) -> 34.97 | N61: 119.31764 | O61: =IF('Master Database'!L65,'Master Database'!L65) -> FALSE | P61: FALSE | Q61: =IF('Master Database'!M65,'Master Database'!M65) -> FALSE | R61: FALSE | S61: =IF('Master Database'!N65,'Master Database'!N65) -> 2.989 | T61: =IF('Master Database'!O65,'Master Database'!O65) -> FALSE | U61: =IF('Master Database'!P65,'Master Database'!P65) -> FALSE | V61: FALSE | W61: =IF('Master Database'!Q65,'Master Database'!Q65) -> FALSE | X61: FALSE | Y61: =IF('Master Database'!R65,'Master Database'!R65) -> FALSE | Z61: FALSE | AA61: =IF('Master Database'!S65,'Master Database'!S65) -> FALSE | AB61: FALSE | AC61: =IF('Master Database'!T65,'Master Database'!T65) -> FALSE | AD61: FALSE | AE61: =IF('Master Database'!U65,'Master Database'!U65) -> FALSE | AF61: FALSE
A62: 2022 | B62: ='Master Database'!B66 -> 2022-03-01 | C62: =IF('Master Database'!F66,'Master Database'!F66) -> 51.48 | D62: 8.815915364 | E62: =IF('Master Database'!G66,'Master Database'!G66) -> 41.6 | F62: 141.9392 | G62: =IF('Master Database'!H66,'Master Database'!H66) -> FALSE | H62: FALSE | I62: =IF('Master Database'!I66,'Master Database'!I66) -> 55.25 | J62: 9.461525328 | K62: =IF('Master Database'!J66,'Master Database'!J66) -> 55.25 | L62: 9.461525328 | M62: =IF('Master Database'!K66,'Master Database'!K66) -> 26.52 | N62: 90.48624 | O62: =IF('Master Database'!L66,'Master Database'!L66) -> FALSE | P62: FALSE | Q62: =IF('Master Database'!M66,'Master Database'!M66) -> FALSE | R62: FALSE | S62: =IF('Master Database'!N66,'Master Database'!N66) -> 2.93 | T62: =IF('Master Database'!O66,'Master Database'!O66) -> FALSE | U62: =IF('Master Database'!P66,'Master Database'!P66) -> FALSE | V62: FALSE | W62: =IF('Master Database'!Q66,'Master Database'!Q66) -> FALSE | X62: FALSE | Y62: =IF('Master Database'!R66,'Master Database'!R66) -> FALSE | Z62: FALSE | AA62: =IF('Master Database'!S66,'Master Database'!S66) -> FALSE | AB62: FALSE | AC62: =IF('Master Database'!T66,'Master Database'!T66) -> FALSE | AD62: FALSE | AE62: =IF('Master Database'!U66,'Master Database'!U66) -> FALSE | AF62: FALSE
A63: 2022 | B63: ='Master Database'!B67 -> 2022-04-01 | C63: =IF('Master Database'!F67,'Master Database'!F67) -> 51.61 | D63: 8.838177777 | E63: =IF('Master Database'!G67,'Master Database'!G67) -> 25.9 | F63: 88.3708 | G63: =IF('Master Database'!H67,'Master Database'!H67) -> FALSE | H63: FALSE | I63: =IF('Master Database'!I67,'Master Database'!I67) -> 55.35 | J63: 9.478650261 | K63: =IF('Master Database'!J67,'Master Database'!J67) -> 55.35 | L63: 9.478650261 | M63: =IF('Master Database'!K67,'Master Database'!K67) -> 22.05 | N63: 75.2346 | O63: =IF('Master Database'!L67,'Master Database'!L67) -> FALSE | P63: FALSE | Q63: =IF('Master Database'!M67,'Master Database'!M67) -> FALSE | R63: FALSE | S63: =IF('Master Database'!N67,'Master Database'!N67) -> 2.615 | T63: =IF('Master Database'!O67,'Master Database'!O67) -> FALSE | U63: =IF('Master Database'!P67,'Master Database'!P67) -> FALSE | V63: FALSE | W63: =IF('Master Database'!Q67,'Master Database'!Q67) -> FALSE | X63: FALSE | Y63: =IF('Master Database'!R67,'Master Database'!R67) -> FALSE | Z63: FALSE | AA63: =IF('Master Database'!S67,'Master Database'!S67) -> FALSE | AB63: FALSE | AC63: =IF('Master Database'!T67,'Master Database'!T67) -> FALSE | AD63: FALSE | AE63: =IF('Master Database'!U67,'Master Database'!U67) -> FALSE | AF63: FALSE
A64: 2022 | B64: ='Master Database'!B68 -> 2022-05-01 | C64: =IF('Master Database'!F68,'Master Database'!F68) -> 51.7 | D64: 8.853590216 | E64: =IF('Master Database'!G68,'Master Database'!G68) -> 21.35 | F64: 72.8462 | G64: =IF('Master Database'!H68,'Master Database'!H68) -> FALSE | H64: FALSE | I64: =IF('Master Database'!I68,'Master Database'!I68) -> 55.45 | J64: 9.495775193 | K64: =IF('Master Database'!J68,'Master Database'!J68) -> 55.45 | L64: 9.495775193 | M64: =IF('Master Database'!K68,'Master Database'!K68) -> 19.02 | N64: 64.89624 | O64: =IF('Master Database'!L68,'Master Database'!L68) -> FALSE | P64: FALSE | Q64: =IF('Master Database'!M68,'Master Database'!M68) -> FALSE | R64: FALSE | S64: =IF('Master Database'!N68,'Master Database'!N68) -> 2.601 | T64: =IF('Master Database'!O68,'Master Database'!O68) -> FALSE | U64: =IF('Master Database'!P68,'Master Database'!P68) -> FALSE | V64: FALSE | W64: =IF('Master Database'!Q68,'Master Database'!Q68) -> FALSE | X64: FALSE | Y64: =IF('Master Database'!R68,'Master Database'!R68) -> FALSE | Z64: FALSE | AA64: =IF('Master Database'!S68,'Master Database'!S68) -> FALSE | AB64: FALSE | AC64: =IF('Master Database'!T68,'Master Database'!T68) -> FALSE | AD64: FALSE | AE64: =IF('Master Database'!U68,'Master Database'!U68) -> FALSE | AF64: FALSE
A65: 2022 | B65: ='Master Database'!B69 -> 2022-06-01 | C65: =IF('Master Database'!F69,'Master Database'!F69) -> 51.75 | D65: 8.862152683 | E65: =IF('Master Database'!G69,'Master Database'!G69) -> 21.95 | F65: 74.8934 | G65: =IF('Master Database'!H69,'Master Database'!H69) -> FALSE | H65: FALSE | I65: =IF('Master Database'!I69,'Master Database'!I69) -> 55.55 | J65: 9.512900126 | K65: =IF('Master Database'!J69,'Master Database'!J69) -> 55.55 | L65: 9.512900126 | M65: =IF('Master Database'!K69,'Master Database'!K69) -> 19.07 | N65: 65.06684 | O65: =IF('Master Database'!L69,'Master Database'!L69) -> FALSE | P65: FALSE | Q65: =IF('Master Database'!M69,'Master Database'!M69) -> FALSE | R65: FALSE | S65: =IF('Master Database'!N69,'Master Database'!N69) -> 2.627 | T65: =IF('Master Database'!O69,'Master Database'!O69) -> FALSE | U65: =IF('Master Database'!P69,'Master Database'!P69) -> FALSE | V65: FALSE | W65: =IF('Master Database'!Q69,'Master Database'!Q69) -> FALSE | X65: FALSE | Y65: =IF('Master Database'!R69,'Master Database'!R69) -> FALSE | Z65: FALSE | AA65: =IF('Master Database'!S69,'Master Database'!S69) -> FALSE | AB65: FALSE | AC65: =IF('Master Database'!T69,'Master Database'!T69) -> FALSE | AD65: FALSE | AE65: =IF('Master Database'!U69,'Master Database'!U69) -> FALSE | AF65: FALSE
A66: 2022 | B66: ='Master Database'!B70 -> 2022-07-01 | C66: =IF('Master Database'!F70,'Master Database'!F70) -> 51.83 | D66: 8.875852629 | E66: =IF('Master Database'!G70,'Master Database'!G70) -> 23.25 | F66: 79.329 | G66: =IF('Master Database'!H70,'Master Database'!H70) -> FALSE | H66: FALSE | I66: =IF('Master Database'!I70,'Master Database'!I70) -> 55.65 | J66: 9.530025059 | K66: =IF('Master Database'!J70,'Master Database'!J70) -> 55.65 | L66: 9.530025059 | M66: =IF('Master Database'!K70,'Master Database'!K70) -> 22.45 | N66: 76.5994 | O66: =IF('Master Database'!L70,'Master Database'!L70) -> FALSE | P66: FALSE | Q66: =IF('Master Database'!M70,'Master Database'!M70) -> FALSE | R66: FALSE | S66: =IF('Master Database'!N70,'Master Database'!N70) -> 2.655 | T66: =IF('Master Database'!O70,'Master Database'!O70) -> FALSE | U66: =IF('Master Database'!P70,'Master Database'!P70) -> FALSE | V66: FALSE | W66: =IF('Master Database'!Q70,'Master Database'!Q70) -> FALSE | X66: FALSE | Y66: =IF('Master Database'!R70,'Master Database'!R70) -> FALSE | Z66: FALSE | AA66: =IF('Master Database'!S70,'Master Database'!S70) -> FALSE | AB66: FALSE | AC66: =IF('Master Database'!T70,'Master Database'!T70) -> FALSE | AD66: FALSE | AE66: =IF('Master Database'!U70,'Master Database'!U70) -> FALSE | AF66: FALSE
A67: 2022 | B67: ='Master Database'!B71 -> 2022-08-01 | C67: =IF('Master Database'!F71,'Master Database'!F71) -> 51.92 | D67: 8.891265068 | E67: =IF('Master Database'!G71,'Master Database'!G71) -> 21.75 | F67: 74.211 | G67: =IF('Master Database'!H71,'Master Database'!H71) -> FALSE | H67: FALSE | I67: =IF('Master Database'!I71,'Master Database'!I71) -> 55.75 | J67: 9.547149992 | K67: =IF('Master Database'!J71,'Master Database'!J71) -> 55.75 | L67: 9.547149992 | M67: =IF('Master Database'!K71,'Master Database'!K71) -> 20.61 | N67: 70.32132 | O67: =IF('Master Database'!L71,'Master Database'!L71) -> FALSE | P67: FALSE | Q67: =IF('Master Database'!M71,'Master Database'!M71) -> FALSE | R67: FALSE | S67: =IF('Master Database'!N71,'Master Database'!N71) -> 2.68 | T67: =IF('Master Database'!O71,'Master Database'!O71) -> FALSE | U67: =IF('Master Database'!P71,'Master Database'!P71) -> FALSE | V67: FALSE | W67: =IF('Master Database'!Q71,'Master Database'!Q71) -> FALSE | X67: FALSE | Y67: =IF('Master Database'!R71,'Master Database'!R71) -> FALSE | Z67: FALSE | AA67: =IF('Master Database'!S71,'Master Database'!S71) -> FALSE | AB67: FALSE | AC67: =IF('Master Database'!T71,'Master Database'!T71) -> FALSE | AD67: FALSE | AE67: =IF('Master Database'!U71,'Master Database'!U71) -> FALSE | AF67: FALSE
A68: 2022 | B68: ='Master Database'!B72 -> 2022-09-01 | C68: =IF('Master Database'!F72,'Master Database'!F72) -> 52.05 | D68: 8.913527481 | E68: =IF('Master Database'!G72,'Master Database'!G72) -> 21.35 | F68: 72.8462 | G68: =IF('Master Database'!H72,'Master Database'!H72) -> FALSE | H68: FALSE | I68: =IF('Master Database'!I72,'Master Database'!I72) -> 55.85 | J68: 9.564274924 | K68: =IF('Master Database'!J72,'Master Database'!J72) -> 55.85 | L68: 9.564274924 | M68: =IF('Master Database'!K72,'Master Database'!K72) -> 18.87 | N68: 64.38444 | O68: =IF('Master Database'!L72,'Master Database'!L72) -> FALSE | P68: FALSE | Q68: =IF('Master Database'!M72,'Master Database'!M72) -> FALSE | R68: FALSE | S68: =IF('Master Database'!N72,'Master Database'!N72) -> 2.683 | T68: =IF('Master Database'!O72,'Master Database'!O72) -> FALSE | U68: =IF('Master Database'!P72,'Master Database'!P72) -> FALSE | V68: FALSE | W68: =IF('Master Database'!Q72,'Master Database'!Q72) -> FALSE | X68: FALSE | Y68: =IF('Master Database'!R72,'Master Database'!R72) -> FALSE | Z68: FALSE | AA68: =IF('Master Database'!S72,'Master Database'!S72) -> FALSE | AB68: FALSE | AC68: =IF('Master Database'!T72,'Master Database'!T72) -> FALSE | AD68: FALSE | AE68: =IF('Master Database'!U72,'Master Database'!U72) -> FALSE | AF68: FALSE
A69: 2022 | B69: ='Master Database'!B73 -> 2022-10-01 | C69: =IF('Master Database'!F73,'Master Database'!F73) -> 52.17 | D69: 8.9340774 | E69: =IF('Master Database'!G73,'Master Database'!G73) -> 21.25 | F69: 72.505 | G69: =IF('Master Database'!H73,'Master Database'!H73) -> FALSE | H69: FALSE | I69: =IF('Master Database'!I73,'Master Database'!I73) -> 55.95 | J69: 9.581399857 | K69: =IF('Master Database'!J73,'Master Database'!J73) -> 55.95 | L69: 9.581399857 | M69: =IF('Master Database'!K73,'Master Database'!K73) -> 19.17 | N69: 65.40804 | O69: =IF('Master Database'!L73,'Master Database'!L73) -> FALSE | P69: FALSE | Q69: =IF('Master Database'!M73,'Master Database'!M73) -> FALSE | R69: FALSE | S69: =IF('Master Database'!N73,'Master Database'!N73) -> 2.713 | T69: =IF('Master Database'!O73,'Master Database'!O73) -> FALSE | U69: =IF('Master Database'!P73,'Master Database'!P73) -> FALSE | V69: FALSE | W69: =IF('Master Database'!Q73,'Master Database'!Q73) -> FALSE | X69: FALSE | Y69: =IF('Master Database'!R73,'Master Database'!R73) -> FALSE | Z69: FALSE | AA69: =IF('Master Database'!S73,'Master Database'!S73) -> FALSE | AB69: FALSE | AC69: =IF('Master Database'!T73,'Master Database'!T73) -> FALSE | AD69: FALSE | AE69: =IF('Master Database'!U73,'Master Database'!U73) -> FALSE | AF69: FALSE
A70: 2022 | B70: ='Master Database'!B74 -> 2022-11-01 | C70: =IF('Master Database'!F74,'Master Database'!F74) -> 52.27 | D70: 8.951202333 | E70: =IF('Master Database'!G74,'Master Database'!G74) -> 24.75 | F70: 84.447 | G70: =IF('Master Database'!H74,'Master Database'!H74) -> FALSE | H70: FALSE | I70: =IF('Master Database'!I74,'Master Database'!I74) -> 56.05 | J70: 9.59852479 | K70: =IF('Master Database'!J74,'Master Database'!J74) -> 56.05 | L70: 9.59852479 | M70: =IF('Master Database'!K74,'Master Database'!K74) -> 20.26 | N70: 69.12712 | O70: =IF('Master Database'!L74,'Master Database'!L74) -> FALSE | P70: FALSE | Q70: =IF('Master Database'!M74,'Master Database'!M74) -> FALSE | R70: FALSE | S70: =IF('Master Database'!N74,'Master Database'!N74) -> 2.789 | T70: =IF('Master Database'!O74,'Master Database'!O74) -> FALSE | U70: =IF('Master Database'!P74,'Master Database'!P74) -> FALSE | V70: FALSE | W70: =IF('Master Database'!Q74,'Master Database'!Q74) -> FALSE | X70: FALSE | Y70: =IF('Master Database'!R74,'Master Database'!R74) -> FALSE | Z70: FALSE | AA70: =IF('Master Database'!S74,'Master Database'!S74) -> FALSE | AB70: FALSE | AC70: =IF('Master Database'!T74,'Master Database'!T74) -> FALSE | AD70: FALSE | AE70: =IF('Master Database'!U74,'Master Database'!U74) -> FALSE | AF70: FALSE
A71: 2022 | B71: ='Master Database'!B75 -> 2022-12-01 | C71: =IF('Master Database'!F75,'Master Database'!F75) -> 52.27 | D71: 8.951202333 | E71: =IF('Master Database'!G75,'Master Database'!G75) -> 40.55 | F71: 138.3566 | G71: =IF('Master Database'!H75,'Master Database'!H75) -> FALSE | H71: FALSE | I71: =IF('Master Database'!I75,'Master Database'!I75) -> 56.15 | J71: 9.615649723 | K71: =IF('Master Database'!J75,'Master Database'!J75) -> 56.15 | L71: 9.615649723 | M71: =IF('Master Database'!K75,'Master Database'!K75) -> 23.74 | N71: 81.00088 | O71: =IF('Master Database'!L75,'Master Database'!L75) -> FALSE | P71: FALSE | Q71: =IF('Master Database'!M75,'Master Database'!M75) -> FALSE | R71: FALSE | S71: =IF('Master Database'!N75,'Master Database'!N75) -> 2.941 | T71: =IF('Master Database'!O75,'Master Database'!O75) -> FALSE | U71: =IF('Master Database'!P75,'Master Database'!P75) -> FALSE | V71: FALSE | W71: =IF('Master Database'!Q75,'Master Database'!Q75) -> FALSE | X71: FALSE | Y71: =IF('Master Database'!R75,'Master Database'!R75) -> FALSE | Z71: FALSE | AA71: =IF('Master Database'!S75,'Master Database'!S75) -> FALSE | AB71: FALSE | AC71: =IF('Master Database'!T75,'Master Database'!T75) -> FALSE | AD71: FALSE | AE71: =IF('Master Database'!U75,'Master Database'!U75) -> FALSE | AF71: FALSE
A72: 2023 | B72: ='Master Database'!B76 -> 2023-01-01 | C72: =IF('Master Database'!F76,'Master Database'!F76) -> 52.27 | D72: 8.951202333 | E72: =IF('Master Database'!G76,'Master Database'!G76) -> FALSE | F72: FALSE | G72: =IF('Master Database'!H76,'Master Database'!H76) -> FALSE | H72: FALSE | I72: =IF('Master Database'!I76,'Master Database'!I76) -> 56.25 | J72: 9.632774655 | K72: =IF('Master Database'!J76,'Master Database'!J76) -> 56.25 | L72: 9.632774655 | M72: =IF('Master Database'!K76,'Master Database'!K76) -> FALSE | N72: FALSE | O72: =IF('Master Database'!L76,'Master Database'!L76) -> FALSE | P72: FALSE | Q72: =IF('Master Database'!M76,'Master Database'!M76) -> FALSE | R72: FALSE | S72: =IF('Master Database'!N76,'Master Database'!N76) -> 3.051 | T72: =IF('Master Database'!O76,'Master Database'!O76) -> FALSE | U72: =IF('Master Database'!P76,'Master Database'!P76) -> FALSE | V72: FALSE | W72: =IF('Master Database'!Q76,'Master Database'!Q76) -> FALSE | X72: FALSE | Y72: =IF('Master Database'!R76,'Master Database'!R76) -> FALSE | Z72: FALSE | AA72: =IF('Master Database'!S76,'Master Database'!S76) -> FALSE | AB72: FALSE | AC72: =IF('Master Database'!T76,'Master Database'!T76) -> FALSE | AD72: FALSE | AE72: =IF('Master Database'!U76,'Master Database'!U76) -> FALSE | AF72: FALSE
A73: =YEAR(B73) -> 2023 | B73: ='Master Database'!B77 -> 2023-02-01 | C73: =IF('Master Database'!F77,'Master Database'!F77) -> 52.27 | D73: =C73/$D$4 -> 8.951202333 | E73: =IF('Master Database'!G77,'Master Database'!G77) -> FALSE | F73: =IF(E73,E73/$F$4) -> FALSE | G73: =IF('Master Database'!H77,'Master Database'!H77) -> FALSE | H73: =IF(G73,G73/$H$4) -> FALSE | I73: =IF('Master Database'!I77,'Master Database'!I77) -> 56.35 | J73: =IF(I73,I73/$J$4) -> 9.649899588 | K73: =IF('Master Database'!J77,'Master Database'!J77) -> 56.35 | L73: =IF(K73,K73/$L$4) -> 9.649899588 | M73: =IF('Master Database'!K77,'Master Database'!K77) -> FALSE | N73: =IF(M73,M73/$N$4) -> FALSE | O73: =IF('Master Database'!L77,'Master Database'!L77) -> FALSE | P73: =IF(O73,O73/$P$4) -> FALSE | Q73: =IF('Master Database'!M77,'Master Database'!M77) -> FALSE | R73: =IF(Q73,Q73/$R$4) -> FALSE | S73: =IF('Master Database'!N77,'Master Database'!N77) -> 3.023 | T73: =IF('Master Database'!O77,'Master Database'!O77) -> FALSE | U73: =IF('Master Database'!P77,'Master Database'!P77) -> FALSE | V73: =IF(U73,U73/$V$4) -> FALSE | W73: =IF('Master Database'!Q77,'Master Database'!Q77) -> FALSE | X73: =IF(W73,W73/$X$4) -> FALSE | Y73: =IF('Master Database'!R77,'Master Database'!R77) -> FALSE | Z73: =IF(Y73,Y73/$Z$4) -> FALSE | AA73: =IF('Master Database'!S77,'Master Database'!S77) -> FALSE | AB73: =IF(AA73,AA73/$AB$4) -> FALSE | AC73: =IF('Master Database'!T77,'Master Database'!T77) -> FALSE | AD73: =IF(AC73,AC73/$AD$4) -> FALSE | AE73: =IF('Master Database'!U77,'Master Database'!U77) -> FALSE | AF73: =IF(AE73,AE73/$AF$4) -> FALSE
A74: 2023 | B74: ='Master Database'!B78 -> 2023-03-01 | C74: =IF('Master Database'!F78,'Master Database'!F78) -> 52.27 | D74: 8.951202333 | E74: =IF('Master Database'!G78,'Master Database'!G78) -> FALSE | F74: FALSE | G74: =IF('Master Database'!H78,'Master Database'!H78) -> FALSE | H74: FALSE | I74: =IF('Master Database'!I78,'Master Database'!I78) -> 56.44 | J74: 9.665312027 | K74: =IF('Master Database'!J78,'Master Database'!J78) -> 56.44 | L74: 9.665312027 | M74: =IF('Master Database'!K78,'Master Database'!K78) -> FALSE | N74: FALSE | O74: =IF('Master Database'!L78,'Master Database'!L78) -> FALSE | P74: FALSE | Q74: =IF('Master Database'!M78,'Master Database'!M78) -> FALSE | R74: FALSE | S74: =IF('Master Database'!N78,'Master Database'!N78) -> 2.963 | T74: =IF('Master Database'!O78,'Master Database'!O78) -> FALSE | U74: =IF('Master Database'!P78,'Master Database'!P78) -> FALSE | V74: FALSE | W74: =IF('Master Database'!Q78,'Master Database'!Q78) -> FALSE | X74: FALSE | Y74: =IF('Master Database'!R78,'Master Database'!R78) -> FALSE | Z74: FALSE | AA74: =IF('Master Database'!S78,'Master Database'!S78) -> FALSE | AB74: FALSE | AC74: =IF('Master Database'!T78,'Master Database'!T78) -> FALSE | AD74: FALSE | AE74: =IF('Master Database'!U78,'Master Database'!U78) -> FALSE | AF74: FALSE
